Workbook

Sheet Mega Millions
B2: Index | C2: Year | D2: Month | E2: Day | F2: Mega Millions Draws | L2: Separated Digits
F3: A | G3: B | H3: C | I3: D | J3: E | K3: MB | L3: A | N3: B | P3: C | R3: D | T3: E | V3: MB | Z3: A | AB3: B | AD3: C | AF3: D | AH3: E | AJ3: MB | AM3: Offset 1's Digit ±5 | BI3: · | BJ3: → | BL3: A | BX3: B | CJ3: C | CV3: D | DH3: E | DT3: MB
L4: 10's | M4: 1's | N4: 10's | O4: 1's | P4: 10's | Q4: 1's | R4: 10's | S4: 1's | T4: 10's | U4: 1's | V4: 10's | W4: 1's | Z4: 10's | AA4: 1's | AB4: 10's | AC4: 1's | AD4: 10's | AE4: 1's | AF4: 10's | AG4: 1's | AH4: 10's | AI4: 1's | AJ4: 10's | AK4: 1's | AM4: 0 | AN4: 0 | AO4: 0 | AP4: 0 | AQ4: 0 | AR4: 0 | BA4: Disimulate | BI4: ↓ | BJ4: ↙ | BL4: From | BV4: ↙ | BX4: From | CH4: ↙ | CJ4: From | CT4: ↙ | CV4: From | DF4: ↙ | DH4: From | DR4: ↙ | DT4: From
B5: 1 | C5: 2013 | D5: 10 | E5: 22 | F5: 2 | G5: 3 | H5: 19 | I5: 52 | J5: 71 | K5: 14 | L5: =IF(ISNUMBER(F5),INT(F5/10),"") -> 0 | M5: =IF(ISNUMBER(F5),F5-10*L5,"") -> 2 | N5: =IF(ISNUMBER(G5),INT(G5/10),"") -> 0 | O5: =IF(ISNUMBER(G5),G5-10*N5,"") -> 3 | P5: =IF(ISNUMBER(H5),INT(H5/10),"") -> 1 | Q5: =IF(ISNUMBER(H5),H5-10*P5,"") -> 9 | R5: =IF(ISNUMBER(I5),INT(I5/10),"") -> 5 | S5: =IF(ISNUMBER(I5),I5-10*R5,"") -> 2 | T5: =IF(ISNUMBER(J5),INT(J5/10),"") -> 7 | U5: =IF(ISNUMBER(J5),J5-10*T5,"") -> 1 | V5: =IF(ISNUMBER(K5),INT(K5/10),"") -> 1 | W5: =IF(ISNUMBER(K5),K5-10*V5,"") -> 4 | Y5: Last Draw | Z5: =LastNPosition(L5:L1504,1) -> 0 | AA5: 8 | AB5: 1 | AC5: 7 | AD5: 2 | AE5: 0 | AF5: 4 | AG5: 5 | AH5: 7 | AI5: 1 | AJ5: 0 | AK5: 4 | AS5: =COUNTIF(AS6:AS1005,"X") -> 633 | AT5: =COUNTIF(AT6:AT1005,"XX") -> 103 | AU5: 0 | AW5: 0 | AZ5: Index | BA5: A | BB5: B | BC5: C | BD5: D | BE5: E | BF5: MB | BL5: 0 | BM5: 1 | BN5: 2 | BO5: 3 | BP5: 4 | BQ5: 5 | BR5: 6 | BS5: 7 | BT5: 8 | BU5: 9 | BX5: 0 | BY5: 1 | BZ5: 2 | CA5: 3 | CB5: 4 | CC5: 5 | CD5: 6 | CE5: 7 | CF5: 8 | CG5: 9 | CJ5: 0 | CK5: 1 | CL5: 2 | CM5: 3 | CN5: 4 | CO5: 5 | CP5: 6 | CQ5: 7 | CR5: 8 | CS5: 9 | CV5: 0 | CW5: 1 | CX5: 2 | CY5: 3 | CZ5: 4 | DA5: 5 | DB5: 6 | DC5: 7 | DD5: 8 | DE5: 9 | DH5: 0 | DI5: 1 | DJ5: 2 | DK5: 3 | DL5: 4 | DM5: 5 | DN5: 6 | DO5: 7 | DP5: 8 | DQ5: 9 | DT5: 0 | DU5: 1 | DV5: 2 | DW5: 3 | DX5: 4 | DY5: 5 | DZ5: 6 | EA5: 7 | EB5: 8 | EC5: 9
B6: 2 | C6: 2013 | D6: 10 | E6: 25 | F6: 6 | G6: 16 | H6: 45 | I6: 54 | J6: 60 | K6: 15 | L6: =IF(ISNUMBER(F6),INT(F6/10),"") -> 0 | M6: =IF(ISNUMBER(F6),F6-10*L6,"") -> 6 | N6: =IF(ISNUMBER(G6),INT(G6/10),"") -> 1 | O6: =IF(ISNUMBER(G6),G6-10*N6,"") -> 6 | P6: =IF(ISNUMBER(H6),INT(H6/10),"") -> 4 | Q6: =IF(ISNUMBER(H6),H6-10*P6,"") -> 5 | R6: =IF(ISNUMBER(I6),INT(I6/10),"") -> 5 | S6: =IF(ISNUMBER(I6),I6-10*R6,"") -> 4 | T6: =IF(ISNUMBER(J6),INT(J6/10),"") -> 6 | U6: =IF(ISNUMBER(J6),J6-10*T6,"") -> 0 | V6: =IF(ISNUMBER(K6),INT(K6/10),"") -> 1 | W6: =IF(ISNUMBER(K6),K6-10*V6,"") -> 5 | Y6: 1 | Z6: =IF($Z$5=$BL$5,Disimulate($BK$6:$BK$15,$BL$6:$BL$15),IF($Z$5=$BM$5,Disimulate($BK$6:$BK$15,$BM$6:$BM$15),IF($Z$5=$BN$5,Disimulate($BK$6:$BK$15,$BN$6:$BN$15),IF($Z$5=$BO$5,Disimulate($BK$6:$BK$15,$BO$6:$BO$15),IF($Z$5=$BP$5,Disimulate($BK$6:$BK$15,$BP$6:$BP$15),IF($Z$5=$BQ$5,Disimulate($BK$6:$BK$15,$BQ$6:$BQ$15),IF($Z$5=$BR$5,Disimulate($BK$6:$BK$15,$BR$6:$BR$15),IF($Z$5=$BS$5,Disimulate($BK$6:$BK$15,$BS$6:$BS$15),IF($Z$5=$BT$5,Disimulate($BK$6:$BK$15,$BT$6:$BT$15),IF($Z$5=$BU$5,Disimulate($BK$6:$BK$15,$BU$6:$BU$15),"")))))))))) -> 1 | AA6: =IF($AA$5=$BL$17,Disimulate($BK$18:$BK$27,$BL$18:$BL$27),IF($AA$5=$BM$17,Disimulate($BK$18:$BK$27,$BM$18:$BM$27),IF($AA$5=$BN$17,Disimulate($BK$18:$BK$27,$BN$18:$BN$27),IF($AA$5=$BO$17,Disimulate($BK$18:$BK$27,$BO$18:$BO$27),IF($AA$5=$BP$17,Disimulate($BK$18:$BK$27,$BP$18:$BP$27),IF($AA$5=$BQ$17,Disimulate($BK$18:$BK$27,$BQ$18:$BQ$27),IF($AA$5=$BR$17,Disimulate($BK$18:$BK$27,$BR$18:$BR$27),IF($AA$5=$BS$17,Disimulate($BK$18:$BK$27,$BS$18:$BS$27),IF($AA$5=$BT$17,Disimulate($BK$18:$BK$27,$BT$18:$BT$27),IF($AA$5=$BU$17,Disimulate($BK$18:$BK$27,$BU$18:$BU$27),"")))))))))) -> 8 | AB6: =IF($AB$5=$BX$5,Disimulate($BW$6:$BW$15,$BX$6:$BX$15),IF($AB$5=$BY$5,Disimulate($BW$6:$BW$15,$BY$6:$BY$15),IF($AB$5=$BZ$5,Disimulate($BW$6:$BW$15,$BZ$6:$BZ$15),IF($AB$5=$CA$5,Disimulate($BW$6:$BW$15,$CA$6:$CA$15),IF($AB$5=$CB$5,Disimulate($BW$6:$BW$15,$CB$6:$CB$15),IF($AB$5=$CC$5,Disimulate($BW$6:$BW$15,$CC$6:$CC$15),IF($AB$5=$CD$5,Disimulate($BW$6:$BW$15,$CD$6:$CD$15),IF($AB$5=$CE$5,Disimulate($BW$6:$BW$15,$CE$6:$CE$15),IF($AB$5=$CF$5,Disimulate($BW$6:$BW$15,$CF$6:$CF$15),IF($AB$5=$CG$5,Disimulate($BW$6:$BW$15,$CG$6:$CG$15),"")))))))))) -> 3 | AC6: =IF($AC$5=$BX$17,Disimulate($BW$18:$BW$27,$BX$18:$BX$27),IF($AC$5=$BY$17,Disimulate($BW$18:$BW$27,$BY$18:$BY$27),IF($AC$5=$BZ$17,Disimulate($BW$18:$BW$27,$BZ$18:$BZ$27),IF($AC$5=$CA$17,Disimulate($BW$18:$BW$27,$CA$18:$CA$27),IF($AC$5=$CB$17,Disimulate($BW$18:$BW$27,$CB$18:$CB$27),IF($AC$5=$CC$17,Disimulate($BW$18:$BW$27,$CC$18:$CC$27),IF($AC$5=$CD$17,Disimulate($BW$18:$BW$27,$CD$18:$CD$27),IF($AC$5=$CE$17,Disimulate($BW$18:$BW$27,$CE$18:$CE$27),IF($AC$5=$CF$17,Disimulate($BW$18:$BW$27,$CF$18:$CF$27),IF($AC$5=$CG$17,Disimulate($BW$18:$BW$27,$CG$18:$CG$27),"")))))))))) -> 0 | AD6: =IF($AD$5=$CJ$5,Disimulate($CI$6:$CI$15,$CJ$6:$CJ$15),IF($AD$5=$CK$5,Disimulate($CI$6:$CI$15,$CK$6:$CK$15),IF($AD$5=$CL$5,Disimulate($CI$6:$CI$15,$CL$6:$CL$15),IF($AD$5=$CM$5,Disimulate($CI$6:$CI$15,$CM$6:$CM$15),IF($AD$5=$CN$5,Disimulate($CI$6:$CI$15,$CN$6:$CN$15),IF($AD$5=$CO$5,Disimulate($CI$6:$CI$15,$CO$6:$CO$15),IF($AD$5=$CP$5,Disimulate($CI$6:$CI$15,$CP$6:$CP$15),IF($AD$5=$CQ$5,Disimulate($CI$6:$CI$15,$CQ$6:$CQ$15),IF($AD$5=$CR$5,Disimulate($CI$6:$CI$15,$CR$6:$CR$15),IF($AD$5=$CS$5,Disimulate($CI$6:$CI$15,$CS$6:$CS$15),"")))))))))) -> 3 | AE6: =IF($AE$5=$CJ$17,Disimulate($CI$18:$CI$27,$CJ$18:$CJ$27),IF($AE$5=$CK$17,Disimulate($CI$18:$CI$27,$CK$18:$CK$27),IF($AE$5=$CL$17,Disimulate($CI$18:$CI$27,$CL$18:$CL$27),IF($AE$5=$CM$17,Disimulate($CI$18:$CI$27,$CM$18:$CM$27),IF($AE$5=$CN$17,Disimulate($CI$18:$CI$27,$CN$18:$CN$27),IF($AE$5=$CO$17,Disimulate($CI$18:$CI$27,$CO$18:$CO$27),IF($AE$5=$CP$17,Disimulate($CI$18:$CI$27,$CP$18:$CP$27),IF($AE$5=$CQ$17,Disimulate($CI$18:$CI$27,$CQ$18:$CQ$27),IF($AE$5=$CR$17,Disimulate($CI$18:$CI$27,$CR$18:$CR$27),IF($AE$5=$CS$17,Disimulate($CI$18:$CI$27,$CS$18:$CS$27),"")))))))))) -> 8 | AF6: =IF($AF$5=$CV$5,Disimulate($CU$6:$CU$15,$CV$6:$CV$15),IF($AF$5=$CW$5,Disimulate($CU$6:$CU$15,$CW$6:$CW$15),IF($AF$5=$CX$5,Disimulate($CU$6:$CU$15,$CX$6:$CX$15),IF($AF$5=$CY$5,Disimulate($CU$6:$CU$15,$CY$6:$CY$15),IF($AF$5=$CZ$5,Disimulate($CU$6:$CU$15,$CZ$6:$CZ$15),IF($AF$5=$DA$5,Disimulate($CU$6:$CU$15,$DA$6:$DA$15),IF($AF$5=$DB$5,Disimulate($CU$6:$CU$15,$DB$6:$DB$15),IF($AF$5=$DC$5,Disimulate($CU$6:$CU$15,$DC$6:$DC$15),IF($AF$5=$DD$5,Disimulate($CU$6:$CU$15,$DD$6:$DD$15),IF($AF$5=$DE$5,Disimulate($CU$6:$CU$15,$DE$6:$DE$15),"")))))))))) -> 5 | AG6: =IF($AG$5=$CV$17,Disimulate($CU$18:$CU$27,$CV$18:$CV$27),IF($AG$5=$CW$17,Disimulate($CU$18:$CU$27,$CW$18:$CW$27),IF($AG$5=$CX$17,Disimulate($CU$18:$CU$27,$CX$18:$CX$27),IF($AG$5=$CY$17,Disimulate($CU$18:$CU$27,$CY$18:$CY$27),IF($AG$5=$CZ$17,Disimulate($CU$18:$CU$27,$CZ$18:$CZ$27),IF($AG$5=$DA$17,Disimulate($CU$18:$CU$27,$DA$18:$DA$27),IF($AG$5=$DB$17,Disimulate($CU$18:$CU$27,$DB$18:$DB$27),IF($AG$5=$DC$17,Disimulate($CU$18:$CU$27,$DC$18:$DC$27),IF($AG$5=$DD$17,Disimulate($CU$18:$CU$27,$DD$18:$DD$27),IF($AG$5=$DE$17,Disimulate($CU$18:$CU$27,$DE$18:$DE$27),"")))))))))) -> 8 | AH6: =IF($AH$5=$DH$5,Disimulate($DG$6:$DG$15,$DH$6:$DH$15),IF($AH$5=$DI$5,Disimulate($DG$6:$DG$15,$DI$6:$DI$15),IF($AH$5=$DJ$5,Disimulate($DG$6:$DG$15,$DJ$6:$DJ$15),IF($AH$5=$DK$5,Disimulate($DG$6:$DG$15,$DK$6:$DK$15),IF($AH$5=$DL$5,Disimulate($DG$6:$DG$15,$DL$6:$DL$15),IF($AH$5=$DM$5,Disimulate($DG$6:$DG$15,$DM$6:$DM$15),IF($AH$5=$DN$5,Disimulate($DG$6:$DG$15,$DN$6:$DN$15),IF($AH$5=$DO$5,Disimulate($DG$6:$DG$15,$DO$6:$DO$15),IF($AH$5=$DP$5,Disimulate($DG$6:$DG$15,$DP$6:$DP$15),IF($AH$5=$DQ$5,Disimulate($DG$6:$DG$15,$DQ$6:$DQ$15),"")))))))))) -> 5 | AI6: =IF($AI$5=$DH$17,Disimulate($DG$18:$DG$27,$DH$18:$DH$27),IF($AI$5=$DI$17,Disimulate($DG$18:$DG$27,$DI$18:$DI$27),IF($AI$5=$DJ$17,Disimulate($DG$18:$DG$27,$DJ$18:$DJ$27),IF($AI$5=$DK$17,Disimulate($DG$18:$DG$27,$DK$18:$DK$27),IF($AI$5=$DL$17,Disimulate($DG$18:$DG$27,$DL$18:$DL$27),IF($AI$5=$DM$17,Disimulate($DG$18:$DG$27,$DM$18:$DM$27),IF($AI$5=$DN$17,Disimulate($DG$18:$DG$27,$DN$18:$DN$27),IF($AI$5=$DO$17,Disimulate($DG$18:$DG$27,$DO$18:$DO$27),IF($AI$5=$DP$17,Disimulate($DG$18:$DG$27,$DP$18:$DP$27),IF($AI$5=$DQ$17,Disimulate($DG$18:$DG$27,$DQ$18:$DQ$27),"")))))))))) -> 0 | AJ6: =IF($AJ$5=$DT$5,Disimulate($DS$6:$DS$15,$DT$6:$DT$15),IF($AJ$5=$DU$5,Disimulate($DS$6:$DS$15,$DU$6:$DU$15),IF($AJ$5=$DV$5,Disimulate($DS$6:$DS$15,$DV$6:$DV$15),IF($AJ$5=$DW$5,Disimulate($DS$6:$DS$15,$DW$6:$DW$15),IF($AJ$5=$DX$5,Disimulate($DS$6:$DS$15,$DX$6:$DX$15),IF($AJ$5=$DY$5,Disimulate($DS$6:$DS$15,$DY$6:$DY$15),IF($AJ$5=$DZ$5,Disimulate($DS$6:$DS$15,$DZ$6:$DZ$15),IF($AJ$5=$EA$5,Disimulate($DS$6:$DS$15,$EA$6:$EA$15),IF($AJ$5=$EB$5,Disimulate($DS$6:$DS$15,$EB$6:$EB$15),IF($AJ$5=$EC$5,Disimulate($DS$6:$DS$15,$EC$6:$EC$15),"")))))))))) -> 0 | AK6: =IF($AK$5=$DT$17,Disimulate($DS$18:$DS$27,$DT$18:$DT$27),IF($AK$5=$DU$17,Disimulate($DS$18:$DS$27,$DU$18:$DU$27),IF($AK$5=$DV$17,Disimulate($DS$18:$DS$27,$DV$18:$DV$27),IF($AK$5=$DW$17,Disimulate($DS$18:$DS$27,$DW$18:$DW$27),IF($AK$5=$DX$17,Disimulate($DS$18:$DS$27,$DX$18:$DX$27),IF($AK$5=$DY$17,Disimulate($DS$18:$DS$27,$DY$18:$DY$27),IF($AK$5=$DZ$17,Disimulate($DS$18:$DS$27,$DZ$18:$DZ$27),IF($AK$5=$EA$17,Disimulate($DS$18:$DS$27,$EA$18:$EA$27),IF($AK$5=$EB$17,Disimulate($DS$18:$DS$27,$EB$18:$EB$27),IF($AK$5=$EC$17,Disimulate($DS$18:$DS$27,$EC$18:$EC$27),"")))))))))) -> 0 | AM6: =10*Z6+1*MOD(AA6+AM$4,10) -> 18 | AN6: =10*AB6+1*MOD(AC6+AN$4,10) -> 30 | AO6: =10*AD6+1*MOD(AE6+AO$4,10) -> 38 | AP6: =10*AF6+1*MOD(AG6+AP$4,10) -> 58 | AQ6: =10*AH6+1*MOD(AI6+AQ$4,10) -> 50 | AR6: =10*AJ6+1*MOD(AK6+AR$4,10) -> 0 | AS6: =IF(AND(MIN(AM6:AR6)>0,MAX(AM6:AQ6)<76,AR6<16),"X","") ->  | AT6: =IF(AND(AS6="X",AM6<AN6,AN6<AO6,AO6<AP6,AP6<AQ6),"XX","") ->  | AU6: =IF(AS6="X",AU5+1,AU5) -> 0 | AV6: =IF(AU6<>AU5,AU6,"") ->  | AW6: =IF(AT6="XX",AW5+1,AW5) -> 0 | AX6: =IF(AW6<>AW5,AW6,"") ->  | AZ6: 1 | BA6: =IF($AZ6<=$AT$5,LOOKUP($AZ6,$AX$6:$AX$1005,AM$6:AM$1005),"") -> 20 | BB6: 29 | BC6: 31 | BD6: 68 | BE6: 72 | BF6: 8 | BI6: 10's | BJ6: To | BK6: 0 | BL6: =COUNTIFS($L$5:$L$1503,BL$5,$L$6:$L$1504,$BK6) -> 46 | BM6: 37 | BN6: 14 | BO6: 4 | BP6: 0 | BQ6: 0 | BR6: 0 | BS6: 0 | BT6: 0 | BU6: 0 | BV6: To | BW6: 0 | BX6: =COUNTIFS($N$5:$N$1503,BX$5,$N$6:$N$1504,$BW6) -> 3 | BY6: 8 | BZ6: 5 | CA6: 3 | CB6: 1 | CC6: 1 | CD6: 0 | CE6: 0 | CF6: 0 | CG6: 0 | CH6: To | CI6: 0 | CJ6: =COUNTIFS($P$5:$P$1503,CJ$5,$P$6:$P$1504,$CI6) -> 0 | CK6: 0 | CL6: 0 | CM6: 0 | CN6: 0 | CO6: 2 | CP6: 0 | CQ6: 0 | CR6: 0 | CS6: 0 | CT6: To | CU6: 0 | CV6: =COUNTIFS($R$5:$R$1503,CV$5,$R$6:$R$1504,$CU6) -> 0 | CW6: 0 | CX6: 0 | CY6: 0 | CZ6: 0 | DA6: 0 | DB6: 0 | DC6: 0 | DD6: 0 | DE6: 0 | DF6: To | DG6: 0 | DH6: =COUNTIFS($T$5:$T$1503,DH$5,$T$6:$T$1504,$DG6) -> 0 | DI6: 0 | DJ6: 0 | DK6: 0 | DL6: 0 | DM6: 0 | DN6: 0 | DO6: 0 | DP6: 0 | DQ6: 0 | DR6: To | DS6: 0 | DT6: =COUNTIFS($V$5:$V$1503,DT$5,$V$6:$V$1504,$DS6) -> 87 | DU6: 49 | DV6: 0 | DW6: 0 | DX6: 0 | DY6: 0 | DZ6: 0 | EA6: 0 | EB6: 0 | EC6: 0
B7: 3 | C7: 2013 | D7: 10 | E7: 29 | F7: 20 | G7: 33 | H7: 50 | I7: 53 | J7: 54 | K7: 7 | L7: 2 | M7: 0 | N7: 3 | O7: 3 | P7: 5 | Q7: 0 | R7: 5 | S7: 3 | T7: 5 | U7: 4 | V7: 0 | W7: 7 | Y7: 2 | Z7: 1 | AA7: 0 | AB7: 0 | AC7: 2 | AD7: 3 | AE7: 4 | AF7: 4 | AG7: 8 | AH7: 6 | AI7: 3 | AJ7: 0 | AK7: 8 | AM7: 10 | AN7: 2 | AO7: 34 | AP7: 48 | AQ7: 63 | AR7: 8 | AS7: =IF(AND(MIN(AM7:AR7)>0,MAX(AM7:AQ7)<76,AR7<16),"X","") -> X | AU7: =IF(AS7="X",AU6+1,AU6) -> 1 | AV7: =IF(AU7<>AU6,AU7,"") -> 1 | AW7: =IF(AT7="XX",AW6+1,AW6) -> 0 | AZ7: 2 | BA7: =IF($AZ7<=$AT$5,LOOKUP($AZ7,$AX$6:$AX$1005,AM$6:AM$1005),"") -> 4 | BB7: =IF($AZ7<=$AT$5,LOOKUP($AZ7,$AX$6:$AX$1005,AN$6:AN$1005),"") -> 8 | BC7: =IF($AZ7<=$AT$5,LOOKUP($AZ7,$AX$6:$AX$1005,AO$6:AO$1005),"") -> 49 | BD7: =IF($AZ7<=$AT$5,LOOKUP($AZ7,$AX$6:$AX$1005,AP$6:AP$1005),"") -> 50 | BE7: =IF($AZ7<=$AT$5,LOOKUP($AZ7,$AX$6:$AX$1005,AQ$6:AQ$1005),"") -> 74 | BF7: =IF($AZ7<=$AT$5,LOOKUP($AZ7,$AX$6:$AX$1005,AR$6:AR$1005),"") -> 15 | BK7: 1 | BL7: 35 | BM7: 18 | BN7: 10 | BO7: 5 | BP7: 1 | BQ7: 0 | BR7: 0 | BS7: 0 | BT7: 0 | BU7: 0 | BW7: 1 | BX7: 8 | BY7: 8 | BZ7: 21 | CA7: 12 | CB7: 9 | CC7: 3 | CD7: 0 | CE7: 0 | CF7: 0 | CG7: 0 | CI7: 1 | CJ7: 0 | CK7: 1 | CL7: 7 | CM7: 5 | CN7: 1 | CO7: 1 | CP7: 2 | CQ7: 0 | CR7: 0 | CS7: 0 | CU7: 1 | CV7: 0 | CW7: 0 | CX7: 0 | CY7: 0 | CZ7: 0 | DA7: 0 | DB7: 0 | DC7: 0 | DD7: 0 | DE7: 0 | DG7: 1 | DH7: 0 | DI7: 0 | DJ7: 0 | DK7: 0 | DL7: 0 | DM7: 0 | DN7: 0 | DO7: 0 | DP7: 0 | DQ7: 0 | DS7: 1 | DT7: 48 | DU7: 30 | DV7: 0 | DW7: 0 | DX7: 0 | DY7: 0 | DZ7: 0 | EA7: 0 | EB7: 0 | EC7: 0
B8: 4 | C8: 2013 | D8: 11 | E8: 1 | F8: 32 | G8: 35 | H8: 49 | I8: 62 | J8: 67 | K8: 1 | L8: 3 | M8: 2 | N8: 3 | O8: 5 | P8: 4 | Q8: 9 | R8: 6 | S8: 2 | T8: 6 | U8: 7 | V8: 0 | W8: 1 | Y8: 3 | Z8: 3 | AA8: 1 | AB8: 2 | AC8: 8 | AD8: 1 | AE8: 1 | AF8: 4 | AG8: 9 | AH8: 5 | AI8: 6 | AJ8: 1 | AK8: 4 | AM8: 31 | AN8: 28 | AO8: 11 | AP8: 49 | AQ8: 56 | AR8: 14 | AS8: =IF(AND(MIN(AM8:AR8)>0,MAX(AM8:AQ8)<76,AR8<16),"X","") -> X | AT8: =IF(AND(AS8="X",AM8<AN8,AN8<AO8,AO8<AP8,AP8<AQ8),"XX","") ->  | AU8: =IF(AS8="X",AU7+1,AU7) -> 2 | AV8: =IF(AU8<>AU7,AU8,"") -> 2 | AW8: =IF(AT8="XX",AW7+1,AW7) -> 0 | AX8: =IF(AW8<>AW7,AW8,"") ->  | AZ8: 3 | BA8: 2 | BB8: 10 | BC8: 40 | BD8: 59 | BE8: 62 | BF8: 14 | BK8: 2 | BL8: 13 | BM8: 9 | BN8: 4 | BO8: 2 | BP8: 2 | BQ8: 0 | BR8: 0 | BS8: 0 | BT8: 0 | BU8: 0 | BW8: 2 | BX8: 6 | BY8: 21 | BZ8: 18 | CA8: 12 | CB8: 5 | CC8: 2 | CD8: 1 | CE8: 0 | CF8: 0 | CG8: 0 | CI8: 2 | CJ8: 1 | CK8: 1 | CL8: 12 | CM8: 18 | CN8: 10 | CO8: 6 | CP8: 4 | CQ8: 0 | CR8: 0 | CS8: 0 | CU8: 2 | CV8: 0 | CW8: 0 | CX8: 2 | CY8: 1 | CZ8: 8 | DA8: 2 | DB8: 3 | DC8: 1 | DD8: 0 | DE8: 0 | DG8: 2 | DH8: 0 | DI8: 0 | DJ8: 0 | DK8: 0 | DL8: 0 | DM8: 0 | DN8: 1 | DO8: 0 | DP8: 0 | DQ8: 0 | DS8: 2 | DT8: 0 | DU8: 0 | DV8: 0 | DW8: 0 | DX8: 0 | DY8: 0 | DZ8: 0 | EA8: 0 | EB8: 0 | EC8: 0
B9: 5 | C9: 2013 | D9: 11 | E9: 5 | F9: 2 | G9: 11 | H9: 42 | I9: 64 | J9: 74 | K9: 2 | L9: 0 | M9: 2 | N9: 1 | O9: 1 | P9: 4 | Q9: 2 | R9: 6 | S9: 4 | T9: 7 | U9: 4 | V9: 0 | W9: 2 | Y9: 4 | Z9: 1 | AA9: 0 | AB9: 1 | AC9: 9 | AD9: 1 | AE9: 1 | AF9: 5 | AG9: 1 | AH9: 6 | AI9: 3 | AJ9: 1 | AK9: 1 | AM9: 10 | AN9: 19 | AO9: 11 | AP9: 51 | AQ9: 63 | AR9: 11 | AS9: X | AU9: 3 | AV9: =IF(AU9<>AU8,AU9,"") -> 3 | AW9: 0 | AX9: =IF(AW9<>AW8,AW9,"") ->  | AZ9: 4 | BA9: 4 | BB9: 22 | BC9: 31 | BD9: 61 | BE9: 64 | BF9: 4 | BK9: 3 | BL9: 5 | BM9: 4 | BN9: 2 | BO9: 0 | BP9: 0 | BQ9: 0 | BR9: 0 | BS9: 0 | BT9: 0 | BU9: 0 | BW9: 3 | BX9: 2 | BY9: 13 | BZ9: 10 | CA9: 9 | CB9: 5 | CC9: 0 | CD9: 0 | CE9: 0 | CF9: 0 | CG9: 0 | CI9: 3 | CJ9: 0 | CK9: 3 | CL9: 14 | CM9: 20 | CN9: 8 | CO9: 13 | CP9: 3 | CQ9: 0 | CR9: 0 | CS9: 0 | CU9: 3 | CV9: 0 | CW9: 0 | CX9: 0 | CY9: 4 | CZ9: 5 | DA9: 6 | DB9: 14 | DC9: 2 | DD9: 0 | DE9: 0 | DG9: 3 | DH9: 0 | DI9: 0 | DJ9: 0 | DK9: 0 | DL9: 1 | DM9: 0 | DN9: 1 | DO9: 2 | DP9: 0 | DQ9: 0 | DS9: 3 | DT9: 0 | DU9: 0 | DV9: 0 | DW9: 0 | DX9: 0 | DY9: 0 | DZ9: 0 | EA9: 0 | EB9: 0 | EC9: 0
B10: 6 | C10: 2013 | D10: 11 | E10: 8 | F10: 41 | G10: 42 | H10: 51 | I10: 57 | J10: 65 | K10: 7 | L10: 4 | M10: 1 | N10: 4 | O10: 2 | P10: 5 | Q10: 1 | R10: 5 | S10: 7 | T10: 6 | U10: 5 | V10: 0 | W10: 7 | Y10: 5 | Z10: 0 | AA10: 8 | AB10: 4 | AC10: 2 | AD10: 3 | AE10: 5 | AF10: 4 | AG10: 9 | AH10: 6 | AI10: 2 | AJ10: 1 | AK10: 7 | AM10: 8 | AN10: 42 | AO10: 35 | AP10: 49 | AQ10: 62 | AR10: 17 | AU10: 3 | AV10: =IF(AU10<>AU9,AU10,"") ->  | AW10: 0 | AX10: =IF(AW10<>AW9,AW10,"") ->  | AZ10: 5 | BA10: 3 | BB10: 4 | BC10: 35 | BD10: 41 | BE10: 68 | BF10: 9 | BK10: 4 | BL10: 2 | BM10: 1 | BN10: 0 | BO10: 0 | BP10: 0 | BQ10: 0 | BR10: 0 | BS10: 0 | BT10: 0 | BU10: 0 | BW10: 4 | BX10: 3 | BY10: 6 | BZ10: 9 | CA10: 2 | CB10: 1 | CC10: 0 | CD10: 0 | CE10: 0 | CF10: 0 | CG10: 0 | CI10: 4 | CJ10: 0 | CK10: 8 | CL10: 4 | CM10: 8 | CN10: 8 | CO10: 8 | CP10: 1 | CQ10: 0 | CR10: 0 | CS10: 0 | CU10: 4 | CV10: 0 | CW10: 0 | CX10: 6 | CY10: 11 | CZ10: 16 | DA10: 15 | DB10: 11 | DC10: 2 | DD10: 0 | DE10: 0 | DG10: 4 | DH10: 0 | DI10: 0 | DJ10: 1 | DK10: 1 | DL10: 0 | DM10: 3 | DN10: 8 | DO10: 9 | DP10: 0 | DQ10: 0 | DS10: 4 | DT10: 0 | DU10: 0 | DV10: 0 | DW10: 0 | DX10: 0 | DY10: 0 | DZ10: 0 | EA10: 0 | EB10: 0 | EC10: 0
B11: 7 | C11: 2013 | D11: 11 | E11: 12 | F11: 20 | G11: 30 | H11: 32 | I11: 42 | J11: 71 | K11: 15 | L11: 2 | M11: 0 | N11: 3 | O11: 0 | P11: 3 | Q11: 2 | R11: 4 | S11: 2 | T11: 7 | U11: 1 | V11: 1 | W11: 5 | Y11: 6 | Z11: 2 | AA11: 3 | AB11: 5 | AC11: 2 | AD11: 4 | AE11: 3 | AF11: 5 | AG11: 1 | AH11: 6 | AI11: 8 | AJ11: 1 | AK11: 8 | AM11: 23 | AN11: 52 | AO11: 43 | AP11: 51 | AQ11: 68 | AR11: 18 | AU11: 3 | AV11: =IF(AU11<>AU10,AU11,"") ->  | AW11: 0 | AX11: =IF(AW11<>AW10,AW11,"") ->  | AZ11: 6 | BA11: 12 | BB11: 29 | BC11: 40 | BD11: 41 | BE11: 43 | BF11: 11 | BK11: 5 | BL11: 0 | BM11: 0 | BN11: 0 | BO11: 0 | BP11: 0 | BQ11: 0 | BR11: 0 | BS11: 0 | BT11: 0 | BU11: 0 | BW11: 5 | BX11: 0 | BY11: 4 | BZ11: 1 | CA11: 1 | CB11: 0 | CC11: 0 | CD11: 0 | CE11: 0 | CF11: 0 | CG11: 0 | CI11: 5 | CJ11: 0 | CK11: 4 | CL11: 10 | CM11: 7 | CN11: 8 | CO11: 1 | CP11: 2 | CQ11: 0 | CR11: 0 | CS11: 0 | CU11: 5 | CV11: 0 | CW11: 0 | CX11: 4 | CY11: 6 | CZ11: 19 | DA11: 15 | DB11: 6 | DC11: 2 | DD11: 0 | DE11: 0 | DG11: 5 | DH11: 0 | DI11: 0 | DJ11: 0 | DK11: 1 | DL11: 5 | DM11: 11 | DN11: 17 | DO11: 16 | DP11: 0 | DQ11: 0 | DS11: 5 | DT11: 0 | DU11: 0 | DV11: 0 | DW11: 0 | DX11: 0 | DY11: 0 | DZ11: 0 | EA11: 0 | EB11: 0 | EC11: 0
B12: 8 | C12: 2013 | D12: 11 | E12: 15 | F12: 25 | G12: 44 | H12: 49 | I12: 54 | J12: 63 | K12: 8 | L12: 2 | M12: 5 | N12: 4 | O12: 4 | P12: 4 | Q12: 9 | R12: 5 | S12: 4 | T12: 6 | U12: 3 | V12: 0 | W12: 8 | Y12: 7 | Z12: 2 | AA12: 2 | AB12: 2 | AC12: 2 | AD12: 3 | AE12: 5 | AF12: 6 | AG12: 2 | AH12: 6 | AI12: 7 | AJ12: 0 | AK12: 5 | AM12: 22 | AN12: 22 | AO12: 35 | AP12: 62 | AQ12: 67 | AR12: 5 | AS12: X | AU12: 4 | AV12: =IF(AU12<>AU11,AU12,"") -> 4 | AW12: 0 | AX12: =IF(AW12<>AW11,AW12,"") ->  | AZ12: 7 | BA12: 1 | BB12: 30 | BC12: 31 | BD12: 69 | BE12: 70 | BF12: 14 | BK12: 6 | BL12: 0 | BM12: 0 | BN12: 0 | BO12: 0 | BP12: 0 | BQ12: 0 | BR12: 0 | BS12: 0 | BT12: 0 | BU12: 0 | BW12: 6 | BX12: 0 | BY12: 0 | BZ12: 1 | CA12: 0 | CB12: 0 | CC12: 0 | CD12: 0 | CE12: 0 | CF12: 0 | CG12: 0 | CI12: 6 | CJ12: 1 | CK12: 1 | CL12: 4 | CM12: 3 | CN12: 2 | CO12: 1 | CP12: 1 | CQ12: 0 | CR12: 0 | CS12: 0 | CU12: 6 | CV12: 0 | CW12: 0 | CX12: 4 | CY12: 7 | CZ12: 10 | DA12: 12 | DB12: 10 | DC12: 1 | DD12: 0 | DE12: 0 | DG12: 6 | DH12: 0 | DI12: 0 | DJ12: 0 | DK12: 2 | DL12: 10 | DM12: 19 | DN12: 26 | DO12: 17 | DP12: 0 | DQ12: 0 | DS12: 6 | DT12: 0 | DU12: 0 | DV12: 0 | DW12: 0 | DX12: 0 | DY12: 0 | DZ12: 0 | EA12: 0 | EB12: 0 | EC12: 0
B13: 9 | C13: 2013 | D13: 11 | E13: 19 | F13: 14 | G13: 15 | H13: 29 | I13: 49 | J13: 63 | K13: 2 | L13: 1 | M13: 4 | N13: 1 | O13: 5 | P13: 2 | Q13: 9 | R13: 4 | S13: 9 | T13: 6 | U13: 3 | V13: 0 | W13: 2 | Y13: 8 | Z13: 2 | AA13: 0 | AB13: 2 | AC13: 9 | AD13: 3 | AE13: 1 | AF13: 6 | AG13: 8 | AH13: 7 | AI13: 2 | AJ13: 0 | AK13: 8 | AM13: 20 | AN13: 29 | AO13: 31 | AP13: 68 | AQ13: 72 | AR13: 8 | AS13: X | AT13: XX | AU13: 5 | AV13: =IF(AU13<>AU12,AU13,"") -> 5 | AW13: 1 | AX13: =IF(AW13<>AW12,AW13,"") -> 1 | AZ13: 8 | BA13: 1 | BB13: 35 | BC13: 39 | BD13: 48 | BE13: 57 | BF13: 12 | BK13: 7 | BL13: 0 | BM13: 0 | BN13: 0 | BO13: 0 | BP13: 0 | BQ13: 0 | BR13: 0 | BS13: 0 | BT13: 0 | BU13: 0 | BW13: 7 | BX13: 0 | BY13: 0 | BZ13: 0 | CA13: 0 | CB13: 0 | CC13: 0 | CD13: 0 | CE13: 0 | CF13: 0 | CG13: 0 | CI13: 7 | CJ13: 0 | CK13: 0 | CL13: 0 | CM13: 0 | CN13: 0 | CO13: 0 | CP13: 0 | CQ13: 0 | CR13: 0 | CS13: 0 | CU13: 7 | CV13: 0 | CW13: 0 | CX13: 1 | CY13: 2 | CZ13: 2 | DA13: 3 | DB13: 0 | DC13: 1 | DD13: 0 | DE13: 0 | DG13: 7 | DH13: 0 | DI13: 0 | DJ13: 0 | DK13: 0 | DL13: 6 | DM13: 17 | DN13: 21 | DO13: 19 | DP13: 0 | DQ13: 0 | DS13: 7 | DT13: 0 | DU13: 0 | DV13: 0 | DW13: 0 | DX13: 0 | DY13: 0 | DZ13: 0 | EA13: 0 | EB13: 0 | EC13: 0
B14: 10 | C14: 2013 | D14: 11 | E14: 22 | F14: 17 | G14: 23 | H14: 35 | I14: 36 | J14: 44 | K14: 8 | L14: 1 | M14: 7 | N14: 2 | O14: 3 | P14: 3 | Q14: 5 | R14: 3 | S14: 6 | T14: 4 | U14: 4 | V14: 0 | W14: 8 | Y14: 9 | Z14: 1 | AA14: 2 | AB14: 1 | AC14: 4 | AD14: 3 | AE14: 2 | AF14: 6 | AG14: 9 | AH14: 6 | AI14: 0 | AJ14: 0 | AK14: 8 | AM14: 12 | AN14: 14 | AO14: 32 | AP14: 69 | AQ14: 60 | AR14: 8 | AS14: X | AU14: 6 | AV14: =IF(AU14<>AU13,AU14,"") -> 6 | AW14: 1 | AX14: =IF(AW14<>AW13,AW14,"") ->  | AZ14: 9 | BA14: 11 | BB14: 25 | BC14: 35 | BD14: 48 | BE14: 74 | BF14: 3 | BK14: 8 | BL14: 0 | BM14: 0 | BN14: 0 | BO14: 0 | BP14: 0 | BQ14: 0 | BR14: 0 | BS14: 0 | BT14: 0 | BU14: 0 | BW14: 8 | BX14: 0 | BY14: 0 | BZ14: 0 | CA14: 0 | CB14: 0 | CC14: 0 | CD14: 0 | CE14: 0 | CF14: 0 | CG14: 0 | CI14: 8 | CJ14: 0 | CK14: 0 | CL14: 0 | CM14: 0 | CN14: 0 | CO14: 0 | CP14: 0 | CQ14: 0 | CR14: 0 | CS14: 0 | CU14: 8 | CV14: 0 | CW14: 0 | CX14: 0 | CY14: 0 | CZ14: 0 | DA14: 0 | DB14: 0 | DC14: 0 | DD14: 0 | DE14: 0 | DG14: 8 | DH14: 0 | DI14: 0 | DJ14: 0 | DK14: 0 | DL14: 0 | DM14: 0 | DN14: 0 | DO14: 0 | DP14: 0 | DQ14: 0 | DS14: 8 | DT14: 0 | DU14: 0 | DV14: 0 | DW14: 0 | DX14: 0 | DY14: 0 | DZ14: 0 | EA14: 0 | EB14: 0 | EC14: 0
B15: 11 | C15: 2013 | D15: 11 | E15: 26 | F15: 27 | G15: 44 | H15: 59 | I15: 74 | J15: 75 | K15: 3 | L15: 2 | M15: 7 | N15: 4 | O15: 4 | P15: 5 | Q15: 9 | R15: 7 | S15: 4 | T15: 7 | U15: 5 | V15: 0 | W15: 3 | Y15: 10 | Z15: 1 | AA15: 2 | AB15: 4 | AC15: 9 | AD15: 6 | AE15: 8 | AF15: 7 | AG15: 9 | AH15: 7 | AI15: 4 | AJ15: 0 | AK15: 1 | AM15: 12 | AN15: 49 | AO15: 68 | AP15: 79 | AQ15: 74 | AR15: 1 | AU15: 6 | AV15: =IF(AU15<>AU14,AU15,"") ->  | AW15: 1 | AX15: =IF(AW15<>AW14,AW15,"") ->  | AZ15: 10 | BA15: 13 | BB15: 21 | BC15: 35 | BD15: 59 | BE15: 68 | BF15: 2 | BK15: 9 | BL15: 0 | BM15: 0 | BN15: 0 | BO15: 0 | BP15: 0 | BQ15: 0 | BR15: 0 | BS15: 0 | BT15: 0 | BU15: 0 | BW15: 9 | BX15: 0 | BY15: 0 | BZ15: 0 | CA15: 0 | CB15: 0 | CC15: 0 | CD15: 0 | CE15: 0 | CF15: 0 | CG15: 0 | CI15: 9 | CJ15: 0 | CK15: 0 | CL15: 0 | CM15: 0 | CN15: 0 | CO15: 0 | CP15: 0 | CQ15: 0 | CR15: 0 | CS15: 0 | CU15: 9 | CV15: 0 | CW15: 0 | CX15: 0 | CY15: 0 | CZ15: 0 | DA15: 0 | DB15: 0 | DC15: 0 | DD15: 0 | DE15: 0 | DG15: 9 | DH15: 0 | DI15: 0 | DJ15: 0 | DK15: 0 | DL15: 0 | DM15: 0 | DN15: 0 | DO15: 0 | DP15: 0 | DQ15: 0 | DS15: 9 | DT15: 0 | DU15: 0 | DV15: 0 | DW15: 0 | DX15: 0 | DY15: 0 | DZ15: 0 | EA15: 0 | EB15: 0 | EC15: 0
B16: 12 | C16: 2013 | D16: 11 | E16: 29 | F16: 9 | G16: 41 | H16: 43 | I16: 47 | J16: 57 | K16: 5 | L16: 0 | M16: 9 | N16: 4 | O16: 1 | P16: 4 | Q16: 3 | R16: 4 | S16: 7 | T16: 5 | U16: 7 | V16: 0 | W16: 5 | Y16: 11 | Z16: 0 | AA16: 2 | AB16: 4 | AC16: 5 | AD16: 3 | AE16: 9 | AF16: 6 | AG16: 0 | AH16: 4 | AI16: 2 | AJ16: 1 | AK16: 5 | AM16: 2 | AN16: 45 | AO16: 39 | AP16: 60 | AQ16: 42 | AR16: 15 | AS16: X | AU16: 7 | AV16: =IF(AU16<>AU15,AU16,"") -> 7 | AW16: 1 | AX16: =IF(AW16<>AW15,AW16,"") ->  | AZ16: 11 | BA16: 12 | BB16: 30 | BC16: 35 | BD16: 36 | BE16: 73 | BF16: 4 | BJ16: ↙ | BL16: From | BV16: ↙ | BX16: From | CH16: ↙ | CJ16: From | CT16: ↙ | CV16: From | DF16: ↙ | DH16: From | DR16: ↙ | DT16: From
B17: 13 | C17: 2013 | D17: 12 | E17: 3 | F17: 7 | G17: 12 | H17: 41 | I17: 44 | J17: 59 | K17: 3 | L17: 0 | M17: 7 | N17: 1 | O17: 2 | P17: 4 | Q17: 1 | R17: 4 | S17: 4 | T17: 5 | U17: 9 | V17: 0 | W17: 3 | Y17: 12 | Z17: 0 | AA17: 3 | AB17: 0 | AC17: 2 | AD17: 3 | AE17: 5 | AF17: 6 | AG17: 0 | AH17: 4 | AI17: 4 | AJ17: 0 | AK17: 3 | AM17: 3 | AN17: 2 | AO17: 35 | AP17: 60 | AQ17: 44 | AR17: 3 | AS17: X | AU17: 8 | AV17: =IF(AU17<>AU16,AU17,"") -> 8 | AW17: 1 | AX17: =IF(AW17<>AW16,AW17,"") ->  | AZ17: 12 | BA17: 7 | BB17: 28 | BC17: 34 | BD17: 50 | BE17: 74 | BF17: 4 | BL17: 0 | BM17: 1 | BN17: 2 | BO17: 3 | BP17: 4 | BQ17: 5 | BR17: 6 | BS17: 7 | BT17: 8 | BU17: 9 | BX17: 0 | BY17: 1 | BZ17: 2 | CA17: 3 | CB17: 4 | CC17: 5 | CD17: 6 | CE17: 7 | CF17: 8 | CG17: 9 | CJ17: 0 | CK17: 1 | CL17: 2 | CM17: 3 | CN17: 4 | CO17: 5 | CP17: 6 | CQ17: 7 | CR17: 8 | CS17: 9 | CV17: 0 | CW17: 1 | CX17: 2 | CY17: 3 | CZ17: 4 | DA17: 5 | DB17: 6 | DC17: 7 | DD17: 8 | DE17: 9 | DH17: 0 | DI17: 1 | DJ17: 2 | DK17: 3 | DL17: 4 | DM17: 5 | DN17: 6 | DO17: 7 | DP17: 8 | DQ17: 9 | DT17: 0 | DU17: 1 | DV17: 2 | DW17: 3 | DX17: 4 | DY17: 5 | DZ17: 6 | EA17: 7 | EB17: 8 | EC17: 9
B18: 14 | C18: 2013 | D18: 12 | E18: 6 | F18: 11 | G18: 29 | H18: 44 | I18: 63 | J18: 64 | K18: 3 | L18: 1 | M18: 1 | N18: 2 | O18: 9 | P18: 4 | Q18: 4 | R18: 6 | S18: 3 | T18: 6 | U18: 4 | V18: 0 | W18: 3 | Y18: 13 | Z18: 3 | AA18: 0 | AB18: 0 | AC18: 9 | AD18: 6 | AE18: 4 | AF18: 6 | AG18: 1 | AH18: 4 | AI18: 4 | AJ18: 0 | AK18: 3 | AM18: 30 | AN18: 9 | AO18: 64 | AP18: 61 | AQ18: 44 | AR18: 3 | AS18: X | AU18: 9 | AV18: =IF(AU18<>AU17,AU18,"") -> 9 | AW18: 1 | AX18: =IF(AW18<>AW17,AW18,"") ->  | AZ18: 13 | BA18: 10 | BB18: 20 | BC18: 28 | BD18: 30 | BE18: 74 | BF18: 1 | BI18: 1's | BJ18: To | BK18: 0 | BL18: =COUNTIFS($M$5:$M$1503,BL$17,$M$6:$M$1504,$BK18) -> 2 | BM18: 4 | BN18: 1 | BO18: 4 | BP18: 0 | BQ18: 0 | BR18: 3 | BS18: 1 | BT18: 2 | BU18: 1 | BV18: To | BW18: 0 | BX18: =COUNTIFS($O$5:$O$1503,BX$17,$O$6:$O$1504,$BW18) -> 0 | BY18: 3 | BZ18: 2 | CA18: 2 | CB18: 4 | CC18: 1 | CD18: 2 | CE18: 3 | CF18: 2 | CG18: 2 | CH18: To | CI18: 0 | CJ18: =COUNTIFS($Q$5:$Q$1503,CJ$17,$Q$6:$Q$1504,$CI18) -> 1 | CK18: 3 | CL18: 0 | CM18: 0 | CN18: 4 | CO18: 4 | CP18: 1 | CQ18: 2 | CR18: 1 | CS18: 2 | CT18: To | CU18: 0 | CV18: =COUNTIFS($S$5:$S$1503,CV$17,$S$6:$S$1504,$CU18) -> 2 | CW18: 4 | CX18: 1 | CY18: 0 | CZ18: 1 | DA18: 4 | DB18: 2 | DC18: 3 | DD18: 3 | DE18: 4 | DF18: To | DG18: 0 | DH18: =COUNTIFS($U$5:$U$1503,DH$17,$U$6:$U$1504,$DG18) -> 2 | DI18: 2 | DJ18: 2 | DK18: 1 | DL18: 1 | DM18: 4 | DN18: 2 | DO18: 1 | DP18: 3 | DQ18: 2 | DR18: To | DS18: 0 | DT18: =COUNTIFS($W$5:$W$1503,DT$17,$W$6:$W$1504,$DS18) -> 1 | DU18: 1 | DV18: 1 | DW18: 1 | DX18: 3 | DY18: 2 | DZ18: 1 | EA18: 1 | EB18: 0 | EC18: 2
B19: 15 | C19: 2013 | D19: 12 | E19: 10 | F19: 5 | G19: 12 | H19: 22 | I19: 41 | J19: 65 | K19: 13 | L19: 0 | M19: 5 | N19: 1 | O19: 2 | P19: 2 | Q19: 2 | R19: 4 | S19: 1 | T19: 6 | U19: 5 | V19: 1 | W19: 3 | Y19: 14 | Z19: 2 | AA19: 3 | AB19: 2 | AC19: 8 | AD19: 5 | AE19: 5 | AF19: 6 | AG19: 9 | AH19: 7 | AI19: 8 | AJ19: 0 | AK19: 1 | AM19: 23 | AN19: 28 | AO19: 55 | AP19: 69 | AQ19: 78 | AR19: 1 | AU19: 9 | AV19: =IF(AU19<>AU18,AU19,"") ->  | AW19: 1 | AX19: =IF(AW19<>AW18,AW19,"") ->  | AZ19: 14 | BA19: 3 | BB19: 20 | BC19: 38 | BD19: 51 | BE19: 62 | BF19: 3 | BK19: 1 | BL19: 3 | BM19: 1 | BN19: 6 | BO19: 3 | BP19: 2 | BQ19: 2 | BR19: 3 | BS19: 4 | BT19: 2 | BU19: 1 | BW19: 1 | BX19: 1 | BY19: 2 | BZ19: 1 | CA19: 1 | CB19: 2 | CC19: 4 | CD19: 2 | CE19: 1 | CF19: 4 | CG19: 3 | CI19: 1 | CJ19: 2 | CK19: 2 | CL19: 2 | CM19: 6 | CN19: 3 | CO19: 3 | CP19: 4 | CQ19: 3 | CR19: 3 | CS19: 0 | CU19: 1 | CV19: 2 | CW19: 6 | CX19: 3 | CY19: 2 | CZ19: 1 | DA19: 5 | DB19: 1 | DC19: 1 | DD19: 5 | DE19: 3 | DG19: 1 | DH19: 1 | DI19: 0 | DJ19: 3 | DK19: 0 | DL19: 2 | DM19: 2 | DN19: 0 | DO19: 2 | DP19: 4 | DQ19: 3 | DS19: 1 | DT19: 2 | DU19: 2 | DV19: 4 | DW19: 4 | DX19: 5 | DY19: 4 | DZ19: 0 | EA19: 5 | EB19: 0 | EC19: 2
B20: 16 | C20: 2013 | D20: 12 | E20: 13 | F20: 19 | G20: 24 | H20: 26 | I20: 27 | J20: 70 | K20: 12 | L20: 1 | M20: 9 | N20: 2 | O20: 4 | P20: 2 | Q20: 6 | R20: 2 | S20: 7 | T20: 7 | U20: 0 | V20: 1 | W20: 2 | Y20: 15 | Z20: 0 | AA20: 4 | AB20: 0 | AC20: 8 | AD20: 4 | AE20: 9 | AF20: 5 | AG20: 0 | AH20: 7 | AI20: 4 | AJ20: 1 | AK20: 5 | AM20: 4 | AN20: 8 | AO20: 49 | AP20: 50 | AQ20: 74 | AR20: 15 | AS20: X | AT20: XX | AU20: 10 | AV20: =IF(AU20<>AU19,AU20,"") -> 10 | AW20: 2 | AX20: =IF(AW20<>AW19,AW20,"") -> 2 | AZ20: 15 | BA20: 3 | BB20: 20 | BC20: 55 | BD20: 59 | BE20: 63 | BF20: 5 | BK20: 2 | BL20: 3 | BM20: 1 | BN20: 4 | BO20: 4 | BP20: 3 | BQ20: 1 | BR20: 4 | BS20: 4 | BT20: 4 | BU20: 4 | BW20: 2 | BX20: 2 | BY20: 3 | BZ20: 0 | CA20: 0 | CB20: 2 | CC20: 3 | CD20: 2 | CE20: 1 | CF20: 1 | CG20: 5 | CI20: 2 | CJ20: 2 | CK20: 3 | CL20: 2 | CM20: 1 | CN20: 2 | CO20: 2 | CP20: 1 | CQ20: 2 | CR20: 0 | CS20: 3 | CU20: 2 | CV20: 4 | CW20: 0 | CX20: 0 | CY20: 2 | CZ20: 0 | DA20: 1 | DB20: 2 | DC20: 3 | DD20: 2 | DE20: 1 | DG20: 2 | DH20: 3 | DI20: 3 | DJ20: 0 | DK20: 5 | DL20: 6 | DM20: 1 | DN20: 1 | DO20: 1 | DP20: 3 | DQ20: 1 | DS20: 2 | DT20: 2 | DU20: 3 | DV20: 5 | DW20: 2 | DX20: 1 | DY20: 5 | DZ20: 2 | EA20: 4 | EB20: 3 | EC20: 0
B21: 17 | C21: 2013 | D21: 12 | E21: 17 | F21: 8 | G21: 14 | H21: 17 | I21: 20 | J21: 39 | K21: 7 | L21: 0 | M21: 8 | N21: 1 | O21: 4 | P21: 1 | Q21: 7 | R21: 2 | S21: 0 | T21: 3 | U21: 9 | V21: 0 | W21: 7 | Y21: 16 | Z21: 2 | AA21: 5 | AB21: 0 | AC21: 0 | AD21: 3 | AE21: 3 | AF21: 5 | AG21: 5 | AH21: 7 | AI21: 3 | AJ21: 0 | AK21: 1 | AM21: 25 | AN21: 0 | AO21: 33 | AP21: 55 | AQ21: 73 | AR21: 1 | AU21: 10 | AV21: =IF(AU21<>AU20,AU21,"") ->  | AW21: 2 | AX21: =IF(AW21<>AW20,AW21,"") ->  | AZ21: 16 | BA21: 3 | BB21: 25 | BC21: 55 | BD21: 58 | BE21: 63 | BF21: 13 | BK21: 3 | BL21: 2 | BM21: 5 | BN21: 7 | BO21: 5 | BP21: 0 | BQ21: 2 | BR21: 1 | BS21: 4 | BT21: 3 | BU21: 1 | BW21: 3 | BX21: 2 | BY21: 1 | BZ21: 1 | CA21: 2 | CB21: 0 | CC21: 3 | CD21: 5 | CE21: 0 | CF21: 2 | CG21: 2 | CI21: 3 | CJ21: 1 | CK21: 3 | CL21: 1 | CM21: 0 | CN21: 1 | CO21: 2 | CP21: 4 | CQ21: 1 | CR21: 2 | CS21: 3 | CU21: 3 | CV21: 2 | CW21: 3 | CX21: 0 | CY21: 0 | CZ21: 4 | DA21: 0 | DB21: 2 | DC21: 2 | DD21: 1 | DE21: 1 | DG21: 3 | DH21: 3 | DI21: 3 | DJ21: 4 | DK21: 4 | DL21: 3 | DM21: 2 | DN21: 1 | DO21: 2 | DP21: 1 | DQ21: 0 | DS21: 3 | DT21: 0 | DU21: 5 | DV21: 3 | DW21: 6 | DX21: 2 | DY21: 4 | DZ21: 1 | EA21: 0 | EB21: 4 | EC21: 5
B22: 18 | C22: 2013 | D22: 12 | E22: 20 | F22: 3 | G22: 4 | H22: 31 | I22: 49 | J22: 57 | K22: 6 | L22: 0 | M22: 3 | N22: 0 | O22: 4 | P22: 3 | Q22: 1 | R22: 4 | S22: 9 | T22: 5 | U22: 7 | V22: 0 | W22: 6 | Y22: 17 | Z22: 1 | AA22: 4 | AB22: 3 | AC22: 8 | AD22: 2 | AE22: 4 | AF22: 4 | AG22: 6 | AH22: 5 | AI22: 7 | AJ22: 0 | AK22: 1 | AM22: 14 | AN22: 38 | AO22: 24 | AP22: 46 | AQ22: 57 | AR22: 1 | AS22: X | AU22: 11 | AV22: =IF(AU22<>AU21,AU22,"") -> 11 | AW22: 2 | AX22: =IF(AW22<>AW21,AW22,"") ->  | AZ22: 17 | BA22: 13 | BB22: 18 | BC22: 29 | BD22: 58 | BE22: 70 | BF22: 1 | BK22: 4 | BL22: 0 | BM22: 3 | BN22: 0 | BO22: 3 | BP22: 1 | BQ22: 2 | BR22: 2 | BS22: 1 | BT22: 3 | BU22: 1 | BW22: 4 | BX22: 3 | BY22: 2 | BZ22: 4 | CA22: 3 | CB22: 4 | CC22: 3 | CD22: 1 | CE22: 1 | CF22: 2 | CG22: 1 | CI22: 4 | CJ22: 3 | CK22: 5 | CL22: 1 | CM22: 3 | CN22: 2 | CO22: 4 | CP22: 4 | CQ22: 1 | CR22: 0 | CS22: 0 | CU22: 4 | CV22: 4 | CW22: 1 | CX22: 3 | CY22: 0 | CZ22: 0 | DA22: 0 | DB22: 2 | DC22: 2 | DD22: 1 | DE22: 1 | DG22: 4 | DH22: 3 | DI22: 4 | DJ22: 3 | DK22: 5 | DL22: 3 | DM22: 2 | DN22: 2 | DO22: 2 | DP22: 2 | DQ22: 3 | DS22: 4 | DT22: 2 | DU22: 5 | DV22: 2 | DW22: 2 | DX22: 2 | DY22: 5 | DZ22: 0 | EA22: 3 | EB22: 2 | EC22: 1
B23: 19 | C23: 2013 | D23: 12 | E23: 24 | F23: 23 | G23: 34 | H23: 53 | I23: 58 | J23: 73 | K23: 2 | L23: 2 | M23: 3 | N23: 3 | O23: 4 | P23: 5 | Q23: 3 | R23: 5 | S23: 8 | T23: 7 | U23: 3 | V23: 0 | W23: 2 | Y23: 18 | Z23: 0 | AA23: 5 | AB23: 2 | AC23: 0 | AD23: 5 | AE23: 4 | AF23: 5 | AG23: 9 | AH23: 5 | AI23: 4 | AJ23: 1 | AK23: 9 | AM23: 5 | AN23: 20 | AO23: 54 | AP23: 59 | AQ23: 54 | AR23: 19 | AU23: 11 | AV23: =IF(AU23<>AU22,AU23,"") ->  | AW23: 2 | AX23: =IF(AW23<>AW22,AW23,"") ->  | AZ23: 18 | BA23: 4 | BB23: 20 | BC23: 31 | BD23: 56 | BE23: 73 | BF23: 2 | BK23: 5 | BL23: 2 | BM23: 4 | BN23: 3 | BO23: 5 | BP23: 1 | BQ23: 0 | BR23: 1 | BS23: 1 | BT23: 1 | BU23: 1 | BW23: 5 | BX23: 3 | BY23: 1 | BZ23: 2 | CA23: 4 | CB23: 3 | CC23: 6 | CD23: 1 | CE23: 2 | CF23: 4 | CG23: 3 | CI23: 5 | CJ23: 3 | CK23: 3 | CL23: 4 | CM23: 2 | CN23: 4 | CO23: 2 | CP23: 2 | CQ23: 2 | CR23: 2 | CS23: 5 | CU23: 5 | CV23: 3 | CW23: 7 | CX23: 2 | CY23: 1 | CZ23: 1 | DA23: 2 | DB23: 1 | DC23: 3 | DD23: 4 | DE23: 2 | DG23: 5 | DH23: 0 | DI23: 0 | DJ23: 3 | DK23: 3 | DL23: 5 | DM23: 1 | DN23: 5 | DO23: 2 | DP23: 2 | DQ23: 1 | DS23: 5 | DT23: 3 | DU23: 4 | DV23: 1 | DW23: 10 | DX23: 3 | DY23: 2 | DZ23: 1 | EA23: 2 | EB23: 2 | EC23: 1
B24: 20 | C24: 2013 | D24: 12 | E24: 27 | F24: 4 | G24: 15 | H24: 35 | I24: 48 | J24: 49 | K24: 11 | L24: 0 | M24: 4 | N24: 1 | O24: 5 | P24: 3 | Q24: 5 | R24: 4 | S24: 8 | T24: 4 | U24: 9 | V24: 1 | W24: 1 | Y24: 19 | Z24: 0 | AA24: 8 | AB24: 2 | AC24: 8 | AD24: 3 | AE24: 0 | AF24: 6 | AG24: 8 | AH24: 5 | AI24: 2 | AJ24: 0 | AK24: 7 | AM24: 8 | AN24: 28 | AO24: 30 | AP24: 68 | AQ24: 52 | AR24: 7 | AS24: X | AU24: 12 | AV24: =IF(AU24<>AU23,AU24,"") -> 12 | AW24: 2 | AX24: =IF(AW24<>AW23,AW24,"") ->  | AZ24: 19 | BA24: 3 | BB24: 11 | BC24: 44 | BD24: 59 | BE24: 62 | BF24: 5 | BK24: 6 | BL24: 0 | BM24: 0 | BN24: 4 | BO24: 2 | BP24: 2 | BQ24: 2 | BR24: 0 | BS24: 2 | BT24: 0 | BU24: 2 | BW24: 6 | BX24: 1 | BY24: 3 | BZ24: 3 | CA24: 2 | CB24: 2 | CC24: 3 | CD24: 2 | CE24: 0 | CF24: 2 | CG24: 0 | CI24: 6 | CJ24: 0 | CK24: 1 | CL24: 4 | CM24: 2 | CN24: 6 | CO24: 2 | CP24: 4 | CQ24: 1 | CR24: 3 | CS24: 3 | CU24: 6 | CV24: 2 | CW24: 0 | CX24: 2 | CY24: 2 | CZ24: 1 | DA24: 2 | DB24: 4 | DC24: 2 | DD24: 3 | DE24: 3 | DG24: 6 | DH24: 4 | DI24: 1 | DJ24: 1 | DK24: 1 | DL24: 4 | DM24: 1 | DN24: 4 | DO24: 4 | DP24: 1 | DQ24: 1 | DS24: 6 | DT24: 0 | DU24: 2 | DV24: 2 | DW24: 0 | DX24: 0 | DY24: 3 | DZ24: 2 | EA24: 3 | EB24: 0 | EC24: 1
B25: 21 | C25: 2013 | D25: 12 | E25: 31 | F25: 8 | G25: 12 | H25: 34 | I25: 52 | J25: 58 | K25: 8 | L25: 0 | M25: 8 | N25: 1 | O25: 2 | P25: 3 | Q25: 4 | R25: 5 | S25: 2 | T25: 5 | U25: 8 | V25: 0 | W25: 8 | Y25: 20 | Z25: 0 | AA25: 1 | AB25: 3 | AC25: 9 | AD25: 3 | AE25: 2 | AF25: 2 | AG25: 7 | AH25: 3 | AI25: 6 | AJ25: 0 | AK25: 8 | AM25: 1 | AN25: 39 | AO25: 32 | AP25: 27 | AQ25: 36 | AR25: 8 | AS25: X | AU25: 13 | AV25: =IF(AU25<>AU24,AU25,"") -> 13 | AW25: 2 | AX25: =IF(AW25<>AW24,AW25,"") ->  | AZ25: 20 | BA25: 2 | BB25: 20 | BC25: 33 | BD25: 41 | BE25: 64 | BF25: 7 | BK25: 7 | BL25: 1 | BM25: 3 | BN25: 7 | BO25: 2 | BP25: 3 | BQ25: 3 | BR25: 0 | BS25: 2 | BT25: 1 | BU25: 3 | BW25: 7 | BX25: 1 | BY25: 2 | BZ25: 3 | CA25: 1 | CB25: 1 | CC25: 4 | CD25: 0 | CE25: 0 | CF25: 0 | CG25: 1 | CI25: 7 | CJ25: 1 | CK25: 4 | CL25: 2 | CM25: 2 | CN25: 0 | CO25: 3 | CP25: 2 | CQ25: 2 | CR25: 0 | CS25: 1 | CU25: 7 | CV25: 1 | CW25: 3 | CX25: 1 | CY25: 3 | CZ25: 2 | DA25: 3 | DB25: 2 | DC25: 3 | DD25: 1 | DE25: 3 | DG25: 7 | DH25: 1 | DI25: 2 | DJ25: 4 | DK25: 0 | DL25: 3 | DM25: 2 | DN25: 3 | DO25: 0 | DP25: 1 | DQ25: 2 | DS25: 7 | DT25: 1 | DU25: 3 | DV25: 3 | DW25: 2 | DX25: 3 | DY25: 2 | DZ25: 1 | EA25: 1 | EB25: 2 | EC25: 2
B26: 22 | C26: 2014 | D26: 1 | E26: 3 | F26: 22 | G26: 24 | H26: 25 | I26: 40 | J26: 70 | K26: 5 | L26: 2 | M26: 2 | N26: 2 | O26: 4 | P26: 2 | Q26: 5 | R26: 4 | S26: 0 | T26: 7 | U26: 0 | V26: 0 | W26: 5 | Y26: 21 | Z26: 1 | AA26: 1 | AB26: 3 | AC26: 5 | AD26: 3 | AE26: 8 | AF26: 2 | AG26: 0 | AH26: 7 | AI26: 6 | AJ26: 0 | AK26: 4 | AM26: 11 | AN26: 35 | AO26: 38 | AP26: 20 | AQ26: 76 | AR26: 4 | AU26: 13 | AV26: =IF(AU26<>AU25,AU26,"") ->  | AW26: 2 | AX26: =IF(AW26<>AW25,AW26,"") ->  | AZ26: 21 | BA26: 4 | BB26: 28 | BC26: 32 | BD26: 57 | BE26: 62 | BF26: 14 | BK26: 8 | BL26: 4 | BM26: 3 | BN26: 0 | BO26: 2 | BP26: 2 | BQ26: 2 | BR26: 0 | BS26: 3 | BT26: 1 | BU26: 1 | BW26: 8 | BX26: 3 | BY26: 2 | BZ26: 0 | CA26: 2 | CB26: 5 | CC26: 1 | CD26: 2 | CE26: 2 | CF26: 3 | CG26: 5 | CI26: 8 | CJ26: 2 | CK26: 2 | CL26: 1 | CM26: 0 | CN26: 1 | CO26: 1 | CP26: 4 | CQ26: 0 | CR26: 2 | CS26: 3 | CU26: 8 | CV26: 2 | CW26: 4 | CX26: 2 | CY26: 2 | CZ26: 3 | DA26: 4 | DB26: 1 | DC26: 2 | DD26: 5 | DE26: 2 | DG26: 8 | DH26: 1 | DI26: 1 | DJ26: 1 | DK26: 2 | DL26: 1 | DM26: 4 | DN26: 2 | DO26: 2 | DP26: 1 | DQ26: 3 | DS26: 8 | DT26: 2 | DU26: 1 | DV26: 3 | DW26: 1 | DX26: 3 | DY26: 1 | DZ26: 2 | EA26: 1 | EB26: 0 | EC26: 0
B27: 23 | C27: 2014 | D27: 1 | E27: 7 | F27: 13 | G27: 34 | H27: 56 | I27: 62 | J27: 64 | K27: 6 | L27: 1 | M27: 3 | N27: 3 | O27: 4 | P27: 5 | Q27: 6 | R27: 6 | S27: 2 | T27: 6 | U27: 4 | V27: 0 | W27: 6 | Y27: 22 | Z27: 2 | AA27: 1 | AB27: 4 | AC27: 5 | AD27: 3 | AE27: 4 | AF27: 4 | AG27: 6 | AH27: 6 | AI27: 0 | AJ27: 0 | AK27: 5 | AM27: 21 | AN27: 45 | AO27: 34 | AP27: 46 | AQ27: 60 | AR27: 5 | AS27: X | AU27: 14 | AV27: =IF(AU27<>AU26,AU27,"") -> 14 | AW27: 2 | AX27: =IF(AW27<>AW26,AW27,"") ->  | AZ27: 22 | BA27: 2 | BB27: 29 | BC27: 32 | BD27: 57 | BE27: 67 | BF27: 1 | BK27: 9 | BL27: 1 | BM27: 3 | BN27: 1 | BO27: 0 | BP27: 2 | BQ27: 5 | BR27: 0 | BS27: 3 | BT27: 0 | BU27: 0 | BW27: 9 | BX27: 5 | BY27: 2 | BZ27: 3 | CA27: 2 | CB27: 1 | CC27: 1 | CD27: 1 | CE27: 2 | CF27: 5 | CG27: 4 | CI27: 9 | CJ27: 2 | CK27: 2 | CL27: 1 | CM27: 2 | CN27: 0 | CO27: 6 | CP27: 0 | CQ27: 3 | CR27: 3 | CS27: 2 | CU27: 9 | CV27: 2 | CW27: 1 | CX27: 2 | CY27: 3 | CZ27: 1 | DA27: 4 | DB27: 4 | DC27: 1 | DD27: 2 | DE27: 1 | DG27: 9 | DH27: 2 | DI27: 1 | DJ27: 3 | DK27: 2 | DL27: 1 | DM27: 3 | DN27: 2 | DO27: 2 | DP27: 0 | DQ27: 5 | DS27: 9 | DT27: 0 | DU27: 2 | DV27: 3 | DW27: 2 | DX27: 2 | DY27: 1 | DZ27: 3 | EA27: 0 | EB27: 1 | EC27: 2
B28: 24 | C28: 2014 | D28: 1 | E28: 10 | F28: 8 | G28: 28 | H28: 36 | I28: 37 | J28: 57 | K28: 8 | L28: 0 | M28: 8 | N28: 2 | O28: 8 | P28: 3 | Q28: 6 | R28: 3 | S28: 7 | T28: 5 | U28: 7 | V28: 0 | W28: 8 | Y28: 23 | Z28: 0 | AA28: 5 | AB28: 0 | AC28: 0 | AD28: 2 | AE28: 4 | AF28: 4 | AG28: 1 | AH28: 5 | AI28: 0 | AJ28: 0 | AK28: 0 | AM28: 5 | AN28: 0 | AO28: 24 | AP28: 41 | AQ28: 50 | AR28: 0 | AU28: 14 | AV28: =IF(AU28<>AU27,AU28,"") ->  | AW28: 2 | AX28: =IF(AW28<>AW27,AW28,"") ->  | AZ28: 23 | BA28: 2 | BB28: 30 | BC28: 32 | BD28: 55 | BE28: 72 | BF28: 1
B29: 25 | C29: 2014 | D29: 1 | E29: 14 | F29: 4 | G29: 23 | H29: 26 | I29: 62 | J29: 69 | K29: 13 | L29: 0 | M29: 4 | N29: 2 | O29: 3 | P29: 2 | Q29: 6 | R29: 6 | S29: 2 | T29: 6 | U29: 9 | V29: 1 | W29: 3 | Y29: 24 | Z29: 1 | AA29: 5 | AB29: 1 | AC29: 8 | AD29: 2 | AE29: 8 | AF29: 6 | AG29: 8 | AH29: 4 | AI29: 4 | AJ29: 0 | AK29: 4 | AM29: 15 | AN29: 18 | AO29: 28 | AP29: 68 | AQ29: 44 | AR29: 4 | AS29: X | AU29: 15 | AV29: =IF(AU29<>AU28,AU29,"") -> 15 | AW29: 2 | AX29: =IF(AW29<>AW28,AW29,"") ->  | AZ29: 24 | BA29: 8 | BB29: 19 | BC29: 25 | BD29: 51 | BE29: 74 | BF29: 1
B30: 26 | C30: 2014 | D30: 1 | E30: 17 | F30: 1 | G30: 10 | H30: 26 | I30: 31 | J30: 51 | K30: 11 | L30: 0 | M30: 1 | N30: 1 | O30: 0 | P30: 2 | Q30: 6 | R30: 3 | S30: 1 | T30: 5 | U30: 1 | V30: 1 | W30: 1 | Y30: 25 | Z30: 3 | AA30: 2 | AB30: 0 | AC30: 4 | AD30: 2 | AE30: 2 | AF30: 4 | AG30: 8 | AH30: 6 | AI30: 2 | AJ30: 0 | AK30: 2 | AM30: 32 | AN30: 4 | AO30: 22 | AP30: 48 | AQ30: 62 | AR30: 2 | AS30: X | AU30: 16 | AV30: =IF(AU30<>AU29,AU30,"") -> 16 | AW30: 2 | AX30: =IF(AW30<>AW29,AW30,"") ->  | AZ30: 25 | BA30: 2 | BB30: 5 | BC30: 25 | BD30: 48 | BE30: 62 | BF30: 3
B31: 27 | C31: 2014 | D31: 1 | E31: 21 | F31: 8 | G31: 23 | H31: 33 | I31: 45 | J31: 52 | K31: 4 | L31: 0 | M31: 8 | N31: 2 | O31: 3 | P31: 3 | Q31: 3 | R31: 4 | S31: 5 | T31: 5 | U31: 2 | V31: 0 | W31: 4 | Y31: 26 | Z31: 0 | AA31: 2 | AB31: 1 | AC31: 0 | AD31: 4 | AE31: 0 | AF31: 5 | AG31: 9 | AH31: 6 | AI31: 2 | AJ31: 1 | AK31: 4 | AM31: 2 | AN31: 10 | AO31: 40 | AP31: 59 | AQ31: 62 | AR31: 14 | AS31: X | AT31: XX | AU31: 17 | AV31: =IF(AU31<>AU30,AU31,"") -> 17 | AW31: 3 | AX31: =IF(AW31<>AW30,AW31,"") -> 3 | AZ31: 26 | BA31: 12 | BB31: 25 | BC31: 35 | BD31: 59 | BE31: 73 | BF31: 9
B32: 28 | C32: 2014 | D32: 1 | E32: 24 | F32: 22 | G32: 45 | H32: 46 | I32: 47 | J32: 65 | K32: 10 | L32: 2 | M32: 2 | N32: 4 | O32: 5 | P32: 4 | Q32: 6 | R32: 4 | S32: 7 | T32: 6 | U32: 5 | V32: 1 | W32: 0 | Y32: 27 | Z32: 2 | AA32: 2 | AB32: 3 | AC32: 0 | AD32: 3 | AE32: 4 | AF32: 2 | AG32: 1 | AH32: 7 | AI32: 0 | AJ32: 1 | AK32: 2 | AM32: 22 | AN32: 30 | AO32: 34 | AP32: 21 | AQ32: 70 | AR32: 12 | AS32: X | AU32: 18 | AV32: =IF(AU32<>AU31,AU32,"") -> 18 | AW32: 3 | AX32: =IF(AW32<>AW31,AW32,"") ->  | AZ32: 27 | BA32: 23 | BB32: 32 | BC32: 39 | BD32: 55 | BE32: 74 | BF32: 5
B33: 29 | C33: 2014 | D33: 1 | E33: 28 | F33: 7 | G33: 16 | H33: 28 | I33: 53 | J33: 60 | K33: 2 | L33: 0 | M33: 7 | N33: 1 | O33: 6 | P33: 2 | Q33: 8 | R33: 5 | S33: 3 | T33: 6 | U33: 0 | V33: 0 | W33: 2 | Y33: 28 | Z33: 0 | AA33: 2 | AB33: 0 | AC33: 0 | AD33: 4 | AE33: 4 | AF33: 5 | AG33: 7 | AH33: 5 | AI33: 0 | AJ33: 0 | AK33: 1 | AM33: 2 | AN33: 0 | AO33: 44 | AP33: 57 | AQ33: 50 | AR33: 1 | AU33: 18 | AV33: =IF(AU33<>AU32,AU33,"") ->  | AW33: 3 | AX33: =IF(AW33<>AW32,AW33,"") ->  | AZ33: 28 | BA33: 12 | BB33: 15 | BC33: 41 | BD33: 49 | BE33: 74 | BF33: 7
B34: 30 | C34: 2014 | D34: 1 | E34: 31 | F34: 3 | G34: 9 | H34: 13 | I34: 47 | J34: 52 | K34: 8 | L34: 0 | M34: 3 | N34: 0 | O34: 9 | P34: 1 | Q34: 3 | R34: 4 | S34: 7 | T34: 5 | U34: 2 | V34: 0 | W34: 8 | Y34: 29 | Z34: 1 | AA34: 3 | AB34: 2 | AC34: 5 | AD34: 6 | AE34: 9 | AF34: 4 | AG34: 8 | AH34: 7 | AI34: 2 | AJ34: 1 | AK34: 8 | AM34: 13 | AN34: 25 | AO34: 69 | AP34: 48 | AQ34: 72 | AR34: 18 | AU34: 18 | AV34: =IF(AU34<>AU33,AU34,"") ->  | AW34: 3 | AX34: =IF(AW34<>AW33,AW34,"") ->  | AZ34: 29 | BA34: 2 | BB34: 28 | BC34: 37 | BD34: 47 | BE34: 57 | BF34: 14
B35: 31 | C35: 2014 | D35: 2 | E35: 4 | F35: 25 | G35: 44 | H35: 49 | I35: 60 | J35: 73 | K35: 9 | L35: 2 | M35: 5 | N35: 4 | O35: 4 | P35: 4 | Q35: 9 | R35: 6 | S35: 0 | T35: 7 | U35: 3 | V35: 0 | W35: 9 | Y35: 30 | Z35: 0 | AA35: 4 | AB35: 3 | AC35: 0 | AD35: 2 | AE35: 4 | AF35: 4 | AG35: 7 | AH35: 7 | AI35: 6 | AJ35: 0 | AK35: 7 | AM35: 4 | AN35: 30 | AO35: 24 | AP35: 47 | AQ35: 76 | AR35: 7 | AU35: 18 | AV35: =IF(AU35<>AU34,AU35,"") ->  | AW35: 3 | AX35: =IF(AW35<>AW34,AW35,"") ->  | AZ35: 30 | BA35: 7 | BB35: 19 | BC35: 51 | BD35: 59 | BE35: 62 | BF35: 3
B36: 32 | C36: 2014 | D36: 2 | E36: 7 | F36: 11 | G36: 21 | H36: 23 | I36: 35 | J36: 64 | K36: 10 | L36: 1 | M36: 1 | N36: 2 | O36: 1 | P36: 2 | Q36: 3 | R36: 3 | S36: 5 | T36: 6 | U36: 4 | V36: 1 | W36: 0 | Y36: 31 | Z36: 1 | AA36: 2 | AB36: 3 | AC36: 8 | AD36: 2 | AE36: 4 | AF36: 2 | AG36: 5 | AH36: 5 | AI36: 4 | AJ36: 0 | AK36: 0 | AM36: 12 | AN36: 38 | AO36: 24 | AP36: 25 | AQ36: 54 | AR36: 0 | AU36: 18 | AV36: =IF(AU36<>AU35,AU36,"") ->  | AW36: 3 | AX36: =IF(AW36<>AW35,AW36,"") ->  | AZ36: 31 | BA36: 12 | BB36: 15 | BC36: 47 | BD36: 50 | BE36: 67 | BF36: 5
B37: 33 | C37: 2014 | D37: 2 | E37: 11 | F37: 43 | G37: 64 | H37: 67 | I37: 71 | J37: 73 | K37: 4 | L37: 4 | M37: 3 | N37: 6 | O37: 4 | P37: 6 | Q37: 7 | R37: 7 | S37: 1 | T37: 7 | U37: 3 | V37: 0 | W37: 4 | Y37: 32 | Z37: 3 | AA37: 2 | AB37: 2 | AC37: 8 | AD37: 2 | AE37: 1 | AF37: 2 | AG37: 8 | AH37: 7 | AI37: 4 | AJ37: 0 | AK37: 7 | AM37: 32 | AN37: 28 | AO37: 21 | AP37: 28 | AQ37: 74 | AR37: 7 | AS37: X | AU37: 19 | AV37: =IF(AU37<>AU36,AU37,"") -> 19 | AW37: 3 | AX37: =IF(AW37<>AW36,AW37,"") ->  | AZ37: 32 | BA37: 3 | BB37: 51 | BC37: 53 | BD37: 57 | BE37: 74 | BF37: 1
B38: 34 | C38: 2014 | D38: 2 | E38: 14 | F38: 20 | G38: 28 | H38: 35 | I38: 71 | J38: 72 | K38: 7 | L38: 2 | M38: 0 | N38: 2 | O38: 8 | P38: 3 | Q38: 5 | R38: 7 | S38: 1 | T38: 7 | U38: 2 | V38: 0 | W38: 7 | Y38: 33 | Z38: 0 | AA38: 4 | AB38: 2 | AC38: 2 | AD38: 3 | AE38: 1 | AF38: 6 | AG38: 1 | AH38: 6 | AI38: 4 | AJ38: 0 | AK38: 4 | AM38: 4 | AN38: 22 | AO38: 31 | AP38: 61 | AQ38: 64 | AR38: 4 | AS38: X | AT38: XX | AU38: 20 | AV38: =IF(AU38<>AU37,AU38,"") -> 20 | AW38: 4 | AX38: =IF(AW38<>AW37,AW38,"") -> 4 | AZ38: 33 | BA38: 7 | BB38: 25 | BC38: 40 | BD38: 46 | BE38: 74 | BF38: 4
B39: 35 | C39: 2014 | D39: 2 | E39: 18 | F39: 23 | G39: 29 | H39: 31 | I39: 37 | J39: 70 | K39: 14 | L39: 2 | M39: 3 | N39: 2 | O39: 9 | P39: 3 | Q39: 1 | R39: 3 | S39: 7 | T39: 7 | U39: 0 | V39: 1 | W39: 4 | Y39: 34 | Z39: 0 | AA39: 3 | AB39: 0 | AC39: 4 | AD39: 3 | AE39: 5 | AF39: 4 | AG39: 1 | AH39: 6 | AI39: 8 | AJ39: 0 | AK39: 9 | AM39: 3 | AN39: 4 | AO39: 35 | AP39: 41 | AQ39: 68 | AR39: 9 | AS39: X | AT39: XX | AU39: 21 | AV39: =IF(AU39<>AU38,AU39,"") -> 21 | AW39: 5 | AX39: =IF(AW39<>AW38,AW39,"") -> 5 | AZ39: 34 | BA39: 4 | BB39: 8 | BC39: 24 | BD39: 30 | BE39: 58 | BF39: 1
B40: 36 | C40: 2014 | D40: 2 | E40: 21 | F40: 23 | G40: 29 | H40: 32 | I40: 45 | J40: 46 | K40: 15 | L40: 2 | M40: 3 | N40: 2 | O40: 9 | P40: 3 | Q40: 2 | R40: 4 | S40: 5 | T40: 4 | U40: 6 | V40: 1 | W40: 5 | Y40: 35 | Z40: 1 | AA40: 5 | AB40: 4 | AC40: 0 | AD40: 2 | AE40: 1 | AF40: 5 | AG40: 9 | AH40: 6 | AI40: 3 | AJ40: 0 | AK40: 0 | AM40: 15 | AN40: 40 | AO40: 21 | AP40: 59 | AQ40: 63 | AR40: 0 | AU40: 21 | AV40: =IF(AU40<>AU39,AU40,"") ->  | AW40: 5 | AX40: =IF(AW40<>AW39,AW40,"") ->  | AZ40: 35 | BA40: 5 | BB40: 20 | BC40: 41 | BD40: 51 | BE40: 70 | BF40: 11
B41: 37 | C41: 2014 | D41: 2 | E41: 25 | F41: 12 | G41: 18 | H41: 25 | I41: 35 | J41: 66 | K41: 15 | L41: 1 | M41: 2 | N41: 1 | O41: 8 | P41: 2 | Q41: 5 | R41: 3 | S41: 5 | T41: 6 | U41: 6 | V41: 1 | W41: 5 | Y41: 36 | Z41: 0 | AA41: 2 | AB41: 2 | AC41: 4 | AD41: 1 | AE41: 2 | AF41: 5 | AG41: 1 | AH41: 6 | AI41: 2 | AJ41: 1 | AK41: 5 | AM41: 2 | AN41: 24 | AO41: 12 | AP41: 51 | AQ41: 62 | AR41: 15 | AS41: X | AU41: 22 | AV41: =IF(AU41<>AU40,AU41,"") -> 22 | AW41: 5 | AX41: =IF(AW41<>AW40,AW41,"") ->  | AZ41: 36 | BA41: 7 | BB41: 20 | BC41: 52 | BD41: 56 | BE41: 74 | BF41: 9
B42: 38 | C42: 2014 | D42: 2 | E42: 28 | F42: 3 | G42: 31 | H42: 50 | I42: 58 | J42: 59 | K42: 6 | L42: 0 | M42: 3 | N42: 3 | O42: 1 | P42: 5 | Q42: 0 | R42: 5 | S42: 8 | T42: 5 | U42: 9 | V42: 0 | W42: 6 | Y42: 37 | Z42: 4 | AA42: 8 | AB42: 2 | AC42: 9 | AD42: 5 | AE42: 7 | AF42: 2 | AG42: 6 | AH42: 7 | AI42: 0 | AJ42: 0 | AK42: 0 | AM42: 48 | AN42: 29 | AO42: 57 | AP42: 26 | AQ42: 70 | AR42: 0 | AU42: 22 | AV42: =IF(AU42<>AU41,AU42,"") ->  | AW42: 5 | AX42: =IF(AW42<>AW41,AW42,"") ->  | AZ42: 37 | BA42: 7 | BB42: 22 | BC42: 39 | BD42: 49 | BE42: 53 | BF42: 4
B43: 39 | C43: 2014 | D43: 3 | E43: 4 | F43: 10 | G43: 29 | H43: 31 | I43: 35 | J43: 45 | K43: 10 | L43: 1 | M43: 0 | N43: 2 | O43: 9 | P43: 3 | Q43: 1 | R43: 3 | S43: 5 | T43: 4 | U43: 5 | V43: 1 | W43: 0 | Y43: 38 | Z43: 0 | AA43: 3 | AB43: 4 | AC43: 8 | AD43: 2 | AE43: 8 | AF43: 2 | AG43: 9 | AH43: 4 | AI43: 4 | AJ43: 1 | AK43: 5 | AM43: 3 | AN43: 48 | AO43: 28 | AP43: 29 | AQ43: 44 | AR43: 15 | AS43: X | AU43: 23 | AV43: =IF(AU43<>AU42,AU43,"") -> 23 | AW43: 5 | AX43: =IF(AW43<>AW42,AW43,"") ->  | AZ43: 38 | BA43: 11 | BB43: 15 | BC43: 24 | BD43: 41 | BE43: 52 | BF43: 7
B44: 40 | C44: 2014 | D44: 3 | E44: 7 | F44: 11 | G44: 13 | H44: 51 | I44: 57 | J44: 69 | K44: 1 | L44: 1 | M44: 1 | N44: 1 | O44: 3 | P44: 5 | Q44: 1 | R44: 5 | S44: 7 | T44: 6 | U44: 9 | V44: 0 | W44: 1 | Y44: 39 | Z44: 1 | AA44: 2 | AB44: 2 | AC44: 9 | AD44: 4 | AE44: 0 | AF44: 4 | AG44: 1 | AH44: 4 | AI44: 3 | AJ44: 1 | AK44: 1 | AM44: 12 | AN44: 29 | AO44: 40 | AP44: 41 | AQ44: 43 | AR44: 11 | AS44: X | AT44: XX | AU44: 24 | AV44: =IF(AU44<>AU43,AU44,"") -> 24 | AW44: 6 | AX44: =IF(AW44<>AW43,AW44,"") -> 6 | AZ44: 39 | BA44: 2 | BB44: 22 | BC44: 23 | BD44: 50 | BE44: 72 | BF44: 10
B45: 41 | C45: 2014 | D45: 3 | E45: 11 | F45: 9 | G45: 14 | H45: 56 | I45: 57 | J45: 69 | K45: 10 | L45: 0 | M45: 9 | N45: 1 | O45: 4 | P45: 5 | Q45: 6 | R45: 5 | S45: 7 | T45: 6 | U45: 9 | V45: 1 | W45: 0 | Y45: 40 | Z45: 4 | AA45: 3 | AB45: 1 | AC45: 5 | AD45: 2 | AE45: 2 | AF45: 3 | AG45: 2 | AH45: 7 | AI45: 8 | AJ45: 0 | AK45: 4 | AM45: 43 | AN45: 15 | AO45: 22 | AP45: 32 | AQ45: 78 | AR45: 4 | AU45: 24 | AV45: =IF(AU45<>AU44,AU45,"") ->  | AW45: 6 | AX45: =IF(AW45<>AW44,AW45,"") ->  | AZ45: 40 | BA45: 3 | BB45: 31 | BC45: 52 | BD45: 61 | BE45: 64 | BF45: 2
B46: 42 | C46: 2014 | D46: 3 | E46: 14 | F46: 7 | G46: 20 | H46: 40 | I46: 54 | J46: 69 | K46: 12 | L46: 0 | M46: 7 | N46: 2 | O46: 0 | P46: 4 | Q46: 0 | R46: 5 | S46: 4 | T46: 6 | U46: 9 | V46: 1 | W46: 2 | Y46: 41 | Z46: 0 | AA46: 1 | AB46: 3 | AC46: 0 | AD46: 3 | AE46: 1 | AF46: 6 | AG46: 9 | AH46: 7 | AI46: 0 | AJ46: 1 | AK46: 4 | AM46: 1 | AN46: 30 | AO46: 31 | AP46: 69 | AQ46: 70 | AR46: 14 | AS46: X | AT46: XX | AU46: 25 | AV46: =IF(AU46<>AU45,AU46,"") -> 25 | AW46: 7 | AX46: =IF(AW46<>AW45,AW46,"") -> 7 | AZ46: 41 | BA46: 2 | BB46: 25 | BC46: 37 | BD46: 48 | BE46: 66 | BF46: 3
B47: 43 | C47: 2014 | D47: 3 | E47: 18 | F47: 11 | G47: 19 | H47: 24 | I47: 33 | J47: 51 | K47: 7 | L47: 1 | M47: 1 | N47: 1 | O47: 9 | P47: 2 | Q47: 4 | R47: 3 | S47: 3 | T47: 5 | U47: 1 | V47: 0 | W47: 7 | Y47: 42 | Z47: 0 | AA47: 1 | AB47: 3 | AC47: 5 | AD47: 3 | AE47: 9 | AF47: 4 | AG47: 8 | AH47: 5 | AI47: 7 | AJ47: 1 | AK47: 2 | AM47: 1 | AN47: 35 | AO47: 39 | AP47: 48 | AQ47: 57 | AR47: 12 | AS47: X | AT47: XX | AU47: 26 | AV47: =IF(AU47<>AU46,AU47,"") -> 26 | AW47: 8 | AX47: =IF(AW47<>AW46,AW47,"") -> 8 | AZ47: 42 | BA47: 1 | BB47: 2 | BC47: 33 | BD47: 39 | BE47: 54 | BF47: 1
B48: 44 | C48: 2014 | D48: 3 | E48: 21 | F48: 2 | G48: 23 | H48: 30 | I48: 35 | J48: 53 | K48: 10 | L48: 0 | M48: 2 | N48: 2 | O48: 3 | P48: 3 | Q48: 0 | R48: 3 | S48: 5 | T48: 5 | U48: 3 | V48: 1 | W48: 0 | Y48: 43 | Z48: 1 | AA48: 0 | AB48: 0 | AC48: 8 | AD48: 5 | AE48: 2 | AF48: 4 | AG48: 7 | AH48: 6 | AI48: 9 | AJ48: 0 | AK48: 5 | AM48: 10 | AN48: 8 | AO48: 52 | AP48: 47 | AQ48: 69 | AR48: 5 | AS48: X | AU48: 27 | AV48: =IF(AU48<>AU47,AU48,"") -> 27 | AW48: 8 | AX48: =IF(AW48<>AW47,AW48,"") ->  | AZ48: 43 | BA48: 2 | BB48: 14 | BC48: 25 | BD48: 45 | BE48: 68 | BF48: 1
B49: 45 | C49: 2014 | D49: 3 | E49: 25 | F49: 19 | G49: 26 | H49: 51 | I49: 57 | J49: 73 | K49: 15 | L49: 1 | M49: 9 | N49: 2 | O49: 6 | P49: 5 | Q49: 1 | R49: 5 | S49: 7 | T49: 7 | U49: 3 | V49: 1 | W49: 5 | Y49: 44 | Z49: 1 | AA49: 0 | AB49: 2 | AC49: 9 | AD49: 1 | AE49: 7 | AF49: 3 | AG49: 8 | AH49: 5 | AI49: 2 | AJ49: 0 | AK49: 5 | AM49: 10 | AN49: 29 | AO49: 17 | AP49: 38 | AQ49: 52 | AR49: 5 | AS49: X | AU49: 28 | AV49: =IF(AU49<>AU48,AU49,"") -> 28 | AW49: 8 | AX49: =IF(AW49<>AW48,AW49,"") ->  | AZ49: 44 | BA49: 3 | BB49: 24 | BC49: 33 | BD49: 47 | BE49: 69 | BF49: 11
B50: 46 | C50: 2014 | D50: 3 | E50: 28 | F50: 2 | G50: 3 | H50: 9 | I50: 50 | J50: 73 | K50: 12 | L50: 0 | M50: 2 | N50: 0 | O50: 3 | P50: 0 | Q50: 9 | R50: 5 | S50: 0 | T50: 7 | U50: 3 | V50: 1 | W50: 2 | Y50: 45 | Z50: 1 | AA50: 2 | AB50: 2 | AC50: 9 | AD50: 1 | AE50: 5 | AF50: 3 | AG50: 8 | AH50: 7 | AI50: 9 | AJ50: 0 | AK50: 8 | AM50: 12 | AN50: 29 | AO50: 15 | AP50: 38 | AQ50: 79 | AR50: 8 | AU50: 28 | AV50: =IF(AU50<>AU49,AU50,"") ->  | AW50: 8 | AX50: =IF(AW50<>AW49,AW50,"") ->  | AZ50: 45 | BA50: 22 | BB50: 28 | BC50: 34 | BD50: 41 | BE50: 62 | BF50: 7
B51: 47 | C51: 2014 | D51: 4 | E51: 1 | F51: 10 | G51: 23 | H51: 68 | I51: 74 | J51: 75 | K51: 9 | L51: 1 | M51: 0 | N51: 2 | O51: 3 | P51: 6 | Q51: 8 | R51: 7 | S51: 4 | T51: 7 | U51: 5 | V51: 0 | W51: 9 | Y51: 46 | Z51: 0 | AA51: 3 | AB51: 5 | AC51: 9 | AD51: 1 | AE51: 1 | AF51: 4 | AG51: 5 | AH51: 7 | AI51: 3 | AJ51: 1 | AK51: 3 | AM51: 3 | AN51: 59 | AO51: 11 | AP51: 45 | AQ51: 73 | AR51: 13 | AS51: X | AU51: 29 | AV51: =IF(AU51<>AU50,AU51,"") -> 29 | AW51: 8 | AX51: =IF(AW51<>AW50,AW51,"") ->  | AZ51: 46 | BA51: 4 | BB51: 20 | BC51: 48 | BD51: 69 | BE51: 72 | BF51: 11
B52: 48 | C52: 2014 | D52: 4 | E52: 4 | F52: 1 | G52: 10 | H52: 15 | I52: 41 | J52: 54 | K52: 9 | L52: 0 | M52: 1 | N52: 1 | O52: 0 | P52: 1 | Q52: 5 | R52: 4 | S52: 1 | T52: 5 | U52: 4 | V52: 0 | W52: 9 | Y52: 47 | Z52: 1 | AA52: 3 | AB52: 0 | AC52: 0 | AD52: 2 | AE52: 7 | AF52: 5 | AG52: 9 | AH52: 4 | AI52: 2 | AJ52: 0 | AK52: 2 | AM52: 13 | AN52: 0 | AO52: 27 | AP52: 59 | AQ52: 42 | AR52: 2 | AU52: 29 | AV52: =IF(AU52<>AU51,AU52,"") ->  | AW52: 8 | AX52: =IF(AW52<>AW51,AW52,"") ->  | AZ52: 47 | BA52: 7 | BB52: 30 | BC52: 45 | BD52: 50 | BE52: 62 | BF52: 2
B53: 49 | C53: 2014 | D53: 4 | E53: 8 | F53: 35 | G53: 36 | H53: 41 | I53: 60 | J53: 71 | K53: 3 | L53: 3 | M53: 5 | N53: 3 | O53: 6 | P53: 4 | Q53: 1 | R53: 6 | S53: 0 | T53: 7 | U53: 1 | V53: 0 | W53: 3 | Y53: 48 | Z53: 0 | AA53: 7 | AB53: 5 | AC53: 1 | AD53: 5 | AE53: 3 | AF53: 4 | AG53: 7 | AH53: 7 | AI53: 4 | AJ53: 0 | AK53: 9 | AM53: 7 | AN53: 51 | AO53: 53 | AP53: 47 | AQ53: 74 | AR53: 9 | AS53: X | AU53: 30 | AV53: =IF(AU53<>AU52,AU53,"") -> 30 | AW53: 8 | AX53: =IF(AW53<>AW52,AW53,"") ->  | AZ53: 48 | BA53: 10 | BB53: 24 | BC53: 30 | BD53: 31 | BE53: 40 | BF53: 14
B54: 50 | C54: 2014 | D54: 4 | E54: 11 | F54: 3 | G54: 42 | H54: 44 | I54: 47 | J54: 57 | K54: 8 | L54: 0 | M54: 3 | N54: 4 | O54: 2 | P54: 4 | Q54: 4 | R54: 4 | S54: 7 | T54: 5 | U54: 7 | V54: 0 | W54: 8 | Y54: 49 | Z54: 1 | AA54: 2 | AB54: 5 | AC54: 9 | AD54: 1 | AE54: 9 | AF54: 4 | AG54: 0 | AH54: 5 | AI54: 0 | AJ54: 0 | AK54: 0 | AM54: 12 | AN54: 59 | AO54: 19 | AP54: 40 | AQ54: 50 | AR54: 0 | AU54: 30 | AV54: =IF(AU54<>AU53,AU54,"") ->  | AW54: 8 | AX54: =IF(AW54<>AW53,AW54,"") ->  | AZ54: 49 | BA54: 7 | BB54: 29 | BC54: 51 | BD54: 58 | BE54: 72 | BF54: 9
B55: 51 | C55: 2014 | D55: 4 | E55: 15 | F55: 4 | G55: 39 | H55: 46 | I55: 47 | J55: 70 | K55: 13 | L55: 0 | M55: 4 | N55: 3 | O55: 9 | P55: 4 | Q55: 6 | R55: 4 | S55: 7 | T55: 7 | U55: 0 | V55: 1 | W55: 3 | Y55: 50 | Z55: 0 | AA55: 2 | AB55: 5 | AC55: 0 | AD55: 3 | AE55: 5 | AF55: 3 | AG55: 0 | AH55: 5 | AI55: 7 | AJ55: 0 | AK55: 7 | AM55: 2 | AN55: 50 | AO55: 35 | AP55: 30 | AQ55: 57 | AR55: 7 | AS55: X | AU55: 31 | AV55: =IF(AU55<>AU54,AU55,"") -> 31 | AW55: 8 | AX55: =IF(AW55<>AW54,AW55,"") ->  | AZ55: 50 | BA55: 13 | BB55: 19 | BC55: 35 | BD55: 40 | BE55: 58 | BF55: 2
B56: 52 | C56: 2014 | D56: 4 | E56: 18 | F56: 18 | G56: 25 | H56: 38 | I56: 45 | J56: 63 | K56: 9 | L56: 1 | M56: 8 | N56: 2 | O56: 5 | P56: 3 | Q56: 8 | R56: 4 | S56: 5 | T56: 6 | U56: 3 | V56: 0 | W56: 9 | Y56: 51 | Z56: 1 | AA56: 0 | AB56: 4 | AC56: 9 | AD56: 6 | AE56: 5 | AF56: 5 | AG56: 0 | AH56: 4 | AI56: 3 | AJ56: 1 | AK56: 2 | AM56: 10 | AN56: 49 | AO56: 65 | AP56: 50 | AQ56: 43 | AR56: 12 | AS56: X | AU56: 32 | AV56: =IF(AU56<>AU55,AU56,"") -> 32 | AW56: 8 | AX56: =IF(AW56<>AW55,AW56,"") ->  | AZ56: 51 | BA56: 14 | BB56: 28 | BC56: 43 | BD56: 45 | BE56: 60 | BF56: 8
B57: 53 | C57: 2014 | D57: 4 | E57: 22 | F57: 2 | G57: 18 | H57: 19 | I57: 49 | J57: 50 | K57: 1 | L57: 0 | M57: 2 | N57: 1 | O57: 8 | P57: 1 | Q57: 9 | R57: 4 | S57: 9 | T57: 5 | U57: 0 | V57: 0 | W57: 1 | Y57: 52 | Z57: 0 | AA57: 0 | AB57: 0 | AC57: 8 | AD57: 5 | AE57: 5 | AF57: 5 | AG57: 8 | AH57: 6 | AI57: 4 | AJ57: 0 | AK57: 1 | AM57: 0 | AN57: 8 | AO57: 55 | AP57: 58 | AQ57: 64 | AR57: 1 | AU57: 32 | AV57: =IF(AU57<>AU56,AU57,"") ->  | AW57: 8 | AX57: =IF(AW57<>AW56,AW57,"") ->  | AZ57: 52 | BA57: 12 | BB57: 28 | BC57: 35 | BD57: 57 | BE57: 74 | BF57: 4
B58: 54 | C58: 2014 | D58: 4 | E58: 25 | F58: 3 | G58: 11 | H58: 18 | I58: 20 | J58: 66 | K58: 9 | L58: 0 | M58: 3 | N58: 1 | O58: 1 | P58: 1 | Q58: 8 | R58: 2 | S58: 0 | T58: 6 | U58: 6 | V58: 0 | W58: 9 | Y58: 53 | Z58: 3 | AA58: 8 | AB58: 3 | AC58: 5 | AD58: 1 | AE58: 9 | AF58: 5 | AG58: 6 | AH58: 6 | AI58: 0 | AJ58: 1 | AK58: 7 | AM58: 38 | AN58: 35 | AO58: 19 | AP58: 56 | AQ58: 60 | AR58: 17 | AU58: 32 | AV58: =IF(AU58<>AU57,AU58,"") ->  | AW58: 8 | AX58: =IF(AW58<>AW57,AW58,"") ->  | AZ58: 53 | BA58: 4 | BB58: 10 | BC58: 23 | BD58: 59 | BE58: 64 | BF58: 7
B59: 55 | C59: 2014 | D59: 4 | E59: 29 | F59: 7 | G59: 43 | H59: 59 | I59: 61 | J59: 66 | K59: 3 | L59: 0 | M59: 7 | N59: 4 | O59: 3 | P59: 5 | Q59: 9 | R59: 6 | S59: 1 | T59: 6 | U59: 6 | V59: 0 | W59: 3 | Y59: 54 | Z59: 0 | AA59: 5 | AB59: 4 | AC59: 0 | AD59: 2 | AE59: 5 | AF59: 2 | AG59: 1 | AH59: 6 | AI59: 4 | AJ59: 0 | AK59: 7 | AM59: 5 | AN59: 40 | AO59: 25 | AP59: 21 | AQ59: 64 | AR59: 7 | AS59: X | AU59: 33 | AV59: =IF(AU59<>AU58,AU59,"") -> 33 | AW59: 8 | AX59: =IF(AW59<>AW58,AW59,"") ->  | AZ59: 54 | BA59: 7 | BB59: 15 | BC59: 25 | BD59: 59 | BE59: 63 | BF59: 4
B60: 56 | C60: 2014 | D60: 5 | E60: 2 | F60: 1 | G60: 18 | H60: 26 | I60: 35 | J60: 40 | K60: 13 | L60: 0 | M60: 1 | N60: 1 | O60: 8 | P60: 2 | Q60: 6 | R60: 3 | S60: 5 | T60: 4 | U60: 0 | V60: 1 | W60: 3 | Y60: 55 | Z60: 0 | AA60: 1 | AB60: 4 | AC60: 2 | AD60: 3 | AE60: 5 | AF60: 5 | AG60: 1 | AH60: 7 | AI60: 4 | AJ60: 0 | AK60: 8 | AM60: 1 | AN60: 42 | AO60: 35 | AP60: 51 | AQ60: 74 | AR60: 8 | AS60: X | AU60: 34 | AV60: =IF(AU60<>AU59,AU60,"") -> 34 | AW60: 8 | AX60: =IF(AW60<>AW59,AW60,"") ->  | AZ60: 55 | BA60: 2 | BB60: 10 | BC60: 25 | BD60: 45 | BE60: 54 | BF60: 4
B61: 57 | C61: 2014 | D61: 5 | E61: 6 | F61: 18 | G61: 20 | H61: 27 | I61: 48 | J61: 51 | K61: 5 | L61: 1 | M61: 8 | N61: 2 | O61: 0 | P61: 2 | Q61: 7 | R61: 4 | S61: 8 | T61: 5 | U61: 1 | V61: 0 | W61: 5 | Y61: 56 | Z61: 0 | AA61: 7 | AB61: 2 | AC61: 8 | AD61: 2 | AE61: 1 | AF61: 5 | AG61: 5 | AH61: 6 | AI61: 3 | AJ61: 0 | AK61: 4 | AM61: 7 | AN61: 28 | AO61: 21 | AP61: 55 | AQ61: 63 | AR61: 4 | AS61: X | AU61: 35 | AV61: =IF(AU61<>AU60,AU61,"") -> 35 | AW61: 8 | AX61: =IF(AW61<>AW60,AW61,"") ->  | AZ61: 56 | BA61: 2 | BB61: 10 | BC61: 39 | BD61: 45 | BE61: 69 | BF61: 1
B62: 58 | C62: 2014 | D62: 5 | E62: 9 | F62: 10 | G62: 28 | H62: 39 | I62: 51 | J62: 59 | K62: 14 | L62: 1 | M62: 0 | N62: 2 | O62: 8 | P62: 3 | Q62: 9 | R62: 5 | S62: 1 | T62: 5 | U62: 9 | V62: 1 | W62: 4 | Y62: 57 | Z62: 1 | AA62: 4 | AB62: 3 | AC62: 5 | AD62: 2 | AE62: 8 | AF62: 3 | AG62: 1 | AH62: 5 | AI62: 3 | AJ62: 1 | AK62: 8 | AM62: 14 | AN62: 35 | AO62: 28 | AP62: 31 | AQ62: 53 | AR62: 18 | AU62: 35 | AV62: =IF(AU62<>AU61,AU62,"") ->  | AW62: 8 | AX62: =IF(AW62<>AW61,AW62,"") ->  | AZ62: 57 | BA62: 3 | BB62: 25 | BC62: 31 | BD62: 51 | BE62: 63 | BF62: 9
B63: 59 | C63: 2014 | D63: 5 | E63: 13 | F63: 37 | G63: 46 | H63: 48 | I63: 70 | J63: 74 | K63: 1 | L63: 3 | M63: 7 | N63: 4 | O63: 6 | P63: 4 | Q63: 8 | R63: 7 | S63: 0 | T63: 7 | U63: 4 | V63: 0 | W63: 1 | Y63: 58 | Z63: 0 | AA63: 1 | AB63: 5 | AC63: 9 | AD63: 1 | AE63: 4 | AF63: 4 | AG63: 8 | AH63: 7 | AI63: 4 | AJ63: 1 | AK63: 0 | AM63: 1 | AN63: 59 | AO63: 14 | AP63: 48 | AQ63: 74 | AR63: 10 | AS63: X | AU63: 36 | AV63: =IF(AU63<>AU62,AU63,"") -> 36 | AW63: 8 | AX63: =IF(AW63<>AW62,AW63,"") ->  | AZ63: 58 | BA63: 3 | BB63: 4 | BC63: 34 | BD63: 46 | BE63: 68 | BF63: 13
B64: 60 | C64: 2014 | D64: 5 | E64: 16 | F64: 13 | G64: 14 | H64: 16 | I64: 50 | J64: 56 | K64: 11 | L64: 1 | M64: 3 | N64: 1 | O64: 4 | P64: 1 | Q64: 6 | R64: 5 | S64: 0 | T64: 5 | U64: 6 | V64: 1 | W64: 1 | Y64: 59 | Z64: 0 | AA64: 2 | AB64: 4 | AC64: 0 | AD64: 3 | AE64: 4 | AF64: 5 | AG64: 0 | AH64: 6 | AI64: 0 | AJ64: 1 | AK64: 1 | AM64: 2 | AN64: 40 | AO64: 34 | AP64: 50 | AQ64: 60 | AR64: 11 | AS64: X | AU64: 37 | AV64: =IF(AU64<>AU63,AU64,"") -> 37 | AW64: 8 | AX64: =IF(AW64<>AW63,AW64,"") ->  | AZ64: 59 | BA64: 2 | BB64: 10 | BC64: 31 | BD64: 51 | BE64: 74 | BF64: 1
B65: 61 | C65: 2014 | D65: 5 | E65: 20 | F65: 10 | G65: 40 | H65: 63 | I65: 64 | J65: 69 | K65: 7 | L65: 1 | M65: 0 | N65: 4 | O65: 0 | P65: 6 | Q65: 3 | R65: 6 | S65: 4 | T65: 6 | U65: 9 | V65: 0 | W65: 7 | Y65: 60 | Z65: 1 | AA65: 0 | AB65: 2 | AC65: 8 | AD65: 2 | AE65: 9 | AF65: 2 | AG65: 9 | AH65: 7 | AI65: 7 | AJ65: 0 | AK65: 4 | AM65: 10 | AN65: 28 | AO65: 29 | AP65: 29 | AQ65: 77 | AR65: 4 | AU65: 37 | AV65: =IF(AU65<>AU64,AU65,"") ->  | AW65: 8 | AX65: =IF(AW65<>AW64,AW65,"") ->  | AZ65: 60 | BA65: 3 | BB65: 29 | BC65: 35 | BD65: 51 | BE65: 73 | BF65: 15
B66: 62 | C66: 2014 | D66: 5 | E66: 23 | F66: 12 | G66: 14 | H66: 21 | I66: 38 | J66: 70 | K66: 15 | L66: 1 | M66: 2 | N66: 1 | O66: 4 | P66: 2 | Q66: 1 | R66: 3 | S66: 8 | T66: 7 | U66: 0 | V66: 1 | W66: 5 | Y66: 61 | Z66: 0 | AA66: 2 | AB66: 2 | AC66: 8 | AD66: 1 | AE66: 4 | AF66: 3 | AG66: 2 | AH66: 7 | AI66: 8 | AJ66: 0 | AK66: 1 | AM66: 2 | AN66: 28 | AO66: 14 | AP66: 32 | AQ66: 78 | AR66: 1 | AU66: 37 | AV66: =IF(AU66<>AU65,AU66,"") ->  | AW66: 8 | AX66: =IF(AW66<>AW65,AW66,"") ->  | AZ66: 61 | BA66: 3 | BB66: 5 | BC66: 28 | BD66: 51 | BE66: 54 | BF66: 7
B67: 63 | C67: 2014 | D67: 5 | E67: 27 | F67: 1 | G67: 6 | H67: 10 | I67: 46 | J67: 58 | K67: 13 | L67: 0 | M67: 1 | N67: 0 | O67: 6 | P67: 1 | Q67: 0 | R67: 4 | S67: 6 | T67: 5 | U67: 8 | V67: 1 | W67: 3 | Y67: 62 | Z67: 1 | AA67: 1 | AB67: 2 | AC67: 5 | AD67: 3 | AE67: 5 | AF67: 4 | AG67: 8 | AH67: 7 | AI67: 4 | AJ67: 0 | AK67: 3 | AM67: 11 | AN67: 25 | AO67: 35 | AP67: 48 | AQ67: 74 | AR67: 3 | AS67: X | AT67: XX | AU67: 38 | AV67: =IF(AU67<>AU66,AU67,"") -> 38 | AW67: 9 | AX67: =IF(AW67<>AW66,AW67,"") -> 9 | AZ67: 62 | BA67: 3 | BB67: 4 | BC67: 31 | BD67: 40 | BE67: 43 | BF67: 11
B68: 64 | C68: 2014 | D68: 5 | E68: 30 | F68: 10 | G68: 13 | H68: 42 | I68: 43 | J68: 62 | K68: 2 | L68: 1 | M68: 0 | N68: 1 | O68: 3 | P68: 4 | Q68: 2 | R68: 4 | S68: 3 | T68: 6 | U68: 2 | V68: 0 | W68: 2 | Y68: 63 | Z68: 0 | AA68: 4 | AB68: 2 | AC68: 0 | AD68: 2 | AE68: 5 | AF68: 6 | AG68: 1 | AH68: 5 | AI68: 2 | AJ68: 0 | AK68: 0 | AM68: 4 | AN68: 20 | AO68: 25 | AP68: 61 | AQ68: 52 | AR68: 0 | AU68: 38 | AV68: =IF(AU68<>AU67,AU68,"") ->  | AW68: 9 | AX68: =IF(AW68<>AW67,AW68,"") ->  | AZ68: 63 | BA68: 14 | BB68: 29 | BC68: 35 | BD68: 41 | BE68: 74 | BF68: 1
B69: 65 | C69: 2014 | D69: 6 | E69: 3 | F69: 19 | G69: 28 | H69: 62 | I69: 66 | J69: 74 | K69: 6 | L69: 1 | M69: 9 | N69: 2 | O69: 8 | P69: 6 | Q69: 2 | R69: 6 | S69: 6 | T69: 7 | U69: 4 | V69: 0 | W69: 6 | Y69: 64 | Z69: 1 | AA69: 4 | AB69: 1 | AC69: 9 | AD69: 3 | AE69: 8 | AF69: 6 | AG69: 9 | AH69: 5 | AI69: 4 | AJ69: 0 | AK69: 0 | AM69: 14 | AN69: 19 | AO69: 38 | AP69: 69 | AQ69: 54 | AR69: 0 | AU69: 38 | AV69: =IF(AU69<>AU68,AU69,"") ->  | AW69: 9 | AX69: =IF(AW69<>AW68,AW69,"") ->  | AZ69: 64 | BA69: 10 | BB69: 20 | BC69: 51 | BD69: 67 | BE69: 74 | BF69: 11
B70: 66 | C70: 2014 | D70: 6 | E70: 6 | F70: 12 | G70: 29 | H70: 37 | I70: 49 | J70: 72 | K70: 9 | L70: =IF(ISNUMBER(F70),INT(F70/10),"") -> 1 | M70: =IF(ISNUMBER(F70),F70-10*L70,"") -> 2 | N70: =IF(ISNUMBER(G70),INT(G70/10),"") -> 2 | O70: =IF(ISNUMBER(G70),G70-10*N70,"") -> 9 | P70: =IF(ISNUMBER(H70),INT(H70/10),"") -> 3 | Q70: =IF(ISNUMBER(H70),H70-10*P70,"") -> 7 | R70: =IF(ISNUMBER(I70),INT(I70/10),"") -> 4 | S70: =IF(ISNUMBER(I70),I70-10*R70,"") -> 9 | T70: =IF(ISNUMBER(J70),INT(J70/10),"") -> 7 | U70: =IF(ISNUMBER(J70),J70-10*T70,"") -> 2 | V70: =IF(ISNUMBER(K70),INT(K70/10),"") -> 0 | W70: =IF(ISNUMBER(K70),K70-10*V70,"") -> 9 | Y70: 65 | Z70: =IF($Z$5=$BL$5,Disimulate($BK$6:$BK$15,$BL$6:$BL$15),IF($Z$5=$BM$5,Disimulate($BK$6:$BK$15,$BM$6:$BM$15),IF($Z$5=$BN$5,Disimulate($BK$6:$BK$15,$BN$6:$BN$15),IF($Z$5=$BO$5,Disimulate($BK$6:$BK$15,$BO$6:$BO$15),IF($Z$5=$BP$5,Disimulate($BK$6:$BK$15,$BP$6:$BP$15),IF($Z$5=$BQ$5,Disimulate($BK$6:$BK$15,$BQ$6:$BQ$15),IF($Z$5=$BR$5,Disimulate($BK$6:$BK$15,$BR$6:$BR$15),IF($Z$5=$BS$5,Disimulate($BK$6:$BK$15,$BS$6:$BS$15),IF($Z$5=$BT$5,Disimulate($BK$6:$BK$15,$BT$6:$BT$15),IF($Z$5=$BU$5,Disimulate($BK$6:$BK$15,$BU$6:$BU$15),"")))))))))) -> 0 | AA70: =IF($AA$5=$BL$17,Disimulate($BK$18:$BK$27,$BL$18:$BL$27),IF($AA$5=$BM$17,Disimulate($BK$18:$BK$27,$BM$18:$BM$27),IF($AA$5=$BN$17,Disimulate($BK$18:$BK$27,$BN$18:$BN$27),IF($AA$5=$BO$17,Disimulate($BK$18:$BK$27,$BO$18:$BO$27),IF($AA$5=$BP$17,Disimulate($BK$18:$BK$27,$BP$18:$BP$27),IF($AA$5=$BQ$17,Disimulate($BK$18:$BK$27,$BQ$18:$BQ$27),IF($AA$5=$BR$17,Disimulate($BK$18:$BK$27,$BR$18:$BR$27),IF($AA$5=$BS$17,Disimulate($BK$18:$BK$27,$BS$18:$BS$27),IF($AA$5=$BT$17,Disimulate($BK$18:$BK$27,$BT$18:$BT$27),IF($AA$5=$BU$17,Disimulate($BK$18:$BK$27,$BU$18:$BU$27),"")))))))))) -> 4 | AB70: =IF($AB$5=$BX$5,Disimulate($BW$6:$BW$15,$BX$6:$BX$15),IF($AB$5=$BY$5,Disimulate($BW$6:$BW$15,$BY$6:$BY$15),IF($AB$5=$BZ$5,Disimulate($BW$6:$BW$15,$BZ$6:$BZ$15),IF($AB$5=$CA$5,Disimulate($BW$6:$BW$15,$CA$6:$CA$15),IF($AB$5=$CB$5,Disimulate($BW$6:$BW$15,$CB$6:$CB$15),IF($AB$5=$CC$5,Disimulate($BW$6:$BW$15,$CC$6:$CC$15),IF($AB$5=$CD$5,Disimulate($BW$6:$BW$15,$CD$6:$CD$15),IF($AB$5=$CE$5,Disimulate($BW$6:$BW$15,$CE$6:$CE$15),IF($AB$5=$CF$5,Disimulate($BW$6:$BW$15,$CF$6:$CF$15),IF($AB$5=$CG$5,Disimulate($BW$6:$BW$15,$CG$6:$CG$15),"")))))))))) -> 2 | AC70: =IF($AC$5=$BX$17,Disimulate($BW$18:$BW$27,$BX$18:$BX$27),IF($AC$5=$BY$17,Disimulate($BW$18:$BW$27,$BY$18:$BY$27),IF($AC$5=$BZ$17,Disimulate($BW$18:$BW$27,$BZ$18:$BZ$27),IF($AC$5=$CA$17,Disimulate($BW$18:$BW$27,$CA$18:$CA$27),IF($AC$5=$CB$17,Disimulate($BW$18:$BW$27,$CB$18:$CB$27),IF($AC$5=$CC$17,Disimulate($BW$18:$BW$27,$CC$18:$CC$27),IF($AC$5=$CD$17,Disimulate($BW$18:$BW$27,$CD$18:$CD$27),IF($AC$5=$CE$17,Disimulate($BW$18:$BW$27,$CE$18:$CE$27),IF($AC$5=$CF$17,Disimulate($BW$18:$BW$27,$CF$18:$CF$27),IF($AC$5=$CG$17,Disimulate($BW$18:$BW$27,$CG$18:$CG$27),"")))))))))) -> 8 | AD70: =IF($AD$5=$CJ$5,Disimulate($CI$6:$CI$15,$CJ$6:$CJ$15),IF($AD$5=$CK$5,Disimulate($CI$6:$CI$15,$CK$6:$CK$15),IF($AD$5=$CL$5,Disimulate($CI$6:$CI$15,$CL$6:$CL$15),IF($AD$5=$CM$5,Disimulate($CI$6:$CI$15,$CM$6:$CM$15),IF($AD$5=$CN$5,Disimulate($CI$6:$CI$15,$CN$6:$CN$15),IF($AD$5=$CO$5,Disimulate($CI$6:$CI$15,$CO$6:$CO$15),IF($AD$5=$CP$5,Disimulate($CI$6:$CI$15,$CP$6:$CP$15),IF($AD$5=$CQ$5,Disimulate($CI$6:$CI$15,$CQ$6:$CQ$15),IF($AD$5=$CR$5,Disimulate($CI$6:$CI$15,$CR$6:$CR$15),IF($AD$5=$CS$5,Disimulate($CI$6:$CI$15,$CS$6:$CS$15),"")))))))))) -> 6 | AE70: =IF($AE$5=$CJ$17,Disimulate($CI$18:$CI$27,$CJ$18:$CJ$27),IF($AE$5=$CK$17,Disimulate($CI$18:$CI$27,$CK$18:$CK$27),IF($AE$5=$CL$17,Disimulate($CI$18:$CI$27,$CL$18:$CL$27),IF($AE$5=$CM$17,Disimulate($CI$18:$CI$27,$CM$18:$CM$27),IF($AE$5=$CN$17,Disimulate($CI$18:$CI$27,$CN$18:$CN$27),IF($AE$5=$CO$17,Disimulate($CI$18:$CI$27,$CO$18:$CO$27),IF($AE$5=$CP$17,Disimulate($CI$18:$CI$27,$CP$18:$CP$27),IF($AE$5=$CQ$17,Disimulate($CI$18:$CI$27,$CQ$18:$CQ$27),IF($AE$5=$CR$17,Disimulate($CI$18:$CI$27,$CR$18:$CR$27),IF($AE$5=$CS$17,Disimulate($CI$18:$CI$27,$CS$18:$CS$27),"")))))))))) -> 3 | AF70: =IF($AF$5=$CV$5,Disimulate($CU$6:$CU$15,$CV$6:$CV$15),IF($AF$5=$CW$5,Disimulate($CU$6:$CU$15,$CW$6:$CW$15),IF($AF$5=$CX$5,Disimulate($CU$6:$CU$15,$CX$6:$CX$15),IF($AF$5=$CY$5,Disimulate($CU$6:$CU$15,$CY$6:$CY$15),IF($AF$5=$CZ$5,Disimulate($CU$6:$CU$15,$CZ$6:$CZ$15),IF($AF$5=$DA$5,Disimulate($CU$6:$CU$15,$DA$6:$DA$15),IF($AF$5=$DB$5,Disimulate($CU$6:$CU$15,$DB$6:$DB$15),IF($AF$5=$DC$5,Disimulate($CU$6:$CU$15,$DC$6:$DC$15),IF($AF$5=$DD$5,Disimulate($CU$6:$CU$15,$DD$6:$DD$15),IF($AF$5=$DE$5,Disimulate($CU$6:$CU$15,$DE$6:$DE$15),"")))))))))) -> 6 | AG70: =IF($AG$5=$CV$17,Disimulate($CU$18:$CU$27,$CV$18:$CV$27),IF($AG$5=$CW$17,Disimulate($CU$18:$CU$27,$CW$18:$CW$27),IF($AG$5=$CX$17,Disimulate($CU$18:$CU$27,$CX$18:$CX$27),IF($AG$5=$CY$17,Disimulate($CU$18:$CU$27,$CY$18:$CY$27),IF($AG$5=$CZ$17,Disimulate($CU$18:$CU$27,$CZ$18:$CZ$27),IF($AG$5=$DA$17,Disimulate($CU$18:$CU$27,$DA$18:$DA$27),IF($AG$5=$DB$17,Disimulate($CU$18:$CU$27,$DB$18:$DB$27),IF($AG$5=$DC$17,Disimulate($CU$18:$CU$27,$DC$18:$DC$27),IF($AG$5=$DD$17,Disimulate($CU$18:$CU$27,$DD$18:$DD$27),IF($AG$5=$DE$17,Disimulate($CU$18:$CU$27,$DE$18:$DE$27),"")))))))))) -> 0 | AH70: =IF($AH$5=$DH$5,Disimulate($DG$6:$DG$15,$DH$6:$DH$15),IF($AH$5=$DI$5,Disimulate($DG$6:$DG$15,$DI$6:$DI$15),IF($AH$5=$DJ$5,Disimulate($DG$6:$DG$15,$DJ$6:$DJ$15),IF($AH$5=$DK$5,Disimulate($DG$6:$DG$15,$DK$6:$DK$15),IF($AH$5=$DL$5,Disimulate($DG$6:$DG$15,$DL$6:$DL$15),IF($AH$5=$DM$5,Disimulate($DG$6:$DG$15,$DM$6:$DM$15),IF($AH$5=$DN$5,Disimulate($DG$6:$DG$15,$DN$6:$DN$15),IF($AH$5=$DO$5,Disimulate($DG$6:$DG$15,$DO$6:$DO$15),IF($AH$5=$DP$5,Disimulate($DG$6:$DG$15,$DP$6:$DP$15),IF($AH$5=$DQ$5,Disimulate($DG$6:$DG$15,$DQ$6:$DQ$15),"")))))))))) -> 7 | AI70: =IF($AI$5=$DH$17,Disimulate($DG$18:$DG$27,$DH$18:$DH$27),IF($AI$5=$DI$17,Disimulate($DG$18:$DG$27,$DI$18:$DI$27),IF($AI$5=$DJ$17,Disimulate($DG$18:$DG$27,$DJ$18:$DJ$27),IF($AI$5=$DK$17,Disimulate($DG$18:$DG$27,$DK$18:$DK$27),IF($AI$5=$DL$17,Disimulate($DG$18:$DG$27,$DL$18:$DL$27),IF($AI$5=$DM$17,Disimulate($DG$18:$DG$27,$DM$18:$DM$27),IF($AI$5=$DN$17,Disimulate($DG$18:$DG$27,$DN$18:$DN$27),IF($AI$5=$DO$17,Disimulate($DG$18:$DG$27,$DO$18:$DO$27),IF($AI$5=$DP$17,Disimulate($DG$18:$DG$27,$DP$18:$DP$27),IF($AI$5=$DQ$17,Disimulate($DG$18:$DG$27,$DQ$18:$DQ$27),"")))))))))) -> 0 | AJ70: =IF($AJ$5=$DT$5,Disimulate($DS$6:$DS$15,$DT$6:$DT$15),IF($AJ$5=$DU$5,Disimulate($DS$6:$DS$15,$DU$6:$DU$15),IF($AJ$5=$DV$5,Disimulate($DS$6:$DS$15,$DV$6:$DV$15),IF($AJ$5=$DW$5,Disimulate($DS$6:$DS$15,$DW$6:$DW$15),IF($AJ$5=$DX$5,Disimulate($DS$6:$DS$15,$DX$6:$DX$15),IF($AJ$5=$DY$5,Disimulate($DS$6:$DS$15,$DY$6:$DY$15),IF($AJ$5=$DZ$5,Disimulate($DS$6:$DS$15,$DZ$6:$DZ$15),IF($AJ$5=$EA$5,Disimulate($DS$6:$DS$15,$EA$6:$EA$15),IF($AJ$5=$EB$5,Disimulate($DS$6:$DS$15,$EB$6:$EB$15),IF($AJ$5=$EC$5,Disimulate($DS$6:$DS$15,$EC$6:$EC$15),"")))))))))) -> 1 | AK70: =IF($AK$5=$DT$17,Disimulate($DS$18:$DS$27,$DT$18:$DT$27),IF($AK$5=$DU$17,Disimulate($DS$18:$DS$27,$DU$18:$DU$27),IF($AK$5=$DV$17,Disimulate($DS$18:$DS$27,$DV$18:$DV$27),IF($AK$5=$DW$17,Disimulate($DS$18:$DS$27,$DW$18:$DW$27),IF($AK$5=$DX$17,Disimulate($DS$18:$DS$27,$DX$18:$DX$27),IF($AK$5=$DY$17,Disimulate($DS$18:$DS$27,$DY$18:$DY$27),IF($AK$5=$DZ$17,Disimulate($DS$18:$DS$27,$DZ$18:$DZ$27),IF($AK$5=$EA$17,Disimulate($DS$18:$DS$27,$EA$18:$EA$27),IF($AK$5=$EB$17,Disimulate($DS$18:$DS$27,$EB$18:$EB$27),IF($AK$5=$EC$17,Disimulate($DS$18:$DS$27,$EC$18:$EC$27),"")))))))))) -> 9 | AM70: =10*Z70+1*MOD(AA70+AM$4,10) -> 4 | AN70: =10*AB70+1*MOD(AC70+AN$4,10) -> 28 | AO70: =10*AD70+1*MOD(AE70+AO$4,10) -> 63 | AP70: =10*AF70+1*MOD(AG70+AP$4,10) -> 60 | AQ70: =10*AH70+1*MOD(AI70+AQ$4,10) -> 70 | AR70: =10*AJ70+1*MOD(AK70+AR$4,10) -> 19 | AU70: 38 | AV70: =IF(AU70<>AU69,AU70,"") ->  | AW70: 9 | AX70: =IF(AW70<>AW69,AW70,"") ->  | AZ70: 65 | BA70: 1 | BB70: 9 | BC70: 25 | BD70: 51 | BE70: 63 | BF70: 11
B71: 67 | C71: 2014 | D71: 6 | E71: 10 | F71: 2 | G71: 10 | H71: 24 | I71: 26 | J71: 74 | K71: 7 | L71: 0 | M71: 2 | N71: 1 | O71: 0 | P71: 2 | Q71: 4 | R71: 2 | S71: 6 | T71: 7 | U71: 4 | V71: 0 | W71: 7 | Y71: 66 | Z71: 1 | AA71: 3 | AB71: 2 | AC71: 1 | AD71: 3 | AE71: 5 | AF71: 5 | AG71: 9 | AH71: 6 | AI71: 8 | AJ71: 0 | AK71: 2 | AM71: 13 | AN71: 21 | AO71: 35 | AP71: 59 | AQ71: 68 | AR71: 2 | AS71: X | AT71: XX | AU71: 39 | AV71: =IF(AU71<>AU70,AU71,"") -> 39 | AW71: 10 | AX71: =IF(AW71<>AW70,AW71,"") -> 10 | AZ71: 66 | BA71: =IF($AZ71<=$AT$5,LOOKUP($AZ71,$AX$6:$AX$1005,AM$6:AM$1005),"") -> 4 | BB71: =IF($AZ71<=$AT$5,LOOKUP($AZ71,$AX$6:$AX$1005,AN$6:AN$1005),"") -> 25 | BC71: =IF($AZ71<=$AT$5,LOOKUP($AZ71,$AX$6:$AX$1005,AO$6:AO$1005),"") -> 35 | BD71: =IF($AZ71<=$AT$5,LOOKUP($AZ71,$AX$6:$AX$1005,AP$6:AP$1005),"") -> 50 | BE71: =IF($AZ71<=$AT$5,LOOKUP($AZ71,$AX$6:$AX$1005,AQ$6:AQ$1005),"") -> 73 | BF71: =IF($AZ71<=$AT$5,LOOKUP($AZ71,$AX$6:$AX$1005,AR$6:AR$1005),"") -> 7
B72: 68 | C72: 2014 | D72: 6 | E72: 13 | F72: 7 | G72: 38 | H72: 46 | I72: 49 | J72: 56 | K72: 1 | L72: 0 | M72: 7 | N72: 3 | O72: 8 | P72: 4 | Q72: 6 | R72: 4 | S72: 9 | T72: 5 | U72: 6 | V72: 0 | W72: 1 | Y72: 67 | Z72: 2 | AA72: 0 | AB72: 0 | AC72: 0 | AD72: 3 | AE72: 2 | AF72: 4 | AG72: 9 | AH72: 4 | AI72: 6 | AJ72: 0 | AK72: 0 | AM72: 20 | AN72: 0 | AO72: 32 | AP72: 49 | AQ72: 46 | AR72: 0 | AS72: =IF(AND(MIN(AM72:AR72)>0,MAX(AM72:AQ72)<76,AR72<16),"X","") ->  | AT72: =IF(AND(AS72="X",AM72<AN72,AN72<AO72,AO72<AP72,AP72<AQ72),"XX","") ->  | AU72: =IF(AS72="X",AU71+1,AU71) -> 39 | AV72: =IF(AU72<>AU71,AU72,"") ->  | AW72: =IF(AT72="XX",AW71+1,AW71) -> 10 | AX72: =IF(AW72<>AW71,AW72,"") ->  | AZ72: 67 | BA72: 14 | BB72: 18 | BC72: 20 | BD72: 21 | BE72: 44 | BF72: 2
B73: 69 | C73: 2014 | D73: 6 | E73: 17 | F73: 10 | G73: 14 | H73: 24 | I73: 47 | J73: 60 | K73: 3 | L73: 1 | M73: 0 | N73: 1 | O73: 4 | P73: 2 | Q73: 4 | R73: 4 | S73: 7 | T73: 6 | U73: 0 | V73: 0 | W73: 3 | Y73: 68 | Z73: 1 | AA73: 5 | AB73: 3 | AC73: 1 | AD73: 5 | AE73: 7 | AF73: 5 | AG73: 1 | AH73: 6 | AI73: 3 | AJ73: 1 | AK73: 7 | AM73: 15 | AN73: 31 | AO73: 57 | AP73: 51 | AQ73: 63 | AR73: 17 | AU73: 39 | AV73: =IF(AU73<>AU72,AU73,"") ->  | AW73: 10 | AX73: =IF(AW73<>AW72,AW73,"") ->  | AZ73: 68 | BA73: 4 | BB73: 5 | BC73: 48 | BD73: 49 | BE73: 74 | BF73: 10
B74: 70 | C74: 2014 | D74: 6 | E74: 20 | F74: 1 | G74: 22 | H74: 25 | I74: 29 | J74: 56 | K74: 3 | L74: 0 | M74: 1 | N74: 2 | O74: 2 | P74: 2 | Q74: 5 | R74: 2 | S74: 9 | T74: 5 | U74: 6 | V74: 0 | W74: 3 | Y74: 69 | Z74: 1 | AA74: 3 | AB74: 3 | AC74: 4 | AD74: 2 | AE74: 4 | AF74: 7 | AG74: 1 | AH74: 7 | AI74: 9 | AJ74: 0 | AK74: 5 | AM74: 13 | AN74: 34 | AO74: 24 | AP74: 71 | AQ74: 79 | AR74: 5 | AU74: 39 | AV74: =IF(AU74<>AU73,AU74,"") ->  | AW74: 10 | AX74: =IF(AW74<>AW73,AW74,"") ->  | AZ74: 69 | BA74: 13 | BB74: 25 | BC74: 35 | BD74: 37 | BE74: 54 | BF74: 4
B75: 71 | C75: 2014 | D75: 6 | E75: 24 | F75: 13 | G75: 17 | H75: 24 | I75: 47 | J75: 65 | K75: 10 | L75: 1 | M75: 3 | N75: 1 | O75: 7 | P75: 2 | Q75: 4 | R75: 4 | S75: 7 | T75: 6 | U75: 5 | V75: 1 | W75: 0 | Y75: 70 | Z75: 0 | AA75: 2 | AB75: 2 | AC75: 9 | AD75: 3 | AE75: 5 | AF75: 6 | AG75: 9 | AH75: 4 | AI75: 8 | AJ75: 1 | AK75: 9 | AM75: 2 | AN75: 29 | AO75: 35 | AP75: 69 | AQ75: 48 | AR75: 19 | AU75: 39 | AV75: =IF(AU75<>AU74,AU75,"") ->  | AW75: 10 | AX75: =IF(AW75<>AW74,AW75,"") ->  | AZ75: 70 | BA75: 13 | BB75: 25 | BC75: 43 | BD75: 48 | BE75: 64 | BF75: 9
B76: 72 | C76: 2014 | D76: 6 | E76: 27 | F76: 15 | G76: 29 | H76: 31 | I76: 46 | J76: 64 | K76: 10 | L76: 1 | M76: 5 | N76: 2 | O76: 9 | P76: 3 | Q76: 1 | R76: 4 | S76: 6 | T76: 6 | U76: 4 | V76: 1 | W76: 0 | Y76: 71 | Z76: 0 | AA76: 2 | AB76: 4 | AC76: 0 | AD76: 1 | AE76: 9 | AF76: 5 | AG76: 5 | AH76: 7 | AI76: 0 | AJ76: 0 | AK76: 8 | AM76: 2 | AN76: 40 | AO76: 19 | AP76: 55 | AQ76: 70 | AR76: 8 | AS76: X | AU76: 40 | AV76: =IF(AU76<>AU75,AU76,"") -> 40 | AW76: 10 | AX76: =IF(AW76<>AW75,AW76,"") ->  | AZ76: 71 | BA76: 2 | BB76: 9 | BC76: 25 | BD76: 58 | BE76: 63 | BF76: 1
B77: 73 | C77: 2014 | D77: 7 | E77: 1 | F77: 9 | G77: 22 | H77: 38 | I77: 47 | J77: 49 | K77: 15 | L77: 0 | M77: 9 | N77: 2 | O77: 2 | P77: 3 | Q77: 8 | R77: 4 | S77: 7 | T77: 4 | U77: 9 | V77: 1 | W77: 5 | Y77: 72 | Z77: 0 | AA77: 2 | AB77: 5 | AC77: 0 | AD77: 3 | AE77: 5 | AF77: 2 | AG77: 8 | AH77: 5 | AI77: 2 | AJ77: 1 | AK77: 2 | AM77: 2 | AN77: 50 | AO77: 35 | AP77: 28 | AQ77: 52 | AR77: 12 | AS77: X | AU77: 41 | AV77: =IF(AU77<>AU76,AU77,"") -> 41 | AW77: 10 | AX77: =IF(AW77<>AW76,AW77,"") ->  | AZ77: 72 | BA77: 4 | BB77: 25 | BC77: 37 | BD77: 58 | BE77: 72 | BF77: 3
B78: 74 | C78: 2014 | D78: 7 | E78: 4 | F78: 16 | G78: 33 | H78: 39 | I78: 58 | J78: 69 | K78: 2 | L78: 1 | M78: 6 | N78: 3 | O78: 3 | P78: 3 | Q78: 9 | R78: 5 | S78: 8 | T78: 6 | U78: 9 | V78: 0 | W78: 2 | Y78: 73 | Z78: 1 | AA78: 8 | AB78: 0 | AC78: 0 | AD78: 5 | AE78: 1 | AF78: 5 | AG78: 8 | AH78: 7 | AI78: 4 | AJ78: 0 | AK78: 1 | AM78: 18 | AN78: 0 | AO78: 51 | AP78: 58 | AQ78: 74 | AR78: 1 | AU78: 41 | AV78: =IF(AU78<>AU77,AU78,"") ->  | AW78: 10 | AX78: =IF(AW78<>AW77,AW78,"") ->  | AZ78: 73 | BA78: 15 | BB78: 20 | BC78: 39 | BD78: 41 | BE78: 66 | BF78: 8
B79: 75 | C79: 2014 | D79: 7 | E79: 8 | F79: 14 | G79: 25 | H79: 27 | I79: 48 | J79: 49 | K79: 9 | L79: 1 | M79: 4 | N79: 2 | O79: 5 | P79: 2 | Q79: 7 | R79: 4 | S79: 8 | T79: 4 | U79: 9 | V79: 0 | W79: 9 | Y79: 74 | Z79: 0 | AA79: 2 | AB79: 5 | AC79: 0 | AD79: 1 | AE79: 8 | AF79: 2 | AG79: 0 | AH79: 6 | AI79: 3 | AJ79: 0 | AK79: 7 | AM79: 2 | AN79: 50 | AO79: 18 | AP79: 20 | AQ79: 63 | AR79: 7 | AS79: X | AU79: 42 | AV79: =IF(AU79<>AU78,AU79,"") -> 42 | AW79: 10 | AX79: =IF(AW79<>AW78,AW79,"") ->  | AZ79: 74 | BA79: 14 | BB79: 15 | BC79: 55 | BD79: 57 | BE79: 69 | BF79: 3
B80: 76 | C80: 2014 | D80: 7 | E80: 11 | F80: 9 | G80: 13 | H80: 30 | I80: 35 | J80: 69 | K80: 10 | L80: 0 | M80: 9 | N80: 1 | O80: 3 | P80: 3 | Q80: 0 | R80: 3 | S80: 5 | T80: 6 | U80: 9 | V80: 1 | W80: 0 | Y80: 75 | Z80: 1 | AA80: 2 | AB80: 3 | AC80: 0 | AD80: 3 | AE80: 5 | AF80: 3 | AG80: 6 | AH80: 7 | AI80: 3 | AJ80: 0 | AK80: 4 | AM80: 12 | AN80: 30 | AO80: 35 | AP80: 36 | AQ80: 73 | AR80: 4 | AS80: X | AT80: XX | AU80: 43 | AV80: =IF(AU80<>AU79,AU80,"") -> 43 | AW80: 11 | AX80: =IF(AW80<>AW79,AW80,"") -> 11 | AZ80: 75 | BA80: 1 | BB80: 12 | BC80: 32 | BD80: 49 | BE80: 58 | BF80: 11
B81: 77 | C81: 2014 | D81: 7 | E81: 15 | F81: 2 | G81: 4 | H81: 17 | I81: 36 | J81: 40 | K81: 5 | L81: 0 | M81: 2 | N81: 0 | O81: 4 | P81: 1 | Q81: 7 | R81: 3 | S81: 6 | T81: 4 | U81: 0 | V81: 0 | W81: 5 | Y81: 76 | Z81: 1 | AA81: 0 | AB81: 2 | AC81: 9 | AD81: 5 | AE81: 5 | AF81: 5 | AG81: 5 | AH81: 7 | AI81: 3 | AJ81: 0 | AK81: 8 | AM81: 10 | AN81: 29 | AO81: 55 | AP81: 55 | AQ81: 73 | AR81: 8 | AS81: X | AU81: 44 | AV81: =IF(AU81<>AU80,AU81,"") -> 44 | AW81: 11 | AX81: =IF(AW81<>AW80,AW81,"") ->  | AZ81: 76 | BA81: 24 | BB81: 29 | BC81: 52 | BD81: 68 | BE81: 73 | BF81: 2
B82: 78 | C82: 2014 | D82: 7 | E82: 18 | F82: 5 | G82: 8 | H82: 59 | I82: 65 | J82: 72 | K82: 3 | L82: 0 | M82: 5 | N82: 0 | O82: 8 | P82: 5 | Q82: 9 | R82: 6 | S82: 5 | T82: 7 | U82: 2 | V82: 0 | W82: 3 | Y82: 77 | Z82: 4 | AA82: 3 | AB82: 0 | AC82: 9 | AD82: 6 | AE82: 8 | AF82: 5 | AG82: 5 | AH82: 5 | AI82: 9 | AJ82: 0 | AK82: 4 | AM82: 43 | AN82: 9 | AO82: 68 | AP82: 55 | AQ82: 59 | AR82: 4 | AS82: X | AU82: 45 | AV82: =IF(AU82<>AU81,AU82,"") -> 45 | AW82: 11 | AX82: =IF(AW82<>AW81,AW82,"") ->  | AZ82: 77 | BA82: 1 | BB82: 20 | BC82: 33 | BD82: 45 | BE82: 57 | BF82: 10
B83: 79 | C83: 2014 | D83: 7 | E83: 22 | F83: 14 | G83: 18 | H83: 22 | I83: 31 | J83: 47 | K83: 15 | L83: 1 | M83: 4 | N83: 1 | O83: 8 | P83: 2 | Q83: 2 | R83: 3 | S83: 1 | T83: 4 | U83: 7 | V83: 1 | W83: 5 | Y83: 78 | Z83: 0 | AA83: 3 | AB83: 4 | AC83: 0 | AD83: 1 | AE83: 2 | AF83: 5 | AG83: 0 | AH83: 3 | AI83: 9 | AJ83: 1 | AK83: 2 | AM83: 3 | AN83: 40 | AO83: 12 | AP83: 50 | AQ83: 39 | AR83: 12 | AS83: X | AU83: 46 | AV83: =IF(AU83<>AU82,AU83,"") -> 46 | AW83: 11 | AX83: =IF(AW83<>AW82,AW83,"") ->  | AZ83: 78 | BA83: 7 | BB83: 10 | BC83: 15 | BD83: 51 | BE83: 54 | BF83: 10
B84: 80 | C84: 2014 | D84: 7 | E84: 25 | F84: 22 | G84: 29 | H84: 33 | I84: 41 | J84: 68 | K84: 12 | L84: 2 | M84: 2 | N84: 2 | O84: 9 | P84: 3 | Q84: 3 | R84: 4 | S84: 1 | T84: 6 | U84: 8 | V84: 1 | W84: 2 | Y84: 79 | Z84: 0 | AA84: 3 | AB84: 0 | AC84: 0 | AD84: 5 | AE84: 8 | AF84: 6 | AG84: 0 | AH84: 6 | AI84: 9 | AJ84: 0 | AK84: 7 | AM84: 3 | AN84: 0 | AO84: 58 | AP84: 60 | AQ84: 69 | AR84: 7 | AU84: 46 | AV84: =IF(AU84<>AU83,AU84,"") ->  | AW84: 11 | AX84: =IF(AW84<>AW83,AW84,"") ->  | AZ84: 79 | BA84: 4 | BB84: 24 | BC84: 59 | BD84: 68 | BE84: 73 | BF84: 7
B85: 81 | C85: 2014 | D85: 7 | E85: 29 | F85: 2 | G85: 8 | H85: 16 | I85: 43 | J85: 74 | K85: 1 | L85: 0 | M85: 2 | N85: 0 | O85: 8 | P85: 1 | Q85: 6 | R85: 4 | S85: 3 | T85: 7 | U85: 4 | V85: 0 | W85: 1 | Y85: 80 | Z85: 1 | AA85: 4 | AB85: 2 | AC85: 5 | AD85: 3 | AE85: 2 | AF85: 3 | AG85: 5 | AH85: 7 | AI85: 8 | AJ85: 0 | AK85: 1 | AM85: 14 | AN85: 25 | AO85: 32 | AP85: 35 | AQ85: 78 | AR85: 1 | AU85: 46 | AV85: =IF(AU85<>AU84,AU85,"") ->  | AW85: 11 | AX85: =IF(AW85<>AW84,AW85,"") ->  | AZ85: 80 | BA85: 5 | BB85: 14 | BC85: 30 | BD85: 59 | BE85: 62 | BF85: 7
B86: 82 | C86: 2014 | D86: 8 | E86: 1 | F86: 13 | G86: 29 | H86: 34 | I86: 37 | J86: 72 | K86: 6 | L86: 1 | M86: 3 | N86: 2 | O86: 9 | P86: 3 | Q86: 4 | R86: 3 | S86: 7 | T86: 7 | U86: 2 | V86: 0 | W86: 6 | Y86: 81 | Z86: 2 | AA86: 3 | AB86: 3 | AC86: 8 | AD86: 5 | AE86: 5 | AF86: 6 | AG86: 1 | AH86: 7 | AI86: 8 | AJ86: 0 | AK86: 7 | AM86: 23 | AN86: 38 | AO86: 55 | AP86: 61 | AQ86: 78 | AR86: 7 | AU86: 46 | AV86: =IF(AU86<>AU85,AU86,"") ->  | AW86: 11 | AX86: =IF(AW86<>AW85,AW86,"") ->  | AZ86: 81 | BA86: 2 | BB86: 10 | BC86: 38 | BD86: 55 | BE86: 74 | BF86: 7
B87: 83 | C87: 2014 | D87: 8 | E87: 5 | F87: 25 | G87: 28 | H87: 36 | I87: 45 | J87: 53 | K87: 6 | L87: 2 | M87: 5 | N87: 2 | O87: 8 | P87: 3 | Q87: 6 | R87: 4 | S87: 5 | T87: 5 | U87: 3 | V87: 0 | W87: 6 | Y87: 82 | Z87: 0 | AA87: 0 | AB87: 2 | AC87: 9 | AD87: 2 | AE87: 4 | AF87: 6 | AG87: 2 | AH87: 4 | AI87: 4 | AJ87: 1 | AK87: 7 | AM87: 0 | AN87: 29 | AO87: 24 | AP87: 62 | AQ87: 44 | AR87: 17 | AU87: 46 | AV87: =IF(AU87<>AU86,AU87,"") ->  | AW87: 11 | AX87: =IF(AW87<>AW86,AW87,"") ->  | AZ87: 82 | BA87: 3 | BB87: 24 | BC87: 54 | BD87: 58 | BE87: 64 | BF87: 1
B88: 84 | C88: 2014 | D88: 8 | E88: 8 | F88: 9 | G88: 16 | H88: 61 | I88: 70 | J88: 75 | K88: 7 | L88: 0 | M88: 9 | N88: 1 | O88: 6 | P88: 6 | Q88: 1 | R88: 7 | S88: 0 | T88: 7 | U88: 5 | V88: 0 | W88: 7 | Y88: 83 | Z88: 2 | AA88: 3 | AB88: 2 | AC88: 9 | AD88: 6 | AE88: 2 | AF88: 5 | AG88: 8 | AH88: 4 | AI88: 4 | AJ88: 0 | AK88: 8 | AM88: 23 | AN88: 29 | AO88: 62 | AP88: 58 | AQ88: 44 | AR88: 8 | AS88: X | AU88: 47 | AV88: =IF(AU88<>AU87,AU88,"") -> 47 | AW88: 11 | AX88: =IF(AW88<>AW87,AW88,"") ->  | AZ88: 83 | BA88: 1 | BB88: 40 | BC88: 54 | BD88: 55 | BE88: 70 | BF88: 4
B89: 85 | C89: 2014 | D89: 8 | E89: 12 | F89: 32 | G89: 53 | H89: 60 | I89: 63 | J89: 68 | K89: 6 | L89: 3 | M89: 2 | N89: 5 | O89: 3 | P89: 6 | Q89: 0 | R89: 6 | S89: 3 | T89: 6 | U89: 8 | V89: 0 | W89: 6 | Y89: 84 | Z89: 0 | AA89: 4 | AB89: 5 | AC89: 9 | AD89: 3 | AE89: 0 | AF89: 6 | AG89: 0 | AH89: 4 | AI89: 2 | AJ89: 1 | AK89: 4 | AM89: 4 | AN89: 59 | AO89: 30 | AP89: 60 | AQ89: 42 | AR89: 14 | AS89: X | AU89: 48 | AV89: =IF(AU89<>AU88,AU89,"") -> 48 | AW89: 11 | AX89: =IF(AW89<>AW88,AW89,"") ->  | AZ89: 84 | BA89: 3 | BB89: 12 | BC89: 25 | BD89: 29 | BE89: 33 | BF89: 9
B90: 86 | C90: 2014 | D90: 8 | E90: 15 | F90: 16 | G90: 19 | H90: 28 | I90: 29 | J90: 68 | K90: 9 | L90: 1 | M90: 6 | N90: 1 | O90: 9 | P90: 2 | Q90: 8 | R90: 2 | S90: 9 | T90: 6 | U90: 8 | V90: 0 | W90: 9 | Y90: 85 | Z90: 1 | AA90: 4 | AB90: 2 | AC90: 8 | AD90: 1 | AE90: 8 | AF90: 3 | AG90: 7 | AH90: 3 | AI90: 9 | AJ90: 1 | AK90: 8 | AM90: 14 | AN90: 28 | AO90: 18 | AP90: 37 | AQ90: 39 | AR90: 18 | AU90: 48 | AV90: =IF(AU90<>AU89,AU90,"") ->  | AW90: 11 | AX90: =IF(AW90<>AW89,AW90,"") ->  | AZ90: 85 | BA90: 12 | BB90: 20 | BC90: 25 | BD90: 41 | BE90: 73 | BF90: 8
B91: 87 | C91: 2014 | D91: 8 | E91: 19 | F91: 22 | G91: 39 | H91: 56 | I91: 67 | J91: 71 | K91: 15 | L91: 2 | M91: 2 | N91: 3 | O91: 9 | P91: 5 | Q91: 6 | R91: 6 | S91: 7 | T91: 7 | U91: 1 | V91: 1 | W91: 5 | Y91: 86 | Z91: 2 | AA91: 3 | AB91: 2 | AC91: 0 | AD91: 3 | AE91: 8 | AF91: 6 | AG91: 6 | AH91: 6 | AI91: 7 | AJ91: 1 | AK91: 9 | AM91: 23 | AN91: 20 | AO91: 38 | AP91: 66 | AQ91: 67 | AR91: 19 | AU91: 48 | AV91: =IF(AU91<>AU90,AU91,"") ->  | AW91: 11 | AX91: =IF(AW91<>AW90,AW91,"") ->  | AZ91: 86 | BA91: 20 | BB91: 25 | BC91: 32 | BD91: 51 | BE91: 57 | BF91: 12
B92: 88 | C92: 2014 | D92: 8 | E92: 22 | F92: 5 | G92: 31 | H92: 34 | I92: 41 | J92: 74 | K92: 3 | L92: 0 | M92: 5 | N92: 3 | O92: 1 | P92: 3 | Q92: 4 | R92: 4 | S92: 1 | T92: 7 | U92: 4 | V92: 0 | W92: 3 | Y92: 87 | Z92: 0 | AA92: 7 | AB92: 2 | AC92: 8 | AD92: 3 | AE92: 4 | AF92: 5 | AG92: 0 | AH92: 7 | AI92: 4 | AJ92: 0 | AK92: 4 | AM92: 7 | AN92: 28 | AO92: 34 | AP92: 50 | AQ92: 74 | AR92: 4 | AS92: X | AT92: XX | AU92: 49 | AV92: =IF(AU92<>AU91,AU92,"") -> 49 | AW92: 12 | AX92: =IF(AW92<>AW91,AW92,"") -> 12 | AZ92: 87 | BA92: 13 | BB92: 15 | BC92: 24 | BD92: 40 | BE92: 43 | BF92: 10
B93: 89 | C93: 2014 | D93: 8 | E93: 26 | F93: 29 | G93: 31 | H93: 51 | I93: 60 | J93: 64 | K93: 1 | L93: 2 | M93: 9 | N93: 3 | O93: 1 | P93: 5 | Q93: 1 | R93: 6 | S93: 0 | T93: 6 | U93: 4 | V93: 0 | W93: 1 | Y93: 88 | Z93: 0 | AA93: 2 | AB93: 2 | AC93: 9 | AD93: 2 | AE93: 1 | AF93: 2 | AG93: 1 | AH93: 6 | AI93: 3 | AJ93: 0 | AK93: 9 | AM93: 2 | AN93: 29 | AO93: 21 | AP93: 21 | AQ93: 63 | AR93: 9 | AS93: X | AU93: 50 | AV93: =IF(AU93<>AU92,AU93,"") -> 50 | AW93: 12 | AX93: =IF(AW93<>AW92,AW93,"") ->  | AZ93: 88 | BA93: 2 | BB93: 25 | BC93: 38 | BD93: 49 | BE93: 64 | BF93: 5
B94: 90 | C94: 2014 | D94: 8 | E94: 29 | F94: 3 | G94: 26 | H94: 45 | I94: 58 | J94: 73 | K94: 12 | L94: 0 | M94: 3 | N94: 2 | O94: 6 | P94: 4 | Q94: 5 | R94: 5 | S94: 8 | T94: 7 | U94: 3 | V94: 1 | W94: 2 | Y94: 89 | Z94: 2 | AA94: 4 | AB94: 2 | AC94: 4 | AD94: 5 | AE94: 8 | AF94: 6 | AG94: 0 | AH94: 7 | AI94: 2 | AJ94: 1 | AK94: 1 | AM94: 24 | AN94: 24 | AO94: 58 | AP94: 60 | AQ94: 72 | AR94: 11 | AS94: X | AU94: 51 | AV94: =IF(AU94<>AU93,AU94,"") -> 51 | AW94: 12 | AX94: =IF(AW94<>AW93,AW94,"") ->  | AZ94: 89 | BA94: 10 | BB94: 22 | BC94: 30 | BD94: 51 | BE94: 70 | BF94: 5
B95: 91 | C95: 2014 | D95: 9 | E95: 2 | F95: 1 | G95: 8 | H95: 54 | I95: 69 | J95: 72 | K95: 1 | L95: 0 | M95: 1 | N95: 0 | O95: 8 | P95: 5 | Q95: 4 | R95: 6 | S95: 9 | T95: 7 | U95: 2 | V95: 0 | W95: 1 | Y95: 90 | Z95: 1 | AA95: 4 | AB95: 0 | AC95: 1 | AD95: 2 | AE95: 5 | AF95: 4 | AG95: 6 | AH95: 7 | AI95: 3 | AJ95: 0 | AK95: 8 | AM95: 14 | AN95: 1 | AO95: 25 | AP95: 46 | AQ95: 73 | AR95: 8 | AS95: X | AU95: 52 | AV95: =IF(AU95<>AU94,AU95,"") -> 52 | AW95: 12 | AX95: =IF(AW95<>AW94,AW95,"") ->  | AZ95: 90 | BA95: 4 | BB95: 15 | BC95: 24 | BD95: 48 | BE95: 64 | BF95: 7
B96: 92 | C96: 2014 | D96: 9 | E96: 5 | F96: 7 | G96: 12 | H96: 20 | I96: 24 | J96: 59 | K96: 7 | L96: 0 | M96: 7 | N96: 1 | O96: 2 | P96: 2 | Q96: 0 | R96: 2 | S96: 4 | T96: 5 | U96: 9 | V96: 0 | W96: 7 | Y96: 91 | Z96: 1 | AA96: 1 | AB96: 2 | AC96: 1 | AD96: 6 | AE96: 4 | AF96: 2 | AG96: 1 | AH96: 5 | AI96: 7 | AJ96: 0 | AK96: 5 | AM96: 11 | AN96: 21 | AO96: 64 | AP96: 21 | AQ96: 57 | AR96: 5 | AS96: X | AU96: 53 | AV96: =IF(AU96<>AU95,AU96,"") -> 53 | AW96: 12 | AX96: =IF(AW96<>AW95,AW96,"") ->  | AZ96: 91 | BA96: 11 | BB96: 20 | BC96: 22 | BD96: 41 | BE96: 44 | BF96: 7
B97: 93 | C97: 2014 | D97: 9 | E97: 9 | F97: 25 | G97: 34 | H97: 55 | I97: 70 | J97: 71 | K97: 1 | L97: 2 | M97: 5 | N97: 3 | O97: 4 | P97: 5 | Q97: 5 | R97: 7 | S97: 0 | T97: 7 | U97: 1 | V97: 0 | W97: 1 | Y97: 92 | Z97: 2 | AA97: 1 | AB97: 2 | AC97: 0 | AD97: 5 | AE97: 5 | AF97: 5 | AG97: 1 | AH97: 7 | AI97: 2 | AJ97: 0 | AK97: 0 | AM97: 21 | AN97: 20 | AO97: 55 | AP97: 51 | AQ97: 72 | AR97: 0 | AU97: 53 | AV97: =IF(AU97<>AU96,AU97,"") ->  | AW97: 12 | AX97: =IF(AW97<>AW96,AW97,"") ->  | AZ97: 92 | BA97: 3 | BB97: 20 | BC97: 52 | BD97: 56 | BE97: 73 | BF97: 3
B98: 94 | C98: 2014 | D98: 9 | E98: 12 | F98: 18 | G98: 28 | H98: 33 | I98: 36 | J98: 42 | K98: 7 | L98: 1 | M98: 8 | N98: 2 | O98: 8 | P98: 3 | Q98: 3 | R98: 3 | S98: 6 | T98: 4 | U98: 2 | V98: 0 | W98: 7 | Y98: 93 | Z98: 1 | AA98: 4 | AB98: 0 | AC98: 0 | AD98: 5 | AE98: 1 | AF98: 6 | AG98: 2 | AH98: 6 | AI98: 4 | AJ98: 0 | AK98: 7 | AM98: 14 | AN98: 0 | AO98: 51 | AP98: 62 | AQ98: 64 | AR98: 7 | AU98: 53 | AV98: =IF(AU98<>AU97,AU98,"") ->  | AW98: 12 | AX98: =IF(AW98<>AW97,AW98,"") ->  | AZ98: 93 | BA98: 3 | BB98: 28 | BC98: 34 | BD98: 48 | BE98: 72 | BF98: 14
B99: 95 | C99: 2014 | D99: 9 | E99: 16 | F99: 25 | G99: 45 | H99: 51 | I99: 53 | J99: 73 | K99: 2 | L99: 2 | M99: 5 | N99: 4 | O99: 5 | P99: 5 | Q99: 1 | R99: 5 | S99: 3 | T99: 7 | U99: 3 | V99: 0 | W99: 2 | Y99: 94 | Z99: 0 | AA99: 0 | AB99: 2 | AC99: 2 | AD99: 4 | AE99: 4 | AF99: 5 | AG99: 0 | AH99: 6 | AI99: 3 | AJ99: 0 | AK99: 3 | AM99: 0 | AN99: 22 | AO99: 44 | AP99: 50 | AQ99: 63 | AR99: 3 | AU99: 53 | AV99: =IF(AU99<>AU98,AU99,"") ->  | AW99: 12 | AX99: =IF(AW99<>AW98,AW99,"") ->  | AZ99: 94 | BA99: 4 | BB99: 21 | BC99: 24 | BD99: 57 | BE99: 70 | BF99: 7
B100: 96 | C100: 2014 | D100: 9 | E100: 19 | F100: 16 | G100: 25 | H100: 27 | I100: 29 | J100: 34 | K100: 2 | L100: 1 | M100: 6 | N100: 2 | O100: 5 | P100: 2 | Q100: 7 | R100: 2 | S100: 9 | T100: 3 | U100: 4 | V100: 0 | W100: 2 | Y100: 95 | Z100: 1 | AA100: 0 | AB100: 2 | AC100: 0 | AD100: 2 | AE100: 8 | AF100: 3 | AG100: 0 | AH100: 7 | AI100: 4 | AJ100: 0 | AK100: 1 | AM100: 10 | AN100: 20 | AO100: 28 | AP100: 30 | AQ100: 74 | AR100: 1 | AS100: X | AT100: XX | AU100: 54 | AV100: =IF(AU100<>AU99,AU100,"") -> 54 | AW100: 13 | AX100: =IF(AW100<>AW99,AW100,"") -> 13 | AZ100: 95 | BA100: 4 | BB100: 29 | BC100: 39 | BD100: 57 | BE100: 60 | BF100: 10
B101: 97 | C101: 2014 | D101: 9 | E101: 23 | F101: 21 | G101: 24 | H101: 25 | I101: 40 | J101: 43 | K101: 12 | L101: 2 | M101: 1 | N101: 2 | O101: 4 | P101: 2 | Q101: 5 | R101: 4 | S101: 0 | T101: 4 | U101: 3 | V101: 1 | W101: 2 | Y101: 96 | Z101: 0 | AA101: 3 | AB101: 2 | AC101: 0 | AD101: 3 | AE101: 8 | AF101: 5 | AG101: 1 | AH101: 6 | AI101: 2 | AJ101: 0 | AK101: 3 | AM101: 3 | AN101: 20 | AO101: 38 | AP101: 51 | AQ101: 62 | AR101: 3 | AS101: X | AT101: XX | AU101: 55 | AV101: =IF(AU101<>AU100,AU101,"") -> 55 | AW101: 14 | AX101: =IF(AW101<>AW100,AW101,"") -> 14 | AZ101: 96 | BA101: 4 | BB101: 22 | BC101: 45 | BD101: 47 | BE101: 64 | BF101: 11
B102: 98 | C102: 2014 | D102: 9 | E102: 26 | F102: 17 | G102: 26 | H102: 35 | I102: 46 | J102: 62 | K102: 9 | L102: 1 | M102: 7 | N102: 2 | O102: 6 | P102: 3 | Q102: 5 | R102: 4 | S102: 6 | T102: 6 | U102: 2 | V102: 0 | W102: 9 | Y102: 97 | Z102: 0 | AA102: 2 | AB102: 5 | AC102: 1 | AD102: 1 | AE102: 5 | AF102: 5 | AG102: 5 | AH102: 6 | AI102: 4 | AJ102: 0 | AK102: 0 | AM102: 2 | AN102: 51 | AO102: 15 | AP102: 55 | AQ102: 64 | AR102: 0 | AU102: 55 | AV102: =IF(AU102<>AU101,AU102,"") ->  | AW102: 14 | AX102: =IF(AW102<>AW101,AW102,"") ->  | AZ102: 97 | BA102: 12 | BB102: 28 | BC102: 41 | BD102: 60 | BE102: 62 | BF102: 3
B103: 99 | C103: 2014 | D103: 9 | E103: 30 | F103: 3 | G103: 16 | H103: 52 | I103: 54 | J103: 61 | K103: 6 | L103: 0 | M103: 3 | N103: 1 | O103: 6 | P103: 5 | Q103: 2 | R103: 5 | S103: 4 | T103: 6 | U103: 1 | V103: 0 | W103: 6 | Y103: 98 | Z103: 0 | AA103: 7 | AB103: 1 | AC103: 8 | AD103: 5 | AE103: 4 | AF103: 4 | AG103: 6 | AH103: 6 | AI103: 2 | AJ103: 1 | AK103: 4 | AM103: 7 | AN103: 18 | AO103: 54 | AP103: 46 | AQ103: 62 | AR103: 14 | AS103: X | AU103: 56 | AV103: =IF(AU103<>AU102,AU103,"") -> 56 | AW103: 14 | AX103: =IF(AW103<>AW102,AW103,"") ->  | AZ103: 98 | BA103: 1 | BB103: 28 | BC103: 58 | BD103: 59 | BE103: 73 | BF103: 7
B104: 100 | C104: 2014 | D104: 10 | E104: 3 | F104: 3 | G104: 20 | H104: 34 | I104: 58 | J104: 67 | K104: 6 | L104: 0 | M104: 3 | N104: 2 | O104: 0 | P104: 3 | Q104: 4 | R104: 5 | S104: 8 | T104: 6 | U104: 7 | V104: 0 | W104: 6 | Y104: 99 | Z104: 1 | AA104: 4 | AB104: 3 | AC104: 1 | AD104: 1 | AE104: 1 | AF104: 4 | AG104: 5 | AH104: 6 | AI104: 7 | AJ104: 1 | AK104: 3 | AM104: 14 | AN104: 31 | AO104: 11 | AP104: 45 | AQ104: 67 | AR104: 13 | AS104: X | AU104: 57 | AV104: =IF(AU104<>AU103,AU104,"") -> 57 | AW104: 14 | AX104: =IF(AW104<>AW103,AW104,"") ->  | AZ104: 99 | BA104: 3 | BB104: 21 | BC104: 37 | BD104: 39 | BE104: 72 | BF104: 4
B105: 101 | C105: 2014 | D105: 10 | E105: 7 | F105: 16 | G105: 29 | H105: 46 | I105: 48 | J105: 55 | K105: 2 | L105: 1 | M105: 6 | N105: 2 | O105: 9 | P105: 4 | Q105: 6 | R105: 4 | S105: 8 | T105: 5 | U105: 5 | V105: 0 | W105: 2 | Y105: 100 | Z105: 0 | AA105: 3 | AB105: 3 | AC105: 5 | AD105: 2 | AE105: 4 | AF105: 4 | AG105: 7 | AH105: 7 | AI105: 3 | AJ105: 0 | AK105: 1 | AM105: 3 | AN105: 35 | AO105: 24 | AP105: 47 | AQ105: 73 | AR105: 1 | AS105: X | AU105: 58 | AV105: =IF(AU105<>AU104,AU105,"") -> 58 | AW105: 14 | AX105: =IF(AW105<>AW104,AW105,"") ->  | AZ105: 100 | BA105: 2 | BB105: 30 | BC105: 34 | BD105: 48 | BE105: 64 | BF105: 5
B106: 102 | C106: 2014 | D106: 10 | E106: 10 | F106: 2 | G106: 32 | H106: 35 | I106: 50 | J106: 59 | K106: 3 | L106: 0 | M106: 2 | N106: 3 | O106: 2 | P106: 3 | Q106: 5 | R106: 5 | S106: 0 | T106: 5 | U106: 9 | V106: 0 | W106: 3 | Y106: 101 | Z106: 0 | AA106: 4 | AB106: 2 | AC106: 8 | AD106: 2 | AE106: 9 | AF106: 6 | AG106: 8 | AH106: 6 | AI106: 0 | AJ106: 0 | AK106: 8 | AM106: 4 | AN106: 28 | AO106: 29 | AP106: 68 | AQ106: 60 | AR106: 8 | AS106: X | AU106: 59 | AV106: =IF(AU106<>AU105,AU106,"") -> 59 | AW106: 14 | AX106: =IF(AW106<>AW105,AW106,"") ->  | AZ106: 101 | BA106: 14 | BB106: 22 | BC106: 34 | BD106: 46 | BE106: 64 | BF106: 1
B107: 103 | C107: 2014 | D107: 10 | E107: 14 | F107: 11 | G107: 37 | H107: 46 | I107: 64 | J107: 68 | K107: 15 | L107: 1 | M107: 1 | N107: 3 | O107: 7 | P107: 4 | Q107: 6 | R107: 6 | S107: 4 | T107: 6 | U107: 8 | V107: 1 | W107: 5 | Y107: 102 | Z107: 1 | AA107: 4 | AB107: 3 | AC107: 4 | AD107: 1 | AE107: 2 | AF107: 4 | AG107: 8 | AH107: 6 | AI107: 2 | AJ107: 0 | AK107: 8 | AM107: 14 | AN107: 34 | AO107: 12 | AP107: 48 | AQ107: 62 | AR107: 8 | AS107: X | AU107: 60 | AV107: =IF(AU107<>AU106,AU107,"") -> 60 | AW107: 14 | AX107: =IF(AW107<>AW106,AW107,"") ->  | AZ107: 102 | BA107: 3 | BB107: 25 | BC107: 58 | BD107: 67 | BE107: 68 | BF107: 14
B108: 104 | C108: 2014 | D108: 10 | E108: 17 | F108: 21 | G108: 31 | H108: 43 | I108: 56 | J108: 60 | K108: 12 | L108: 2 | M108: 1 | N108: 3 | O108: 1 | P108: 4 | Q108: 3 | R108: 5 | S108: 6 | T108: 6 | U108: 0 | V108: 1 | W108: 2 | Y108: 103 | Z108: 0 | AA108: 3 | AB108: 2 | AC108: 0 | AD108: 5 | AE108: 5 | AF108: 5 | AG108: 9 | AH108: 6 | AI108: 3 | AJ108: 0 | AK108: 5 | AM108: 3 | AN108: 20 | AO108: 55 | AP108: 59 | AQ108: 63 | AR108: 5 | AS108: X | AT108: XX | AU108: 61 | AV108: =IF(AU108<>AU107,AU108,"") -> 61 | AW108: 15 | AX108: =IF(AW108<>AW107,AW108,"") -> 15 | AZ108: 103 | BA108: 4 | BB108: 8 | BC108: 19 | BD108: 59 | BE108: 64 | BF108: 3
B109: 105 | C109: 2014 | D109: 10 | E109: 21 | F109: 5 | G109: 35 | H109: 37 | I109: 41 | J109: 66 | K109: 11 | L109: 0 | M109: 5 | N109: 3 | O109: 5 | P109: 3 | Q109: 7 | R109: 4 | S109: 1 | T109: 6 | U109: 6 | V109: 1 | W109: 1 | Y109: 104 | Z109: 0 | AA109: 3 | AB109: 2 | AC109: 5 | AD109: 5 | AE109: 5 | AF109: 5 | AG109: 8 | AH109: 6 | AI109: 3 | AJ109: 1 | AK109: 3 | AM109: 3 | AN109: 25 | AO109: 55 | AP109: 58 | AQ109: 63 | AR109: 13 | AS109: X | AT109: XX | AU109: 62 | AV109: =IF(AU109<>AU108,AU109,"") -> 62 | AW109: 16 | AX109: =IF(AW109<>AW108,AW109,"") -> 16 | AZ109: 104
B110: 106 | C110: 2014 | D110: 10 | E110: 24 | F110: 2 | G110: 14 | H110: 21 | I110: 28 | J110: 55 | K110: 3 | L110: 0 | M110: 2 | N110: 1 | O110: 4 | P110: 2 | Q110: 1 | R110: 2 | S110: 8 | T110: 5 | U110: 5 | V110: 0 | W110: 3 | Y110: 105 | Z110: 0 | AA110: 3 | AB110: 2 | AC110: 9 | AD110: 6 | AE110: 8 | AF110: 4 | AG110: 5 | AH110: 7 | AI110: 4 | AJ110: 0 | AK110: 9 | AM110: 3 | AN110: 29 | AO110: 68 | AP110: 45 | AQ110: 74 | AR110: 9 | AS110: X | AU110: 63 | AV110: =IF(AU110<>AU109,AU110,"") -> 63 | AW110: 16 | AX110: =IF(AW110<>AW109,AW110,"") ->  | AZ110: 105
B111: 107 | C111: 2014 | D111: 10 | E111: 28 | F111: 3 | G111: 50 | H111: 57 | I111: 58 | J111: 60 | K111: 11 | L111: 0 | M111: 3 | N111: 5 | O111: 0 | P111: 5 | Q111: 7 | R111: 5 | S111: 8 | T111: 6 | U111: 0 | V111: 1 | W111: 1 | Y111: 106 | Z111: 0 | AA111: 1 | AB111: 0 | AC111: 5 | AD111: 4 | AE111: 5 | AF111: 4 | AG111: 1 | AH111: 7 | AI111: 6 | AJ111: 0 | AK111: 1 | AM111: 1 | AN111: 5 | AO111: 45 | AP111: 41 | AQ111: 76 | AR111: 1 | AU111: 63 | AV111: =IF(AU111<>AU110,AU111,"") ->  | AW111: 16 | AX111: =IF(AW111<>AW110,AW111,"") ->  | AZ111: 106
B112: 108 | C112: 2014 | D112: 10 | E112: 31 | F112: 11 | G112: 29 | H112: 36 | I112: 58 | J112: 67 | K112: 15 | L112: 1 | M112: 1 | N112: 2 | O112: 9 | P112: 3 | Q112: 6 | R112: 5 | S112: 8 | T112: 6 | U112: 7 | V112: 1 | W112: 5 | Y112: 107 | Z112: 0 | AA112: 8 | AB112: 2 | AC112: 8 | AD112: 1 | AE112: 7 | AF112: 7 | AG112: 6 | AH112: 6 | AI112: 8 | AJ112: 1 | AK112: 8 | AM112: 8 | AN112: 28 | AO112: 17 | AP112: 76 | AQ112: 68 | AR112: 18 | AU112: 63 | AV112: =IF(AU112<>AU111,AU112,"") ->  | AW112: 16 | AX112: =IF(AW112<>AW111,AW112,"") ->  | AZ112: 107
B113: 109 | C113: 2014 | D113: 11 | E113: 4 | F113: 9 | G113: 15 | H113: 24 | I113: 39 | J113: 41 | K113: 1 | L113: 0 | M113: 9 | N113: 1 | O113: 5 | P113: 2 | Q113: 4 | R113: 3 | S113: 9 | T113: 4 | U113: 1 | V113: 0 | W113: 1 | Y113: 108 | Z113: 0 | AA113: 2 | AB113: 4 | AC113: 0 | AD113: 2 | AE113: 4 | AF113: 6 | AG113: 7 | AH113: 6 | AI113: 9 | AJ113: 0 | AK113: 0 | AM113: 2 | AN113: 40 | AO113: 24 | AP113: 67 | AQ113: 69 | AR113: 0 | AU113: 63 | AV113: =IF(AU113<>AU112,AU113,"") ->  | AW113: 16 | AX113: =IF(AW113<>AW112,AW113,"") ->  | AZ113: 108
B114: 110 | C114: 2014 | D114: 11 | E114: 7 | F114: 31 | G114: 35 | H114: 41 | I114: 65 | J114: 66 | K114: 5 | L114: 3 | M114: 1 | N114: 3 | O114: 5 | P114: 4 | Q114: 1 | R114: 6 | S114: 5 | T114: 6 | U114: 6 | V114: 0 | W114: 5 | Y114: 109 | Z114: 0 | AA114: 0 | AB114: 2 | AC114: 9 | AD114: 5 | AE114: 7 | AF114: 7 | AG114: 1 | AH114: 4 | AI114: 3 | AJ114: 1 | AK114: 7 | AM114: 0 | AN114: 29 | AO114: 57 | AP114: 71 | AQ114: 43 | AR114: 17 | AU114: 63 | AV114: =IF(AU114<>AU113,AU114,"") ->  | AW114: 16 | AX114: =IF(AW114<>AW113,AW114,"") ->  | AZ114: 109
B115: 111 | C115: 2014 | D115: 11 | E115: 11 | F115: 23 | G115: 25 | H115: 28 | I115: 30 | J115: 75 | K115: 11 | L115: 2 | M115: 3 | N115: 2 | O115: 5 | P115: 2 | Q115: 8 | R115: 3 | S115: 0 | T115: 7 | U115: 5 | V115: 1 | W115: 1 | Y115: 110 | Z115: 0 | AA115: 5 | AB115: 2 | AC115: 1 | AD115: 2 | AE115: 1 | AF115: 4 | AG115: 7 | AH115: 7 | AI115: 4 | AJ115: 1 | AK115: 8 | AM115: 5 | AN115: 21 | AO115: 21 | AP115: 47 | AQ115: 74 | AR115: 18 | AU115: 63 | AV115: =IF(AU115<>AU114,AU115,"") ->  | AW115: 16 | AX115: =IF(AW115<>AW114,AW115,"") ->  | AZ115: 110
B116: 112 | C116: 2014 | D116: 11 | E116: 14 | F116: 3 | G116: 49 | H116: 61 | I116: 62 | J116: 68 | K116: 15 | L116: 0 | M116: 3 | N116: 4 | O116: 9 | P116: 6 | Q116: 1 | R116: 6 | S116: 2 | T116: 6 | U116: 8 | V116: 1 | W116: 5 | Y116: 111 | Z116: 1 | AA116: 3 | AB116: 1 | AC116: 8 | AD116: 2 | AE116: 9 | AF116: 5 | AG116: 8 | AH116: 7 | AI116: 0 | AJ116: 0 | AK116: 1 | AM116: 13 | AN116: 18 | AO116: 29 | AP116: 58 | AQ116: 70 | AR116: 1 | AS116: X | AT116: XX | AU116: 64 | AV116: =IF(AU116<>AU115,AU116,"") -> 64 | AW116: 17 | AX116: =IF(AW116<>AW115,AW116,"") -> 17 | AZ116: 111
B117: 113 | C117: 2014 | D117: 11 | E117: 18 | F117: 37 | G117: 39 | H117: 53 | I117: 68 | J117: 75 | K117: 6 | L117: 3 | M117: 7 | N117: 3 | O117: 9 | P117: 5 | Q117: 3 | R117: 6 | S117: 8 | T117: 7 | U117: 5 | V117: 0 | W117: 6 | Y117: 112 | Z117: 0 | AA117: 0 | AB117: 1 | AC117: 1 | AD117: 1 | AE117: 5 | AF117: 4 | AG117: 1 | AH117: 4 | AI117: 2 | AJ117: 0 | AK117: 1 | AM117: 0 | AN117: 11 | AO117: 15 | AP117: 41 | AQ117: 42 | AR117: 1 | AU117: 64 | AV117: =IF(AU117<>AU116,AU117,"") ->  | AW117: 17 | AX117: =IF(AW117<>AW116,AW117,"") ->  | AZ117: 112
B118: 114 | C118: 2014 | D118: 11 | E118: 21 | F118: 3 | G118: 12 | H118: 35 | I118: 37 | J118: 63 | K118: 15 | L118: 0 | M118: 3 | N118: 1 | O118: 2 | P118: 3 | Q118: 5 | R118: 3 | S118: 7 | T118: 6 | U118: 3 | V118: 1 | W118: 5 | Y118: 113 | Z118: 1 | AA118: 3 | AB118: 2 | AC118: 9 | AD118: 6 | AE118: 2 | AF118: 6 | AG118: 0 | AH118: 6 | AI118: 4 | AJ118: 1 | AK118: 7 | AM118: 13 | AN118: 29 | AO118: 62 | AP118: 60 | AQ118: 64 | AR118: 17 | AU118: 64 | AV118: =IF(AU118<>AU117,AU118,"") ->  | AW118: 17 | AX118: =IF(AW118<>AW117,AW118,"") ->  | AZ118: 113
B119: 115 | C119: 2014 | D119: 11 | E119: 25 | F119: 10 | G119: 11 | H119: 29 | I119: 47 | J119: 56 | K119: 4 | L119: 1 | M119: 0 | N119: 1 | O119: 1 | P119: 2 | Q119: 9 | R119: 4 | S119: 7 | T119: 5 | U119: 6 | V119: 0 | W119: 4 | Y119: 114 | Z119: 1 | AA119: 3 | AB119: 2 | AC119: 9 | AD119: 5 | AE119: 2 | AF119: 5 | AG119: 1 | AH119: 4 | AI119: 8 | AJ119: 0 | AK119: 8 | AM119: 13 | AN119: 29 | AO119: 52 | AP119: 51 | AQ119: 48 | AR119: 8 | AS119: X | AU119: 65 | AV119: =IF(AU119<>AU118,AU119,"") -> 65 | AW119: 17 | AX119: =IF(AW119<>AW118,AW119,"") ->  | AZ119: 114
B120: 116 | C120: 2014 | D120: 11 | E120: 28 | F120: 8 | G120: 26 | H120: 29 | I120: 36 | J120: 47 | K120: 10 | L120: 0 | M120: 8 | N120: 2 | O120: 6 | P120: 2 | Q120: 9 | R120: 3 | S120: 6 | T120: 4 | U120: 7 | V120: 1 | W120: 0 | Y120: 115 | Z120: 0 | AA120: 3 | AB120: 2 | AC120: 0 | AD120: 6 | AE120: 1 | AF120: 4 | AG120: 2 | AH120: 7 | AI120: 0 | AJ120: 0 | AK120: 1 | AM120: 3 | AN120: 20 | AO120: 61 | AP120: 42 | AQ120: 70 | AR120: 1 | AS120: X | AU120: 66 | AV120: =IF(AU120<>AU119,AU120,"") -> 66 | AW120: 17 | AX120: =IF(AW120<>AW119,AW120,"") ->  | AZ120: 115
B121: 117 | C121: 2014 | D121: 12 | E121: 2 | F121: 13 | G121: 18 | H121: 22 | I121: 49 | J121: 62 | K121: 11 | L121: 1 | M121: 3 | N121: 1 | O121: 8 | P121: 2 | Q121: 2 | R121: 4 | S121: 9 | T121: 6 | U121: 2 | V121: 1 | W121: 1 | Y121: 116 | Z121: 0 | AA121: 4 | AB121: 2 | AC121: 0 | AD121: 3 | AE121: 1 | AF121: 5 | AG121: 6 | AH121: 7 | AI121: 3 | AJ121: 0 | AK121: 2 | AM121: 4 | AN121: 20 | AO121: 31 | AP121: 56 | AQ121: 73 | AR121: 2 | AS121: X | AT121: XX | AU121: 67 | AV121: =IF(AU121<>AU120,AU121,"") -> 67 | AW121: 18 | AX121: =IF(AW121<>AW120,AW121,"") -> 18 | AZ121: 116
B122: 118 | C122: 2014 | D122: 12 | E122: 5 | F122: 4 | G122: 5 | H122: 11 | I122: 51 | J122: 59 | K122: 5 | L122: 0 | M122: 4 | N122: 0 | O122: 5 | P122: 1 | Q122: 1 | R122: 5 | S122: 1 | T122: 5 | U122: 9 | V122: 0 | W122: 5 | Y122: 117 | Z122: 0 | AA122: 2 | AB122: 3 | AC122: 4 | AD122: 6 | AE122: 1 | AF122: 5 | AG122: 6 | AH122: 7 | AI122: 3 | AJ122: 1 | AK122: 8 | AM122: 2 | AN122: 34 | AO122: 61 | AP122: 56 | AQ122: 73 | AR122: 18 | AU122: 67 | AV122: =IF(AU122<>AU121,AU122,"") ->  | AW122: 18 | AX122: =IF(AW122<>AW121,AW122,"") ->  | AZ122: 117
B123: 119 | C123: 2014 | D123: 12 | E123: 9 | F123: 27 | G123: 45 | H123: 49 | I123: 51 | J123: 52 | K123: 14 | L123: 2 | M123: 7 | N123: 4 | O123: 5 | P123: 4 | Q123: 9 | R123: 5 | S123: 1 | T123: 5 | U123: 2 | V123: 1 | W123: 4 | Y123: 118 | Z123: 2 | AA123: 2 | AB123: 5 | AC123: 0 | AD123: 4 | AE123: 4 | AF123: 5 | AG123: 0 | AH123: 5 | AI123: 4 | AJ123: 0 | AK123: 1 | AM123: 22 | AN123: 50 | AO123: 44 | AP123: 50 | AQ123: 54 | AR123: 1 | AS123: X | AU123: 68 | AV123: =IF(AU123<>AU122,AU123,"") -> 68 | AW123: 18 | AX123: =IF(AW123<>AW122,AW123,"") ->  | AZ123: 118
B124: 120 | C124: 2014 | D124: 12 | E124: 12 | F124: 2 | G124: 31 | H124: 46 | I124: 58 | J124: 65 | K124: 7 | L124: 0 | M124: 2 | N124: 3 | O124: 1 | P124: 4 | Q124: 6 | R124: 5 | S124: 8 | T124: 6 | U124: 5 | V124: 0 | W124: 7 | Y124: 119 | Z124: 1 | AA124: 2 | AB124: 2 | AC124: 0 | AD124: 6 | AE124: 5 | AF124: 5 | AG124: 5 | AH124: 5 | AI124: 3 | AJ124: 0 | AK124: 4 | AM124: 12 | AN124: 20 | AO124: 65 | AP124: 55 | AQ124: 53 | AR124: 4 | AS124: X | AU124: 69 | AV124: =IF(AU124<>AU123,AU124,"") -> 69 | AW124: 18 | AX124: =IF(AW124<>AW123,AW124,"") ->  | AZ124: 119
B125: 121 | C125: 2014 | D125: 12 | E125: 16 | F125: 41 | G125: 58 | H125: 68 | I125: 72 | J125: 73 | K125: 1 | L125: 4 | M125: 1 | N125: 5 | O125: 8 | P125: 6 | Q125: 8 | R125: 7 | S125: 2 | T125: 7 | U125: 3 | V125: 0 | W125: 1 | Y125: 120 | Z125: 0 | AA125: 0 | AB125: 2 | AC125: 2 | AD125: 3 | AE125: 3 | AF125: 6 | AG125: 8 | AH125: 5 | AI125: 7 | AJ125: 1 | AK125: 4 | AM125: 0 | AN125: 22 | AO125: 33 | AP125: 68 | AQ125: 57 | AR125: 14 | AU125: 69 | AV125: =IF(AU125<>AU124,AU125,"") ->  | AW125: 18 | AX125: =IF(AW125<>AW124,AW125,"") ->  | AZ125: 120
B126: 122 | C126: 2014 | D126: 12 | E126: 19 | F126: 14 | G126: 18 | H126: 58 | I126: 59 | J126: 68 | K126: 4 | L126: 1 | M126: 4 | N126: 1 | O126: 8 | P126: 5 | Q126: 8 | R126: 5 | S126: 9 | T126: 6 | U126: 8 | V126: 0 | W126: 4 | Y126: 121 | Z126: 0 | AA126: 0 | AB126: 2 | AC126: 9 | AD126: 1 | AE126: 0 | AF126: 6 | AG126: 0 | AH126: 6 | AI126: 3 | AJ126: 0 | AK126: 0 | AM126: 0 | AN126: 29 | AO126: 10 | AP126: 60 | AQ126: 63 | AR126: 0 | AU126: 69 | AV126: =IF(AU126<>AU125,AU126,"") ->  | AW126: 18 | AX126: =IF(AW126<>AW125,AW126,"") ->  | AZ126: 121
B127: 123 | C127: 2014 | D127: 12 | E127: 23 | F127: 4 | G127: 10 | H127: 31 | I127: 56 | J127: 66 | K127: 7 | L127: 0 | M127: 4 | N127: 1 | O127: 0 | P127: 3 | Q127: 1 | R127: 5 | S127: 6 | T127: 6 | U127: 6 | V127: 0 | W127: 7 | Y127: 122 | Z127: 0 | AA127: 0 | AB127: 2 | AC127: 4 | AD127: 4 | AE127: 4 | AF127: 6 | AG127: 7 | AH127: 3 | AI127: 6 | AJ127: 1 | AK127: 3 | AM127: 0 | AN127: 24 | AO127: 44 | AP127: 67 | AQ127: 36 | AR127: 13 | AU127: 69 | AV127: =IF(AU127<>AU126,AU127,"") ->  | AW127: 18 | AX127: =IF(AW127<>AW126,AW127,"") ->  | AZ127: 122
B128: 124 | C128: 2014 | D128: 12 | E128: 26 | F128: 2 | G128: 5 | H128: 10 | I128: 20 | J128: 38 | K128: 14 | L128: 0 | M128: 2 | N128: 0 | O128: 5 | P128: 1 | Q128: 0 | R128: 2 | S128: 0 | T128: 3 | U128: 8 | V128: 1 | W128: 4 | Y128: 123 | Z128: 1 | AA128: 1 | AB128: 0 | AC128: 8 | AD128: 3 | AE128: 1 | AF128: 4 | AG128: 1 | AH128: 5 | AI128: 4 | AJ128: 0 | AK128: 2 | AM128: 11 | AN128: 8 | AO128: 31 | AP128: 41 | AQ128: 54 | AR128: 2 | AS128: X | AU128: 70 | AV128: =IF(AU128<>AU127,AU128,"") -> 70 | AW128: 18 | AX128: =IF(AW128<>AW127,AW128,"") ->  | AZ128: 123
B129: 125 | C129: 2014 | D129: 12 | E129: 30 | F129: 3 | G129: 7 | H129: 44 | I129: 63 | J129: 67 | K129: 12 | L129: 0 | M129: 3 | N129: 0 | O129: 7 | P129: 4 | Q129: 4 | R129: 6 | S129: 3 | T129: 6 | U129: 7 | V129: 1 | W129: 2 | Y129: 124 | Z129: 1 | AA129: 4 | AB129: 0 | AC129: 1 | AD129: 5 | AE129: 0 | AF129: 2 | AG129: 0 | AH129: 5 | AI129: 3 | AJ129: 0 | AK129: 0 | AM129: 14 | AN129: 1 | AO129: 50 | AP129: 20 | AQ129: 53 | AR129: 0 | AU129: 70 | AV129: =IF(AU129<>AU128,AU129,"") ->  | AW129: 18 | AX129: =IF(AW129<>AW128,AW129,"") ->  | AZ129: 124
B130: 126 | C130: 2015 | D130: 1 | E130: 2 | F130: 13 | G130: 15 | H130: 35 | I130: 62 | J130: 74 | K130: 12 | L130: 1 | M130: 3 | N130: 1 | O130: 5 | P130: 3 | Q130: 5 | R130: 6 | S130: 2 | T130: 7 | U130: 4 | V130: 1 | W130: 2 | Y130: 125 | Z130: 2 | AA130: 7 | AB130: 0 | AC130: 0 | AD130: 4 | AE130: 3 | AF130: 5 | AG130: 7 | AH130: 7 | AI130: 2 | AJ130: 0 | AK130: 7 | AM130: 27 | AN130: 0 | AO130: 43 | AP130: 57 | AQ130: 72 | AR130: 7 | AU130: 70 | AV130: =IF(AU130<>AU129,AU130,"") ->  | AW130: 18 | AX130: =IF(AW130<>AW129,AW130,"") ->  | AZ130: 125
B131: 127 | C131: 2015 | D131: 1 | E131: 6 | F131: 12 | G131: 20 | H131: 27 | I131: 38 | J131: 75 | K131: 4 | L131: 1 | M131: 2 | N131: 2 | O131: 0 | P131: 2 | Q131: 7 | R131: 3 | S131: 8 | T131: 7 | U131: 5 | V131: 0 | W131: 4 | Y131: 126 | Z131: 0 | AA131: 8 | AB131: 1 | AC131: 9 | AD131: 1 | AE131: 4 | AF131: 5 | AG131: 8 | AH131: 4 | AI131: 3 | AJ131: 1 | AK131: 1 | AM131: 8 | AN131: 19 | AO131: 14 | AP131: 58 | AQ131: 43 | AR131: 11 | AS131: X | AU131: 71 | AV131: =IF(AU131<>AU130,AU131,"") -> 71 | AW131: 18 | AX131: =IF(AW131<>AW130,AW131,"") ->  | AZ131: 126
B132: 128 | C132: 2015 | D132: 1 | E132: 9 | F132: 37 | G132: 49 | H132: 50 | I132: 56 | J132: 57 | K132: 8 | L132: 3 | M132: 7 | N132: 4 | O132: 9 | P132: 5 | Q132: 0 | R132: 5 | S132: 6 | T132: 5 | U132: 7 | V132: 0 | W132: 8 | Y132: 127 | Z132: 2 | AA132: 2 | AB132: 2 | AC132: 5 | AD132: 2 | AE132: 0 | AF132: 4 | AG132: 1 | AH132: 5 | AI132: 2 | AJ132: 0 | AK132: 3 | AM132: 22 | AN132: 25 | AO132: 20 | AP132: 41 | AQ132: 52 | AR132: 3 | AS132: X | AU132: 72 | AV132: =IF(AU132<>AU131,AU132,"") -> 72 | AW132: 18 | AX132: =IF(AW132<>AW131,AW132,"") ->  | AZ132: 127
B133: 129 | C133: 2015 | D133: 1 | E133: 13 | F133: 12 | G133: 20 | H133: 25 | I133: 50 | J133: 51 | K133: 7 | L133: 1 | M133: 2 | N133: 2 | O133: 0 | P133: 2 | Q133: 5 | R133: 5 | S133: 0 | T133: 5 | U133: 1 | V133: 0 | W133: 7 | Y133: 128 | Z133: 0 | AA133: 2 | AB133: 1 | AC133: 0 | AD133: 5 | AE133: 1 | AF133: 3 | AG133: 9 | AH133: 6 | AI133: 2 | AJ133: 1 | AK133: 8 | AM133: 2 | AN133: 10 | AO133: 51 | AP133: 39 | AQ133: 62 | AR133: 18 | AU133: 72 | AV133: =IF(AU133<>AU132,AU133,"") ->  | AW133: 18 | AX133: =IF(AW133<>AW132,AW133,"") ->  | AZ133: 128
B134: 130 | C134: 2015 | D134: 1 | E134: 16 | F134: 26 | G134: 32 | H134: 44 | I134: 45 | J134: 58 | K134: 11 | L134: =IF(ISNUMBER(F134),INT(F134/10),"") -> 2 | M134: =IF(ISNUMBER(F134),F134-10*L134,"") -> 6 | N134: =IF(ISNUMBER(G134),INT(G134/10),"") -> 3 | O134: =IF(ISNUMBER(G134),G134-10*N134,"") -> 2 | P134: =IF(ISNUMBER(H134),INT(H134/10),"") -> 4 | Q134: =IF(ISNUMBER(H134),H134-10*P134,"") -> 4 | R134: =IF(ISNUMBER(I134),INT(I134/10),"") -> 4 | S134: =IF(ISNUMBER(I134),I134-10*R134,"") -> 5 | T134: =IF(ISNUMBER(J134),INT(J134/10),"") -> 5 | U134: =IF(ISNUMBER(J134),J134-10*T134,"") -> 8 | V134: =IF(ISNUMBER(K134),INT(K134/10),"") -> 1 | W134: =IF(ISNUMBER(K134),K134-10*V134,"") -> 1 | Y134: 129 | Z134: =IF($Z$5=$BL$5,Disimulate($BK$6:$BK$15,$BL$6:$BL$15),IF($Z$5=$BM$5,Disimulate($BK$6:$BK$15,$BM$6:$BM$15),IF($Z$5=$BN$5,Disimulate($BK$6:$BK$15,$BN$6:$BN$15),IF($Z$5=$BO$5,Disimulate($BK$6:$BK$15,$BO$6:$BO$15),IF($Z$5=$BP$5,Disimulate($BK$6:$BK$15,$BP$6:$BP$15),IF($Z$5=$BQ$5,Disimulate($BK$6:$BK$15,$BQ$6:$BQ$15),IF($Z$5=$BR$5,Disimulate($BK$6:$BK$15,$BR$6:$BR$15),IF($Z$5=$BS$5,Disimulate($BK$6:$BK$15,$BS$6:$BS$15),IF($Z$5=$BT$5,Disimulate($BK$6:$BK$15,$BT$6:$BT$15),IF($Z$5=$BU$5,Disimulate($BK$6:$BK$15,$BU$6:$BU$15),"")))))))))) -> 2 | AA134: =IF($AA$5=$BL$17,Disimulate($BK$18:$BK$27,$BL$18:$BL$27),IF($AA$5=$BM$17,Disimulate($BK$18:$BK$27,$BM$18:$BM$27),IF($AA$5=$BN$17,Disimulate($BK$18:$BK$27,$BN$18:$BN$27),IF($AA$5=$BO$17,Disimulate($BK$18:$BK$27,$BO$18:$BO$27),IF($AA$5=$BP$17,Disimulate($BK$18:$BK$27,$BP$18:$BP$27),IF($AA$5=$BQ$17,Disimulate($BK$18:$BK$27,$BQ$18:$BQ$27),IF($AA$5=$BR$17,Disimulate($BK$18:$BK$27,$BR$18:$BR$27),IF($AA$5=$BS$17,Disimulate($BK$18:$BK$27,$BS$18:$BS$27),IF($AA$5=$BT$17,Disimulate($BK$18:$BK$27,$BT$18:$BT$27),IF($AA$5=$BU$17,Disimulate($BK$18:$BK$27,$BU$18:$BU$27),"")))))))))) -> 2 | AB134: =IF($AB$5=$BX$5,Disimulate($BW$6:$BW$15,$BX$6:$BX$15),IF($AB$5=$BY$5,Disimulate($BW$6:$BW$15,$BY$6:$BY$15),IF($AB$5=$BZ$5,Disimulate($BW$6:$BW$15,$BZ$6:$BZ$15),IF($AB$5=$CA$5,Disimulate($BW$6:$BW$15,$CA$6:$CA$15),IF($AB$5=$CB$5,Disimulate($BW$6:$BW$15,$CB$6:$CB$15),IF($AB$5=$CC$5,Disimulate($BW$6:$BW$15,$CC$6:$CC$15),IF($AB$5=$CD$5,Disimulate($BW$6:$BW$15,$CD$6:$CD$15),IF($AB$5=$CE$5,Disimulate($BW$6:$BW$15,$CE$6:$CE$15),IF($AB$5=$CF$5,Disimulate($BW$6:$BW$15,$CF$6:$CF$15),IF($AB$5=$CG$5,Disimulate($BW$6:$BW$15,$CG$6:$CG$15),"")))))))))) -> 3 | AC134: =IF($AC$5=$BX$17,Disimulate($BW$18:$BW$27,$BX$18:$BX$27),IF($AC$5=$BY$17,Disimulate($BW$18:$BW$27,$BY$18:$BY$27),IF($AC$5=$BZ$17,Disimulate($BW$18:$BW$27,$BZ$18:$BZ$27),IF($AC$5=$CA$17,Disimulate($BW$18:$BW$27,$CA$18:$CA$27),IF($AC$5=$CB$17,Disimulate($BW$18:$BW$27,$CB$18:$CB$27),IF($AC$5=$CC$17,Disimulate($BW$18:$BW$27,$CC$18:$CC$27),IF($AC$5=$CD$17,Disimulate($BW$18:$BW$27,$CD$18:$CD$27),IF($AC$5=$CE$17,Disimulate($BW$18:$BW$27,$CE$18:$CE$27),IF($AC$5=$CF$17,Disimulate($BW$18:$BW$27,$CF$18:$CF$27),IF($AC$5=$CG$17,Disimulate($BW$18:$BW$27,$CG$18:$CG$27),"")))))))))) -> 0 | AD134: =IF($AD$5=$CJ$5,Disimulate($CI$6:$CI$15,$CJ$6:$CJ$15),IF($AD$5=$CK$5,Disimulate($CI$6:$CI$15,$CK$6:$CK$15),IF($AD$5=$CL$5,Disimulate($CI$6:$CI$15,$CL$6:$CL$15),IF($AD$5=$CM$5,Disimulate($CI$6:$CI$15,$CM$6:$CM$15),IF($AD$5=$CN$5,Disimulate($CI$6:$CI$15,$CN$6:$CN$15),IF($AD$5=$CO$5,Disimulate($CI$6:$CI$15,$CO$6:$CO$15),IF($AD$5=$CP$5,Disimulate($CI$6:$CI$15,$CP$6:$CP$15),IF($AD$5=$CQ$5,Disimulate($CI$6:$CI$15,$CQ$6:$CQ$15),IF($AD$5=$CR$5,Disimulate($CI$6:$CI$15,$CR$6:$CR$15),IF($AD$5=$CS$5,Disimulate($CI$6:$CI$15,$CS$6:$CS$15),"")))))))))) -> 3 | AE134: =IF($AE$5=$CJ$17,Disimulate($CI$18:$CI$27,$CJ$18:$CJ$27),IF($AE$5=$CK$17,Disimulate($CI$18:$CI$27,$CK$18:$CK$27),IF($AE$5=$CL$17,Disimulate($CI$18:$CI$27,$CL$18:$CL$27),IF($AE$5=$CM$17,Disimulate($CI$18:$CI$27,$CM$18:$CM$27),IF($AE$5=$CN$17,Disimulate($CI$18:$CI$27,$CN$18:$CN$27),IF($AE$5=$CO$17,Disimulate($CI$18:$CI$27,$CO$18:$CO$27),IF($AE$5=$CP$17,Disimulate($CI$18:$CI$27,$CP$18:$CP$27),IF($AE$5=$CQ$17,Disimulate($CI$18:$CI$27,$CQ$18:$CQ$27),IF($AE$5=$CR$17,Disimulate($CI$18:$CI$27,$CR$18:$CR$27),IF($AE$5=$CS$17,Disimulate($CI$18:$CI$27,$CS$18:$CS$27),"")))))))))) -> 2 | AF134: =IF($AF$5=$CV$5,Disimulate($CU$6:$CU$15,$CV$6:$CV$15),IF($AF$5=$CW$5,Disimulate($CU$6:$CU$15,$CW$6:$CW$15),IF($AF$5=$CX$5,Disimulate($CU$6:$CU$15,$CX$6:$CX$15),IF($AF$5=$CY$5,Disimulate($CU$6:$CU$15,$CY$6:$CY$15),IF($AF$5=$CZ$5,Disimulate($CU$6:$CU$15,$CZ$6:$CZ$15),IF($AF$5=$DA$5,Disimulate($CU$6:$CU$15,$DA$6:$DA$15),IF($AF$5=$DB$5,Disimulate($CU$6:$CU$15,$DB$6:$DB$15),IF($AF$5=$DC$5,Disimulate($CU$6:$CU$15,$DC$6:$DC$15),IF($AF$5=$DD$5,Disimulate($CU$6:$CU$15,$DD$6:$DD$15),IF($AF$5=$DE$5,Disimulate($CU$6:$CU$15,$DE$6:$DE$15),"")))))))))) -> 4 | AG134: =IF($AG$5=$CV$17,Disimulate($CU$18:$CU$27,$CV$18:$CV$27),IF($AG$5=$CW$17,Disimulate($CU$18:$CU$27,$CW$18:$CW$27),IF($AG$5=$CX$17,Disimulate($CU$18:$CU$27,$CX$18:$CX$27),IF($AG$5=$CY$17,Disimulate($CU$18:$CU$27,$CY$18:$CY$27),IF($AG$5=$CZ$17,Disimulate($CU$18:$CU$27,$CZ$18:$CZ$27),IF($AG$5=$DA$17,Disimulate($CU$18:$CU$27,$DA$18:$DA$27),IF($AG$5=$DB$17,Disimulate($CU$18:$CU$27,$DB$18:$DB$27),IF($AG$5=$DC$17,Disimulate($CU$18:$CU$27,$DC$18:$DC$27),IF($AG$5=$DD$17,Disimulate($CU$18:$CU$27,$DD$18:$DD$27),IF($AG$5=$DE$17,Disimulate($CU$18:$CU$27,$DE$18:$DE$27),"")))))))))) -> 9 | AH134: =IF($AH$5=$DH$5,Disimulate($DG$6:$DG$15,$DH$6:$DH$15),IF($AH$5=$DI$5,Disimulate($DG$6:$DG$15,$DI$6:$DI$15),IF($AH$5=$DJ$5,Disimulate($DG$6:$DG$15,$DJ$6:$DJ$15),IF($AH$5=$DK$5,Disimulate($DG$6:$DG$15,$DK$6:$DK$15),IF($AH$5=$DL$5,Disimulate($DG$6:$DG$15,$DL$6:$DL$15),IF($AH$5=$DM$5,Disimulate($DG$6:$DG$15,$DM$6:$DM$15),IF($AH$5=$DN$5,Disimulate($DG$6:$DG$15,$DN$6:$DN$15),IF($AH$5=$DO$5,Disimulate($DG$6:$DG$15,$DO$6:$DO$15),IF($AH$5=$DP$5,Disimulate($DG$6:$DG$15,$DP$6:$DP$15),IF($AH$5=$DQ$5,Disimulate($DG$6:$DG$15,$DQ$6:$DQ$15),"")))))))))) -> 5 | AI134: =IF($AI$5=$DH$17,Disimulate($DG$18:$DG$27,$DH$18:$DH$27),IF($AI$5=$DI$17,Disimulate($DG$18:$DG$27,$DI$18:$DI$27),IF($AI$5=$DJ$17,Disimulate($DG$18:$DG$27,$DJ$18:$DJ$27),IF($AI$5=$DK$17,Disimulate($DG$18:$DG$27,$DK$18:$DK$27),IF($AI$5=$DL$17,Disimulate($DG$18:$DG$27,$DL$18:$DL$27),IF($AI$5=$DM$17,Disimulate($DG$18:$DG$27,$DM$18:$DM$27),IF($AI$5=$DN$17,Disimulate($DG$18:$DG$27,$DN$18:$DN$27),IF($AI$5=$DO$17,Disimulate($DG$18:$DG$27,$DO$18:$DO$27),IF($AI$5=$DP$17,Disimulate($DG$18:$DG$27,$DP$18:$DP$27),IF($AI$5=$DQ$17,Disimulate($DG$18:$DG$27,$DQ$18:$DQ$27),"")))))))))) -> 3 | AJ134: =IF($AJ$5=$DT$5,Disimulate($DS$6:$DS$15,$DT$6:$DT$15),IF($AJ$5=$DU$5,Disimulate($DS$6:$DS$15,$DU$6:$DU$15),IF($AJ$5=$DV$5,Disimulate($DS$6:$DS$15,$DV$6:$DV$15),IF($AJ$5=$DW$5,Disimulate($DS$6:$DS$15,$DW$6:$DW$15),IF($AJ$5=$DX$5,Disimulate($DS$6:$DS$15,$DX$6:$DX$15),IF($AJ$5=$DY$5,Disimulate($DS$6:$DS$15,$DY$6:$DY$15),IF($AJ$5=$DZ$5,Disimulate($DS$6:$DS$15,$DZ$6:$DZ$15),IF($AJ$5=$EA$5,Disimulate($DS$6:$DS$15,$EA$6:$EA$15),IF($AJ$5=$EB$5,Disimulate($DS$6:$DS$15,$EB$6:$EB$15),IF($AJ$5=$EC$5,Disimulate($DS$6:$DS$15,$EC$6:$EC$15),"")))))))))) -> 0 | AK134: =IF($AK$5=$DT$17,Disimulate($DS$18:$DS$27,$DT$18:$DT$27),IF($AK$5=$DU$17,Disimulate($DS$18:$DS$27,$DU$18:$DU$27),IF($AK$5=$DV$17,Disimulate($DS$18:$DS$27,$DV$18:$DV$27),IF($AK$5=$DW$17,Disimulate($DS$18:$DS$27,$DW$18:$DW$27),IF($AK$5=$DX$17,Disimulate($DS$18:$DS$27,$DX$18:$DX$27),IF($AK$5=$DY$17,Disimulate($DS$18:$DS$27,$DY$18:$DY$27),IF($AK$5=$DZ$17,Disimulate($DS$18:$DS$27,$DZ$18:$DZ$27),IF($AK$5=$EA$17,Disimulate($DS$18:$DS$27,$EA$18:$EA$27),IF($AK$5=$EB$17,Disimulate($DS$18:$DS$27,$EB$18:$EB$27),IF($AK$5=$EC$17,Disimulate($DS$18:$DS$27,$EC$18:$EC$27),"")))))))))) -> 0 | AM134: =10*Z134+1*MOD(AA134+AM$4,10) -> 22 | AN134: =10*AB134+1*MOD(AC134+AN$4,10) -> 30 | AO134: =10*AD134+1*MOD(AE134+AO$4,10) -> 32 | AP134: =10*AF134+1*MOD(AG134+AP$4,10) -> 49 | AQ134: =10*AH134+1*MOD(AI134+AQ$4,10) -> 53 | AR134: =10*AJ134+1*MOD(AK134+AR$4,10) -> 0 | AU134: 72 | AV134: =IF(AU134<>AU133,AU134,"") ->  | AW134: 18 | AX134: =IF(AW134<>AW133,AW134,"") ->  | AZ134: 129
B135: 131 | C135: 2015 | D135: 1 | E135: 20 | F135: 31 | G135: 35 | H135: 56 | I135: 59 | J135: 63 | K135: 6 | L135: 3 | M135: 1 | N135: 3 | O135: 5 | P135: 5 | Q135: 6 | R135: 5 | S135: 9 | T135: 6 | U135: 3 | V135: 0 | W135: 6 | Y135: 130 | Z135: 1 | AA135: 1 | AB135: 1 | AC135: 9 | AD135: 5 | AE135: 0 | AF135: 4 | AG135: 8 | AH135: 6 | AI135: 3 | AJ135: 0 | AK135: 9 | AM135: 11 | AN135: 19 | AO135: 50 | AP135: 48 | AQ135: 63 | AR135: 9 | AS135: X | AU135: 73 | AV135: =IF(AU135<>AU134,AU135,"") -> 73 | AW135: 18 | AX135: =IF(AW135<>AW134,AW135,"") ->  | AZ135: 130 | BA135: =IF($AZ135<=$AT$5,LOOKUP($AZ135,$AX$6:$AX$1005,AM$6:AM$1005),"") ->  | BB135: =IF($AZ135<=$AT$5,LOOKUP($AZ135,$AX$6:$AX$1005,AN$6:AN$1005),"") ->  | BC135: =IF($AZ135<=$AT$5,LOOKUP($AZ135,$AX$6:$AX$1005,AO$6:AO$1005),"") ->  | BD135: =IF($AZ135<=$AT$5,LOOKUP($AZ135,$AX$6:$AX$1005,AP$6:AP$1005),"") ->  | BE135: =IF($AZ135<=$AT$5,LOOKUP($AZ135,$AX$6:$AX$1005,AQ$6:AQ$1005),"") ->  | BF135: =IF($AZ135<=$AT$5,LOOKUP($AZ135,$AX$6:$AX$1005,AR$6:AR$1005),"") -> 
B136: 132 | C136: 2015 | D136: 1 | E136: 23 | F136: 14 | G136: 15 | H136: 32 | I136: 68 | J136: 72 | K136: 8 | L136: 1 | M136: 4 | N136: 1 | O136: 5 | P136: 3 | Q136: 2 | R136: 6 | S136: 8 | T136: 7 | U136: 2 | V136: 0 | W136: 8 | Y136: 131 | Z136: 0 | AA136: 4 | AB136: 0 | AC136: 5 | AD136: 2 | AE136: 8 | AF136: 3 | AG136: 1 | AH136: 6 | AI136: 0 | AJ136: 1 | AK136: 8 | AM136: 4 | AN136: 5 | AO136: 28 | AP136: 31 | AQ136: 60 | AR136: 18 | AS136: =IF(AND(MIN(AM136:AR136)>0,MAX(AM136:AQ136)<76,AR136<16),"X","") ->  | AT136: =IF(AND(AS136="X",AM136<AN136,AN136<AO136,AO136<AP136,AP136<AQ136),"XX","") ->  | AU136: =IF(AS136="X",AU135+1,AU135) -> 73 | AV136: =IF(AU136<>AU135,AU136,"") ->  | AW136: =IF(AT136="XX",AW135+1,AW135) -> 18 | AX136: =IF(AW136<>AW135,AW136,"") ->  | AZ136: 131
B137: 133 | C137: 2015 | D137: 1 | E137: 27 | F137: 5 | G137: 26 | H137: 27 | I137: 44 | J137: 57 | K137: 7 | L137: 0 | M137: 5 | N137: 2 | O137: 6 | P137: 2 | Q137: 7 | R137: 4 | S137: 4 | T137: 5 | U137: 7 | V137: 0 | W137: 7 | Y137: 132 | Z137: 1 | AA137: 5 | AB137: 3 | AC137: 8 | AD137: 5 | AE137: 9 | AF137: 2 | AG137: 9 | AH137: 5 | AI137: 2 | AJ137: 0 | AK137: 5 | AM137: 15 | AN137: 38 | AO137: 59 | AP137: 29 | AQ137: 52 | AR137: 5 | AS137: X | AU137: 74 | AV137: =IF(AU137<>AU136,AU137,"") -> 74 | AW137: 18 | AX137: =IF(AW137<>AW136,AW137,"") ->  | AZ137: 132
B138: 134 | C138: 2015 | D138: 1 | E138: 30 | F138: 18 | G138: 31 | H138: 39 | I138: 45 | J138: 55 | K138: 6 | L138: 1 | M138: 8 | N138: 3 | O138: 1 | P138: 3 | Q138: 9 | R138: 4 | S138: 5 | T138: 5 | U138: 5 | V138: 0 | W138: 6 | Y138: 133 | Z138: 0 | AA138: 2 | AB138: 2 | AC138: 4 | AD138: 2 | AE138: 5 | AF138: 5 | AG138: 1 | AH138: 5 | AI138: 2 | AJ138: 1 | AK138: 9 | AM138: 2 | AN138: 24 | AO138: 25 | AP138: 51 | AQ138: 52 | AR138: 19 | AU138: 74 | AV138: =IF(AU138<>AU137,AU138,"") ->  | AW138: 18 | AX138: =IF(AW138<>AW137,AW138,"") ->  | AZ138: 133
B139: 135 | C139: 2015 | D139: 2 | E139: 3 | F139: 11 | G139: 22 | H139: 25 | I139: 58 | J139: 69 | K139: 13 | L139: 1 | M139: 1 | N139: 2 | O139: 2 | P139: 2 | Q139: 5 | R139: 5 | S139: 8 | T139: 6 | U139: 9 | V139: 1 | W139: 3 | Y139: 134 | Z139: 1 | AA139: 7 | AB139: 2 | AC139: 9 | AD139: 1 | AE139: 8 | AF139: 3 | AG139: 8 | AH139: 6 | AI139: 7 | AJ139: 0 | AK139: 1 | AM139: 17 | AN139: 29 | AO139: 18 | AP139: 38 | AQ139: 67 | AR139: 1 | AS139: X | AU139: 75 | AV139: =IF(AU139<>AU138,AU139,"") -> 75 | AW139: 18 | AX139: =IF(AW139<>AW138,AW139,"") ->  | AZ139: 134
B140: 136 | C140: 2015 | D140: 2 | E140: 6 | F140: 5 | G140: 6 | H140: 17 | I140: 33 | J140: 68 | K140: 13 | L140: 0 | M140: 5 | N140: 0 | O140: 6 | P140: 1 | Q140: 7 | R140: 3 | S140: 3 | T140: 6 | U140: 8 | V140: 1 | W140: 3 | Y140: 135 | Z140: 0 | AA140: 5 | AB140: 3 | AC140: 8 | AD140: 2 | AE140: 5 | AF140: 6 | AG140: 1 | AH140: 3 | AI140: 0 | AJ140: 0 | AK140: 0 | AM140: 5 | AN140: 38 | AO140: 25 | AP140: 61 | AQ140: 30 | AR140: 0 | AU140: 75 | AV140: =IF(AU140<>AU139,AU140,"") ->  | AW140: 18 | AX140: =IF(AW140<>AW139,AW140,"") ->  | AZ140: 135
B141: 137 | C141: 2015 | D141: 2 | E141: 10 | F141: 7 | G141: 42 | H141: 53 | I141: 58 | J141: 71 | K141: 15 | L141: 0 | M141: 7 | N141: 4 | O141: 2 | P141: 5 | Q141: 3 | R141: 5 | S141: 8 | T141: 7 | U141: 1 | V141: 1 | W141: 5 | Y141: 136 | Z141: 1 | AA141: 4 | AB141: 3 | AC141: 2 | AD141: 3 | AE141: 2 | AF141: 4 | AG141: 0 | AH141: 4 | AI141: 4 | AJ141: 0 | AK141: 9 | AM141: 14 | AN141: 32 | AO141: 32 | AP141: 40 | AQ141: 44 | AR141: 9 | AS141: X | AU141: 76 | AV141: =IF(AU141<>AU140,AU141,"") -> 76 | AW141: 18 | AX141: =IF(AW141<>AW140,AW141,"") ->  | AZ141: 136
B142: 138 | C142: 2015 | D142: 2 | E142: 13 | F142: 4 | G142: 20 | H142: 44 | I142: 65 | J142: 74 | K142: 14 | L142: 0 | M142: 4 | N142: 2 | O142: 0 | P142: 4 | Q142: 4 | R142: 6 | S142: 5 | T142: 7 | U142: 4 | V142: 1 | W142: 4 | Y142: 137 | Z142: 1 | AA142: 4 | AB142: 4 | AC142: 0 | AD142: 3 | AE142: 5 | AF142: 3 | AG142: 8 | AH142: 4 | AI142: 2 | AJ142: 0 | AK142: 0 | AM142: 14 | AN142: 40 | AO142: 35 | AP142: 38 | AQ142: 42 | AR142: 0 | AU142: 76 | AV142: =IF(AU142<>AU141,AU142,"") ->  | AW142: 18 | AX142: =IF(AW142<>AW141,AW142,"") ->  | AZ142: 137
B143: 139 | C143: 2015 | D143: 2 | E143: 17 | F143: 6 | G143: 45 | H143: 50 | I143: 65 | J143: 66 | K143: 1 | L143: 0 | M143: 6 | N143: 4 | O143: 5 | P143: 5 | Q143: 0 | R143: 6 | S143: 5 | T143: 6 | U143: 6 | V143: 0 | W143: 1 | Y143: 138 | Z143: 0 | AA143: 3 | AB143: 1 | AC143: 1 | AD143: 4 | AE143: 4 | AF143: 5 | AG143: 9 | AH143: 6 | AI143: 2 | AJ143: 0 | AK143: 5 | AM143: 3 | AN143: 11 | AO143: 44 | AP143: 59 | AQ143: 62 | AR143: 5 | AS143: X | AT143: XX | AU143: 77 | AV143: =IF(AU143<>AU142,AU143,"") -> 77 | AW143: 19 | AX143: =IF(AW143<>AW142,AW143,"") -> 19 | AZ143: 138
B144: 140 | C144: 2015 | D144: 2 | E144: 20 | F144: 2 | G144: 6 | H144: 8 | I144: 52 | J144: 66 | K144: 13 | L144: 0 | M144: 2 | N144: 0 | O144: 6 | P144: 0 | Q144: 8 | R144: 5 | S144: 2 | T144: 6 | U144: 6 | V144: 1 | W144: 3 | Y144: 139 | Z144: 3 | AA144: 3 | AB144: 1 | AC144: 8 | AD144: 1 | AE144: 1 | AF144: 2 | AG144: 2 | AH144: 5 | AI144: 6 | AJ144: 0 | AK144: 1 | AM144: 33 | AN144: 18 | AO144: 11 | AP144: 22 | AQ144: 56 | AR144: 1 | AS144: X | AU144: 78 | AV144: =IF(AU144<>AU143,AU144,"") -> 78 | AW144: 19 | AX144: =IF(AW144<>AW143,AW144,"") ->  | AZ144: 139
B145: 141 | C145: 2015 | D145: 2 | E145: 24 | F145: 15 | G145: 23 | H145: 26 | I145: 45 | J145: 66 | K145: 4 | L145: 1 | M145: 5 | N145: 2 | O145: 3 | P145: 2 | Q145: 6 | R145: 4 | S145: 5 | T145: 6 | U145: 6 | V145: 0 | W145: 4 | Y145: 140 | Z145: 0 | AA145: 2 | AB145: 2 | AC145: 0 | AD145: 3 | AE145: 3 | AF145: 4 | AG145: 1 | AH145: 6 | AI145: 4 | AJ145: 0 | AK145: 7 | AM145: 2 | AN145: 20 | AO145: 33 | AP145: 41 | AQ145: 64 | AR145: 7 | AS145: X | AT145: XX | AU145: 79 | AV145: =IF(AU145<>AU144,AU145,"") -> 79 | AW145: 20 | AX145: =IF(AW145<>AW144,AW145,"") -> 20 | AZ145: 140
B146: 142 | C146: 2015 | D146: 2 | E146: 27 | F146: 7 | G146: 49 | H146: 53 | I146: 60 | J146: 64 | K146: 4 | L146: 0 | M146: 7 | N146: 4 | O146: 9 | P146: 5 | Q146: 3 | R146: 6 | S146: 0 | T146: 6 | U146: 4 | V146: 0 | W146: 4 | Y146: 141 | Z146: 0 | AA146: 2 | AB146: 2 | AC146: 9 | AD146: 5 | AE146: 9 | AF146: 4 | AG146: 2 | AH146: 4 | AI146: 4 | AJ146: 0 | AK146: 0 | AM146: 2 | AN146: 29 | AO146: 59 | AP146: 42 | AQ146: 44 | AR146: 0 | AU146: 79 | AV146: =IF(AU146<>AU145,AU146,"") ->  | AW146: 20 | AX146: =IF(AW146<>AW145,AW146,"") ->  | AZ146: 141
B147: 143 | C147: 2015 | D147: 3 | E147: 3 | F147: 9 | G147: 11 | H147: 42 | I147: 44 | J147: 50 | K147: 3 | L147: 0 | M147: 9 | N147: 1 | O147: 1 | P147: 4 | Q147: 2 | R147: 4 | S147: 4 | T147: 5 | U147: 0 | V147: 0 | W147: 3 | Y147: 142 | Z147: 1 | AA147: 4 | AB147: 0 | AC147: 8 | AD147: 5 | AE147: 1 | AF147: 5 | AG147: 2 | AH147: 7 | AI147: 7 | AJ147: 1 | AK147: 0 | AM147: 14 | AN147: 8 | AO147: 51 | AP147: 52 | AQ147: 77 | AR147: 10 | AU147: 79 | AV147: =IF(AU147<>AU146,AU147,"") ->  | AW147: 20 | AX147: =IF(AW147<>AW146,AW147,"") ->  | AZ147: 142
B148: 144 | C148: 2015 | D148: 3 | E148: 6 | F148: 30 | G148: 48 | H148: 55 | I148: 68 | J148: 73 | K148: 5 | L148: 3 | M148: 0 | N148: 4 | O148: 8 | P148: 5 | Q148: 5 | R148: 6 | S148: 8 | T148: 7 | U148: 3 | V148: 0 | W148: 5 | Y148: 143 | Z148: 1 | AA148: 3 | AB148: 2 | AC148: 8 | AD148: 1 | AE148: 4 | AF148: 6 | AG148: 0 | AH148: 4 | AI148: 4 | AJ148: 0 | AK148: 2 | AM148: 13 | AN148: 28 | AO148: 14 | AP148: 60 | AQ148: 44 | AR148: 2 | AS148: X | AU148: 80 | AV148: =IF(AU148<>AU147,AU148,"") -> 80 | AW148: 20 | AX148: =IF(AW148<>AW147,AW148,"") ->  | AZ148: 143
B149: 145 | C149: 2015 | D149: 3 | E149: 10 | F149: 10 | G149: 14 | H149: 19 | I149: 30 | J149: 73 | K149: 14 | L149: 1 | M149: 0 | N149: 1 | O149: 4 | P149: 1 | Q149: 9 | R149: 3 | S149: 0 | T149: 7 | U149: 3 | V149: 1 | W149: 4 | Y149: 144 | Z149: 1 | AA149: 1 | AB149: 5 | AC149: 8 | AD149: 2 | AE149: 1 | AF149: 6 | AG149: 5 | AH149: 3 | AI149: 7 | AJ149: 1 | AK149: 3 | AM149: 11 | AN149: 58 | AO149: 21 | AP149: 65 | AQ149: 37 | AR149: 13 | AS149: X | AU149: 81 | AV149: =IF(AU149<>AU148,AU149,"") -> 81 | AW149: 20 | AX149: =IF(AW149<>AW148,AW149,"") ->  | AZ149: 144
B150: 146 | C150: 2015 | D150: 3 | E150: 13 | F150: 8 | G150: 22 | H150: 30 | I150: 42 | J150: 45 | K150: 3 | L150: 0 | M150: 8 | N150: 2 | O150: 2 | P150: 3 | Q150: 0 | R150: 4 | S150: 2 | T150: 4 | U150: 5 | V150: 0 | W150: 3 | Y150: 145 | Z150: 2 | AA150: 8 | AB150: 2 | AC150: 4 | AD150: 1 | AE150: 5 | AF150: 4 | AG150: 5 | AH150: 5 | AI150: 4 | AJ150: 0 | AK150: 4 | AM150: 28 | AN150: 24 | AO150: 15 | AP150: 45 | AQ150: 54 | AR150: 4 | AS150: X | AU150: 82 | AV150: =IF(AU150<>AU149,AU150,"") -> 82 | AW150: 20 | AX150: =IF(AW150<>AW149,AW150,"") ->  | AZ150: 145
B151: 147 | C151: 2015 | D151: 3 | E151: 17 | F151: 11 | G151: 27 | H151: 44 | I151: 45 | J151: 58 | K151: 3 | L151: 1 | M151: 1 | N151: 2 | O151: 7 | P151: 4 | Q151: 4 | R151: 4 | S151: 5 | T151: 5 | U151: 8 | V151: 0 | W151: 3 | Y151: 146 | Z151: 0 | AA151: 8 | AB151: 2 | AC151: 9 | AD151: 4 | AE151: 0 | AF151: 4 | AG151: 9 | AH151: 7 | AI151: 3 | AJ151: 1 | AK151: 8 | AM151: 8 | AN151: 29 | AO151: 40 | AP151: 49 | AQ151: 73 | AR151: 18 | AU151: 82 | AV151: =IF(AU151<>AU150,AU151,"") ->  | AW151: 20 | AX151: =IF(AW151<>AW150,AW151,"") ->  | AZ151: 146
B152: 148 | C152: 2015 | D152: 3 | E152: 20 | F152: 7 | G152: 50 | H152: 54 | I152: 61 | J152: 75 | K152: 7 | L152: 0 | M152: 7 | N152: 5 | O152: 0 | P152: 5 | Q152: 4 | R152: 6 | S152: 1 | T152: 7 | U152: 5 | V152: 0 | W152: 7 | Y152: 147 | Z152: 2 | AA152: 1 | AB152: 3 | AC152: 9 | AD152: 4 | AE152: 8 | AF152: 5 | AG152: 0 | AH152: 7 | AI152: 9 | AJ152: 0 | AK152: 4 | AM152: 21 | AN152: 39 | AO152: 48 | AP152: 50 | AQ152: 79 | AR152: 4 | AU152: 82 | AV152: =IF(AU152<>AU151,AU152,"") ->  | AW152: 20 | AX152: =IF(AW152<>AW151,AW152,"") ->  | AZ152: 147
B153: 149 | C153: 2015 | D153: 3 | E153: 24 | F153: 2 | G153: 23 | H153: 32 | I153: 45 | J153: 55 | K153: 12 | L153: 0 | M153: 2 | N153: 2 | O153: 3 | P153: 3 | Q153: 2 | R153: 4 | S153: 5 | T153: 5 | U153: 5 | V153: 1 | W153: 2 | Y153: 148 | Z153: 1 | AA153: 3 | AB153: 1 | AC153: 1 | AD153: 5 | AE153: 8 | AF153: 5 | AG153: 1 | AH153: 5 | AI153: 4 | AJ153: 0 | AK153: 1 | AM153: 13 | AN153: 11 | AO153: 58 | AP153: 51 | AQ153: 54 | AR153: 1 | AS153: X | AU153: 83 | AV153: =IF(AU153<>AU152,AU153,"") -> 83 | AW153: 20 | AX153: =IF(AW153<>AW152,AW153,"") ->  | AZ153: 148
B154: 150 | C154: 2015 | D154: 3 | E154: 27 | F154: 17 | G154: 21 | H154: 36 | I154: 58 | J154: 70 | K154: 3 | L154: 1 | M154: 7 | N154: 2 | O154: 1 | P154: 3 | Q154: 6 | R154: 5 | S154: 8 | T154: 7 | U154: 0 | V154: 0 | W154: 3 | Y154: 149 | Z154: 2 | AA154: 3 | AB154: 2 | AC154: 0 | AD154: 2 | AE154: 3 | AF154: 6 | AG154: 9 | AH154: 7 | AI154: 0 | AJ154: 0 | AK154: 4 | AM154: 23 | AN154: 20 | AO154: 23 | AP154: 69 | AQ154: 70 | AR154: 4 | AS154: X | AU154: 84 | AV154: =IF(AU154<>AU153,AU154,"") -> 84 | AW154: 20 | AX154: =IF(AW154<>AW153,AW154,"") ->  | AZ154: 149
B155: 151 | C155: 2015 | D155: 3 | E155: 31 | F155: 8 | G155: 26 | H155: 41 | I155: 61 | J155: 73 | K155: 11 | L155: 0 | M155: 8 | N155: 2 | O155: 6 | P155: 4 | Q155: 1 | R155: 6 | S155: 1 | T155: 7 | U155: 3 | V155: 1 | W155: 1 | Y155: 150 | Z155: 1 | AA155: 7 | AB155: 2 | AC155: 4 | AD155: 3 | AE155: 3 | AF155: 4 | AG155: 9 | AH155: 6 | AI155: 9 | AJ155: 0 | AK155: 0 | AM155: 17 | AN155: 24 | AO155: 33 | AP155: 49 | AQ155: 69 | AR155: 0 | AU155: 84 | AV155: =IF(AU155<>AU154,AU155,"") ->  | AW155: 20 | AX155: =IF(AW155<>AW154,AW155,"") ->  | AZ155: 150
B156: 152 | C156: 2015 | D156: 4 | E156: 3 | F156: 10 | G156: 36 | H156: 47 | I156: 63 | J156: 74 | K156: 2 | L156: 1 | M156: 0 | N156: 3 | O156: 6 | P156: 4 | Q156: 7 | R156: 6 | S156: 3 | T156: 7 | U156: 4 | V156: 0 | W156: 2 | Y156: 151 | Z156: 0 | AA156: 4 | AB156: 2 | AC156: 8 | AD156: 3 | AE156: 2 | AF156: 5 | AG156: 7 | AH156: 6 | AI156: 2 | AJ156: 1 | AK156: 4 | AM156: 4 | AN156: 28 | AO156: 32 | AP156: 57 | AQ156: 62 | AR156: 14 | AS156: X | AT156: XX | AU156: 85 | AV156: =IF(AU156<>AU155,AU156,"") -> 85 | AW156: 21 | AX156: =IF(AW156<>AW155,AW156,"") -> 21 | AZ156: 151
B157: 153 | C157: 2015 | D157: 4 | E157: 7 | F157: 5 | G157: 15 | H157: 22 | I157: 26 | J157: 64 | K157: 6 | L157: 0 | M157: 5 | N157: 1 | O157: 5 | P157: 2 | Q157: 2 | R157: 2 | S157: 6 | T157: 6 | U157: 4 | V157: 0 | W157: 6 | Y157: 152 | Z157: 0 | AA157: 1 | AB157: 3 | AC157: 0 | AD157: 2 | AE157: 3 | AF157: 4 | AG157: 8 | AH157: 3 | AI157: 4 | AJ157: 0 | AK157: 1 | AM157: 1 | AN157: 30 | AO157: 23 | AP157: 48 | AQ157: 34 | AR157: 1 | AS157: X | AU157: 86 | AV157: =IF(AU157<>AU156,AU157,"") -> 86 | AW157: 21 | AX157: =IF(AW157<>AW156,AW157,"") ->  | AZ157: 152
B158: 154 | C158: 2015 | D158: 4 | E158: 10 | F158: 6 | G158: 11 | H158: 32 | I158: 46 | J158: 68 | K158: 9 | L158: 0 | M158: 6 | N158: 1 | O158: 1 | P158: 3 | Q158: 2 | R158: 4 | S158: 6 | T158: 6 | U158: 8 | V158: 0 | W158: 9 | Y158: 153 | Z158: 0 | AA158: 4 | AB158: 1 | AC158: 5 | AD158: 3 | AE158: 5 | AF158: 6 | AG158: 5 | AH158: 3 | AI158: 4 | AJ158: 0 | AK158: 1 | AM158: 4 | AN158: 15 | AO158: 35 | AP158: 65 | AQ158: 34 | AR158: 1 | AS158: X | AU158: 87 | AV158: =IF(AU158<>AU157,AU158,"") -> 87 | AW158: 21 | AX158: =IF(AW158<>AW157,AW158,"") ->  | AZ158: 153
B159: 155 | C159: 2015 | D159: 4 | E159: 14 | F159: 3 | G159: 7 | H159: 25 | I159: 68 | J159: 71 | K159: 3 | L159: 0 | M159: 3 | N159: 0 | O159: 7 | P159: 2 | Q159: 5 | R159: 6 | S159: 8 | T159: 7 | U159: 1 | V159: 0 | W159: 3 | Y159: 154 | Z159: 0 | AA159: 4 | AB159: 0 | AC159: 1 | AD159: 6 | AE159: 4 | AF159: 4 | AG159: 9 | AH159: 6 | AI159: 4 | AJ159: 0 | AK159: 7 | AM159: 4 | AN159: 1 | AO159: 64 | AP159: 49 | AQ159: 64 | AR159: 7 | AS159: X | AU159: 88 | AV159: =IF(AU159<>AU158,AU159,"") -> 88 | AW159: 21 | AX159: =IF(AW159<>AW158,AW159,"") ->  | AZ159: 154
B160: 156 | C160: 2015 | D160: 4 | E160: 17 | F160: 15 | G160: 18 | H160: 29 | I160: 41 | J160: 50 | K160: 5 | L160: 1 | M160: 5 | N160: 1 | O160: 8 | P160: 2 | Q160: 9 | R160: 4 | S160: 1 | T160: 5 | U160: 0 | V160: 0 | W160: 5 | Y160: 155 | Z160: 4 | AA160: 5 | AB160: 1 | AC160: 2 | AD160: 2 | AE160: 9 | AF160: 4 | AG160: 8 | AH160: 6 | AI160: 4 | AJ160: 1 | AK160: 0 | AM160: 45 | AN160: 12 | AO160: 29 | AP160: 48 | AQ160: 64 | AR160: 10 | AS160: X | AU160: 89 | AV160: =IF(AU160<>AU159,AU160,"") -> 89 | AW160: 21 | AX160: =IF(AW160<>AW159,AW160,"") ->  | AZ160: 155
B161: 157 | C161: 2015 | D161: 4 | E161: 21 | F161: 31 | G161: 33 | H161: 35 | I161: 41 | J161: 69 | K161: 11 | L161: 3 | M161: 1 | N161: 3 | O161: 3 | P161: 3 | Q161: 5 | R161: 4 | S161: 1 | T161: 6 | U161: 9 | V161: 1 | W161: 1 | Y161: 156 | Z161: 0 | AA161: 0 | AB161: 2 | AC161: 8 | AD161: 3 | AE161: 5 | AF161: 6 | AG161: 9 | AH161: 7 | AI161: 3 | AJ161: 1 | AK161: 1 | AM161: 0 | AN161: 28 | AO161: 35 | AP161: 69 | AQ161: 73 | AR161: 11 | AU161: 89 | AV161: =IF(AU161<>AU160,AU161,"") ->  | AW161: 21 | AX161: =IF(AW161<>AW160,AW161,"") ->  | AZ161: 156
B162: 158 | C162: 2015 | D162: 4 | E162: 24 | F162: 24 | G162: 25 | H162: 29 | I162: 47 | J162: 67 | K162: 4 | L162: 2 | M162: 4 | N162: 2 | O162: 5 | P162: 2 | Q162: 9 | R162: 4 | S162: 7 | T162: 6 | U162: 7 | V162: 0 | W162: 4 | Y162: 157 | Z162: 1 | AA162: 4 | AB162: 0 | AC162: 5 | AD162: 1 | AE162: 7 | AF162: 4 | AG162: 6 | AH162: 7 | AI162: 2 | AJ162: 0 | AK162: 1 | AM162: 14 | AN162: 5 | AO162: 17 | AP162: 46 | AQ162: 72 | AR162: 1 | AS162: X | AU162: 90 | AV162: =IF(AU162<>AU161,AU162,"") -> 90 | AW162: 21 | AX162: =IF(AW162<>AW161,AW162,"") ->  | AZ162: 157
B163: 159 | C163: 2015 | D163: 4 | E163: 28 | F163: 22 | G163: 27 | H163: 55 | I163: 58 | J163: 63 | K163: 11 | L163: 2 | M163: 2 | N163: 2 | O163: 7 | P163: 5 | Q163: 5 | R163: 5 | S163: 8 | T163: 6 | U163: 3 | V163: 1 | W163: 1 | Y163: 158 | Z163: 0 | AA163: 4 | AB163: 2 | AC163: 0 | AD163: 3 | AE163: 3 | AF163: 3 | AG163: 1 | AH163: 5 | AI163: 2 | AJ163: 0 | AK163: 1 | AM163: 4 | AN163: 20 | AO163: 33 | AP163: 31 | AQ163: 52 | AR163: 1 | AS163: X | AU163: 91 | AV163: =IF(AU163<>AU162,AU163,"") -> 91 | AW163: 21 | AX163: =IF(AW163<>AW162,AW163,"") ->  | AZ163: 158
B164: 160 | C164: 2015 | D164: 5 | E164: 1 | F164: 17 | G164: 18 | H164: 61 | I164: 66 | J164: 74 | K164: 3 | L164: 1 | M164: 7 | N164: 1 | O164: 8 | P164: 6 | Q164: 1 | R164: 6 | S164: 6 | T164: 7 | U164: 4 | V164: 0 | W164: 3 | Y164: 159 | Z164: 0 | AA164: 4 | AB164: 3 | AC164: 2 | AD164: 3 | AE164: 4 | AF164: 4 | AG164: 9 | AH164: 7 | AI164: 4 | AJ164: 1 | AK164: 9 | AM164: 4 | AN164: 32 | AO164: 34 | AP164: 49 | AQ164: 74 | AR164: 19 | AU164: 91 | AV164: =IF(AU164<>AU163,AU164,"") ->  | AW164: 21 | AX164: =IF(AW164<>AW163,AW164,"") ->  | AZ164: 159
B165: 161 | C165: 2015 | D165: 5 | E165: 5 | F165: 11 | G165: 21 | H165: 42 | I165: 62 | J165: 71 | K165: 7 | L165: 1 | M165: 1 | N165: 2 | O165: 1 | P165: 4 | Q165: 2 | R165: 6 | S165: 2 | T165: 7 | U165: 1 | V165: 0 | W165: 7 | Y165: 160 | Z165: 1 | AA165: 2 | AB165: 4 | AC165: 0 | AD165: 1 | AE165: 5 | AF165: 5 | AG165: 7 | AH165: 7 | AI165: 4 | AJ165: 0 | AK165: 7 | AM165: 12 | AN165: 40 | AO165: 15 | AP165: 57 | AQ165: 74 | AR165: 7 | AS165: X | AU165: 92 | AV165: =IF(AU165<>AU164,AU165,"") -> 92 | AW165: 21 | AX165: =IF(AW165<>AW164,AW165,"") ->  | AZ165: 160
B166: 162 | C166: 2015 | D166: 5 | E166: 8 | F166: 9 | G166: 21 | H166: 25 | I166: 66 | J166: 72 | K166: 7 | L166: 0 | M166: 9 | N166: 2 | O166: 1 | P166: 2 | Q166: 5 | R166: 6 | S166: 6 | T166: 7 | U166: 2 | V166: 0 | W166: 7 | Y166: 161 | Z166: 0 | AA166: 2 | AB166: 4 | AC166: 1 | AD166: 2 | AE166: 2 | AF166: 5 | AG166: 9 | AH166: 5 | AI166: 3 | AJ166: 0 | AK166: 4 | AM166: 2 | AN166: 41 | AO166: 22 | AP166: 59 | AQ166: 53 | AR166: 4 | AS166: X | AU166: 93 | AV166: =IF(AU166<>AU165,AU166,"") -> 93 | AW166: 21 | AX166: =IF(AW166<>AW165,AW166,"") ->  | AZ166: 161
B167: 163 | C167: 2015 | D167: 5 | E167: 12 | F167: 14 | G167: 30 | H167: 33 | I167: 36 | J167: 44 | K167: 2 | L167: 1 | M167: 4 | N167: 3 | O167: 0 | P167: 3 | Q167: 3 | R167: 3 | S167: 6 | T167: 4 | U167: 4 | V167: 0 | W167: 2 | Y167: 162 | Z167: 1 | AA167: 3 | AB167: 5 | AC167: 1 | AD167: 3 | AE167: 7 | AF167: 7 | AG167: 1 | AH167: 7 | AI167: 2 | AJ167: 1 | AK167: 9 | AM167: 13 | AN167: 51 | AO167: 37 | AP167: 71 | AQ167: 72 | AR167: 19 | AU167: 93 | AV167: =IF(AU167<>AU166,AU167,"") ->  | AW167: 21 | AX167: =IF(AW167<>AW166,AW167,"") ->  | AZ167: 162
B168: 164 | C168: 2015 | D168: 5 | E168: 15 | F168: 11 | G168: 17 | H168: 21 | I168: 36 | J168: 74 | K168: 15 | L168: 1 | M168: 1 | N168: 1 | O168: 7 | P168: 2 | Q168: 1 | R168: 3 | S168: 6 | T168: 7 | U168: 4 | V168: 1 | W168: 5 | Y168: 163 | Z168: 0 | AA168: 3 | AB168: 2 | AC168: 4 | AD168: 2 | AE168: 1 | AF168: 4 | AG168: 7 | AH168: 3 | AI168: 7 | AJ168: 0 | AK168: 7 | AM168: 3 | AN168: 24 | AO168: 21 | AP168: 47 | AQ168: 37 | AR168: 7 | AS168: X | AU168: 94 | AV168: =IF(AU168<>AU167,AU168,"") -> 94 | AW168: 21 | AX168: =IF(AW168<>AW167,AW168,"") ->  | AZ168: 163
B169: 165 | C169: 2015 | D169: 5 | E169: 19 | F169: 10 | G169: 12 | H169: 21 | I169: 29 | J169: 65 | K169: 10 | L169: 1 | M169: 0 | N169: 1 | O169: 2 | P169: 2 | Q169: 1 | R169: 2 | S169: 9 | T169: 6 | U169: 5 | V169: 1 | W169: 0 | Y169: 164 | Z169: 1 | AA169: 2 | AB169: 3 | AC169: 5 | AD169: 3 | AE169: 5 | AF169: 5 | AG169: 5 | AH169: 5 | AI169: 4 | AJ169: 0 | AK169: 8 | AM169: 12 | AN169: 35 | AO169: 35 | AP169: 55 | AQ169: 54 | AR169: 8 | AS169: X | AU169: 95 | AV169: =IF(AU169<>AU168,AU169,"") -> 95 | AW169: 21 | AX169: =IF(AW169<>AW168,AW169,"") ->  | AZ169: 164
B170: 166 | C170: 2015 | D170: 5 | E170: 22 | F170: 3 | G170: 14 | H170: 15 | I170: 25 | J170: 48 | K170: 8 | L170: 0 | M170: 3 | N170: 1 | O170: 4 | P170: 1 | Q170: 5 | R170: 2 | S170: 5 | T170: 4 | U170: 8 | V170: 0 | W170: 8 | Y170: 165 | Z170: 1 | AA170: 2 | AB170: 3 | AC170: 5 | AD170: 1 | AE170: 4 | AF170: 5 | AG170: 1 | AH170: 6 | AI170: 4 | AJ170: 0 | AK170: 4 | AM170: 12 | AN170: 35 | AO170: 14 | AP170: 51 | AQ170: 64 | AR170: 4 | AS170: X | AU170: 96 | AV170: =IF(AU170<>AU169,AU170,"") -> 96 | AW170: 21 | AX170: =IF(AW170<>AW169,AW170,"") ->  | AZ170: 165
B171: 167 | C171: 2015 | D171: 5 | E171: 26 | F171: 1 | G171: 39 | H171: 52 | I171: 69 | J171: 72 | K171: 12 | L171: 0 | M171: 1 | N171: 3 | O171: 9 | P171: 5 | Q171: 2 | R171: 6 | S171: 9 | T171: 7 | U171: 2 | V171: 1 | W171: 2 | Y171: 166 | Z171: 0 | AA171: 2 | AB171: 2 | AC171: 1 | AD171: 1 | AE171: 4 | AF171: 5 | AG171: 2 | AH171: 5 | AI171: 4 | AJ171: 0 | AK171: 7 | AM171: 2 | AN171: 21 | AO171: 14 | AP171: 52 | AQ171: 54 | AR171: 7 | AS171: X | AU171: 97 | AV171: =IF(AU171<>AU170,AU171,"") -> 97 | AW171: 21 | AX171: =IF(AW171<>AW170,AW171,"") ->  | AZ171: 166
B172: 168 | C172: 2015 | D172: 5 | E172: 29 | F172: 20 | G172: 27 | H172: 38 | I172: 49 | J172: 66 | K172: 2 | L172: 2 | M172: 0 | N172: 2 | O172: 7 | P172: 3 | Q172: 8 | R172: 4 | S172: 9 | T172: 6 | U172: 6 | V172: 0 | W172: 2 | Y172: 167 | Z172: 0 | AA172: 2 | AB172: 0 | AC172: 8 | AD172: 2 | AE172: 0 | AF172: 5 | AG172: 8 | AH172: 7 | AI172: 9 | AJ172: 0 | AK172: 3 | AM172: 2 | AN172: 8 | AO172: 20 | AP172: 58 | AQ172: 79 | AR172: 3 | AU172: 97 | AV172: =IF(AU172<>AU171,AU172,"") ->  | AW172: 21 | AX172: =IF(AW172<>AW171,AW172,"") ->  | AZ172: 167
B173: 169 | C173: 2015 | D173: 6 | E173: 2 | F173: 2 | G173: 9 | H173: 11 | I173: 22 | J173: 23 | K173: 12 | L173: 0 | M173: 2 | N173: 0 | O173: 9 | P173: 1 | Q173: 1 | R173: 2 | S173: 2 | T173: 2 | U173: 3 | V173: 1 | W173: 2 | Y173: 168 | Z173: 4 | AA173: 0 | AB173: 1 | AC173: 8 | AD173: 5 | AE173: 7 | AF173: 6 | AG173: 7 | AH173: 6 | AI173: 7 | AJ173: 1 | AK173: 0 | AM173: 40 | AN173: 18 | AO173: 57 | AP173: 67 | AQ173: 67 | AR173: 10 | AS173: X | AU173: 98 | AV173: =IF(AU173<>AU172,AU173,"") -> 98 | AW173: 21 | AX173: =IF(AW173<>AW172,AW173,"") ->  | AZ173: 168
B174: 170 | C174: 2015 | D174: 6 | E174: 5 | F174: 7 | G174: 22 | H174: 27 | I174: 41 | J174: 49 | K174: 10 | L174: 0 | M174: 7 | N174: 2 | O174: 2 | P174: 2 | Q174: 7 | R174: 4 | S174: 1 | T174: 4 | U174: 9 | V174: 1 | W174: 0 | Y174: 169 | Z174: 2 | AA174: 3 | AB174: 1 | AC174: 0 | AD174: 2 | AE174: 2 | AF174: 4 | AG174: 0 | AH174: 3 | AI174: 9 | AJ174: 0 | AK174: 5 | AM174: 23 | AN174: 10 | AO174: 22 | AP174: 40 | AQ174: 39 | AR174: 5 | AS174: X | AU174: 99 | AV174: =IF(AU174<>AU173,AU174,"") -> 99 | AW174: 21 | AX174: =IF(AW174<>AW173,AW174,"") ->  | AZ174: 169
B175: 171 | C175: 2015 | D175: 6 | E175: 9 | F175: 6 | G175: 16 | H175: 17 | I175: 25 | J175: 36 | K175: 7 | L175: 0 | M175: 6 | N175: 1 | O175: 6 | P175: 1 | Q175: 7 | R175: 2 | S175: 5 | T175: 3 | U175: 6 | V175: 0 | W175: 7 | Y175: 170 | Z175: 0 | AA175: 2 | AB175: 5 | AC175: 1 | AD175: 2 | AE175: 5 | AF175: 3 | AG175: 0 | AH175: 5 | AI175: 4 | AJ175: 0 | AK175: 1 | AM175: 2 | AN175: 51 | AO175: 25 | AP175: 30 | AQ175: 54 | AR175: 1 | AS175: X | AU175: 100 | AV175: =IF(AU175<>AU174,AU175,"") -> 100 | AW175: 21 | AX175: =IF(AW175<>AW174,AW175,"") ->  | AZ175: 170
B176: 172 | C176: 2015 | D176: 6 | E176: 12 | F176: 1 | G176: 40 | H176: 42 | I176: 56 | J176: 62 | K176: 2 | L176: 0 | M176: 1 | N176: 4 | O176: 0 | P176: 4 | Q176: 2 | R176: 5 | S176: 6 | T176: 6 | U176: 2 | V176: 0 | W176: 2 | Y176: 171 | Z176: 3 | AA176: 2 | AB176: 2 | AC176: 4 | AD176: 2 | AE176: 5 | AF176: 7 | AG176: 2 | AH176: 4 | AI176: 0 | AJ176: 0 | AK176: 0 | AM176: 32 | AN176: 24 | AO176: 25 | AP176: 72 | AQ176: 40 | AR176: 0 | AU176: 100 | AV176: =IF(AU176<>AU175,AU176,"") ->  | AW176: 21 | AX176: =IF(AW176<>AW175,AW176,"") ->  | AZ176: 171
B177: 173 | C177: 2015 | D177: 6 | E177: 16 | F177: 8 | G177: 19 | H177: 26 | I177: 56 | J177: 67 | K177: 14 | L177: 0 | M177: 8 | N177: 1 | O177: 9 | P177: 2 | Q177: 6 | R177: 5 | S177: 6 | T177: 6 | U177: 7 | V177: 1 | W177: 4 | Y177: 172 | Z177: 0 | AA177: 4 | AB177: 2 | AC177: 0 | AD177: 3 | AE177: 0 | AF177: 5 | AG177: 5 | AH177: 5 | AI177: 4 | AJ177: 1 | AK177: 5 | AM177: 4 | AN177: 20 | AO177: 30 | AP177: 55 | AQ177: 54 | AR177: 15 | AS177: X | AU177: 101 | AV177: =IF(AU177<>AU176,AU177,"") -> 101 | AW177: 21 | AX177: =IF(AW177<>AW176,AW177,"") ->  | AZ177: 172
B178: 174 | C178: 2015 | D178: 6 | E178: 19 | F178: 4 | G178: 35 | H178: 36 | I178: 52 | J178: 68 | K178: 8 | L178: 0 | M178: 4 | N178: 3 | O178: 5 | P178: 3 | Q178: 6 | R178: 5 | S178: 2 | T178: 6 | U178: 8 | V178: 0 | W178: 8 | Y178: 173 | Z178: 0 | AA178: 2 | AB178: 2 | AC178: 9 | AD178: 3 | AE178: 2 | AF178: 5 | AG178: 7 | AH178: 6 | AI178: 7 | AJ178: 0 | AK178: 1 | AM178: 2 | AN178: 29 | AO178: 32 | AP178: 57 | AQ178: 67 | AR178: 1 | AS178: X | AT178: XX | AU178: 102 | AV178: =IF(AU178<>AU177,AU178,"") -> 102 | AW178: 22 | AX178: =IF(AW178<>AW177,AW178,"") -> 22 | AZ178: 173
B179: 175 | C179: 2015 | D179: 6 | E179: 23 | F179: 6 | G179: 13 | H179: 38 | I179: 56 | J179: 70 | K179: 2 | L179: 0 | M179: 6 | N179: 1 | O179: 3 | P179: 3 | Q179: 8 | R179: 5 | S179: 6 | T179: 7 | U179: 0 | V179: 0 | W179: 2 | Y179: 174 | Z179: 0 | AA179: 3 | AB179: 1 | AC179: 4 | AD179: 1 | AE179: 9 | AF179: 2 | AG179: 7 | AH179: 7 | AI179: 0 | AJ179: 1 | AK179: 7 | AM179: 3 | AN179: 14 | AO179: 19 | AP179: 27 | AQ179: 70 | AR179: 17 | AU179: 102 | AV179: =IF(AU179<>AU178,AU179,"") ->  | AW179: 22 | AX179: =IF(AW179<>AW178,AW179,"") ->  | AZ179: 174
B180: 176 | C180: 2015 | D180: 6 | E180: 26 | F180: 12 | G180: 23 | H180: 33 | I180: 47 | J180: 50 | K180: 3 | L180: 1 | M180: 2 | N180: 2 | O180: 3 | P180: 3 | Q180: 3 | R180: 4 | S180: 7 | T180: 5 | U180: 0 | V180: 0 | W180: 3 | Y180: 175 | Z180: 0 | AA180: 0 | AB180: 0 | AC180: 0 | AD180: 2 | AE180: 0 | AF180: 4 | AG180: 8 | AH180: 5 | AI180: 8 | AJ180: 1 | AK180: 7 | AM180: 0 | AN180: 0 | AO180: 20 | AP180: 48 | AQ180: 58 | AR180: 17 | AU180: 102 | AV180: =IF(AU180<>AU179,AU180,"") ->  | AW180: 22 | AX180: =IF(AW180<>AW179,AW180,"") ->  | AZ180: 175
B181: 177 | C181: 2015 | D181: 6 | E181: 30 | F181: 11 | G181: 17 | H181: 34 | I181: 43 | J181: 50 | K181: 15 | L181: 1 | M181: 1 | N181: 1 | O181: 7 | P181: 3 | Q181: 4 | R181: 4 | S181: 3 | T181: 5 | U181: 0 | V181: 1 | W181: 5 | Y181: 176 | Z181: 0 | AA181: 8 | AB181: 2 | AC181: 9 | AD181: 1 | AE181: 4 | AF181: 6 | AG181: 1 | AH181: 6 | AI181: 4 | AJ181: 0 | AK181: 9 | AM181: 8 | AN181: 29 | AO181: 14 | AP181: 61 | AQ181: 64 | AR181: 9 | AS181: X | AU181: 103 | AV181: =IF(AU181<>AU180,AU181,"") -> 103 | AW181: 22 | AX181: =IF(AW181<>AW180,AW181,"") ->  | AZ181: 176
B182: 178 | C182: 2015 | D182: 7 | E182: 3 | F182: 33 | G182: 50 | H182: 64 | I182: 71 | J182: 72 | K182: 9 | L182: 3 | M182: 3 | N182: 5 | O182: 0 | P182: 6 | Q182: 4 | R182: 7 | S182: 1 | T182: 7 | U182: 2 | V182: 0 | W182: 9 | Y182: 177 | Z182: 0 | AA182: 4 | AB182: 4 | AC182: 9 | AD182: 1 | AE182: 8 | AF182: 7 | AG182: 8 | AH182: 6 | AI182: 0 | AJ182: 0 | AK182: 4 | AM182: 4 | AN182: 49 | AO182: 18 | AP182: 78 | AQ182: 60 | AR182: 4 | AU182: 103 | AV182: =IF(AU182<>AU181,AU182,"") ->  | AW182: 22 | AX182: =IF(AW182<>AW181,AW182,"") ->  | AZ182: 177
B183: 179 | C183: 2015 | D183: 7 | E183: 7 | F183: 6 | G183: 15 | H183: 16 | I183: 28 | J183: 49 | K183: 14 | L183: 0 | M183: 6 | N183: 1 | O183: 5 | P183: 1 | Q183: 6 | R183: 2 | S183: 8 | T183: 4 | U183: 9 | V183: 1 | W183: 4 | Y183: 178 | Z183: 2 | AA183: 0 | AB183: 0 | AC183: 0 | AD183: 2 | AE183: 3 | AF183: 5 | AG183: 1 | AH183: 5 | AI183: 2 | AJ183: 0 | AK183: 3 | AM183: 20 | AN183: 0 | AO183: 23 | AP183: 51 | AQ183: 52 | AR183: 3 | AU183: 103 | AV183: =IF(AU183<>AU182,AU183,"") ->  | AW183: 22 | AX183: =IF(AW183<>AW182,AW183,"") ->  | AZ183: 178
B184: 180 | C184: 2015 | D184: 7 | E184: 10 | F184: 24 | G184: 27 | H184: 45 | I184: 51 | J184: 54 | K184: 8 | L184: 2 | M184: 4 | N184: 2 | O184: 7 | P184: 4 | Q184: 5 | R184: 5 | S184: 1 | T184: 5 | U184: 4 | V184: 0 | W184: 8 | Y184: 179 | Z184: 0 | AA184: 7 | AB184: 2 | AC184: 9 | AD184: 1 | AE184: 9 | AF184: 6 | AG184: 9 | AH184: 7 | AI184: 4 | AJ184: 1 | AK184: 5 | AM184: 7 | AN184: 29 | AO184: 19 | AP184: 69 | AQ184: 74 | AR184: 15 | AS184: X | AU184: 104 | AV184: =IF(AU184<>AU183,AU184,"") -> 104 | AW184: 22 | AX184: =IF(AW184<>AW183,AW184,"") ->  | AZ184: 179
B185: 181 | C185: 2015 | D185: 7 | E185: 14 | F185: 19 | G185: 24 | H185: 30 | I185: 35 | J185: 72 | K185: 5 | L185: 1 | M185: 9 | N185: 2 | O185: 4 | P185: 3 | Q185: 0 | R185: 3 | S185: 5 | T185: 7 | U185: 2 | V185: 0 | W185: 5 | Y185: 180 | Z185: 2 | AA185: 2 | AB185: 4 | AC185: 0 | AD185: 3 | AE185: 5 | AF185: 7 | AG185: 1 | AH185: 6 | AI185: 4 | AJ185: 0 | AK185: 1 | AM185: 22 | AN185: 40 | AO185: 35 | AP185: 71 | AQ185: 64 | AR185: 1 | AS185: X | AU185: 105 | AV185: =IF(AU185<>AU184,AU185,"") -> 105 | AW185: 22 | AX185: =IF(AW185<>AW184,AW185,"") ->  | AZ185: 180
B186: 182 | C186: 2015 | D186: 7 | E186: 17 | F186: 6 | G186: 17 | H186: 30 | I186: 31 | J186: 41 | K186: 15 | L186: 0 | M186: 6 | N186: 1 | O186: 7 | P186: 3 | Q186: 0 | R186: 3 | S186: 1 | T186: 4 | U186: 1 | V186: 1 | W186: 5 | Y186: 181 | Z186: 0 | AA186: 0 | AB186: 4 | AC186: 8 | AD186: 5 | AE186: 4 | AF186: 6 | AG186: 1 | AH186: 6 | AI186: 2 | AJ186: 0 | AK186: 1 | AM186: 0 | AN186: 48 | AO186: 54 | AP186: 61 | AQ186: 62 | AR186: 1 | AU186: 105 | AV186: =IF(AU186<>AU185,AU186,"") ->  | AW186: 22 | AX186: =IF(AW186<>AW185,AW186,"") ->  | AZ186: 181
B187: 183 | C187: 2015 | D187: 7 | E187: 21 | F187: 20 | G187: 30 | H187: 62 | I187: 65 | J187: 74 | K187: 1 | L187: 2 | M187: 0 | N187: 3 | O187: 0 | P187: 6 | Q187: 2 | R187: 6 | S187: 5 | T187: 7 | U187: 4 | V187: 0 | W187: 1 | Y187: 182 | Z187: 0 | AA187: 0 | AB187: 4 | AC187: 9 | AD187: 4 | AE187: 9 | AF187: 6 | AG187: 0 | AH187: 7 | AI187: 0 | AJ187: 0 | AK187: 0 | AM187: 0 | AN187: 49 | AO187: 49 | AP187: 60 | AQ187: 70 | AR187: 0 | AU187: 105 | AV187: =IF(AU187<>AU186,AU187,"") ->  | AW187: 22 | AX187: =IF(AW187<>AW186,AW187,"") ->  | AZ187: 182
B188: 184 | C188: 2015 | D188: 7 | E188: 24 | F188: 10 | G188: 12 | H188: 26 | I188: 60 | J188: 62 | K188: 13 | L188: 1 | M188: 0 | N188: 1 | O188: 2 | P188: 2 | Q188: 6 | R188: 6 | S188: 0 | T188: 6 | U188: 2 | V188: 1 | W188: 3 | Y188: 183 | Z188: 3 | AA188: 1 | AB188: 3 | AC188: 1 | AD188: 5 | AE188: 4 | AF188: 4 | AG188: 7 | AH188: 5 | AI188: 6 | AJ188: 0 | AK188: 5 | AM188: 31 | AN188: 31 | AO188: 54 | AP188: 47 | AQ188: 56 | AR188: 5 | AS188: X | AU188: 106 | AV188: =IF(AU188<>AU187,AU188,"") -> 106 | AW188: 22 | AX188: =IF(AW188<>AW187,AW188,"") ->  | AZ188: 183
B189: 185 | C189: 2015 | D189: 7 | E189: 28 | F189: 8 | G189: 35 | H189: 61 | I189: 68 | J189: 75 | K189: 15 | L189: 0 | M189: 8 | N189: 3 | O189: 5 | P189: 6 | Q189: 1 | R189: 6 | S189: 8 | T189: 7 | U189: 5 | V189: 1 | W189: 5 | Y189: 184 | Z189: 1 | AA189: 2 | AB189: 0 | AC189: 8 | AD189: 3 | AE189: 7 | AF189: 4 | AG189: 6 | AH189: 5 | AI189: 4 | AJ189: 0 | AK189: 1 | AM189: 12 | AN189: 8 | AO189: 37 | AP189: 46 | AQ189: 54 | AR189: 1 | AS189: X | AU189: 107 | AV189: =IF(AU189<>AU188,AU189,"") -> 107 | AW189: 22 | AX189: =IF(AW189<>AW188,AW189,"") ->  | AZ189: 184
B190: 186 | C190: 2015 | D190: 7 | E190: 31 | F190: 28 | G190: 32 | H190: 33 | I190: 40 | J190: 46 | K190: 10 | L190: 2 | M190: 8 | N190: 3 | O190: 2 | P190: 3 | Q190: 3 | R190: 4 | S190: 0 | T190: 4 | U190: 6 | V190: 1 | W190: 0 | Y190: 185 | Z190: 2 | AA190: 5 | AB190: 2 | AC190: 8 | AD190: 1 | AE190: 3 | AF190: 5 | AG190: 5 | AH190: 7 | AI190: 4 | AJ190: 0 | AK190: 8 | AM190: 25 | AN190: 28 | AO190: 13 | AP190: 55 | AQ190: 74 | AR190: 8 | AS190: X | AU190: 108 | AV190: =IF(AU190<>AU189,AU190,"") -> 108 | AW190: 22 | AX190: =IF(AW190<>AW189,AW190,"") ->  | AZ190: 185
B191: 187 | C191: 2015 | D191: 8 | E191: 4 | F191: 2 | G191: 19 | H191: 44 | I191: 51 | J191: 57 | K191: 14 | L191: 0 | M191: 2 | N191: 1 | O191: 9 | P191: 4 | Q191: 4 | R191: 5 | S191: 1 | T191: 5 | U191: 7 | V191: 1 | W191: 4 | Y191: 186 | Z191: 1 | AA191: 2 | AB191: 3 | AC191: 2 | AD191: 1 | AE191: 8 | AF191: 5 | AG191: 8 | AH191: 5 | AI191: 4 | AJ191: 1 | AK191: 8 | AM191: 12 | AN191: 32 | AO191: 18 | AP191: 58 | AQ191: 54 | AR191: 18 | AU191: 108 | AV191: =IF(AU191<>AU190,AU191,"") ->  | AW191: 22 | AX191: =IF(AW191<>AW190,AW191,"") ->  | AZ191: 186
B192: 188 | C192: 2015 | D192: 8 | E192: 7 | F192: 1 | G192: 38 | H192: 53 | I192: 63 | J192: 66 | K192: 10 | L192: 0 | M192: 1 | N192: 3 | O192: 8 | P192: 5 | Q192: 3 | R192: 6 | S192: 3 | T192: 6 | U192: 6 | V192: 1 | W192: 0 | Y192: 187 | Z192: 0 | AA192: 2 | AB192: 3 | AC192: 0 | AD192: 3 | AE192: 2 | AF192: 5 | AG192: 5 | AH192: 7 | AI192: 2 | AJ192: 0 | AK192: 1 | AM192: 2 | AN192: 30 | AO192: 32 | AP192: 55 | AQ192: 72 | AR192: 1 | AS192: X | AT192: XX | AU192: 109 | AV192: =IF(AU192<>AU191,AU192,"") -> 109 | AW192: 23 | AX192: =IF(AW192<>AW191,AW192,"") -> 23 | AZ192: 187
B193: 189 | C193: 2015 | D193: 8 | E193: 11 | F193: 3 | G193: 8 | H193: 29 | I193: 57 | J193: 68 | K193: 8 | L193: 0 | M193: 3 | N193: 0 | O193: 8 | P193: 2 | Q193: 9 | R193: 5 | S193: 7 | T193: 6 | U193: 8 | V193: 0 | W193: 8 | Y193: 188 | Z193: 1 | AA193: 0 | AB193: 1 | AC193: 8 | AD193: 2 | AE193: 4 | AF193: 6 | AG193: 0 | AH193: 5 | AI193: 3 | AJ193: 0 | AK193: 4 | AM193: 10 | AN193: 18 | AO193: 24 | AP193: 60 | AQ193: 53 | AR193: 4 | AS193: X | AU193: 110 | AV193: =IF(AU193<>AU192,AU193,"") -> 110 | AW193: 23 | AX193: =IF(AW193<>AW192,AW193,"") ->  | AZ193: 188
B194: 190 | C194: 2015 | D194: 8 | E194: 14 | F194: 12 | G194: 15 | H194: 20 | I194: 52 | J194: 71 | K194: 3 | L194: 1 | M194: 2 | N194: 1 | O194: 5 | P194: 2 | Q194: 0 | R194: 5 | S194: 2 | T194: 7 | U194: 1 | V194: 0 | W194: 3 | Y194: 189 | Z194: 0 | AA194: 2 | AB194: 0 | AC194: 8 | AD194: 4 | AE194: 5 | AF194: 4 | AG194: 9 | AH194: 7 | AI194: 4 | AJ194: 0 | AK194: 0 | AM194: 2 | AN194: 8 | AO194: 45 | AP194: 49 | AQ194: 74 | AR194: 0 | AU194: 110 | AV194: =IF(AU194<>AU193,AU194,"") ->  | AW194: 23 | AX194: =IF(AW194<>AW193,AW194,"") ->  | AZ194: 189
B195: 191 | C195: 2015 | D195: 8 | E195: 18 | F195: 2 | G195: 7 | H195: 33 | I195: 39 | J195: 53 | K195: 9 | L195: 0 | M195: 2 | N195: 0 | O195: 7 | P195: 3 | Q195: 3 | R195: 3 | S195: 9 | T195: 5 | U195: 3 | V195: 0 | W195: 9 | Y195: 190 | Z195: 0 | AA195: 8 | AB195: 2 | AC195: 5 | AD195: 3 | AE195: 4 | AF195: 4 | AG195: 8 | AH195: 6 | AI195: 8 | AJ195: 1 | AK195: 8 | AM195: 8 | AN195: 25 | AO195: 34 | AP195: 48 | AQ195: 68 | AR195: 18 | AU195: 110 | AV195: =IF(AU195<>AU194,AU195,"") ->  | AW195: 23 | AX195: =IF(AW195<>AW194,AW195,"") ->  | AZ195: 190
B196: 192 | C196: 2015 | D196: 8 | E196: 21 | F196: 13 | G196: 15 | H196: 21 | I196: 41 | J196: 72 | K196: 1 | L196: 1 | M196: 3 | N196: 1 | O196: 5 | P196: 2 | Q196: 1 | R196: 4 | S196: 1 | T196: 7 | U196: 2 | V196: 0 | W196: 1 | Y196: 191 | Z196: 0 | AA196: 2 | AB196: 1 | AC196: 5 | AD196: 2 | AE196: 5 | AF196: 6 | AG196: 9 | AH196: 6 | AI196: 3 | AJ196: 1 | AK196: 7 | AM196: 2 | AN196: 15 | AO196: 25 | AP196: 69 | AQ196: 63 | AR196: 17 | AU196: 110 | AV196: =IF(AU196<>AU195,AU196,"") ->  | AW196: 23 | AX196: =IF(AW196<>AW195,AW196,"") ->  | AZ196: 191
B197: 193 | C197: 2015 | D197: 8 | E197: 25 | F197: 5 | G197: 44 | H197: 54 | I197: 59 | J197: 63 | K197: 1 | L197: 0 | M197: 5 | N197: 4 | O197: 4 | P197: 5 | Q197: 4 | R197: 5 | S197: 9 | T197: 6 | U197: 3 | V197: 0 | W197: 1 | Y197: 192 | Z197: 2 | AA197: 4 | AB197: 1 | AC197: 8 | AD197: 3 | AE197: 9 | AF197: 5 | AG197: 8 | AH197: 7 | AI197: 0 | AJ197: 0 | AK197: 2 | AM197: 24 | AN197: 18 | AO197: 39 | AP197: 58 | AQ197: 70 | AR197: 2 | AS197: X | AU197: 111 | AV197: =IF(AU197<>AU196,AU197,"") -> 111 | AW197: 23 | AX197: =IF(AW197<>AW196,AW197,"") ->  | AZ197: 192
B198: 194 | C198: 2015 | D198: 8 | E198: 28 | F198: 13 | G198: 35 | H198: 40 | I198: 60 | J198: 68 | K198: 9 | L198: =IF(ISNUMBER(F198),INT(F198/10),"") -> 1 | M198: =IF(ISNUMBER(F198),F198-10*L198,"") -> 3 | N198: =IF(ISNUMBER(G198),INT(G198/10),"") -> 3 | O198: =IF(ISNUMBER(G198),G198-10*N198,"") -> 5 | P198: =IF(ISNUMBER(H198),INT(H198/10),"") -> 4 | Q198: =IF(ISNUMBER(H198),H198-10*P198,"") -> 0 | R198: =IF(ISNUMBER(I198),INT(I198/10),"") -> 6 | S198: =IF(ISNUMBER(I198),I198-10*R198,"") -> 0 | T198: =IF(ISNUMBER(J198),INT(J198/10),"") -> 6 | U198: =IF(ISNUMBER(J198),J198-10*T198,"") -> 8 | V198: =IF(ISNUMBER(K198),INT(K198/10),"") -> 0 | W198: =IF(ISNUMBER(K198),K198-10*V198,"") -> 9 | Y198: 193 | Z198: =IF($Z$5=$BL$5,Disimulate($BK$6:$BK$15,$BL$6:$BL$15),IF($Z$5=$BM$5,Disimulate($BK$6:$BK$15,$BM$6:$BM$15),IF($Z$5=$BN$5,Disimulate($BK$6:$BK$15,$BN$6:$BN$15),IF($Z$5=$BO$5,Disimulate($BK$6:$BK$15,$BO$6:$BO$15),IF($Z$5=$BP$5,Disimulate($BK$6:$BK$15,$BP$6:$BP$15),IF($Z$5=$BQ$5,Disimulate($BK$6:$BK$15,$BQ$6:$BQ$15),IF($Z$5=$BR$5,Disimulate($BK$6:$BK$15,$BR$6:$BR$15),IF($Z$5=$BS$5,Disimulate($BK$6:$BK$15,$BS$6:$BS$15),IF($Z$5=$BT$5,Disimulate($BK$6:$BK$15,$BT$6:$BT$15),IF($Z$5=$BU$5,Disimulate($BK$6:$BK$15,$BU$6:$BU$15),"")))))))))) -> 1 | AA198: =IF($AA$5=$BL$17,Disimulate($BK$18:$BK$27,$BL$18:$BL$27),IF($AA$5=$BM$17,Disimulate($BK$18:$BK$27,$BM$18:$BM$27),IF($AA$5=$BN$17,Disimulate($BK$18:$BK$27,$BN$18:$BN$27),IF($AA$5=$BO$17,Disimulate($BK$18:$BK$27,$BO$18:$BO$27),IF($AA$5=$BP$17,Disimulate($BK$18:$BK$27,$BP$18:$BP$27),IF($AA$5=$BQ$17,Disimulate($BK$18:$BK$27,$BQ$18:$BQ$27),IF($AA$5=$BR$17,Disimulate($BK$18:$BK$27,$BR$18:$BR$27),IF($AA$5=$BS$17,Disimulate($BK$18:$BK$27,$BS$18:$BS$27),IF($AA$5=$BT$17,Disimulate($BK$18:$BK$27,$BT$18:$BT$27),IF($AA$5=$BU$17,Disimulate($BK$18:$BK$27,$BU$18:$BU$27),"")))))))))) -> 4 | AB198: =IF($AB$5=$BX$5,Disimulate($BW$6:$BW$15,$BX$6:$BX$15),IF($AB$5=$BY$5,Disimulate($BW$6:$BW$15,$BY$6:$BY$15),IF($AB$5=$BZ$5,Disimulate($BW$6:$BW$15,$BZ$6:$BZ$15),IF($AB$5=$CA$5,Disimulate($BW$6:$BW$15,$CA$6:$CA$15),IF($AB$5=$CB$5,Disimulate($BW$6:$BW$15,$CB$6:$CB$15),IF($AB$5=$CC$5,Disimulate($BW$6:$BW$15,$CC$6:$CC$15),IF($AB$5=$CD$5,Disimulate($BW$6:$BW$15,$CD$6:$CD$15),IF($AB$5=$CE$5,Disimulate($BW$6:$BW$15,$CE$6:$CE$15),IF($AB$5=$CF$5,Disimulate($BW$6:$BW$15,$CF$6:$CF$15),IF($AB$5=$CG$5,Disimulate($BW$6:$BW$15,$CG$6:$CG$15),"")))))))))) -> 3 | AC198: =IF($AC$5=$BX$17,Disimulate($BW$18:$BW$27,$BX$18:$BX$27),IF($AC$5=$BY$17,Disimulate($BW$18:$BW$27,$BY$18:$BY$27),IF($AC$5=$BZ$17,Disimulate($BW$18:$BW$27,$BZ$18:$BZ$27),IF($AC$5=$CA$17,Disimulate($BW$18:$BW$27,$CA$18:$CA$27),IF($AC$5=$CB$17,Disimulate($BW$18:$BW$27,$CB$18:$CB$27),IF($AC$5=$CC$17,Disimulate($BW$18:$BW$27,$CC$18:$CC$27),IF($AC$5=$CD$17,Disimulate($BW$18:$BW$27,$CD$18:$CD$27),IF($AC$5=$CE$17,Disimulate($BW$18:$BW$27,$CE$18:$CE$27),IF($AC$5=$CF$17,Disimulate($BW$18:$BW$27,$CF$18:$CF$27),IF($AC$5=$CG$17,Disimulate($BW$18:$BW$27,$CG$18:$CG$27),"")))))))))) -> 0 | AD198: =IF($AD$5=$CJ$5,Disimulate($CI$6:$CI$15,$CJ$6:$CJ$15),IF($AD$5=$CK$5,Disimulate($CI$6:$CI$15,$CK$6:$CK$15),IF($AD$5=$CL$5,Disimulate($CI$6:$CI$15,$CL$6:$CL$15),IF($AD$5=$CM$5,Disimulate($CI$6:$CI$15,$CM$6:$CM$15),IF($AD$5=$CN$5,Disimulate($CI$6:$CI$15,$CN$6:$CN$15),IF($AD$5=$CO$5,Disimulate($CI$6:$CI$15,$CO$6:$CO$15),IF($AD$5=$CP$5,Disimulate($CI$6:$CI$15,$CP$6:$CP$15),IF($AD$5=$CQ$5,Disimulate($CI$6:$CI$15,$CQ$6:$CQ$15),IF($AD$5=$CR$5,Disimulate($CI$6:$CI$15,$CR$6:$CR$15),IF($AD$5=$CS$5,Disimulate($CI$6:$CI$15,$CS$6:$CS$15),"")))))))))) -> 2 | AE198: =IF($AE$5=$CJ$17,Disimulate($CI$18:$CI$27,$CJ$18:$CJ$27),IF($AE$5=$CK$17,Disimulate($CI$18:$CI$27,$CK$18:$CK$27),IF($AE$5=$CL$17,Disimulate($CI$18:$CI$27,$CL$18:$CL$27),IF($AE$5=$CM$17,Disimulate($CI$18:$CI$27,$CM$18:$CM$27),IF($AE$5=$CN$17,Disimulate($CI$18:$CI$27,$CN$18:$CN$27),IF($AE$5=$CO$17,Disimulate($CI$18:$CI$27,$CO$18:$CO$27),IF($AE$5=$CP$17,Disimulate($CI$18:$CI$27,$CP$18:$CP$27),IF($AE$5=$CQ$17,Disimulate($CI$18:$CI$27,$CQ$18:$CQ$27),IF($AE$5=$CR$17,Disimulate($CI$18:$CI$27,$CR$18:$CR$27),IF($AE$5=$CS$17,Disimulate($CI$18:$CI$27,$CS$18:$CS$27),"")))))))))) -> 8 | AF198: =IF($AF$5=$CV$5,Disimulate($CU$6:$CU$15,$CV$6:$CV$15),IF($AF$5=$CW$5,Disimulate($CU$6:$CU$15,$CW$6:$CW$15),IF($AF$5=$CX$5,Disimulate($CU$6:$CU$15,$CX$6:$CX$15),IF($AF$5=$CY$5,Disimulate($CU$6:$CU$15,$CY$6:$CY$15),IF($AF$5=$CZ$5,Disimulate($CU$6:$CU$15,$CZ$6:$CZ$15),IF($AF$5=$DA$5,Disimulate($CU$6:$CU$15,$DA$6:$DA$15),IF($AF$5=$DB$5,Disimulate($CU$6:$CU$15,$DB$6:$DB$15),IF($AF$5=$DC$5,Disimulate($CU$6:$CU$15,$DC$6:$DC$15),IF($AF$5=$DD$5,Disimulate($CU$6:$CU$15,$DD$6:$DD$15),IF($AF$5=$DE$5,Disimulate($CU$6:$CU$15,$DE$6:$DE$15),"")))))))))) -> 5 | AG198: =IF($AG$5=$CV$17,Disimulate($CU$18:$CU$27,$CV$18:$CV$27),IF($AG$5=$CW$17,Disimulate($CU$18:$CU$27,$CW$18:$CW$27),IF($AG$5=$CX$17,Disimulate($CU$18:$CU$27,$CX$18:$CX$27),IF($AG$5=$CY$17,Disimulate($CU$18:$CU$27,$CY$18:$CY$27),IF($AG$5=$CZ$17,Disimulate($CU$18:$CU$27,$CZ$18:$CZ$27),IF($AG$5=$DA$17,Disimulate($CU$18:$CU$27,$DA$18:$DA$27),IF($AG$5=$DB$17,Disimulate($CU$18:$CU$27,$DB$18:$DB$27),IF($AG$5=$DC$17,Disimulate($CU$18:$CU$27,$DC$18:$DC$27),IF($AG$5=$DD$17,Disimulate($CU$18:$CU$27,$DD$18:$DD$27),IF($AG$5=$DE$17,Disimulate($CU$18:$CU$27,$DE$18:$DE$27),"")))))))))) -> 0 | AH198: =IF($AH$5=$DH$5,Disimulate($DG$6:$DG$15,$DH$6:$DH$15),IF($AH$5=$DI$5,Disimulate($DG$6:$DG$15,$DI$6:$DI$15),IF($AH$5=$DJ$5,Disimulate($DG$6:$DG$15,$DJ$6:$DJ$15),IF($AH$5=$DK$5,Disimulate($DG$6:$DG$15,$DK$6:$DK$15),IF($AH$5=$DL$5,Disimulate($DG$6:$DG$15,$DL$6:$DL$15),IF($AH$5=$DM$5,Disimulate($DG$6:$DG$15,$DM$6:$DM$15),IF($AH$5=$DN$5,Disimulate($DG$6:$DG$15,$DN$6:$DN$15),IF($AH$5=$DO$5,Disimulate($DG$6:$DG$15,$DO$6:$DO$15),IF($AH$5=$DP$5,Disimulate($DG$6:$DG$15,$DP$6:$DP$15),IF($AH$5=$DQ$5,Disimulate($DG$6:$DG$15,$DQ$6:$DQ$15),"")))))))))) -> 7 | AI198: =IF($AI$5=$DH$17,Disimulate($DG$18:$DG$27,$DH$18:$DH$27),IF($AI$5=$DI$17,Disimulate($DG$18:$DG$27,$DI$18:$DI$27),IF($AI$5=$DJ$17,Disimulate($DG$18:$DG$27,$DJ$18:$DJ$27),IF($AI$5=$DK$17,Disimulate($DG$18:$DG$27,$DK$18:$DK$27),IF($AI$5=$DL$17,Disimulate($DG$18:$DG$27,$DL$18:$DL$27),IF($AI$5=$DM$17,Disimulate($DG$18:$DG$27,$DM$18:$DM$27),IF($AI$5=$DN$17,Disimulate($DG$18:$DG$27,$DN$18:$DN$27),IF($AI$5=$DO$17,Disimulate($DG$18:$DG$27,$DO$18:$DO$27),IF($AI$5=$DP$17,Disimulate($DG$18:$DG$27,$DP$18:$DP$27),IF($AI$5=$DQ$17,Disimulate($DG$18:$DG$27,$DQ$18:$DQ$27),"")))))))))) -> 3 | AJ198: =IF($AJ$5=$DT$5,Disimulate($DS$6:$DS$15,$DT$6:$DT$15),IF($AJ$5=$DU$5,Disimulate($DS$6:$DS$15,$DU$6:$DU$15),IF($AJ$5=$DV$5,Disimulate($DS$6:$DS$15,$DV$6:$DV$15),IF($AJ$5=$DW$5,Disimulate($DS$6:$DS$15,$DW$6:$DW$15),IF($AJ$5=$DX$5,Disimulate($DS$6:$DS$15,$DX$6:$DX$15),IF($AJ$5=$DY$5,Disimulate($DS$6:$DS$15,$DY$6:$DY$15),IF($AJ$5=$DZ$5,Disimulate($DS$6:$DS$15,$DZ$6:$DZ$15),IF($AJ$5=$EA$5,Disimulate($DS$6:$DS$15,$EA$6:$EA$15),IF($AJ$5=$EB$5,Disimulate($DS$6:$DS$15,$EB$6:$EB$15),IF($AJ$5=$EC$5,Disimulate($DS$6:$DS$15,$EC$6:$EC$15),"")))))))))) -> 1 | AK198: =IF($AK$5=$DT$17,Disimulate($DS$18:$DS$27,$DT$18:$DT$27),IF($AK$5=$DU$17,Disimulate($DS$18:$DS$27,$DU$18:$DU$27),IF($AK$5=$DV$17,Disimulate($DS$18:$DS$27,$DV$18:$DV$27),IF($AK$5=$DW$17,Disimulate($DS$18:$DS$27,$DW$18:$DW$27),IF($AK$5=$DX$17,Disimulate($DS$18:$DS$27,$DX$18:$DX$27),IF($AK$5=$DY$17,Disimulate($DS$18:$DS$27,$DY$18:$DY$27),IF($AK$5=$DZ$17,Disimulate($DS$18:$DS$27,$DZ$18:$DZ$27),IF($AK$5=$EA$17,Disimulate($DS$18:$DS$27,$EA$18:$EA$27),IF($AK$5=$EB$17,Disimulate($DS$18:$DS$27,$EB$18:$EB$27),IF($AK$5=$EC$17,Disimulate($DS$18:$DS$27,$EC$18:$EC$27),"")))))))))) -> 4 | AM198: =10*Z198+1*MOD(AA198+AM$4,10) -> 14 | AN198: =10*AB198+1*MOD(AC198+AN$4,10) -> 30 | AO198: =10*AD198+1*MOD(AE198+AO$4,10) -> 28 | AP198: =10*AF198+1*MOD(AG198+AP$4,10) -> 50 | AQ198: =10*AH198+1*MOD(AI198+AQ$4,10) -> 73 | AR198: =10*AJ198+1*MOD(AK198+AR$4,10) -> 14 | AS198: X | AU198: 112 | AV198: =IF(AU198<>AU197,AU198,"") -> 112 | AW198: 23 | AX198: =IF(AW198<>AW197,AW198,"") ->  | AZ198: 193
B199: 195 | C199: 2015 | D199: 9 | E199: 1 | F199: 2 | G199: 5 | H199: 35 | I199: 40 | J199: 54 | K199: 13 | L199: 0 | M199: 2 | N199: 0 | O199: 5 | P199: 3 | Q199: 5 | R199: 4 | S199: 0 | T199: 5 | U199: 4 | V199: 1 | W199: 3 | Y199: 194 | Z199: 1 | AA199: 2 | AB199: 2 | AC199: 8 | AD199: 2 | AE199: 2 | AF199: 6 | AG199: 7 | AH199: 5 | AI199: 2 | AJ199: 0 | AK199: 5 | AM199: 12 | AN199: 28 | AO199: 22 | AP199: 67 | AQ199: 52 | AR199: 5 | AS199: X | AU199: 113 | AV199: =IF(AU199<>AU198,AU199,"") -> 113 | AW199: 23 | AX199: =IF(AW199<>AW198,AW199,"") ->  | AZ199: 194 | BA199: =IF($AZ199<=$AT$5,LOOKUP($AZ199,$AX$6:$AX$1005,AM$6:AM$1005),"") ->  | BB199: =IF($AZ199<=$AT$5,LOOKUP($AZ199,$AX$6:$AX$1005,AN$6:AN$1005),"") ->  | BC199: =IF($AZ199<=$AT$5,LOOKUP($AZ199,$AX$6:$AX$1005,AO$6:AO$1005),"") ->  | BD199: =IF($AZ199<=$AT$5,LOOKUP($AZ199,$AX$6:$AX$1005,AP$6:AP$1005),"") ->  | BE199: =IF($AZ199<=$AT$5,LOOKUP($AZ199,$AX$6:$AX$1005,AQ$6:AQ$1005),"") ->  | BF199: =IF($AZ199<=$AT$5,LOOKUP($AZ199,$AX$6:$AX$1005,AR$6:AR$1005),"") -> 
B200: 196 | C200: 2015 | D200: 9 | E200: 4 | F200: 17 | G200: 21 | H200: 39 | I200: 52 | J200: 57 | K200: 5 | L200: 1 | M200: 7 | N200: 2 | O200: 1 | P200: 3 | Q200: 9 | R200: 5 | S200: 2 | T200: 5 | U200: 7 | V200: 0 | W200: 5 | Y200: 195 | Z200: 2 | AA200: 1 | AB200: 3 | AC200: 0 | AD200: 3 | AE200: 3 | AF200: 2 | AG200: 0 | AH200: 7 | AI200: 7 | AJ200: 0 | AK200: 4 | AM200: 21 | AN200: 30 | AO200: 33 | AP200: 20 | AQ200: 77 | AR200: 4 | AS200: =IF(AND(MIN(AM200:AR200)>0,MAX(AM200:AQ200)<76,AR200<16),"X","") ->  | AT200: =IF(AND(AS200="X",AM200<AN200,AN200<AO200,AO200<AP200,AP200<AQ200),"XX","") ->  | AU200: =IF(AS200="X",AU199+1,AU199) -> 113 | AV200: =IF(AU200<>AU199,AU200,"") ->  | AW200: =IF(AT200="XX",AW199+1,AW199) -> 23 | AX200: =IF(AW200<>AW199,AW200,"") ->  | AZ200: 195
B201: 197 | C201: 2015 | D201: 9 | E201: 8 | F201: 19 | G201: 20 | H201: 36 | I201: 41 | J201: 46 | K201: 7 | L201: 1 | M201: 9 | N201: 2 | O201: 0 | P201: 3 | Q201: 6 | R201: 4 | S201: 1 | T201: 4 | U201: 6 | V201: 0 | W201: 7 | Y201: 196 | Z201: 1 | AA201: 0 | AB201: 0 | AC201: 9 | AD201: 4 | AE201: 4 | AF201: 4 | AG201: 1 | AH201: 5 | AI201: 3 | AJ201: 0 | AK201: 0 | AM201: 10 | AN201: 9 | AO201: 44 | AP201: 41 | AQ201: 53 | AR201: 0 | AU201: 113 | AV201: =IF(AU201<>AU200,AU201,"") ->  | AW201: 23 | AX201: =IF(AW201<>AW200,AW201,"") ->  | AZ201: 196
... 1303 more rows

Sheet Powerball
B2: Index | C2: Year | D2: Month | E2: Day | F2: Powerball Draws | L2: Separated Digits
F3: A | G3: B | H3: C | I3: D | J3: E | K3: PB | L3: A | N3: B | P3: C | R3: D | T3: E | V3: PB | Z3: A | AB3: B | AD3: C | AF3: D | AH3: E | AJ3: PB | AM3: Offset 1's Digit ±5 | BI3: · | BJ3: → | BL3: A | BX3: B | CJ3: C | CV3: D | DH3: E | DT3: PB
L4: 10's | M4: 1's | N4: 10's | O4: 1's | P4: 10's | Q4: 1's | R4: 10's | S4: 1's | T4: 10's | U4: 1's | V4: 10's | W4: 1's | Z4: 10's | AA4: 1's | AB4: 10's | AC4: 1's | AD4: 10's | AE4: 1's | AF4: 10's | AG4: 1's | AH4: 10's | AI4: 1's | AJ4: 10's | AK4: 1's | AM4: 0 | AN4: 0 | AO4: 0 | AP4: 0 | AQ4: 0 | AR4: 0 | BA4: Disimulate | BI4: ↓ | BJ4: ↙ | BL4: From | BV4: ↙ | BX4: From | CH4: ↙ | CJ4: From | CT4: ↙ | CV4: From | DF4: ↙ | DH4: From | DR4: ↙ | DT4: From
B5: 1 | C5: 2015 | D5: 10 | E5: 7 | F5: 18 | G5: 30 | H5: 40 | I5: 48 | J5: 52 | K5: 9 | L5: =IF(ISNUMBER(F5),INT(F5/10),"") -> 1 | M5: =IF(ISNUMBER(F5),F5-10*L5,"") -> 8 | N5: =IF(ISNUMBER(G5),INT(G5/10),"") -> 3 | O5: =IF(ISNUMBER(G5),G5-10*N5,"") -> 0 | P5: =IF(ISNUMBER(H5),INT(H5/10),"") -> 4 | Q5: =IF(ISNUMBER(H5),H5-10*P5,"") -> 0 | R5: =IF(ISNUMBER(I5),INT(I5/10),"") -> 4 | S5: =IF(ISNUMBER(I5),I5-10*R5,"") -> 8 | T5: =IF(ISNUMBER(J5),INT(J5/10),"") -> 5 | U5: =IF(ISNUMBER(J5),J5-10*T5,"") -> 2 | V5: =IF(ISNUMBER(K5),INT(K5/10),"") -> 0 | W5: =IF(ISNUMBER(K5),K5-10*V5,"") -> 9 | Y5: Last Draw | Z5: =LastNPosition(L5:L1504,1) -> 0 | AA5: 7 | AB5: 1 | AC5: 6 | AD5: 2 | AE5: 5 | AF5: 5 | AG5: 0 | AH5: 5 | AI5: 3 | AJ5: 1 | AK5: 5 | AS5: =COUNTIF(AS6:AS1005,"X") -> 850 | AT5: =COUNTIF(AT6:AT1005,"XX") -> 756 | AU5: 0 | AW5: 0 | AZ5: Index | BA5: A | BB5: B | BC5: C | BD5: D | BE5: E | BF5: PB | BL5: 0 | BM5: 1 | BN5: 2 | BO5: 3 | BP5: 4 | BQ5: 5 | BR5: 6 | BS5: 7 | BT5: 8 | BU5: 9 | BX5: 0 | BY5: 1 | BZ5: 2 | CA5: 3 | CB5: 4 | CC5: 5 | CD5: 6 | CE5: 7 | CF5: 8 | CG5: 9 | CJ5: 0 | CK5: 1 | CL5: 2 | CM5: 3 | CN5: 4 | CO5: 5 | CP5: 6 | CQ5: 7 | CR5: 8 | CS5: 9 | CV5: 0 | CW5: 1 | CX5: 2 | CY5: 3 | CZ5: 4 | DA5: 5 | DB5: 6 | DC5: 7 | DD5: 8 | DE5: 9 | DH5: 0 | DI5: 1 | DJ5: 2 | DK5: 3 | DL5: 4 | DM5: 5 | DN5: 6 | DO5: 7 | DP5: 8 | DQ5: 9 | DT5: 0 | DU5: 1 | DV5: 2 | DW5: 3 | DX5: 4 | DY5: 5 | DZ5: 6 | EA5: 7 | EB5: 8 | EC5: 9
B6: 2 | C6: 2015 | D6: 10 | E6: 10 | F6: 12 | G6: 27 | H6: 29 | I6: 43 | J6: 68 | K6: 1 | L6: =IF(ISNUMBER(F6),INT(F6/10),"") -> 1 | M6: =IF(ISNUMBER(F6),F6-10*L6,"") -> 2 | N6: =IF(ISNUMBER(G6),INT(G6/10),"") -> 2 | O6: =IF(ISNUMBER(G6),G6-10*N6,"") -> 7 | P6: =IF(ISNUMBER(H6),INT(H6/10),"") -> 2 | Q6: =IF(ISNUMBER(H6),H6-10*P6,"") -> 9 | R6: =IF(ISNUMBER(I6),INT(I6/10),"") -> 4 | S6: =IF(ISNUMBER(I6),I6-10*R6,"") -> 3 | T6: =IF(ISNUMBER(J6),INT(J6/10),"") -> 6 | U6: =IF(ISNUMBER(J6),J6-10*T6,"") -> 8 | V6: =IF(ISNUMBER(K6),INT(K6/10),"") -> 0 | W6: =IF(ISNUMBER(K6),K6-10*V6,"") -> 1 | Y6: 1 | Z6: =IF($Z$5=$BL$5,Disimulate($BK$6:$BK$15,$BL$6:$BL$15),IF($Z$5=$BM$5,Disimulate($BK$6:$BK$15,$BM$6:$BM$15),IF($Z$5=$BN$5,Disimulate($BK$6:$BK$15,$BN$6:$BN$15),IF($Z$5=$BO$5,Disimulate($BK$6:$BK$15,$BO$6:$BO$15),IF($Z$5=$BP$5,Disimulate($BK$6:$BK$15,$BP$6:$BP$15),IF($Z$5=$BQ$5,Disimulate($BK$6:$BK$15,$BQ$6:$BQ$15),IF($Z$5=$BR$5,Disimulate($BK$6:$BK$15,$BR$6:$BR$15),IF($Z$5=$BS$5,Disimulate($BK$6:$BK$15,$BS$6:$BS$15),IF($Z$5=$BT$5,Disimulate($BK$6:$BK$15,$BT$6:$BT$15),IF($Z$5=$BU$5,Disimulate($BK$6:$BK$15,$BU$6:$BU$15),"")))))))))) -> 0 | AA6: =IF($AA$5=$BL$17,Disimulate($BK$18:$BK$27,$BL$18:$BL$27),IF($AA$5=$BM$17,Disimulate($BK$18:$BK$27,$BM$18:$BM$27),IF($AA$5=$BN$17,Disimulate($BK$18:$BK$27,$BN$18:$BN$27),IF($AA$5=$BO$17,Disimulate($BK$18:$BK$27,$BO$18:$BO$27),IF($AA$5=$BP$17,Disimulate($BK$18:$BK$27,$BP$18:$BP$27),IF($AA$5=$BQ$17,Disimulate($BK$18:$BK$27,$BQ$18:$BQ$27),IF($AA$5=$BR$17,Disimulate($BK$18:$BK$27,$BR$18:$BR$27),IF($AA$5=$BS$17,Disimulate($BK$18:$BK$27,$BS$18:$BS$27),IF($AA$5=$BT$17,Disimulate($BK$18:$BK$27,$BT$18:$BT$27),IF($AA$5=$BU$17,Disimulate($BK$18:$BK$27,$BU$18:$BU$27),"")))))))))) -> 4 | AB6: =IF($AB$5=$BX$5,Disimulate($BW$6:$BW$15,$BX$6:$BX$15),IF($AB$5=$BY$5,Disimulate($BW$6:$BW$15,$BY$6:$BY$15),IF($AB$5=$BZ$5,Disimulate($BW$6:$BW$15,$BZ$6:$BZ$15),IF($AB$5=$CA$5,Disimulate($BW$6:$BW$15,$CA$6:$CA$15),IF($AB$5=$CB$5,Disimulate($BW$6:$BW$15,$CB$6:$CB$15),IF($AB$5=$CC$5,Disimulate($BW$6:$BW$15,$CC$6:$CC$15),IF($AB$5=$CD$5,Disimulate($BW$6:$BW$15,$CD$6:$CD$15),IF($AB$5=$CE$5,Disimulate($BW$6:$BW$15,$CE$6:$CE$15),IF($AB$5=$CF$5,Disimulate($BW$6:$BW$15,$CF$6:$CF$15),IF($AB$5=$CG$5,Disimulate($BW$6:$BW$15,$CG$6:$CG$15),"")))))))))) -> 1 | AC6: =IF($AC$5=$BX$17,Disimulate($BW$18:$BW$27,$BX$18:$BX$27),IF($AC$5=$BY$17,Disimulate($BW$18:$BW$27,$BY$18:$BY$27),IF($AC$5=$BZ$17,Disimulate($BW$18:$BW$27,$BZ$18:$BZ$27),IF($AC$5=$CA$17,Disimulate($BW$18:$BW$27,$CA$18:$CA$27),IF($AC$5=$CB$17,Disimulate($BW$18:$BW$27,$CB$18:$CB$27),IF($AC$5=$CC$17,Disimulate($BW$18:$BW$27,$CC$18:$CC$27),IF($AC$5=$CD$17,Disimulate($BW$18:$BW$27,$CD$18:$CD$27),IF($AC$5=$CE$17,Disimulate($BW$18:$BW$27,$CE$18:$CE$27),IF($AC$5=$CF$17,Disimulate($BW$18:$BW$27,$CF$18:$CF$27),IF($AC$5=$CG$17,Disimulate($BW$18:$BW$27,$CG$18:$CG$27),"")))))))))) -> 4 | AD6: =IF($AD$5=$CJ$5,Disimulate($CI$6:$CI$15,$CJ$6:$CJ$15),IF($AD$5=$CK$5,Disimulate($CI$6:$CI$15,$CK$6:$CK$15),IF($AD$5=$CL$5,Disimulate($CI$6:$CI$15,$CL$6:$CL$15),IF($AD$5=$CM$5,Disimulate($CI$6:$CI$15,$CM$6:$CM$15),IF($AD$5=$CN$5,Disimulate($CI$6:$CI$15,$CN$6:$CN$15),IF($AD$5=$CO$5,Disimulate($CI$6:$CI$15,$CO$6:$CO$15),IF($AD$5=$CP$5,Disimulate($CI$6:$CI$15,$CP$6:$CP$15),IF($AD$5=$CQ$5,Disimulate($CI$6:$CI$15,$CQ$6:$CQ$15),IF($AD$5=$CR$5,Disimulate($CI$6:$CI$15,$CR$6:$CR$15),IF($AD$5=$CS$5,Disimulate($CI$6:$CI$15,$CS$6:$CS$15),"")))))))))) -> 2 | AE6: =IF($AE$5=$CJ$17,Disimulate($CI$18:$CI$27,$CJ$18:$CJ$27),IF($AE$5=$CK$17,Disimulate($CI$18:$CI$27,$CK$18:$CK$27),IF($AE$5=$CL$17,Disimulate($CI$18:$CI$27,$CL$18:$CL$27),IF($AE$5=$CM$17,Disimulate($CI$18:$CI$27,$CM$18:$CM$27),IF($AE$5=$CN$17,Disimulate($CI$18:$CI$27,$CN$18:$CN$27),IF($AE$5=$CO$17,Disimulate($CI$18:$CI$27,$CO$18:$CO$27),IF($AE$5=$CP$17,Disimulate($CI$18:$CI$27,$CP$18:$CP$27),IF($AE$5=$CQ$17,Disimulate($CI$18:$CI$27,$CQ$18:$CQ$27),IF($AE$5=$CR$17,Disimulate($CI$18:$CI$27,$CR$18:$CR$27),IF($AE$5=$CS$17,Disimulate($CI$18:$CI$27,$CS$18:$CS$27),"")))))))))) -> 7 | AF6: =IF($AF$5=$CV$5,Disimulate($CU$6:$CU$15,$CV$6:$CV$15),IF($AF$5=$CW$5,Disimulate($CU$6:$CU$15,$CW$6:$CW$15),IF($AF$5=$CX$5,Disimulate($CU$6:$CU$15,$CX$6:$CX$15),IF($AF$5=$CY$5,Disimulate($CU$6:$CU$15,$CY$6:$CY$15),IF($AF$5=$CZ$5,Disimulate($CU$6:$CU$15,$CZ$6:$CZ$15),IF($AF$5=$DA$5,Disimulate($CU$6:$CU$15,$DA$6:$DA$15),IF($AF$5=$DB$5,Disimulate($CU$6:$CU$15,$DB$6:$DB$15),IF($AF$5=$DC$5,Disimulate($CU$6:$CU$15,$DC$6:$DC$15),IF($AF$5=$DD$5,Disimulate($CU$6:$CU$15,$DD$6:$DD$15),IF($AF$5=$DE$5,Disimulate($CU$6:$CU$15,$DE$6:$DE$15),"")))))))))) -> 6 | AG6: =IF($AG$5=$CV$17,Disimulate($CU$18:$CU$27,$CV$18:$CV$27),IF($AG$5=$CW$17,Disimulate($CU$18:$CU$27,$CW$18:$CW$27),IF($AG$5=$CX$17,Disimulate($CU$18:$CU$27,$CX$18:$CX$27),IF($AG$5=$CY$17,Disimulate($CU$18:$CU$27,$CY$18:$CY$27),IF($AG$5=$CZ$17,Disimulate($CU$18:$CU$27,$CZ$18:$CZ$27),IF($AG$5=$DA$17,Disimulate($CU$18:$CU$27,$DA$18:$DA$27),IF($AG$5=$DB$17,Disimulate($CU$18:$CU$27,$DB$18:$DB$27),IF($AG$5=$DC$17,Disimulate($CU$18:$CU$27,$DC$18:$DC$27),IF($AG$5=$DD$17,Disimulate($CU$18:$CU$27,$DD$18:$DD$27),IF($AG$5=$DE$17,Disimulate($CU$18:$CU$27,$DE$18:$DE$27),"")))))))))) -> 2 | AH6: =IF($AH$5=$DH$5,Disimulate($DG$6:$DG$15,$DH$6:$DH$15),IF($AH$5=$DI$5,Disimulate($DG$6:$DG$15,$DI$6:$DI$15),IF($AH$5=$DJ$5,Disimulate($DG$6:$DG$15,$DJ$6:$DJ$15),IF($AH$5=$DK$5,Disimulate($DG$6:$DG$15,$DK$6:$DK$15),IF($AH$5=$DL$5,Disimulate($DG$6:$DG$15,$DL$6:$DL$15),IF($AH$5=$DM$5,Disimulate($DG$6:$DG$15,$DM$6:$DM$15),IF($AH$5=$DN$5,Disimulate($DG$6:$DG$15,$DN$6:$DN$15),IF($AH$5=$DO$5,Disimulate($DG$6:$DG$15,$DO$6:$DO$15),IF($AH$5=$DP$5,Disimulate($DG$6:$DG$15,$DP$6:$DP$15),IF($AH$5=$DQ$5,Disimulate($DG$6:$DG$15,$DQ$6:$DQ$15),"")))))))))) -> 6 | AI6: =IF($AI$5=$DH$17,Disimulate($DG$18:$DG$27,$DH$18:$DH$27),IF($AI$5=$DI$17,Disimulate($DG$18:$DG$27,$DI$18:$DI$27),IF($AI$5=$DJ$17,Disimulate($DG$18:$DG$27,$DJ$18:$DJ$27),IF($AI$5=$DK$17,Disimulate($DG$18:$DG$27,$DK$18:$DK$27),IF($AI$5=$DL$17,Disimulate($DG$18:$DG$27,$DL$18:$DL$27),IF($AI$5=$DM$17,Disimulate($DG$18:$DG$27,$DM$18:$DM$27),IF($AI$5=$DN$17,Disimulate($DG$18:$DG$27,$DN$18:$DN$27),IF($AI$5=$DO$17,Disimulate($DG$18:$DG$27,$DO$18:$DO$27),IF($AI$5=$DP$17,Disimulate($DG$18:$DG$27,$DP$18:$DP$27),IF($AI$5=$DQ$17,Disimulate($DG$18:$DG$27,$DQ$18:$DQ$27),"")))))))))) -> 8 | AJ6: =IF($AJ$5=$DT$5,Disimulate($DS$6:$DS$15,$DT$6:$DT$15),IF($AJ$5=$DU$5,Disimulate($DS$6:$DS$15,$DU$6:$DU$15),IF($AJ$5=$DV$5,Disimulate($DS$6:$DS$15,$DV$6:$DV$15),IF($AJ$5=$DW$5,Disimulate($DS$6:$DS$15,$DW$6:$DW$15),IF($AJ$5=$DX$5,Disimulate($DS$6:$DS$15,$DX$6:$DX$15),IF($AJ$5=$DY$5,Disimulate($DS$6:$DS$15,$DY$6:$DY$15),IF($AJ$5=$DZ$5,Disimulate($DS$6:$DS$15,$DZ$6:$DZ$15),IF($AJ$5=$EA$5,Disimulate($DS$6:$DS$15,$EA$6:$EA$15),IF($AJ$5=$EB$5,Disimulate($DS$6:$DS$15,$EB$6:$EB$15),IF($AJ$5=$EC$5,Disimulate($DS$6:$DS$15,$EC$6:$EC$15),"")))))))))) -> 0 | AK6: =IF($AK$5=$DT$17,Disimulate($DS$18:$DS$27,$DT$18:$DT$27),IF($AK$5=$DU$17,Disimulate($DS$18:$DS$27,$DU$18:$DU$27),IF($AK$5=$DV$17,Disimulate($DS$18:$DS$27,$DV$18:$DV$27),IF($AK$5=$DW$17,Disimulate($DS$18:$DS$27,$DW$18:$DW$27),IF($AK$5=$DX$17,Disimulate($DS$18:$DS$27,$DX$18:$DX$27),IF($AK$5=$DY$17,Disimulate($DS$18:$DS$27,$DY$18:$DY$27),IF($AK$5=$DZ$17,Disimulate($DS$18:$DS$27,$DZ$18:$DZ$27),IF($AK$5=$EA$17,Disimulate($DS$18:$DS$27,$EA$18:$EA$27),IF($AK$5=$EB$17,Disimulate($DS$18:$DS$27,$EB$18:$EB$27),IF($AK$5=$EC$17,Disimulate($DS$18:$DS$27,$EC$18:$EC$27),"")))))))))) -> 7 | AM6: =10*Z6+1*MOD(AA6+AM$4,10) -> 4 | AN6: =10*AB6+1*MOD(AC6+AN$4,10) -> 14 | AO6: =10*AD6+1*MOD(AE6+AO$4,10) -> 27 | AP6: =10*AF6+1*MOD(AG6+AP$4,10) -> 62 | AQ6: =10*AH6+1*MOD(AI6+AQ$4,10) -> 68 | AR6: =10*AJ6+1*MOD(AK6+AR$4,10) -> 7 | AS6: =IF(AND(MIN(AM6:AR6)>0,MAX(AM6:AQ6)<70,AR6<27),"X","") -> X | AT6: =IF(AND(AS6="X",AM6<AN6,AN6<AO6,AO6<AP6,AP6<AQ6),"XX","") -> XX | AU6: =IF(AS6="X",AU5+1,AU5) -> 1 | AV6: =IF(AU6<>AU5,AU6,"") -> 1 | AW6: =IF(AT6="XX",AW5+1,AW5) -> 1 | AX6: =IF(AW6<>AW5,AW6,"") -> 1 | AZ6: 1 | BA6: =IF($AZ6<=$AT$5,LOOKUP($AZ6,$AX$6:$AX$1005,AM$6:AM$1005),"") -> 4 | BB6: 14 | BC6: 27 | BD6: 62 | BE6: 68 | BF6: 7 | BI6: 10's | BJ6: To | BK6: 0 | BL6: =COUNTIFS($L$5:$L$1503,BL$5,$L$6:$L$1504,$BK6) -> 3 | BM6: 0 | BN6: 1 | BO6: 0 | BP6: 0 | BQ6: 0 | BR6: 0 | BS6: 0 | BT6: 0 | BU6: 0 | BV6: To | BW6: 0 | BX6: =COUNTIFS($N$5:$N$1503,BX$5,$N$6:$N$1504,$BW6) -> 0 | BY6: 0 | BZ6: 0 | CA6: 0 | CB6: 0 | CC6: 0 | CD6: 0 | CE6: 0 | CF6: 0 | CG6: 0 | CH6: To | CI6: 0 | CJ6: =COUNTIFS($P$5:$P$1503,CJ$5,$P$6:$P$1504,$CI6) -> 0 | CK6: 0 | CL6: 0 | CM6: 0 | CN6: 0 | CO6: 0 | CP6: 0 | CQ6: 0 | CR6: 0 | CS6: 0 | CT6: To | CU6: 0 | CV6: =COUNTIFS($R$5:$R$1503,CV$5,$R$6:$R$1504,$CU6) -> 0 | CW6: 0 | CX6: 0 | CY6: 0 | CZ6: 0 | DA6: 0 | DB6: 0 | DC6: 0 | DD6: 0 | DE6: 0 | DF6: To | DG6: 0 | DH6: =COUNTIFS($T$5:$T$1503,DH$5,$T$6:$T$1504,$DG6) -> 0 | DI6: 0 | DJ6: 0 | DK6: 0 | DL6: 0 | DM6: 0 | DN6: 0 | DO6: 0 | DP6: 0 | DQ6: 0 | DR6: To | DS6: 0 | DT6: =COUNTIFS($V$5:$V$1503,DT$5,$V$6:$V$1504,$DS6) -> 2 | DU6: 2 | DV6: 0 | DW6: 0 | DX6: 0 | DY6: 0 | DZ6: 0 | EA6: 0 | EB6: 0 | EC6: 0
B7: 3 | C7: 2015 | D7: 10 | E7: 14 | F7: 15 | G7: 20 | H7: 29 | I7: 31 | J7: 40 | K7: 1 | L7: 1 | M7: 5 | N7: 2 | O7: 0 | P7: 2 | Q7: 9 | R7: 3 | S7: 1 | T7: 4 | U7: 0 | V7: 0 | W7: 1 | Y7: 2 | Z7: 0 | AA7: 0 | AB7: 1 | AC7: 8 | AD7: 1 | AE7: 7 | AF7: 6 | AG7: 0 | AH7: 6 | AI7: 8 | AJ7: 1 | AK7: 4 | AM7: 0 | AN7: 18 | AO7: 17 | AP7: 60 | AQ7: 68 | AR7: 14 | AS7: =IF(AND(MIN(AM7:AR7)>0,MAX(AM7:AQ7)<70,AR7<27),"X","") ->  | AU7: =IF(AS7="X",AU6+1,AU6) -> 1 | AV7: =IF(AU7<>AU6,AU7,"") ->  | AW7: =IF(AT7="XX",AW6+1,AW6) -> 1 | AZ7: 2 | BA7: 7 | BB7: 12 | BC7: 57 | BD7: 60 | BE7: 68 | BF7: 6 | BK7: 1 | BL7: 0 | BM7: 2 | BN7: 0 | BO7: 0 | BP7: 0 | BQ7: 0 | BR7: 0 | BS7: 0 | BT7: 0 | BU7: 0 | BW7: 1 | BX7: 0 | BY7: 1 | BZ7: 1 | CA7: 0 | CB7: 0 | CC7: 0 | CD7: 0 | CE7: 0 | CF7: 0 | CG7: 0 | CI7: 1 | CJ7: 0 | CK7: 0 | CL7: 1 | CM7: 0 | CN7: 0 | CO7: 0 | CP7: 0 | CQ7: 0 | CR7: 0 | CS7: 0 | CU7: 1 | CV7: 0 | CW7: 0 | CX7: 0 | CY7: 0 | CZ7: 0 | DA7: 0 | DB7: 0 | DC7: 0 | DD7: 0 | DE7: 0 | DG7: 1 | DH7: 0 | DI7: 0 | DJ7: 0 | DK7: 0 | DL7: 0 | DM7: 0 | DN7: 0 | DO7: 0 | DP7: 0 | DQ7: 0 | DS7: 1 | DT7: 3 | DU7: 2 | DV7: 0 | DW7: 0 | DX7: 0 | DY7: 0 | DZ7: 0 | EA7: 0 | EB7: 0 | EC7: 0
B8: 4 | C8: 2015 | D8: 10 | E8: 17 | F8: 48 | G8: 49 | H8: 57 | I8: 62 | J8: 69 | K8: 19 | L8: 4 | M8: 8 | N8: 4 | O8: 9 | P8: 5 | Q8: 7 | R8: 6 | S8: 2 | T8: 6 | U8: 9 | V8: 1 | W8: 9 | Y8: 3 | Z8: 0 | AA8: 7 | AB8: 1 | AC8: 2 | AD8: 5 | AE8: 7 | AF8: 6 | AG8: 0 | AH8: 6 | AI8: 8 | AJ8: 0 | AK8: 6 | AM8: 7 | AN8: 12 | AO8: 57 | AP8: 60 | AQ8: 68 | AR8: 6 | AS8: X | AT8: XX | AU8: 2 | AV8: 2 | AW8: =IF(AT8="XX",AW7+1,AW7) -> 2 | AX8: 2 | AZ8: 3 | BA8: 8 | BB8: 11 | BC8: 27 | BD8: 62 | BE8: 68 | BF8: 2 | BK8: 2 | BL8: 0 | BM8: 0 | BN8: 0 | BO8: 1 | BP8: 0 | BQ8: 0 | BR8: 0 | BS8: 0 | BT8: 0 | BU8: 0 | BW8: 2 | BX8: 0 | BY8: 0 | BZ8: 1 | CA8: 1 | CB8: 0 | CC8: 1 | CD8: 0 | CE8: 0 | CF8: 0 | CG8: 0 | CI8: 2 | CJ8: 0 | CK8: 1 | CL8: 1 | CM8: 0 | CN8: 1 | CO8: 1 | CP8: 0 | CQ8: 0 | CR8: 0 | CS8: 0 | CU8: 2 | CV8: 0 | CW8: 0 | CX8: 0 | CY8: 0 | CZ8: 1 | DA8: 0 | DB8: 0 | DC8: 0 | DD8: 0 | DE8: 0 | DG8: 2 | DH8: 0 | DI8: 0 | DJ8: 0 | DK8: 0 | DL8: 0 | DM8: 0 | DN8: 0 | DO8: 0 | DP8: 0 | DQ8: 0 | DS8: 2 | DT8: 0 | DU8: 0 | DV8: 0 | DW8: 0 | DX8: 0 | DY8: 0 | DZ8: 0 | EA8: 0 | EB8: 0 | EC8: 0
B9: 5 | C9: 2015 | D9: 10 | E9: 21 | F9: 30 | G9: 32 | H9: 42 | I9: 56 | J9: 57 | K9: 11 | L9: 3 | M9: 0 | N9: 3 | O9: 2 | P9: 4 | Q9: 2 | R9: 5 | S9: 6 | T9: 5 | U9: 7 | V9: 1 | W9: 1 | Y9: 4 | Z9: 0 | AA9: 8 | AB9: 1 | AC9: 1 | AD9: 2 | AE9: 7 | AF9: 6 | AG9: 2 | AH9: 6 | AI9: 8 | AJ9: 0 | AK9: 2 | AM9: 8 | AN9: 11 | AO9: 27 | AP9: 62 | AQ9: 68 | AR9: 2 | AS9: X | AT9: XX | AU9: 3 | AV9: 3 | AW9: 3 | AX9: 3 | AZ9: 4 | BA9: 2 | BB9: 19 | BC9: 27 | BD9: 60 | BE9: 68 | BF9: 2 | BK9: 3 | BL9: 0 | BM9: 0 | BN9: 0 | BO9: 0 | BP9: 1 | BQ9: 0 | BR9: 0 | BS9: 0 | BT9: 0 | BU9: 0 | BW9: 3 | BX9: 0 | BY9: 0 | BZ9: 0 | CA9: 1 | CB9: 1 | CC9: 0 | CD9: 0 | CE9: 0 | CF9: 0 | CG9: 0 | CI9: 3 | CJ9: 0 | CK9: 0 | CL9: 0 | CM9: 0 | CN9: 0 | CO9: 0 | CP9: 0 | CQ9: 0 | CR9: 0 | CS9: 0 | CU9: 3 | CV9: 0 | CW9: 0 | CX9: 0 | CY9: 0 | CZ9: 1 | DA9: 0 | DB9: 0 | DC9: 0 | DD9: 0 | DE9: 0 | DG9: 3 | DH9: 0 | DI9: 0 | DJ9: 0 | DK9: 0 | DL9: 0 | DM9: 0 | DN9: 0 | DO9: 0 | DP9: 0 | DQ9: 0 | DS9: 3 | DT9: 0 | DU9: 0 | DV9: 0 | DW9: 0 | DX9: 0 | DY9: 0 | DZ9: 0 | EA9: 0 | EB9: 0 | EC9: 0
B10: 6 | C10: 2015 | D10: 10 | E10: 24 | F10: 20 | G10: 31 | H10: 56 | I10: 60 | J10: 64 | K10: 2 | L10: 2 | M10: 0 | N10: 3 | O10: 1 | P10: 5 | Q10: 6 | R10: 6 | S10: 0 | T10: 6 | U10: 4 | V10: 0 | W10: 2 | Y10: 5 | Z10: 0 | AA10: 2 | AB10: 1 | AC10: 9 | AD10: 2 | AE10: 7 | AF10: 6 | AG10: 0 | AH10: 6 | AI10: 8 | AJ10: 0 | AK10: 2 | AM10: 2 | AN10: 19 | AO10: 27 | AP10: 60 | AQ10: 68 | AR10: 2 | AS10: X | AT10: XX | AU10: 4 | AV10: 4 | AW10: 4 | AX10: 4 | AZ10: 5 | BA10: 2 | BB10: 14 | BC10: 57 | BD10: 60 | BE10: 68 | BF10: 13 | BK10: 4 | BL10: 0 | BM10: 1 | BN10: 0 | BO10: 0 | BP10: 0 | BQ10: 0 | BR10: 0 | BS10: 0 | BT10: 0 | BU10: 0 | BW10: 4 | BX10: 0 | BY10: 0 | BZ10: 1 | CA10: 0 | CB10: 0 | CC10: 0 | CD10: 0 | CE10: 0 | CF10: 0 | CG10: 0 | CI10: 4 | CJ10: 0 | CK10: 0 | CL10: 0 | CM10: 0 | CN10: 0 | CO10: 1 | CP10: 0 | CQ10: 0 | CR10: 0 | CS10: 0 | CU10: 4 | CV10: 0 | CW10: 0 | CX10: 0 | CY10: 0 | CZ10: 1 | DA10: 0 | DB10: 1 | DC10: 0 | DD10: 0 | DE10: 0 | DG10: 4 | DH10: 0 | DI10: 0 | DJ10: 0 | DK10: 0 | DL10: 0 | DM10: 0 | DN10: 1 | DO10: 0 | DP10: 0 | DQ10: 0 | DS10: 4 | DT10: 0 | DU10: 0 | DV10: 0 | DW10: 0 | DX10: 0 | DY10: 0 | DZ10: 0 | EA10: 0 | EB10: 0 | EC10: 0
B11: 7 | C11: 2015 | D11: 10 | E11: 28 | F11: 4 | G11: 54 | H11: 56 | I11: 62 | J11: 63 | K11: 10 | L11: 0 | M11: 4 | N11: 5 | O11: 4 | P11: 5 | Q11: 6 | R11: 6 | S11: 2 | T11: 6 | U11: 3 | V11: 1 | W11: 0 | Y11: 6 | Z11: 0 | AA11: 0 | AB11: 1 | AC11: 8 | AD11: 1 | AE11: 7 | AF11: 6 | AG11: 2 | AH11: 6 | AI11: 8 | AJ11: 0 | AK11: 0 | AM11: 0 | AN11: 18 | AO11: 17 | AP11: 62 | AQ11: 68 | AR11: 0 | AU11: 4 | AW11: 4 | AZ11: 6 | BA11: 8 | BB11: 12 | BC11: 27 | BD11: 60 | BE11: 68 | BF11: 10 | BK11: 5 | BL11: 0 | BM11: 0 | BN11: 0 | BO11: 0 | BP11: 0 | BQ11: 0 | BR11: 0 | BS11: 0 | BT11: 0 | BU11: 0 | BW11: 5 | BX11: 0 | BY11: 0 | BZ11: 0 | CA11: 1 | CB11: 0 | CC11: 0 | CD11: 0 | CE11: 0 | CF11: 0 | CG11: 0 | CI11: 5 | CJ11: 0 | CK11: 0 | CL11: 1 | CM11: 0 | CN11: 1 | CO11: 1 | CP11: 0 | CQ11: 0 | CR11: 0 | CS11: 0 | CU11: 5 | CV11: 0 | CW11: 0 | CX11: 1 | CY11: 0 | CZ11: 0 | DA11: 0 | DB11: 1 | DC11: 0 | DD11: 0 | DE11: 0 | DG11: 5 | DH11: 0 | DI11: 0 | DJ11: 0 | DK11: 0 | DL11: 0 | DM11: 0 | DN11: 2 | DO11: 0 | DP11: 0 | DQ11: 0 | DS11: 5 | DT11: 0 | DU11: 0 | DV11: 0 | DW11: 0 | DX11: 0 | DY11: 0 | DZ11: 0 | EA11: 0 | EB11: 0 | EC11: 0
B12: 8 | C12: 2015 | D12: 10 | E12: 31 | F12: 9 | G12: 20 | H12: 25 | I12: 47 | J12: 68 | K12: 7 | L12: 0 | M12: 9 | N12: 2 | O12: 0 | P12: 2 | Q12: 5 | R12: 4 | S12: 7 | T12: 6 | U12: 8 | V12: 0 | W12: 7 | Y12: 7 | Z12: 0 | AA12: 2 | AB12: 1 | AC12: 4 | AD12: 5 | AE12: 7 | AF12: 6 | AG12: 0 | AH12: 6 | AI12: 8 | AJ12: 1 | AK12: 3 | AM12: 2 | AN12: 14 | AO12: 57 | AP12: 60 | AQ12: 68 | AR12: 13 | AS12: X | AT12: XX | AU12: 5 | AV12: 5 | AW12: 5 | AX12: 5 | AZ12: 7 | BA12: 8 | BB12: 14 | BC12: 57 | BD12: 60 | BE12: 68 | BF12: 6 | BK12: 6 | BL12: 0 | BM12: 0 | BN12: 0 | BO12: 0 | BP12: 0 | BQ12: 0 | BR12: 0 | BS12: 0 | BT12: 0 | BU12: 0 | BW12: 6 | BX12: 0 | BY12: 0 | BZ12: 0 | CA12: 0 | CB12: 0 | CC12: 0 | CD12: 0 | CE12: 0 | CF12: 0 | CG12: 0 | CI12: 6 | CJ12: 0 | CK12: 0 | CL12: 0 | CM12: 0 | CN12: 0 | CO12: 0 | CP12: 0 | CQ12: 0 | CR12: 0 | CS12: 0 | CU12: 6 | CV12: 0 | CW12: 0 | CX12: 0 | CY12: 1 | CZ12: 0 | DA12: 1 | DB12: 1 | DC12: 0 | DD12: 0 | DE12: 0 | DG12: 6 | DH12: 0 | DI12: 0 | DJ12: 0 | DK12: 0 | DL12: 1 | DM12: 2 | DN12: 3 | DO12: 0 | DP12: 0 | DQ12: 0 | DS12: 6 | DT12: 0 | DU12: 0 | DV12: 0 | DW12: 0 | DX12: 0 | DY12: 0 | DZ12: 0 | EA12: 0 | EB12: 0 | EC12: 0
B13: 9 | C13: 2015 | D13: 11 | E13: 4 | F13: 2 | G13: 12 | H13: 17 | I13: 20 | J13: 65 | K13: 17 | L13: 0 | M13: 2 | N13: 1 | O13: 2 | P13: 1 | Q13: 7 | R13: 2 | S13: 0 | T13: 6 | U13: 5 | V13: 1 | W13: 7 | Y13: 8 | Z13: 0 | AA13: 8 | AB13: 1 | AC13: 2 | AD13: 2 | AE13: 7 | AF13: 6 | AG13: 0 | AH13: 6 | AI13: 8 | AJ13: 1 | AK13: 0 | AM13: 8 | AN13: 12 | AO13: 27 | AP13: 60 | AQ13: 68 | AR13: 10 | AS13: X | AT13: XX | AU13: 6 | AV13: 6 | AW13: 6 | AX13: 6 | AZ13: 8 | BA13: 3 | BB13: 11 | BC13: 27 | BD13: 60 | BE13: 68 | BF13: 8 | BK13: 7 | BL13: 0 | BM13: 0 | BN13: 0 | BO13: 0 | BP13: 0 | BQ13: 0 | BR13: 0 | BS13: 0 | BT13: 0 | BU13: 0 | BW13: 7 | BX13: 0 | BY13: 0 | BZ13: 0 | CA13: 0 | CB13: 0 | CC13: 0 | CD13: 0 | CE13: 0 | CF13: 0 | CG13: 0 | CI13: 7 | CJ13: 0 | CK13: 0 | CL13: 0 | CM13: 0 | CN13: 0 | CO13: 0 | CP13: 0 | CQ13: 0 | CR13: 0 | CS13: 0 | CU13: 7 | CV13: 0 | CW13: 0 | CX13: 0 | CY13: 0 | CZ13: 0 | DA13: 0 | DB13: 0 | DC13: 0 | DD13: 0 | DE13: 0 | DG13: 7 | DH13: 0 | DI13: 0 | DJ13: 0 | DK13: 0 | DL13: 0 | DM13: 0 | DN13: 0 | DO13: 0 | DP13: 0 | DQ13: 0 | DS13: 7 | DT13: 0 | DU13: 0 | DV13: 0 | DW13: 0 | DX13: 0 | DY13: 0 | DZ13: 0 | EA13: 0 | EB13: 0 | EC13: 0
B14: 10 | C14: 2015 | D14: 11 | E14: 7 | F14: 7 | G14: 16 | H14: 25 | I14: 50 | J14: 53 | K14: 15 | L14: 0 | M14: 7 | N14: 1 | O14: 6 | P14: 2 | Q14: 5 | R14: 5 | S14: 0 | T14: 5 | U14: 3 | V14: 1 | W14: 5 | Y14: 9 | Z14: 0 | AA14: 0 | AB14: 1 | AC14: 6 | AD14: 1 | AE14: 7 | AF14: 6 | AG14: 2 | AH14: 6 | AI14: 8 | AJ14: 0 | AK14: 8 | AM14: 0 | AN14: 16 | AO14: 17 | AP14: 62 | AQ14: 68 | AR14: 8 | AU14: 6 | AW14: 6 | AZ14: 9 | BA14: 4 | BB14: 13 | BC14: 57 | BD14: 62 | BE14: 68 | BF14: 11 | BK14: 8 | BL14: 0 | BM14: 0 | BN14: 0 | BO14: 0 | BP14: 0 | BQ14: 0 | BR14: 0 | BS14: 0 | BT14: 0 | BU14: 0 | BW14: 8 | BX14: 0 | BY14: 0 | BZ14: 0 | CA14: 0 | CB14: 0 | CC14: 0 | CD14: 0 | CE14: 0 | CF14: 0 | CG14: 0 | CI14: 8 | CJ14: 0 | CK14: 0 | CL14: 0 | CM14: 0 | CN14: 0 | CO14: 0 | CP14: 0 | CQ14: 0 | CR14: 0 | CS14: 0 | CU14: 8 | CV14: 0 | CW14: 0 | CX14: 0 | CY14: 0 | CZ14: 0 | DA14: 0 | DB14: 0 | DC14: 0 | DD14: 0 | DE14: 0 | DG14: 8 | DH14: 0 | DI14: 0 | DJ14: 0 | DK14: 0 | DL14: 0 | DM14: 0 | DN14: 0 | DO14: 0 | DP14: 0 | DQ14: 0 | DS14: 8 | DT14: 0 | DU14: 0 | DV14: 0 | DW14: 0 | DX14: 0 | DY14: 0 | DZ14: 0 | EA14: 0 | EB14: 0 | EC14: 0
B15: 11 | C15: 2015 | D15: 11 | E15: 11 | Y15: 10 | Z15: 0 | AA15: 8 | AB15: 1 | AC15: 4 | AD15: 5 | AE15: 7 | AF15: 6 | AG15: 0 | AH15: 6 | AI15: 8 | AJ15: 0 | AK15: 6 | AM15: 8 | AN15: 14 | AO15: 57 | AP15: 60 | AQ15: 68 | AR15: 6 | AS15: X | AT15: XX | AU15: 7 | AV15: 7 | AW15: 7 | AX15: 7 | AZ15: 10 | BA15: 5 | BB15: 12 | BC15: 27 | BD15: 60 | BE15: 68 | BF15: 4 | BK15: 9 | BL15: 0 | BM15: 0 | BN15: 0 | BO15: 0 | BP15: 0 | BQ15: 0 | BR15: 0 | BS15: 0 | BT15: 0 | BU15: 0 | BW15: 9 | BX15: 0 | BY15: 0 | BZ15: 0 | CA15: 0 | CB15: 0 | CC15: 0 | CD15: 0 | CE15: 0 | CF15: 0 | CG15: 0 | CI15: 9 | CJ15: 0 | CK15: 0 | CL15: 0 | CM15: 0 | CN15: 0 | CO15: 0 | CP15: 0 | CQ15: 0 | CR15: 0 | CS15: 0 | CU15: 9 | CV15: 0 | CW15: 0 | CX15: 0 | CY15: 0 | CZ15: 0 | DA15: 0 | DB15: 0 | DC15: 0 | DD15: 0 | DE15: 0 | DG15: 9 | DH15: 0 | DI15: 0 | DJ15: 0 | DK15: 0 | DL15: 0 | DM15: 0 | DN15: 0 | DO15: 0 | DP15: 0 | DQ15: 0 | DS15: 9 | DT15: 0 | DU15: 0 | DV15: 0 | DW15: 0 | DX15: 0 | DY15: 0 | DZ15: 0 | EA15: 0 | EB15: 0 | EC15: 0
B16: 12 | C16: 2015 | D16: 11 | E16: 14 | Y16: 11 | Z16: 0 | AA16: 9 | AB16: 1 | AC16: 8 | AD16: 5 | AE16: 7 | AF16: 6 | AG16: 0 | AH16: 6 | AI16: 8 | AJ16: 0 | AK16: 0 | AM16: 9 | AN16: 18 | AO16: 57 | AP16: 60 | AQ16: 68 | AR16: 0 | AU16: 7 | AW16: 7 | AZ16: 11 | BA16: 5 | BB16: 16 | BC16: 27 | BD16: 62 | BE16: 68 | BF16: 13 | BJ16: ↙ | BL16: From | BV16: ↙ | BX16: From | CH16: ↙ | CJ16: From | CT16: ↙ | CV16: From | DF16: ↙ | DH16: From | DR16: ↙ | DT16: From
B17: 13 | C17: 2015 | D17: 11 | E17: 18 | Y17: 12 | Z17: 0 | AA17: 3 | AB17: 1 | AC17: 1 | AD17: 2 | AE17: 7 | AF17: 6 | AG17: 0 | AH17: 6 | AI17: 8 | AJ17: 0 | AK17: 8 | AM17: 3 | AN17: 11 | AO17: 27 | AP17: 60 | AQ17: 68 | AR17: 8 | AS17: X | AT17: XX | AU17: 8 | AV17: 8 | AW17: 8 | AX17: 8 | AZ17: 12 | BA17: 1 | BB17: 15 | BC17: 27 | BD17: 60 | BE17: 68 | BF17: 4 | BL17: 0 | BM17: 1 | BN17: 2 | BO17: 3 | BP17: 4 | BQ17: 5 | BR17: 6 | BS17: 7 | BT17: 8 | BU17: 9 | BX17: 0 | BY17: 1 | BZ17: 2 | CA17: 3 | CB17: 4 | CC17: 5 | CD17: 6 | CE17: 7 | CF17: 8 | CG17: 9 | CJ17: 0 | CK17: 1 | CL17: 2 | CM17: 3 | CN17: 4 | CO17: 5 | CP17: 6 | CQ17: 7 | CR17: 8 | CS17: 9 | CV17: 0 | CW17: 1 | CX17: 2 | CY17: 3 | CZ17: 4 | DA17: 5 | DB17: 6 | DC17: 7 | DD17: 8 | DE17: 9 | DH17: 0 | DI17: 1 | DJ17: 2 | DK17: 3 | DL17: 4 | DM17: 5 | DN17: 6 | DO17: 7 | DP17: 8 | DQ17: 9 | DT17: 0 | DU17: 1 | DV17: 2 | DW17: 3 | DX17: 4 | DY17: 5 | DZ17: 6 | EA17: 7 | EB17: 8 | EC17: 9
B18: 14 | C18: 2015 | D18: 11 | E18: 21 | Y18: 13 | Z18: 0 | AA18: 4 | AB18: 1 | AC18: 3 | AD18: 5 | AE18: 7 | AF18: 6 | AG18: 2 | AH18: 6 | AI18: 8 | AJ18: 1 | AK18: 1 | AM18: 4 | AN18: 13 | AO18: 57 | AP18: 62 | AQ18: 68 | AR18: 11 | AS18: X | AT18: XX | AU18: 9 | AV18: 9 | AW18: 9 | AX18: 9 | AZ18: 13 | BA18: 6 | BB18: 16 | BC18: 17 | BD18: 60 | BE18: 68 | BF18: 10 | BI18: 1's | BJ18: To | BK18: 0 | BL18: =COUNTIFS($M$5:$M$1503,BL$17,$M$6:$M$1504,$BK18) -> 1 | BM18: 0 | BN18: 0 | BO18: 0 | BP18: 0 | BQ18: 0 | BR18: 0 | BS18: 0 | BT18: 1 | BU18: 0 | BV18: To | BW18: 0 | BX18: =COUNTIFS($O$5:$O$1503,BX$17,$O$6:$O$1504,$BW18) -> 0 | BY18: 0 | BZ18: 0 | CA18: 0 | CB18: 1 | CC18: 0 | CD18: 0 | CE18: 1 | CF18: 0 | CG18: 0 | CH18: To | CI18: 0 | CJ18: =COUNTIFS($Q$5:$Q$1503,CJ$17,$Q$6:$Q$1504,$CI18) -> 0 | CK18: 0 | CL18: 0 | CM18: 0 | CN18: 0 | CO18: 0 | CP18: 0 | CQ18: 0 | CR18: 0 | CS18: 0 | CT18: To | CU18: 0 | CV18: =COUNTIFS($S$5:$S$1503,CV$17,$S$6:$S$1504,$CU18) -> 1 | CW18: 0 | CX18: 0 | CY18: 0 | CZ18: 0 | DA18: 0 | DB18: 1 | DC18: 1 | DD18: 0 | DE18: 0 | DF18: To | DG18: 0 | DH18: =COUNTIFS($U$5:$U$1503,DH$17,$U$6:$U$1504,$DG18) -> 0 | DI18: 0 | DJ18: 0 | DK18: 0 | DL18: 0 | DM18: 0 | DN18: 0 | DO18: 0 | DP18: 1 | DQ18: 0 | DR18: To | DS18: 0 | DT18: =COUNTIFS($W$5:$W$1503,DT$17,$W$6:$W$1504,$DS18) -> 0 | DU18: 0 | DV18: 1 | DW18: 0 | DX18: 0 | DY18: 0 | DZ18: 0 | EA18: 0 | EB18: 0 | EC18: 0
B19: 15 | C19: 2015 | D19: 11 | E19: 25 | Y19: 14 | Z19: 0 | AA19: 5 | AB19: 1 | AC19: 2 | AD19: 2 | AE19: 7 | AF19: 6 | AG19: 0 | AH19: 6 | AI19: 8 | AJ19: 0 | AK19: 4 | AM19: 5 | AN19: 12 | AO19: 27 | AP19: 60 | AQ19: 68 | AR19: 4 | AS19: X | AT19: XX | AU19: 10 | AV19: 10 | AW19: 10 | AX19: 10 | AZ19: 14 | BA19: 6 | BB19: 18 | BC19: 27 | BD19: 62 | BE19: 68 | BF19: 15 | BK19: 1 | BL19: 0 | BM19: 0 | BN19: 0 | BO19: 0 | BP19: 0 | BQ19: 0 | BR19: 0 | BS19: 0 | BT19: 0 | BU19: 0 | BW19: 1 | BX19: 0 | BY19: 0 | BZ19: 1 | CA19: 0 | CB19: 0 | CC19: 0 | CD19: 0 | CE19: 0 | CF19: 0 | CG19: 0 | CI19: 1 | CJ19: 0 | CK19: 0 | CL19: 0 | CM19: 0 | CN19: 0 | CO19: 0 | CP19: 0 | CQ19: 0 | CR19: 0 | CS19: 0 | CU19: 1 | CV19: 0 | CW19: 0 | CX19: 0 | CY19: 1 | CZ19: 0 | DA19: 0 | DB19: 0 | DC19: 0 | DD19: 0 | DE19: 0 | DG19: 1 | DH19: 0 | DI19: 0 | DJ19: 0 | DK19: 0 | DL19: 0 | DM19: 0 | DN19: 0 | DO19: 0 | DP19: 0 | DQ19: 0 | DS19: 1 | DT19: 0 | DU19: 1 | DV19: 0 | DW19: 0 | DX19: 0 | DY19: 0 | DZ19: 0 | EA19: 0 | EB19: 0 | EC19: 2
B20: 16 | C20: 2015 | D20: 11 | E20: 28 | Y20: 15 | Z20: 0 | AA20: 5 | AB20: 1 | AC20: 6 | AD20: 2 | AE20: 7 | AF20: 6 | AG20: 2 | AH20: 6 | AI20: 8 | AJ20: 1 | AK20: 3 | AM20: 5 | AN20: 16 | AO20: 27 | AP20: 62 | AQ20: 68 | AR20: 13 | AS20: X | AT20: XX | AU20: 11 | AV20: 11 | AW20: 11 | AX20: 11 | AZ20: 15 | BA20: 9 | BB20: 13 | BC20: 17 | BD20: 60 | BE20: 68 | BF20: 10 | BK20: 2 | BL20: 0 | BM20: 0 | BN20: 0 | BO20: 0 | BP20: 0 | BQ20: 0 | BR20: 0 | BS20: 0 | BT20: 1 | BU20: 1 | BW20: 2 | BX20: 1 | BY20: 0 | BZ20: 0 | CA20: 0 | CB20: 0 | CC20: 0 | CD20: 0 | CE20: 0 | CF20: 0 | CG20: 1 | CI20: 2 | CJ20: 0 | CK20: 0 | CL20: 0 | CM20: 0 | CN20: 0 | CO20: 0 | CP20: 0 | CQ20: 1 | CR20: 0 | CS20: 0 | CU20: 2 | CV20: 1 | CW20: 1 | CX20: 0 | CY20: 0 | CZ20: 0 | DA20: 0 | DB20: 0 | DC20: 0 | DD20: 0 | DE20: 0 | DG20: 2 | DH20: 0 | DI20: 0 | DJ20: 0 | DK20: 0 | DL20: 0 | DM20: 0 | DN20: 0 | DO20: 0 | DP20: 0 | DQ20: 0 | DS20: 2 | DT20: 0 | DU20: 1 | DV20: 0 | DW20: 0 | DX20: 0 | DY20: 0 | DZ20: 0 | EA20: 0 | EB20: 0 | EC20: 0
B21: 17 | C21: 2015 | D21: 12 | E21: 2 | Y21: 16 | Z21: 0 | AA21: 1 | AB21: 1 | AC21: 5 | AD21: 2 | AE21: 7 | AF21: 6 | AG21: 0 | AH21: 6 | AI21: 8 | AJ21: 0 | AK21: 4 | AM21: 1 | AN21: 15 | AO21: 27 | AP21: 60 | AQ21: 68 | AR21: 4 | AS21: X | AT21: XX | AU21: 12 | AV21: 12 | AW21: 12 | AX21: 12 | AZ21: 16 | BA21: 2 | BB21: 13 | BC21: 57 | BD21: 60 | BE21: 68 | BF21: 2 | BK21: 3 | BL21: 0 | BM21: 0 | BN21: 0 | BO21: 0 | BP21: 0 | BQ21: 0 | BR21: 0 | BS21: 0 | BT21: 0 | BU21: 0 | BW21: 3 | BX21: 0 | BY21: 0 | BZ21: 0 | CA21: 0 | CB21: 0 | CC21: 0 | CD21: 0 | CE21: 0 | CF21: 0 | CG21: 0 | CI21: 3 | CJ21: 0 | CK21: 0 | CL21: 0 | CM21: 0 | CN21: 0 | CO21: 0 | CP21: 0 | CQ21: 0 | CR21: 0 | CS21: 0 | CU21: 3 | CV21: 0 | CW21: 0 | CX21: 0 | CY21: 0 | CZ21: 0 | DA21: 0 | DB21: 0 | DC21: 0 | DD21: 1 | DE21: 0 | DG21: 3 | DH21: 0 | DI21: 0 | DJ21: 0 | DK21: 0 | DL21: 1 | DM21: 1 | DN21: 0 | DO21: 0 | DP21: 0 | DQ21: 0 | DS21: 3 | DT21: 0 | DU21: 0 | DV21: 0 | DW21: 0 | DX21: 0 | DY21: 0 | DZ21: 0 | EA21: 0 | EB21: 0 | EC21: 0
B22: 18 | C22: 2015 | D22: 12 | E22: 5 | Y22: 17 | Z22: 0 | AA22: 6 | AB22: 1 | AC22: 6 | AD22: 1 | AE22: 7 | AF22: 6 | AG22: 0 | AH22: 6 | AI22: 8 | AJ22: 1 | AK22: 0 | AM22: 6 | AN22: 16 | AO22: 17 | AP22: 60 | AQ22: 68 | AR22: 10 | AS22: X | AT22: XX | AU22: 13 | AV22: 13 | AW22: 13 | AX22: 13 | AZ22: 17 | BA22: =IF($AZ22<=$AT$5,LOOKUP($AZ22,$AX$6:$AX$1005,AM$6:AM$1005),"") -> 9 | BB22: 13 | BC22: 17 | BD22: 62 | BE22: 68 | BF22: 4 | BK22: 4 | BL22: 1 | BM22: 0 | BN22: 0 | BO22: 0 | BP22: 0 | BQ22: 0 | BR22: 0 | BS22: 0 | BT22: 0 | BU22: 0 | BW22: 4 | BX22: 0 | BY22: 1 | BZ22: 0 | CA22: 0 | CB22: 0 | CC22: 0 | CD22: 0 | CE22: 0 | CF22: 0 | CG22: 0 | CI22: 4 | CJ22: 0 | CK22: 0 | CL22: 0 | CM22: 0 | CN22: 0 | CO22: 0 | CP22: 0 | CQ22: 0 | CR22: 0 | CS22: 0 | CU22: 4 | CV22: 0 | CW22: 0 | CX22: 0 | CY22: 0 | CZ22: 0 | DA22: 0 | DB22: 0 | DC22: 0 | DD22: 0 | DE22: 0 | DG22: 4 | DH22: 0 | DI22: 0 | DJ22: 0 | DK22: 0 | DL22: 0 | DM22: 0 | DN22: 0 | DO22: 1 | DP22: 0 | DQ22: 0 | DS22: 4 | DT22: 0 | DU22: 0 | DV22: 0 | DW22: 0 | DX22: 0 | DY22: 0 | DZ22: 0 | EA22: 0 | EB22: 0 | EC22: 0
B23: 19 | C23: 2015 | D23: 12 | E23: 9 | Y23: 18 | Z23: 0 | AA23: 6 | AB23: 1 | AC23: 8 | AD23: 2 | AE23: 7 | AF23: 6 | AG23: 2 | AH23: 6 | AI23: 8 | AJ23: 1 | AK23: 5 | AM23: 6 | AN23: 18 | AO23: 27 | AP23: 62 | AQ23: 68 | AR23: 15 | AS23: X | AT23: XX | AU23: 14 | AV23: =IF(AU23<>AU22,AU23,"") -> 14 | AW23: 14 | AX23: =IF(AW23<>AW22,AW23,"") -> 14 | AZ23: 18 | BA23: 6 | BB23: 16 | BC23: 17 | BD23: 60 | BE23: 68 | BF23: 10 | BK23: 5 | BL23: 0 | BM23: 0 | BN23: 1 | BO23: 0 | BP23: 0 | BQ23: 0 | BR23: 0 | BS23: 0 | BT23: 0 | BU23: 0 | BW23: 5 | BX23: 0 | BY23: 0 | BZ23: 0 | CA23: 0 | CB23: 0 | CC23: 0 | CD23: 0 | CE23: 0 | CF23: 0 | CG23: 0 | CI23: 5 | CJ23: 0 | CK23: 0 | CL23: 0 | CM23: 0 | CN23: 0 | CO23: 0 | CP23: 1 | CQ23: 1 | CR23: 0 | CS23: 0 | CU23: 5 | CV23: 0 | CW23: 0 | CX23: 0 | CY23: 0 | CZ23: 0 | DA23: 0 | DB23: 0 | DC23: 0 | DD23: 0 | DE23: 0 | DG23: 5 | DH23: 0 | DI23: 0 | DJ23: 0 | DK23: 0 | DL23: 0 | DM23: 0 | DN23: 0 | DO23: 0 | DP23: 1 | DQ23: 0 | DS23: 5 | DT23: 0 | DU23: 0 | DV23: 0 | DW23: 0 | DX23: 0 | DY23: 0 | DZ23: 0 | EA23: 1 | EB23: 0 | EC23: 0
B24: 20 | C24: 2015 | D24: 12 | E24: 12 | Y24: 19 | Z24: 0 | AA24: 9 | AB24: 1 | AC24: 3 | AD24: 1 | AE24: 7 | AF24: 6 | AG24: 0 | AH24: 6 | AI24: 8 | AJ24: 1 | AK24: 0 | AM24: 9 | AN24: 13 | AO24: 17 | AP24: 60 | AQ24: 68 | AR24: 10 | AS24: X | AT24: XX | AU24: 15 | AV24: 15 | AW24: 15 | AX24: 15 | AZ24: 19 | BA24: 7 | BB24: 14 | BC24: 17 | BD24: 62 | BE24: 68 | BF24: 14 | BK24: 6 | BL24: 0 | BM24: 0 | BN24: 0 | BO24: 0 | BP24: 0 | BQ24: 0 | BR24: 0 | BS24: 0 | BT24: 0 | BU24: 0 | BW24: 6 | BX24: 0 | BY24: 0 | BZ24: 1 | CA24: 0 | CB24: 0 | CC24: 0 | CD24: 0 | CE24: 0 | CF24: 0 | CG24: 0 | CI24: 6 | CJ24: 0 | CK24: 0 | CL24: 1 | CM24: 0 | CN24: 0 | CO24: 0 | CP24: 1 | CQ24: 0 | CR24: 0 | CS24: 0 | CU24: 6 | CV24: 0 | CW24: 0 | CX24: 1 | CY24: 0 | CZ24: 0 | DA24: 0 | DB24: 0 | DC24: 0 | DD24: 0 | DE24: 0 | DG24: 6 | DH24: 0 | DI24: 0 | DJ24: 0 | DK24: 0 | DL24: 0 | DM24: 0 | DN24: 0 | DO24: 0 | DP24: 0 | DQ24: 0 | DS24: 6 | DT24: 0 | DU24: 0 | DV24: 0 | DW24: 0 | DX24: 0 | DY24: 0 | DZ24: 0 | EA24: 0 | EB24: 0 | EC24: 0
B25: 21 | C25: 2015 | D25: 12 | E25: 16 | Y25: 20 | Z25: 0 | AA25: 2 | AB25: 1 | AC25: 3 | AD25: 5 | AE25: 7 | AF25: 6 | AG25: 0 | AH25: 6 | AI25: 8 | AJ25: 0 | AK25: 2 | AM25: 2 | AN25: 13 | AO25: 57 | AP25: 60 | AQ25: 68 | AR25: 2 | AS25: X | AT25: XX | AU25: 16 | AV25: 16 | AW25: 16 | AX25: 16 | AZ25: 20 | BA25: 5 | BB25: 12 | BC25: 17 | BD25: 60 | BE25: 68 | BF25: 15 | BK25: 7 | BL25: 0 | BM25: 0 | BN25: 1 | BO25: 0 | BP25: 0 | BQ25: 0 | BR25: 0 | BS25: 0 | BT25: 0 | BU25: 0 | BW25: 7 | BX25: 1 | BY25: 0 | BZ25: 0 | CA25: 0 | CB25: 0 | CC25: 0 | CD25: 0 | CE25: 0 | CF25: 0 | CG25: 0 | CI25: 7 | CJ25: 0 | CK25: 0 | CL25: 0 | CM25: 0 | CN25: 0 | CO25: 1 | CP25: 0 | CQ25: 0 | CR25: 0 | CS25: 1 | CU25: 7 | CV25: 0 | CW25: 0 | CX25: 1 | CY25: 0 | CZ25: 0 | DA25: 0 | DB25: 0 | DC25: 0 | DD25: 0 | DE25: 0 | DG25: 7 | DH25: 0 | DI25: 0 | DJ25: 0 | DK25: 0 | DL25: 0 | DM25: 0 | DN25: 0 | DO25: 0 | DP25: 0 | DQ25: 1 | DS25: 7 | DT25: 1 | DU25: 0 | DV25: 0 | DW25: 0 | DX25: 0 | DY25: 0 | DZ25: 0 | EA25: 1 | EB25: 0 | EC25: 0
B26: 22 | C26: 2015 | D26: 12 | E26: 19 | Y26: 21 | Z26: 0 | AA26: 0 | AB26: 1 | AC26: 0 | AD26: 1 | AE26: 7 | AF26: 6 | AG26: 0 | AH26: 6 | AI26: 8 | AJ26: 0 | AK26: 6 | AM26: 0 | AN26: 10 | AO26: 17 | AP26: 60 | AQ26: 68 | AR26: 6 | AU26: 16 | AW26: 16 | AZ26: 21 | BA26: 4 | BB26: 15 | BC26: 17 | BD26: 60 | BE26: 68 | BF26: 16 | BK26: 8 | BL26: 0 | BM26: 0 | BN26: 0 | BO26: 0 | BP26: 0 | BQ26: 1 | BR26: 0 | BS26: 0 | BT26: 0 | BU26: 0 | BW26: 8 | BX26: 0 | BY26: 0 | BZ26: 0 | CA26: 0 | CB26: 0 | CC26: 0 | CD26: 0 | CE26: 0 | CF26: 0 | CG26: 0 | CI26: 8 | CJ26: 0 | CK26: 0 | CL26: 0 | CM26: 0 | CN26: 0 | CO26: 0 | CP26: 0 | CQ26: 0 | CR26: 0 | CS26: 0 | CU26: 8 | CV26: 0 | CW26: 0 | CX26: 0 | CY26: 0 | CZ26: 0 | DA26: 0 | DB26: 0 | DC26: 0 | DD26: 0 | DE26: 0 | DG26: 8 | DH26: 0 | DI26: 0 | DJ26: 1 | DK26: 1 | DL26: 0 | DM26: 0 | DN26: 0 | DO26: 0 | DP26: 0 | DQ26: 0 | DS26: 8 | DT26: 0 | DU26: 0 | DV26: 0 | DW26: 0 | DX26: 0 | DY26: 0 | DZ26: 0 | EA26: 0 | EB26: 0 | EC26: 0
B27: 23 | C27: 2015 | D27: 12 | E27: 23 | Y27: 22 | Z27: 0 | AA27: 0 | AB27: 1 | AC27: 8 | AD27: 2 | AE27: 7 | AF27: 6 | AG27: 2 | AH27: 6 | AI27: 8 | AJ27: 1 | AK27: 7 | AM27: 0 | AN27: 18 | AO27: 27 | AP27: 62 | AQ27: 68 | AR27: 17 | AU27: 16 | AW27: 16 | AZ27: 22 | BA27: 6 | BB27: 15 | BC27: 57 | BD27: 60 | BE27: 68 | BF27: 13 | BK27: 9 | BL27: 0 | BM27: 0 | BN27: 0 | BO27: 0 | BP27: 1 | BQ27: 0 | BR27: 0 | BS27: 0 | BT27: 0 | BU27: 0 | BW27: 9 | BX27: 1 | BY27: 0 | BZ27: 0 | CA27: 0 | CB27: 0 | CC27: 0 | CD27: 0 | CE27: 0 | CF27: 0 | CG27: 0 | CI27: 9 | CJ27: 1 | CK27: 0 | CL27: 0 | CM27: 0 | CN27: 0 | CO27: 0 | CP27: 0 | CQ27: 0 | CR27: 0 | CS27: 1 | CU27: 9 | CV27: 0 | CW27: 0 | CX27: 0 | CY27: 0 | CZ27: 0 | DA27: 0 | DB27: 0 | DC27: 0 | DD27: 0 | DE27: 0 | DG27: 9 | DH27: 1 | DI27: 0 | DJ27: 0 | DK27: 0 | DL27: 0 | DM27: 0 | DN27: 0 | DO27: 0 | DP27: 0 | DQ27: 0 | DS27: 9 | DT27: 0 | DU27: 1 | DV27: 0 | DW27: 0 | DX27: 0 | DY27: 0 | DZ27: 0 | EA27: 0 | EB27: 0 | EC27: 0
B28: 24 | C28: 2015 | D28: 12 | E28: 26 | Y28: 23 | Z28: 0 | AA28: 0 | AB28: 1 | AC28: 3 | AD28: 2 | AE28: 7 | AF28: 6 | AG28: 2 | AH28: 6 | AI28: 8 | AJ28: 0 | AK28: 3 | AM28: 0 | AN28: 13 | AO28: 27 | AP28: 62 | AQ28: 68 | AR28: 3 | AU28: 16 | AW28: 16 | AZ28: 23 | BA28: 3 | BB28: 10 | BC28: 57 | BD28: 62 | BE28: 68 | BF28: 19
B29: 25 | C29: 2015 | D29: 12 | E29: 30 | Y29: 24 | Z29: 0 | AA29: 4 | AB29: 1 | AC29: 3 | AD29: 2 | AE29: 7 | AF29: 6 | AG29: 2 | AH29: 6 | AI29: 8 | AJ29: 0 | AK29: 0 | AM29: 4 | AN29: 13 | AO29: 27 | AP29: 62 | AQ29: 68 | AR29: 0 | AU29: 16 | AW29: 16 | AZ29: 24 | BA29: 1 | BB29: 16 | BC29: 57 | BD29: 62 | BE29: 68 | BF29: 19
B30: 26 | C30: 2016 | D30: 1 | E30: 2 | Y30: 25 | Z30: 0 | AA30: 9 | AB30: 1 | AC30: 3 | AD30: 1 | AE30: 7 | AF30: 6 | AG30: 2 | AH30: 6 | AI30: 8 | AJ30: 0 | AK30: 4 | AM30: 9 | AN30: 13 | AO30: 17 | AP30: 62 | AQ30: 68 | AR30: 4 | AS30: X | AT30: XX | AU30: 17 | AV30: 17 | AW30: 17 | AX30: 17 | AZ30: 25 | BA30: 5 | BB30: 18 | BC30: 57 | BD30: 60 | BE30: 68 | BF30: 14
B31: 27 | C31: 2016 | D31: 1 | E31: 6 | Y31: 26 | Z31: 0 | AA31: 6 | AB31: 1 | AC31: 6 | AD31: 1 | AE31: 7 | AF31: 6 | AG31: 0 | AH31: 6 | AI31: 8 | AJ31: 1 | AK31: 0 | AM31: 6 | AN31: 16 | AO31: 17 | AP31: 60 | AQ31: 68 | AR31: 10 | AS31: X | AT31: XX | AU31: 18 | AV31: 18 | AW31: 18 | AX31: 18 | AZ31: 26 | BA31: 8 | BB31: 16 | BC31: 27 | BD31: 60 | BE31: 68 | BF31: 6
B32: 28 | C32: 2016 | D32: 1 | E32: 9 | Y32: 27 | Z32: 0 | AA32: 7 | AB32: 1 | AC32: 4 | AD32: 1 | AE32: 7 | AF32: 6 | AG32: 2 | AH32: 6 | AI32: 8 | AJ32: 1 | AK32: 4 | AM32: 7 | AN32: 14 | AO32: 17 | AP32: 62 | AQ32: 68 | AR32: 14 | AS32: X | AT32: XX | AU32: 19 | AV32: 19 | AW32: 19 | AX32: 19 | AZ32: 27 | BA32: 5 | BB32: 12 | BC32: 17 | BD32: 60 | BE32: 68 | BF32: 9
B33: 29 | C33: 2016 | D33: 1 | E33: 13 | Y33: 28 | Z33: 0 | AA33: 5 | AB33: 1 | AC33: 2 | AD33: 1 | AE33: 7 | AF33: 6 | AG33: 0 | AH33: 6 | AI33: 8 | AJ33: 1 | AK33: 5 | AM33: 5 | AN33: 12 | AO33: 17 | AP33: 60 | AQ33: 68 | AR33: 15 | AS33: X | AT33: XX | AU33: 20 | AV33: 20 | AW33: 20 | AX33: 20 | AZ33: 28 | BA33: 8 | BB33: 10 | BC33: 27 | BD33: 60 | BE33: 68 | BF33: 18
B34: 30 | C34: 2016 | D34: 1 | E34: 16 | Y34: 29 | Z34: 0 | AA34: 4 | AB34: 1 | AC34: 5 | AD34: 1 | AE34: 7 | AF34: 6 | AG34: 0 | AH34: 6 | AI34: 8 | AJ34: 1 | AK34: 6 | AM34: 4 | AN34: 15 | AO34: 17 | AP34: 60 | AQ34: 68 | AR34: 16 | AS34: X | AT34: XX | AU34: 21 | AV34: 21 | AW34: 21 | AX34: 21 | AZ34: 29 | BA34: 3 | BB34: 12 | BC34: 17 | BD34: 60 | BE34: 68 | BF34: 13
B35: 31 | C35: 2016 | D35: 1 | E35: 20 | Y35: 30 | Z35: 0 | AA35: 6 | AB35: 1 | AC35: 5 | AD35: 5 | AE35: 7 | AF35: 6 | AG35: 0 | AH35: 6 | AI35: 8 | AJ35: 1 | AK35: 3 | AM35: 6 | AN35: 15 | AO35: 57 | AP35: 60 | AQ35: 68 | AR35: 13 | AS35: X | AT35: XX | AU35: 22 | AV35: 22 | AW35: 22 | AX35: 22 | AZ35: 30 | BA35: 2 | BB35: 18 | BC35: 27 | BD35: 62 | BE35: 68 | BF35: 6
B36: 32 | C36: 2016 | D36: 1 | E36: 23 | Y36: 31 | Z36: 0 | AA36: 2 | AB36: 1 | AC36: 1 | AD36: 1 | AE36: 7 | AF36: 6 | AG36: 0 | AH36: 6 | AI36: 8 | AJ36: 0 | AK36: 0 | AM36: 2 | AN36: 11 | AO36: 17 | AP36: 60 | AQ36: 68 | AR36: 0 | AU36: 22 | AW36: 22 | AZ36: 31 | BA36: 2 | BB36: 17 | BC36: 57 | BD36: 60 | BE36: 68 | BF36: 18
B37: 33 | C37: 2016 | D37: 1 | E37: 27 | Y37: 32 | Z37: 0 | AA37: 3 | AB37: 1 | AC37: 0 | AD37: 5 | AE37: 7 | AF37: 6 | AG37: 2 | AH37: 6 | AI37: 8 | AJ37: 1 | AK37: 9 | AM37: 3 | AN37: 10 | AO37: 57 | AP37: 62 | AQ37: 68 | AR37: 19 | AS37: X | AT37: XX | AU37: 23 | AV37: 23 | AW37: 23 | AX37: 23 | AZ37: 32 | BA37: 6 | BB37: 17 | BC37: 57 | BD37: 60 | BE37: 68 | BF37: 7
B38: 34 | C38: 2016 | D38: 1 | E38: 30 | Y38: 33 | Z38: 0 | AA38: 1 | AB38: 1 | AC38: 6 | AD38: 5 | AE38: 7 | AF38: 6 | AG38: 2 | AH38: 6 | AI38: 8 | AJ38: 1 | AK38: 9 | AM38: 1 | AN38: 16 | AO38: 57 | AP38: 62 | AQ38: 68 | AR38: 19 | AS38: X | AT38: XX | AU38: 24 | AV38: 24 | AW38: 24 | AX38: 24 | AZ38: 33 | BA38: 5 | BB38: 17 | BC38: 27 | BD38: 60 | BE38: 68 | BF38: 17
B39: 35 | C39: 2016 | D39: 2 | E39: 3 | Y39: 34 | Z39: 0 | AA39: 5 | AB39: 1 | AC39: 8 | AD39: 5 | AE39: 7 | AF39: 6 | AG39: 0 | AH39: 6 | AI39: 8 | AJ39: 1 | AK39: 4 | AM39: 5 | AN39: 18 | AO39: 57 | AP39: 60 | AQ39: 68 | AR39: 14 | AS39: X | AT39: XX | AU39: 25 | AV39: 25 | AW39: 25 | AX39: 25 | AZ39: 34 | BA39: 5 | BB39: 14 | BC39: 17 | BD39: 60 | BE39: 68 | BF39: 6
B40: 36 | C40: 2016 | D40: 2 | E40: 6 | Y40: 35 | Z40: 0 | AA40: 8 | AB40: 1 | AC40: 6 | AD40: 2 | AE40: 7 | AF40: 6 | AG40: 0 | AH40: 6 | AI40: 8 | AJ40: 0 | AK40: 6 | AM40: 8 | AN40: 16 | AO40: 27 | AP40: 60 | AQ40: 68 | AR40: 6 | AS40: X | AT40: XX | AU40: 26 | AV40: 26 | AW40: 26 | AX40: 26 | AZ40: 35 | BA40: 2 | BB40: 13 | BC40: 57 | BD40: 60 | BE40: 68 | BF40: 3
B41: 37 | C41: 2016 | D41: 2 | E41: 10 | Y41: 36 | Z41: 0 | AA41: 5 | AB41: 1 | AC41: 2 | AD41: 1 | AE41: 7 | AF41: 6 | AG41: 0 | AH41: 6 | AI41: 8 | AJ41: 0 | AK41: 9 | AM41: 5 | AN41: 12 | AO41: 17 | AP41: 60 | AQ41: 68 | AR41: 9 | AS41: X | AT41: XX | AU41: 27 | AV41: 27 | AW41: 27 | AX41: 27 | AZ41: 36 | BA41: 4 | BB41: 19 | BC41: 57 | BD41: 62 | BE41: 68 | BF41: 11
B42: 38 | C42: 2016 | D42: 2 | E42: 13 | Y42: 37 | Z42: 0 | AA42: 8 | AB42: 1 | AC42: 0 | AD42: 2 | AE42: 7 | AF42: 6 | AG42: 0 | AH42: 6 | AI42: 8 | AJ42: 1 | AK42: 8 | AM42: 8 | AN42: 10 | AO42: 27 | AP42: 60 | AQ42: 68 | AR42: 18 | AS42: X | AT42: XX | AU42: 28 | AV42: 28 | AW42: 28 | AX42: 28 | AZ42: 37 | BA42: 8 | BB42: 15 | BC42: 17 | BD42: 62 | BE42: 68 | BF42: 7
B43: 39 | C43: 2016 | D43: 2 | E43: 17 | Y43: 38 | Z43: 0 | AA43: 3 | AB43: 1 | AC43: 1 | AD43: 1 | AE43: 7 | AF43: 6 | AG43: 0 | AH43: 6 | AI43: 8 | AJ43: 0 | AK43: 0 | AM43: 3 | AN43: 11 | AO43: 17 | AP43: 60 | AQ43: 68 | AR43: 0 | AU43: 28 | AW43: 28 | AZ43: 38 | BA43: 7 | BB43: 17 | BC43: 27 | BD43: 60 | BE43: 68 | BF43: 18
B44: 40 | C44: 2016 | D44: 2 | E44: 20 | Y44: 39 | Z44: 0 | AA44: 1 | AB44: 1 | AC44: 9 | AD44: 1 | AE44: 7 | AF44: 6 | AG44: 2 | AH44: 6 | AI44: 8 | AJ44: 1 | AK44: 1 | AM44: 1 | AN44: 19 | AO44: 17 | AP44: 62 | AQ44: 68 | AR44: 11 | AS44: X | AU44: 29 | AV44: 29 | AW44: 28 | AZ44: 39 | BA44: 3 | BB44: 19 | BC44: 27 | BD44: 62 | BE44: 68 | BF44: 15
B45: 41 | C45: 2016 | D45: 2 | E45: 24 | Y45: 40 | Z45: 0 | AA45: 3 | AB45: 1 | AC45: 2 | AD45: 1 | AE45: 7 | AF45: 6 | AG45: 0 | AH45: 6 | AI45: 8 | AJ45: 1 | AK45: 3 | AM45: 3 | AN45: 12 | AO45: 17 | AP45: 60 | AQ45: 68 | AR45: 13 | AS45: X | AT45: XX | AU45: 30 | AV45: 30 | AW45: 29 | AX45: 29 | AZ45: 40 | BA45: 8 | BB45: 12 | BC45: 57 | BD45: 60 | BE45: 68 | BF45: 3
B46: 42 | C46: 2016 | D46: 2 | E46: 27 | Y46: 41 | Z46: 0 | AA46: 2 | AB46: 1 | AC46: 8 | AD46: 2 | AE46: 7 | AF46: 6 | AG46: 2 | AH46: 6 | AI46: 8 | AJ46: 0 | AK46: 6 | AM46: 2 | AN46: 18 | AO46: 27 | AP46: 62 | AQ46: 68 | AR46: 6 | AS46: X | AT46: XX | AU46: 31 | AV46: 31 | AW46: 30 | AX46: 30 | AZ46: 41 | BA46: 6 | BB46: 13 | BC46: 27 | BD46: 60 | BE46: 68 | BF46: 18
B47: 43 | C47: 2016 | D47: 3 | E47: 2 | Y47: 42 | Z47: 0 | AA47: 2 | AB47: 1 | AC47: 7 | AD47: 5 | AE47: 7 | AF47: 6 | AG47: 0 | AH47: 6 | AI47: 8 | AJ47: 1 | AK47: 8 | AM47: 2 | AN47: 17 | AO47: 57 | AP47: 60 | AQ47: 68 | AR47: 18 | AS47: X | AT47: XX | AU47: 32 | AV47: 32 | AW47: 31 | AX47: 31 | AZ47: 42 | BA47: 4 | BB47: 13 | BC47: 57 | BD47: 60 | BE47: 68 | BF47: 14
B48: 44 | C48: 2016 | D48: 3 | E48: 5 | Y48: 43 | Z48: 0 | AA48: 6 | AB48: 1 | AC48: 7 | AD48: 5 | AE48: 7 | AF48: 6 | AG48: 0 | AH48: 6 | AI48: 8 | AJ48: 0 | AK48: 7 | AM48: 6 | AN48: 17 | AO48: 57 | AP48: 60 | AQ48: 68 | AR48: 7 | AS48: X | AT48: XX | AU48: 33 | AV48: 33 | AW48: 32 | AX48: 32 | AZ48: 43 | BA48: 2 | BB48: 17 | BC48: 57 | BD48: 62 | BE48: 68 | BF48: 19
B49: 45 | C49: 2016 | D49: 3 | E49: 9 | Y49: 44 | Z49: 0 | AA49: 5 | AB49: 1 | AC49: 7 | AD49: 2 | AE49: 7 | AF49: 6 | AG49: 0 | AH49: 6 | AI49: 8 | AJ49: 1 | AK49: 7 | AM49: 5 | AN49: 17 | AO49: 27 | AP49: 60 | AQ49: 68 | AR49: 17 | AS49: X | AT49: XX | AU49: 34 | AV49: 34 | AW49: 33 | AX49: 33 | AZ49: 44 | BA49: 5 | BB49: 12 | BC49: 57 | BD49: 62 | BE49: 68 | BF49: 15
B50: 46 | C50: 2016 | D50: 3 | E50: 12 | Y50: 45 | Z50: 0 | AA50: 5 | AB50: 1 | AC50: 4 | AD50: 1 | AE50: 7 | AF50: 6 | AG50: 0 | AH50: 6 | AI50: 8 | AJ50: 0 | AK50: 6 | AM50: 5 | AN50: 14 | AO50: 17 | AP50: 60 | AQ50: 68 | AR50: 6 | AS50: X | AT50: XX | AU50: 35 | AV50: 35 | AW50: 34 | AX50: 34 | AZ50: 45 | BA50: 2 | BB50: 18 | BC50: 57 | BD50: 62 | BE50: 68 | BF50: 9
B51: 47 | C51: 2016 | D51: 3 | E51: 16 | Y51: 46 | Z51: 0 | AA51: 2 | AB51: 1 | AC51: 3 | AD51: 5 | AE51: 7 | AF51: 6 | AG51: 0 | AH51: 6 | AI51: 8 | AJ51: 0 | AK51: 3 | AM51: 2 | AN51: 13 | AO51: 57 | AP51: 60 | AQ51: 68 | AR51: 3 | AS51: X | AT51: XX | AU51: 36 | AV51: 36 | AW51: 35 | AX51: 35 | AZ51: 46 | BA51: 3 | BB51: 19 | BC51: 57 | BD51: 62 | BE51: 68 | BF51: 3
B52: 48 | C52: 2016 | D52: 3 | E52: 19 | Y52: 47 | Z52: 0 | AA52: 0 | AB52: 1 | AC52: 5 | AD52: 2 | AE52: 7 | AF52: 6 | AG52: 2 | AH52: 6 | AI52: 8 | AJ52: 1 | AK52: 2 | AM52: 0 | AN52: 15 | AO52: 27 | AP52: 62 | AQ52: 68 | AR52: 12 | AU52: 36 | AW52: 35 | AZ52: 47 | BA52: 2 | BB52: 15 | BC52: 27 | BD52: 62 | BE52: 68 | BF52: 11
B53: 49 | C53: 2016 | D53: 3 | E53: 23 | Y53: 48 | Z53: 0 | AA53: 6 | AB53: 1 | AC53: 8 | AD53: 1 | AE53: 7 | AF53: 6 | AG53: 0 | AH53: 6 | AI53: 8 | AJ53: 0 | AK53: 8 | AM53: 6 | AN53: 18 | AO53: 17 | AP53: 60 | AQ53: 68 | AR53: 8 | AS53: X | AU53: 37 | AV53: 37 | AW53: 35 | AZ53: 48 | BA53: 2 | BB53: 10 | BC53: 17 | BD53: 62 | BE53: 68 | BF53: 4
B54: 50 | C54: 2016 | D54: 3 | E54: 26 | Y54: 49 | Z54: 0 | AA54: 4 | AB54: 1 | AC54: 9 | AD54: 5 | AE54: 7 | AF54: 6 | AG54: 2 | AH54: 6 | AI54: 8 | AJ54: 1 | AK54: 1 | AM54: 4 | AN54: 19 | AO54: 57 | AP54: 62 | AQ54: 68 | AR54: 11 | AS54: X | AT54: XX | AU54: 38 | AV54: 38 | AW54: 36 | AX54: 36 | AZ54: 49 | BA54: 2 | BB54: 12 | BC54: 27 | BD54: 62 | BE54: 68 | BF54: 17
B55: 51 | C55: 2016 | D55: 3 | E55: 30 | Y55: 50 | Z55: 0 | AA55: 8 | AB55: 1 | AC55: 5 | AD55: 1 | AE55: 7 | AF55: 6 | AG55: 2 | AH55: 6 | AI55: 8 | AJ55: 0 | AK55: 7 | AM55: 8 | AN55: 15 | AO55: 17 | AP55: 62 | AQ55: 68 | AR55: 7 | AS55: X | AT55: XX | AU55: 39 | AV55: 39 | AW55: 37 | AX55: 37 | AZ55: 50 | BA55: 2 | BB55: 15 | BC55: 57 | BD55: 62 | BE55: 68 | BF55: 1
B56: 52 | C56: 2016 | D56: 4 | E56: 2 | Y56: 51 | Z56: 0 | AA56: 7 | AB56: 1 | AC56: 7 | AD56: 2 | AE56: 7 | AF56: 6 | AG56: 0 | AH56: 6 | AI56: 8 | AJ56: 1 | AK56: 8 | AM56: 7 | AN56: 17 | AO56: 27 | AP56: 60 | AQ56: 68 | AR56: 18 | AS56: X | AT56: XX | AU56: 40 | AV56: 40 | AW56: 38 | AX56: 38 | AZ56: 51 | BA56: 2 | BB56: 18 | BC56: 57 | BD56: 62 | BE56: 68 | BF56: 3
B57: 53 | C57: 2016 | D57: 4 | E57: 6 | Y57: 52 | Z57: 0 | AA57: 0 | AB57: 1 | AC57: 8 | AD57: 1 | AE57: 7 | AF57: 6 | AG57: 0 | AH57: 6 | AI57: 8 | AJ57: 0 | AK57: 3 | AM57: 0 | AN57: 18 | AO57: 17 | AP57: 60 | AQ57: 68 | AR57: 3 | AU57: 40 | AW57: 38 | AZ57: 52 | BA57: 9 | BB57: 15 | BC57: 17 | BD57: 60 | BE57: 68 | BF57: 13
B58: 54 | C58: 2016 | D58: 4 | E58: 9 | Y58: 53 | Z58: 0 | AA58: 3 | AB58: 1 | AC58: 9 | AD58: 2 | AE58: 7 | AF58: 6 | AG58: 2 | AH58: 6 | AI58: 8 | AJ58: 1 | AK58: 5 | AM58: 3 | AN58: 19 | AO58: 27 | AP58: 62 | AQ58: 68 | AR58: 15 | AS58: X | AT58: XX | AU58: 41 | AV58: 41 | AW58: 39 | AX58: 39 | AZ58: 53 | BA58: 1 | BB58: 18 | BC58: 27 | BD58: 62 | BE58: 68 | BF58: 1
B59: 55 | C59: 2016 | D59: 4 | E59: 13 | Y59: 54 | Z59: 0 | AA59: 8 | AB59: 1 | AC59: 2 | AD59: 5 | AE59: 7 | AF59: 6 | AG59: 0 | AH59: 6 | AI59: 8 | AJ59: 0 | AK59: 3 | AM59: 8 | AN59: 12 | AO59: 57 | AP59: 60 | AQ59: 68 | AR59: 3 | AS59: X | AT59: XX | AU59: 42 | AV59: 42 | AW59: 40 | AX59: 40 | AZ59: 54 | BA59: 5 | BB59: 12 | BC59: 57 | BD59: 60 | BE59: 68 | BF59: 3
B60: 56 | C60: 2016 | D60: 4 | E60: 16 | Y60: 55 | Z60: 0 | AA60: 6 | AB60: 1 | AC60: 3 | AD60: 2 | AE60: 7 | AF60: 6 | AG60: 0 | AH60: 6 | AI60: 8 | AJ60: 1 | AK60: 8 | AM60: 6 | AN60: 13 | AO60: 27 | AP60: 60 | AQ60: 68 | AR60: 18 | AS60: X | AT60: XX | AU60: 43 | AV60: 43 | AW60: 41 | AX60: 41 | AZ60: 55 | BA60: 8 | BB60: 14 | BC60: 27 | BD60: 60 | BE60: 68 | BF60: 18
B61: 57 | C61: 2016 | D61: 4 | E61: 20 | Y61: 56 | Z61: 0 | AA61: 4 | AB61: 1 | AC61: 3 | AD61: 5 | AE61: 7 | AF61: 6 | AG61: 0 | AH61: 6 | AI61: 8 | AJ61: 1 | AK61: 4 | AM61: 4 | AN61: 13 | AO61: 57 | AP61: 60 | AQ61: 68 | AR61: 14 | AS61: X | AT61: XX | AU61: 44 | AV61: 44 | AW61: 42 | AX61: 42 | AZ61: 56 | BA61: 5 | BB61: 11 | BC61: 17 | BD61: 60 | BE61: 68 | BF61: 2
B62: 58 | C62: 2016 | D62: 4 | E62: 23 | Y62: 57 | Z62: 0 | AA62: 2 | AB62: 1 | AC62: 7 | AD62: 5 | AE62: 7 | AF62: 6 | AG62: 2 | AH62: 6 | AI62: 8 | AJ62: 1 | AK62: 9 | AM62: 2 | AN62: 17 | AO62: 57 | AP62: 62 | AQ62: 68 | AR62: 19 | AS62: X | AT62: XX | AU62: 45 | AV62: 45 | AW62: 43 | AX62: 43 | AZ62: 57 | BA62: 6 | BB62: 10 | BC62: 57 | BD62: 62 | BE62: 68 | BF62: 4
B63: 59 | C63: 2016 | D63: 4 | E63: 27 | Y63: 58 | Z63: 0 | AA63: 5 | AB63: 1 | AC63: 2 | AD63: 5 | AE63: 7 | AF63: 6 | AG63: 2 | AH63: 6 | AI63: 8 | AJ63: 1 | AK63: 5 | AM63: 5 | AN63: 12 | AO63: 57 | AP63: 62 | AQ63: 68 | AR63: 15 | AS63: X | AT63: XX | AU63: 46 | AV63: 46 | AW63: 44 | AX63: 44 | AZ63: 58 | BA63: 1 | BB63: 14 | BC63: 17 | BD63: 60 | BE63: 68 | BF63: 16
B64: 60 | C64: 2016 | D64: 4 | E64: 30 | Y64: 59 | Z64: 0 | AA64: 2 | AB64: 1 | AC64: 8 | AD64: 5 | AE64: 7 | AF64: 6 | AG64: 2 | AH64: 6 | AI64: 8 | AJ64: 0 | AK64: 9 | AM64: 2 | AN64: 18 | AO64: 57 | AP64: 62 | AQ64: 68 | AR64: 9 | AS64: X | AT64: XX | AU64: 47 | AV64: 47 | AW64: 45 | AX64: 45 | AZ64: 59 | BA64: 1 | BB64: 17 | BC64: 57 | BD64: =IF($AZ64<=$AT$5,LOOKUP($AZ64,$AX$6:$AX$1005,AP$6:AP$1005),"") -> 62 | BE64: 68 | BF64: 19
B65: 61 | C65: 2016 | D65: 5 | E65: 4 | Y65: 60 | Z65: 0 | AA65: 0 | AB65: 1 | AC65: 1 | AD65: 5 | AE65: 7 | AF65: 6 | AG65: 2 | AH65: 6 | AI65: 8 | AJ65: 0 | AK65: 7 | AM65: 0 | AN65: 11 | AO65: 57 | AP65: 62 | AQ65: 68 | AR65: 7 | AU65: 47 | AW65: 45 | AZ65: 60 | BA65: =IF($AZ65<=$AT$5,LOOKUP($AZ65,$AX$6:$AX$1005,AM$6:AM$1005),"") -> 6 | BB65: 13 | BC65: 57 | BD65: 60 | BE65: 68 | BF65: 6
B66: 62 | C66: 2016 | D66: 5 | E66: 7 | Y66: 61 | Z66: 0 | AA66: 5 | AB66: 1 | AC66: 8 | AD66: 1 | AE66: 7 | AF66: 6 | AG66: 0 | AH66: 6 | AI66: 8 | AJ66: 0 | AK66: 2 | AM66: 5 | AN66: 18 | AO66: 17 | AP66: 60 | AQ66: 68 | AR66: 2 | AS66: X | AU66: 48 | AV66: 48 | AW66: 45 | AZ66: 61 | BA66: 8 | BB66: 13 | BC66: 27 | BD66: 62 | BE66: 68 | BF66: 9
B67: 63 | C67: 2016 | D67: 5 | E67: 11 | Y67: 62 | Z67: 0 | AA67: 3 | AB67: 1 | AC67: 9 | AD67: 5 | AE67: 7 | AF67: 6 | AG67: 2 | AH67: 6 | AI67: 8 | AJ67: 0 | AK67: 3 | AM67: 3 | AN67: 19 | AO67: 57 | AP67: 62 | AQ67: 68 | AR67: 3 | AS67: X | AT67: XX | AU67: 49 | AV67: 49 | AW67: 46 | AX67: 46 | AZ67: 62 | BA67: 4 | BB67: 15 | BC67: 57 | BD67: 62 | BE67: 68 | BF67: 7
B68: 64 | C68: 2016 | D68: 5 | E68: 14 | Y68: 63 | Z68: 0 | AA68: 2 | AB68: 1 | AC68: 5 | AD68: 2 | AE68: 7 | AF68: 6 | AG68: 2 | AH68: 6 | AI68: 8 | AJ68: 1 | AK68: 1 | AM68: 2 | AN68: 15 | AO68: 27 | AP68: 62 | AQ68: 68 | AR68: 11 | AS68: X | AT68: XX | AU68: 50 | AV68: 50 | AW68: 47 | AX68: 47 | AZ68: 63 | BA68: 3 | BB68: 16 | BC68: 57 | BD68: 60 | BE68: 68 | BF68: 17
B69: 65 | C69: 2016 | D69: 5 | E69: 18 | Y69: 64 | Z69: 0 | AA69: 2 | AB69: 1 | AC69: 0 | AD69: 1 | AE69: 7 | AF69: 6 | AG69: 2 | AH69: 6 | AI69: 8 | AJ69: 0 | AK69: 4 | AM69: 2 | AN69: 10 | AO69: 17 | AP69: 62 | AQ69: 68 | AR69: 4 | AS69: X | AT69: XX | AU69: 51 | AV69: 51 | AW69: 48 | AX69: 48 | AZ69: 64 | BA69: 9 | BB69: 11 | BC69: 57 | BD69: 60 | BE69: 68 | BF69: 4
B70: 66 | C70: 2016 | D70: 5 | E70: 21 | L70: =IF(ISNUMBER(F70),INT(F70/10),"") ->  | M70: =IF(ISNUMBER(F70),F70-10*L70,"") ->  | N70: =IF(ISNUMBER(G70),INT(G70/10),"") ->  | O70: =IF(ISNUMBER(G70),G70-10*N70,"") ->  | P70: =IF(ISNUMBER(H70),INT(H70/10),"") ->  | Q70: =IF(ISNUMBER(H70),H70-10*P70,"") ->  | R70: =IF(ISNUMBER(I70),INT(I70/10),"") ->  | S70: =IF(ISNUMBER(I70),I70-10*R70,"") ->  | T70: =IF(ISNUMBER(J70),INT(J70/10),"") ->  | U70: =IF(ISNUMBER(J70),J70-10*T70,"") ->  | V70: =IF(ISNUMBER(K70),INT(K70/10),"") ->  | W70: =IF(ISNUMBER(K70),K70-10*V70,"") ->  | Y70: 65 | Z70: =IF($Z$5=$BL$5,Disimulate($BK$6:$BK$15,$BL$6:$BL$15),IF($Z$5=$BM$5,Disimulate($BK$6:$BK$15,$BM$6:$BM$15),IF($Z$5=$BN$5,Disimulate($BK$6:$BK$15,$BN$6:$BN$15),IF($Z$5=$BO$5,Disimulate($BK$6:$BK$15,$BO$6:$BO$15),IF($Z$5=$BP$5,Disimulate($BK$6:$BK$15,$BP$6:$BP$15),IF($Z$5=$BQ$5,Disimulate($BK$6:$BK$15,$BQ$6:$BQ$15),IF($Z$5=$BR$5,Disimulate($BK$6:$BK$15,$BR$6:$BR$15),IF($Z$5=$BS$5,Disimulate($BK$6:$BK$15,$BS$6:$BS$15),IF($Z$5=$BT$5,Disimulate($BK$6:$BK$15,$BT$6:$BT$15),IF($Z$5=$BU$5,Disimulate($BK$6:$BK$15,$BU$6:$BU$15),"")))))))))) -> 0 | AA70: =IF($AA$5=$BL$17,Disimulate($BK$18:$BK$27,$BL$18:$BL$27),IF($AA$5=$BM$17,Disimulate($BK$18:$BK$27,$BM$18:$BM$27),IF($AA$5=$BN$17,Disimulate($BK$18:$BK$27,$BN$18:$BN$27),IF($AA$5=$BO$17,Disimulate($BK$18:$BK$27,$BO$18:$BO$27),IF($AA$5=$BP$17,Disimulate($BK$18:$BK$27,$BP$18:$BP$27),IF($AA$5=$BQ$17,Disimulate($BK$18:$BK$27,$BQ$18:$BQ$27),IF($AA$5=$BR$17,Disimulate($BK$18:$BK$27,$BR$18:$BR$27),IF($AA$5=$BS$17,Disimulate($BK$18:$BK$27,$BS$18:$BS$27),IF($AA$5=$BT$17,Disimulate($BK$18:$BK$27,$BT$18:$BT$27),IF($AA$5=$BU$17,Disimulate($BK$18:$BK$27,$BU$18:$BU$27),"")))))))))) -> 1 | AB70: =IF($AB$5=$BX$5,Disimulate($BW$6:$BW$15,$BX$6:$BX$15),IF($AB$5=$BY$5,Disimulate($BW$6:$BW$15,$BY$6:$BY$15),IF($AB$5=$BZ$5,Disimulate($BW$6:$BW$15,$BZ$6:$BZ$15),IF($AB$5=$CA$5,Disimulate($BW$6:$BW$15,$CA$6:$CA$15),IF($AB$5=$CB$5,Disimulate($BW$6:$BW$15,$CB$6:$CB$15),IF($AB$5=$CC$5,Disimulate($BW$6:$BW$15,$CC$6:$CC$15),IF($AB$5=$CD$5,Disimulate($BW$6:$BW$15,$CD$6:$CD$15),IF($AB$5=$CE$5,Disimulate($BW$6:$BW$15,$CE$6:$CE$15),IF($AB$5=$CF$5,Disimulate($BW$6:$BW$15,$CF$6:$CF$15),IF($AB$5=$CG$5,Disimulate($BW$6:$BW$15,$CG$6:$CG$15),"")))))))))) -> 1 | AC70: =IF($AC$5=$BX$17,Disimulate($BW$18:$BW$27,$BX$18:$BX$27),IF($AC$5=$BY$17,Disimulate($BW$18:$BW$27,$BY$18:$BY$27),IF($AC$5=$BZ$17,Disimulate($BW$18:$BW$27,$BZ$18:$BZ$27),IF($AC$5=$CA$17,Disimulate($BW$18:$BW$27,$CA$18:$CA$27),IF($AC$5=$CB$17,Disimulate($BW$18:$BW$27,$CB$18:$CB$27),IF($AC$5=$CC$17,Disimulate($BW$18:$BW$27,$CC$18:$CC$27),IF($AC$5=$CD$17,Disimulate($BW$18:$BW$27,$CD$18:$CD$27),IF($AC$5=$CE$17,Disimulate($BW$18:$BW$27,$CE$18:$CE$27),IF($AC$5=$CF$17,Disimulate($BW$18:$BW$27,$CF$18:$CF$27),IF($AC$5=$CG$17,Disimulate($BW$18:$BW$27,$CG$18:$CG$27),"")))))))))) -> 9 | AD70: =IF($AD$5=$CJ$5,Disimulate($CI$6:$CI$15,$CJ$6:$CJ$15),IF($AD$5=$CK$5,Disimulate($CI$6:$CI$15,$CK$6:$CK$15),IF($AD$5=$CL$5,Disimulate($CI$6:$CI$15,$CL$6:$CL$15),IF($AD$5=$CM$5,Disimulate($CI$6:$CI$15,$CM$6:$CM$15),IF($AD$5=$CN$5,Disimulate($CI$6:$CI$15,$CN$6:$CN$15),IF($AD$5=$CO$5,Disimulate($CI$6:$CI$15,$CO$6:$CO$15),IF($AD$5=$CP$5,Disimulate($CI$6:$CI$15,$CP$6:$CP$15),IF($AD$5=$CQ$5,Disimulate($CI$6:$CI$15,$CQ$6:$CQ$15),IF($AD$5=$CR$5,Disimulate($CI$6:$CI$15,$CR$6:$CR$15),IF($AD$5=$CS$5,Disimulate($CI$6:$CI$15,$CS$6:$CS$15),"")))))))))) -> 1 | AE70: =IF($AE$5=$CJ$17,Disimulate($CI$18:$CI$27,$CJ$18:$CJ$27),IF($AE$5=$CK$17,Disimulate($CI$18:$CI$27,$CK$18:$CK$27),IF($AE$5=$CL$17,Disimulate($CI$18:$CI$27,$CL$18:$CL$27),IF($AE$5=$CM$17,Disimulate($CI$18:$CI$27,$CM$18:$CM$27),IF($AE$5=$CN$17,Disimulate($CI$18:$CI$27,$CN$18:$CN$27),IF($AE$5=$CO$17,Disimulate($CI$18:$CI$27,$CO$18:$CO$27),IF($AE$5=$CP$17,Disimulate($CI$18:$CI$27,$CP$18:$CP$27),IF($AE$5=$CQ$17,Disimulate($CI$18:$CI$27,$CQ$18:$CQ$27),IF($AE$5=$CR$17,Disimulate($CI$18:$CI$27,$CR$18:$CR$27),IF($AE$5=$CS$17,Disimulate($CI$18:$CI$27,$CS$18:$CS$27),"")))))))))) -> 7 | AF70: =IF($AF$5=$CV$5,Disimulate($CU$6:$CU$15,$CV$6:$CV$15),IF($AF$5=$CW$5,Disimulate($CU$6:$CU$15,$CW$6:$CW$15),IF($AF$5=$CX$5,Disimulate($CU$6:$CU$15,$CX$6:$CX$15),IF($AF$5=$CY$5,Disimulate($CU$6:$CU$15,$CY$6:$CY$15),IF($AF$5=$CZ$5,Disimulate($CU$6:$CU$15,$CZ$6:$CZ$15),IF($AF$5=$DA$5,Disimulate($CU$6:$CU$15,$DA$6:$DA$15),IF($AF$5=$DB$5,Disimulate($CU$6:$CU$15,$DB$6:$DB$15),IF($AF$5=$DC$5,Disimulate($CU$6:$CU$15,$DC$6:$DC$15),IF($AF$5=$DD$5,Disimulate($CU$6:$CU$15,$DD$6:$DD$15),IF($AF$5=$DE$5,Disimulate($CU$6:$CU$15,$DE$6:$DE$15),"")))))))))) -> 6 | AG70: =IF($AG$5=$CV$17,Disimulate($CU$18:$CU$27,$CV$18:$CV$27),IF($AG$5=$CW$17,Disimulate($CU$18:$CU$27,$CW$18:$CW$27),IF($AG$5=$CX$17,Disimulate($CU$18:$CU$27,$CX$18:$CX$27),IF($AG$5=$CY$17,Disimulate($CU$18:$CU$27,$CY$18:$CY$27),IF($AG$5=$CZ$17,Disimulate($CU$18:$CU$27,$CZ$18:$CZ$27),IF($AG$5=$DA$17,Disimulate($CU$18:$CU$27,$DA$18:$DA$27),IF($AG$5=$DB$17,Disimulate($CU$18:$CU$27,$DB$18:$DB$27),IF($AG$5=$DC$17,Disimulate($CU$18:$CU$27,$DC$18:$DC$27),IF($AG$5=$DD$17,Disimulate($CU$18:$CU$27,$DD$18:$DD$27),IF($AG$5=$DE$17,Disimulate($CU$18:$CU$27,$DE$18:$DE$27),"")))))))))) -> 2 | AH70: =IF($AH$5=$DH$5,Disimulate($DG$6:$DG$15,$DH$6:$DH$15),IF($AH$5=$DI$5,Disimulate($DG$6:$DG$15,$DI$6:$DI$15),IF($AH$5=$DJ$5,Disimulate($DG$6:$DG$15,$DJ$6:$DJ$15),IF($AH$5=$DK$5,Disimulate($DG$6:$DG$15,$DK$6:$DK$15),IF($AH$5=$DL$5,Disimulate($DG$6:$DG$15,$DL$6:$DL$15),IF($AH$5=$DM$5,Disimulate($DG$6:$DG$15,$DM$6:$DM$15),IF($AH$5=$DN$5,Disimulate($DG$6:$DG$15,$DN$6:$DN$15),IF($AH$5=$DO$5,Disimulate($DG$6:$DG$15,$DO$6:$DO$15),IF($AH$5=$DP$5,Disimulate($DG$6:$DG$15,$DP$6:$DP$15),IF($AH$5=$DQ$5,Disimulate($DG$6:$DG$15,$DQ$6:$DQ$15),"")))))))))) -> 6 | AI70: =IF($AI$5=$DH$17,Disimulate($DG$18:$DG$27,$DH$18:$DH$27),IF($AI$5=$DI$17,Disimulate($DG$18:$DG$27,$DI$18:$DI$27),IF($AI$5=$DJ$17,Disimulate($DG$18:$DG$27,$DJ$18:$DJ$27),IF($AI$5=$DK$17,Disimulate($DG$18:$DG$27,$DK$18:$DK$27),IF($AI$5=$DL$17,Disimulate($DG$18:$DG$27,$DL$18:$DL$27),IF($AI$5=$DM$17,Disimulate($DG$18:$DG$27,$DM$18:$DM$27),IF($AI$5=$DN$17,Disimulate($DG$18:$DG$27,$DN$18:$DN$27),IF($AI$5=$DO$17,Disimulate($DG$18:$DG$27,$DO$18:$DO$27),IF($AI$5=$DP$17,Disimulate($DG$18:$DG$27,$DP$18:$DP$27),IF($AI$5=$DQ$17,Disimulate($DG$18:$DG$27,$DQ$18:$DQ$27),"")))))))))) -> 8 | AJ70: =IF($AJ$5=$DT$5,Disimulate($DS$6:$DS$15,$DT$6:$DT$15),IF($AJ$5=$DU$5,Disimulate($DS$6:$DS$15,$DU$6:$DU$15),IF($AJ$5=$DV$5,Disimulate($DS$6:$DS$15,$DV$6:$DV$15),IF($AJ$5=$DW$5,Disimulate($DS$6:$DS$15,$DW$6:$DW$15),IF($AJ$5=$DX$5,Disimulate($DS$6:$DS$15,$DX$6:$DX$15),IF($AJ$5=$DY$5,Disimulate($DS$6:$DS$15,$DY$6:$DY$15),IF($AJ$5=$DZ$5,Disimulate($DS$6:$DS$15,$DZ$6:$DZ$15),IF($AJ$5=$EA$5,Disimulate($DS$6:$DS$15,$EA$6:$EA$15),IF($AJ$5=$EB$5,Disimulate($DS$6:$DS$15,$EB$6:$EB$15),IF($AJ$5=$EC$5,Disimulate($DS$6:$DS$15,$EC$6:$EC$15),"")))))))))) -> 1 | AK70: =IF($AK$5=$DT$17,Disimulate($DS$18:$DS$27,$DT$18:$DT$27),IF($AK$5=$DU$17,Disimulate($DS$18:$DS$27,$DU$18:$DU$27),IF($AK$5=$DV$17,Disimulate($DS$18:$DS$27,$DV$18:$DV$27),IF($AK$5=$DW$17,Disimulate($DS$18:$DS$27,$DW$18:$DW$27),IF($AK$5=$DX$17,Disimulate($DS$18:$DS$27,$DX$18:$DX$27),IF($AK$5=$DY$17,Disimulate($DS$18:$DS$27,$DY$18:$DY$27),IF($AK$5=$DZ$17,Disimulate($DS$18:$DS$27,$DZ$18:$DZ$27),IF($AK$5=$EA$17,Disimulate($DS$18:$DS$27,$EA$18:$EA$27),IF($AK$5=$EB$17,Disimulate($DS$18:$DS$27,$EB$18:$EB$27),IF($AK$5=$EC$17,Disimulate($DS$18:$DS$27,$EC$18:$EC$27),"")))))))))) -> 5 | AM70: =10*Z70+1*MOD(AA70+AM$4,10) -> 1 | AN70: =10*AB70+1*MOD(AC70+AN$4,10) -> 19 | AO70: =10*AD70+1*MOD(AE70+AO$4,10) -> 17 | AP70: =10*AF70+1*MOD(AG70+AP$4,10) -> 62 | AQ70: =10*AH70+1*MOD(AI70+AQ$4,10) -> 68 | AR70: =10*AJ70+1*MOD(AK70+AR$4,10) -> 15 | AS70: X | AT70: =IF(AND(AS70="X",AM70<AN70,AN70<AO70,AO70<AP70,AP70<AQ70),"XX","") ->  | AU70: 52 | AV70: 52 | AW70: 48 | AZ70: 65 | BA70: 3 | BB70: 15 | BC70: 27 | BD70: 60 | BE70: 68 | BF70: 2
B71: 67 | C71: 2016 | D71: 5 | E71: 25 | Y71: 66 | Z71: 0 | AA71: 2 | AB71: 1 | AC71: 2 | AD71: 2 | AE71: 7 | AF71: 6 | AG71: 2 | AH71: 6 | AI71: 8 | AJ71: 1 | AK71: 7 | AM71: 2 | AN71: 12 | AO71: 27 | AP71: 62 | AQ71: 68 | AR71: 17 | AS71: =IF(AND(MIN(AM71:AR71)>0,MAX(AM71:AQ71)<70,AR71<27),"X","") -> X | AT71: XX | AU71: =IF(AS71="X",AU70+1,AU70) -> 53 | AV71: 53 | AW71: 49 | AX71: 49 | AZ71: 66 | BA71: 9 | BB71: 15 | BC71: 27 | BD71: 62 | BE71: 68 | BF71: 19
B72: 68 | C72: 2016 | D72: 5 | E72: 28 | Y72: 67 | Z72: 0 | AA72: 2 | AB72: 1 | AC72: 5 | AD72: 5 | AE72: 7 | AF72: 6 | AG72: 2 | AH72: 6 | AI72: 8 | AJ72: 0 | AK72: 1 | AM72: 2 | AN72: 15 | AO72: 57 | AP72: 62 | AQ72: 68 | AR72: 1 | AS72: X | AT72: XX | AU72: 54 | AV72: 54 | AW72: =IF(AT72="XX",AW71+1,AW71) -> 50 | AX72: 50 | AZ72: 67 | BA72: 3 | BB72: 12 | BC72: 27 | BD72: 62 | BE72: 68 | BF72: 5
B73: 69 | C73: 2016 | D73: 6 | E73: 1 | Y73: 68 | Z73: 0 | AA73: 2 | AB73: 1 | AC73: 8 | AD73: 5 | AE73: 7 | AF73: 6 | AG73: 2 | AH73: 6 | AI73: 8 | AJ73: 0 | AK73: 3 | AM73: 2 | AN73: 18 | AO73: 57 | AP73: 62 | AQ73: 68 | AR73: 3 | AS73: X | AT73: XX | AU73: 55 | AV73: 55 | AW73: 51 | AX73: 51 | AZ73: 68 | BA73: 1 | BB73: 19 | BC73: 57 | BD73: 60 | BE73: 68 | BF73: 14
B74: 70 | C74: 2016 | D74: 6 | E74: 4 | Y74: 69 | Z74: 0 | AA74: 0 | AB74: 1 | AC74: 7 | AD74: 5 | AE74: 7 | AF74: 6 | AG74: 2 | AH74: 6 | AI74: 8 | AJ74: 1 | AK74: 5 | AM74: 0 | AN74: 17 | AO74: 57 | AP74: 62 | AQ74: 68 | AR74: 15 | AU74: 55 | AW74: 51 | AZ74: 69 | BA74: 3 | BB74: 12 | BC74: 57 | BD74: 62 | BE74: 68 | BF74: 12
B75: 71 | C75: 2016 | D75: 6 | E75: 8 | Y75: 70 | Z75: 0 | AA75: 9 | AB75: 1 | AC75: 5 | AD75: 1 | AE75: 7 | AF75: 6 | AG75: 0 | AH75: 6 | AI75: 8 | AJ75: 1 | AK75: 3 | AM75: 9 | AN75: 15 | AO75: 17 | AP75: 60 | AQ75: 68 | AR75: 13 | AS75: X | AT75: XX | AU75: 56 | AV75: 56 | AW75: 52 | AX75: 52 | AZ75: 70 | BA75: 7 | BB75: 18 | BC75: 57 | BD75: 60 | BE75: 68 | BF75: 11
B76: 72 | C76: 2016 | D76: 6 | E76: 11 | Y76: 71 | Z76: 0 | AA76: 1 | AB76: 1 | AC76: 8 | AD76: 2 | AE76: 7 | AF76: 6 | AG76: 2 | AH76: 6 | AI76: 8 | AJ76: 0 | AK76: 1 | AM76: 1 | AN76: 18 | AO76: 27 | AP76: 62 | AQ76: 68 | AR76: 1 | AS76: X | AT76: XX | AU76: 57 | AV76: 57 | AW76: 53 | AX76: 53 | AZ76: 71 | BA76: 1 | BB76: 16 | BC76: 57 | BD76: 62 | BE76: 68 | BF76: 6
B77: 73 | C77: 2016 | D77: 6 | E77: 15 | Y77: 72 | Z77: 0 | AA77: 5 | AB77: 1 | AC77: 2 | AD77: 5 | AE77: 7 | AF77: 6 | AG77: 0 | AH77: 6 | AI77: 8 | AJ77: 0 | AK77: 3 | AM77: 5 | AN77: 12 | AO77: 57 | AP77: 60 | AQ77: 68 | AR77: 3 | AS77: X | AT77: XX | AU77: 58 | AV77: 58 | AW77: 54 | AX77: 54 | AZ77: 72 | BA77: 8 | BB77: 17 | BC77: 27 | BD77: 60 | BE77: 68 | BF77: 10
B78: 74 | C78: 2016 | D78: 6 | E78: 18 | Y78: 73 | Z78: 0 | AA78: 8 | AB78: 1 | AC78: 4 | AD78: 2 | AE78: 7 | AF78: 6 | AG78: 0 | AH78: 6 | AI78: 8 | AJ78: 1 | AK78: 8 | AM78: 8 | AN78: 14 | AO78: 27 | AP78: 60 | AQ78: 68 | AR78: 18 | AS78: X | AT78: XX | AU78: 59 | AV78: 59 | AW78: 55 | AX78: 55 | AZ78: 73 | BA78: 6 | BB78: 17 | BC78: 57 | BD78: 62 | BE78: 68 | BF78: 5
B79: 75 | C79: 2016 | D79: 6 | E79: 22 | Y79: 74 | Z79: 0 | AA79: 8 | AB79: 1 | AC79: 7 | AD79: 1 | AE79: 7 | AF79: 6 | AG79: 0 | AH79: 6 | AI79: 8 | AJ79: 1 | AK79: 7 | AM79: 8 | AN79: 17 | AO79: 17 | AP79: 60 | AQ79: 68 | AR79: 17 | AS79: X | AU79: 60 | AV79: 60 | AW79: 55 | AZ79: 74 | BA79: 7 | BB79: 19 | BC79: 57 | BD79: 60 | BE79: 68 | BF79: 10
B80: 76 | C80: 2016 | D80: 6 | E80: 25 | Y80: 75 | Z80: 0 | AA80: 5 | AB80: 1 | AC80: 1 | AD80: 1 | AE80: 7 | AF80: 6 | AG80: 0 | AH80: 6 | AI80: 8 | AJ80: 0 | AK80: 2 | AM80: 5 | AN80: 11 | AO80: 17 | AP80: 60 | AQ80: 68 | AR80: 2 | AS80: X | AT80: XX | AU80: 61 | AV80: 61 | AW80: 56 | AX80: 56 | AZ80: 75 | BA80: 4 | BB80: 19 | BC80: 57 | BD80: 62 | BE80: 68 | BF80: 5
B81: 77 | C81: 2016 | D81: 6 | E81: 29 | Y81: 76 | Z81: 0 | AA81: 6 | AB81: 1 | AC81: 0 | AD81: 5 | AE81: 7 | AF81: 6 | AG81: 2 | AH81: 6 | AI81: 8 | AJ81: 0 | AK81: 4 | AM81: 6 | AN81: 10 | AO81: 57 | AP81: 62 | AQ81: 68 | AR81: 4 | AS81: X | AT81: XX | AU81: 62 | AV81: 62 | AW81: 57 | AX81: 57 | AZ81: 76 | BA81: 8 | BB81: 18 | BC81: 27 | BD81: 62 | BE81: 68 | BF81: 6
B82: 78 | C82: 2016 | D82: 7 | E82: 2 | Y82: 77 | Z82: 0 | AA82: 1 | AB82: 1 | AC82: 4 | AD82: 1 | AE82: 7 | AF82: 6 | AG82: 0 | AH82: 6 | AI82: 8 | AJ82: 1 | AK82: 6 | AM82: 1 | AN82: 14 | AO82: 17 | AP82: 60 | AQ82: 68 | AR82: 16 | AS82: X | AT82: XX | AU82: 63 | AV82: 63 | AW82: 58 | AX82: 58 | AZ82: 77 | BA82: 1 | BB82: 15 | BC82: 57 | BD82: 62 | BE82: 68 | BF82: 9
B83: 79 | C83: 2016 | D83: 7 | E83: 6 | Y83: 78 | Z83: 0 | AA83: 1 | AB83: 1 | AC83: 7 | AD83: 5 | AE83: 7 | AF83: 6 | AG83: 2 | AH83: 6 | AI83: 8 | AJ83: 1 | AK83: 9 | AM83: 1 | AN83: 17 | AO83: 57 | AP83: 62 | AQ83: 68 | AR83: 19 | AS83: X | AT83: XX | AU83: 64 | AV83: 64 | AW83: 59 | AX83: 59 | AZ83: 78 | BA83: 8 | BB83: 12 | BC83: 17 | BD83: 60 | BE83: 68 | BF83: 6
B84: 80 | C84: 2016 | D84: 7 | E84: 9 | Y84: 79 | Z84: 0 | AA84: 0 | AB84: 1 | AC84: 7 | AD84: 2 | AE84: 7 | AF84: 6 | AG84: 0 | AH84: 6 | AI84: 8 | AJ84: 1 | AK84: 3 | AM84: 0 | AN84: 17 | AO84: 27 | AP84: 60 | AQ84: 68 | AR84: 13 | AU84: 64 | AW84: 59 | AZ84: 79 | BA84: 7 | BB84: 18 | BC84: 57 | BD84: 60 | BE84: 68 | BF84: 18
B85: 81 | C85: 2016 | D85: 7 | E85: 13 | Y85: 80 | Z85: 0 | AA85: 6 | AB85: 1 | AC85: 3 | AD85: 5 | AE85: 7 | AF85: 6 | AG85: 0 | AH85: 6 | AI85: 8 | AJ85: 0 | AK85: 6 | AM85: 6 | AN85: 13 | AO85: 57 | AP85: 60 | AQ85: 68 | AR85: 6 | AS85: X | AT85: XX | AU85: 65 | AV85: 65 | AW85: 60 | AX85: 60 | AZ85: 80 | BA85: 2 | BB85: 15 | BC85: 57 | BD85: 60 | BE85: 68 | BF85: 6
B86: 82 | C86: 2016 | D86: 7 | E86: 16 | Y86: 81 | Z86: 0 | AA86: 0 | AB86: 1 | AC86: 2 | AD86: 5 | AE86: 7 | AF86: 6 | AG86: 2 | AH86: 6 | AI86: 8 | AJ86: 0 | AK86: 6 | AM86: 0 | AN86: 12 | AO86: 57 | AP86: 62 | AQ86: 68 | AR86: 6 | AU86: 65 | AW86: 60 | AZ86: 81 | BA86: 9 | BB86: 14 | BC86: 57 | BD86: 60 | BE86: 68 | BF86: 5
B87: 83 | C87: 2016 | D87: 7 | E87: 20 | Y87: 82 | Z87: 0 | AA87: 8 | AB87: 1 | AC87: 3 | AD87: 2 | AE87: 7 | AF87: 6 | AG87: 2 | AH87: 6 | AI87: 8 | AJ87: 0 | AK87: 9 | AM87: 8 | AN87: 13 | AO87: 27 | AP87: 62 | AQ87: 68 | AR87: 9 | AS87: X | AT87: XX | AU87: 66 | AV87: =IF(AU87<>AU86,AU87,"") -> 66 | AW87: 61 | AX87: =IF(AW87<>AW86,AW87,"") -> 61 | AZ87: 82 | BA87: 4 | BB87: 15 | BC87: 27 | BD87: 62 | BE87: 68 | BF87: 12
B88: 84 | C88: 2016 | D88: 7 | E88: 23 | Y88: 83 | Z88: 0 | AA88: 4 | AB88: 1 | AC88: 5 | AD88: 5 | AE88: 7 | AF88: 6 | AG88: 2 | AH88: 6 | AI88: 8 | AJ88: 0 | AK88: 7 | AM88: 4 | AN88: 15 | AO88: 57 | AP88: 62 | AQ88: 68 | AR88: 7 | AS88: X | AT88: XX | AU88: 67 | AV88: 67 | AW88: 62 | AX88: 62 | AZ88: 83 | BA88: 4 | BB88: 18 | BC88: 57 | BD88: 62 | BE88: 68 | BF88: 10
B89: 85 | C89: 2016 | D89: 7 | E89: 27 | Y89: 84 | Z89: 0 | AA89: 3 | AB89: 1 | AC89: 6 | AD89: 5 | AE89: 7 | AF89: 6 | AG89: 0 | AH89: 6 | AI89: 8 | AJ89: 1 | AK89: 7 | AM89: 3 | AN89: 16 | AO89: 57 | AP89: 60 | AQ89: 68 | AR89: 17 | AS89: X | AT89: XX | AU89: 68 | AV89: 68 | AW89: 63 | AX89: 63 | AZ89: 84 | BA89: 8 | BB89: 15 | BC89: 27 | BD89: 62 | BE89: 68 | BF89: 5
B90: 86 | C90: 2016 | D90: 7 | E90: 30 | Y90: 85 | Z90: 0 | AA90: 9 | AB90: 1 | AC90: 1 | AD90: 5 | AE90: 7 | AF90: 6 | AG90: 0 | AH90: 6 | AI90: 8 | AJ90: 0 | AK90: 4 | AM90: 9 | AN90: 11 | AO90: 57 | AP90: 60 | AQ90: 68 | AR90: 4 | AS90: X | AT90: XX | AU90: 69 | AV90: 69 | AW90: 64 | AX90: 64 | AZ90: 85 | BA90: 3 | BB90: 12 | BC90: 27 | BD90: 60 | BE90: 68 | BF90: 9
B91: 87 | C91: 2016 | D91: 8 | E91: 3 | Y91: 86 | Z91: 0 | AA91: 3 | AB91: 1 | AC91: 5 | AD91: 2 | AE91: 7 | AF91: 6 | AG91: 0 | AH91: 6 | AI91: 8 | AJ91: 0 | AK91: 2 | AM91: 3 | AN91: 15 | AO91: 27 | AP91: 60 | AQ91: 68 | AR91: 2 | AS91: X | AT91: XX | AU91: 70 | AV91: 70 | AW91: 65 | AX91: 65 | AZ91: 86 | BA91: 7 | BB91: 10 | BC91: 17 | BD91: 60 | BE91: 68 | BF91: 8
B92: 88 | C92: 2016 | D92: 8 | E92: 6 | Y92: 87 | Z92: 0 | AA92: 9 | AB92: 1 | AC92: 5 | AD92: 2 | AE92: 7 | AF92: 6 | AG92: 2 | AH92: 6 | AI92: 8 | AJ92: 1 | AK92: 9 | AM92: 9 | AN92: 15 | AO92: 27 | AP92: 62 | AQ92: 68 | AR92: 19 | AS92: X | AT92: XX | AU92: 71 | AV92: 71 | AW92: 66 | AX92: 66 | AZ92: 87 | BA92: 8 | BB92: 14 | BC92: 17 | BD92: 62 | BE92: 68 | BF92: 9
B93: 89 | C93: 2016 | D93: 8 | E93: 10 | Y93: 88 | Z93: 0 | AA93: 3 | AB93: 1 | AC93: 2 | AD93: 2 | AE93: 7 | AF93: 6 | AG93: 2 | AH93: 6 | AI93: 8 | AJ93: 0 | AK93: 5 | AM93: 3 | AN93: 12 | AO93: 27 | AP93: 62 | AQ93: 68 | AR93: 5 | AS93: X | AT93: XX | AU93: 72 | AV93: 72 | AW93: 67 | AX93: 67 | AZ93: 88 | BA93: 3 | BB93: 14 | BC93: 57 | BD93: 62 | BE93: 68 | BF93: 15
B94: 90 | C94: 2016 | D94: 8 | E94: 13 | Y94: 89 | Z94: 0 | AA94: 3 | AB94: 1 | AC94: 7 | AD94: 1 | AE94: 7 | AF94: 6 | AG94: 0 | AH94: 6 | AI94: 8 | AJ94: 0 | AK94: 6 | AM94: 3 | AN94: 17 | AO94: 17 | AP94: 60 | AQ94: 68 | AR94: 6 | AS94: X | AU94: 73 | AV94: 73 | AW94: 67 | AZ94: 89 | BA94: 1 | BB94: 14 | BC94: 17 | BD94: 62 | BE94: 68 | BF94: 11
B95: 91 | C95: 2016 | D95: 8 | E95: 17 | Y95: 90 | Z95: 0 | AA95: 1 | AB95: 1 | AC95: 9 | AD95: 5 | AE95: 7 | AF95: 6 | AG95: 0 | AH95: 6 | AI95: 8 | AJ95: 1 | AK95: 4 | AM95: 1 | AN95: 19 | AO95: 57 | AP95: 60 | AQ95: 68 | AR95: 14 | AS95: X | AT95: XX | AU95: 74 | AV95: 74 | AW95: 68 | AX95: 68 | AZ95: 90 | BA95: 7 | BB95: 16 | BC95: 27 | BD95: 60 | BE95: 68 | BF95: 7
B96: 92 | C96: 2016 | D96: 8 | E96: 20 | Y96: 91 | Z96: 0 | AA96: 3 | AB96: 1 | AC96: 2 | AD96: 5 | AE96: 7 | AF96: 6 | AG96: 2 | AH96: 6 | AI96: 8 | AJ96: 1 | AK96: 2 | AM96: 3 | AN96: 12 | AO96: 57 | AP96: 62 | AQ96: 68 | AR96: 12 | AS96: X | AT96: XX | AU96: 75 | AV96: 75 | AW96: 69 | AX96: 69 | AZ96: 91 | BA96: 4 | BB96: 11 | BC96: 17 | BD96: 62 | BE96: 68 | BF96: 13
B97: 93 | C97: 2016 | D97: 8 | E97: 24 | Y97: 92 | Z97: 0 | AA97: 7 | AB97: 1 | AC97: 8 | AD97: 5 | AE97: 7 | AF97: 6 | AG97: 0 | AH97: 6 | AI97: 8 | AJ97: 1 | AK97: 1 | AM97: 7 | AN97: 18 | AO97: 57 | AP97: 60 | AQ97: 68 | AR97: 11 | AS97: X | AT97: XX | AU97: 76 | AV97: 76 | AW97: 70 | AX97: 70 | AZ97: 92 | BA97: 6 | BB97: 18 | BC97: 27 | BD97: 62 | BE97: 68 | BF97: 3
B98: 94 | C98: 2016 | D98: 8 | E98: 27 | Y98: 93 | Z98: 0 | AA98: 1 | AB98: 1 | AC98: 6 | AD98: 5 | AE98: 7 | AF98: 6 | AG98: 2 | AH98: 6 | AI98: 8 | AJ98: 0 | AK98: 6 | AM98: 1 | AN98: 16 | AO98: 57 | AP98: 62 | AQ98: 68 | AR98: 6 | AS98: X | AT98: XX | AU98: 77 | AV98: 77 | AW98: 71 | AX98: 71 | AZ98: 93 | BA98: 4 | BB98: 15 | BC98: 57 | BD98: 60 | BE98: 68 | BF98: 13
B99: 95 | C99: 2016 | D99: 8 | E99: 31 | Y99: 94 | Z99: 0 | AA99: 6 | AB99: 1 | AC99: 0 | AD99: 1 | AE99: 7 | AF99: 6 | AG99: 2 | AH99: 6 | AI99: 8 | AJ99: 0 | AK99: 0 | AM99: 6 | AN99: 10 | AO99: 17 | AP99: 62 | AQ99: 68 | AR99: 0 | AU99: 77 | AW99: 71 | AZ99: 94 | BA99: 7 | BB99: 12 | BC99: 57 | BD99: 60 | BE99: 68 | BF99: 5
B100: 96 | C100: 2016 | D100: 9 | E100: 3 | Y100: 95 | Z100: 0 | AA100: 8 | AB100: 1 | AC100: 7 | AD100: 2 | AE100: 7 | AF100: 6 | AG100: 0 | AH100: 6 | AI100: 8 | AJ100: 1 | AK100: 0 | AM100: 8 | AN100: 17 | AO100: 27 | AP100: 60 | AQ100: 68 | AR100: 10 | AS100: X | AT100: XX | AU100: 78 | AV100: 78 | AW100: 72 | AX100: 72 | AZ100: 95 | BA100: 2 | BB100: 13 | BC100: 17 | BD100: 60 | BE100: 68 | BF100: 13
B101: 97 | C101: 2016 | D101: 9 | E101: 7 | Y101: 96 | Z101: 0 | AA101: 6 | AB101: 1 | AC101: 7 | AD101: 5 | AE101: 7 | AF101: 6 | AG101: 2 | AH101: 6 | AI101: 8 | AJ101: 0 | AK101: 5 | AM101: 6 | AN101: 17 | AO101: 57 | AP101: 62 | AQ101: 68 | AR101: 5 | AS101: X | AT101: XX | AU101: 79 | AV101: 79 | AW101: 73 | AX101: 73 | AZ101: 96 | BA101: 5 | BB101: 17 | BC101: 27 | BD101: 60 | BE101: 68 | BF101: 11
B102: 98 | C102: 2016 | D102: 9 | E102: 10 | Y102: 97 | Z102: 0 | AA102: 0 | AB102: 1 | AC102: 6 | AD102: 5 | AE102: 7 | AF102: 6 | AG102: 0 | AH102: 6 | AI102: 8 | AJ102: 1 | AK102: 4 | AM102: 0 | AN102: 16 | AO102: 57 | AP102: 60 | AQ102: 68 | AR102: 14 | AU102: 79 | AW102: 73 | AZ102: 97 | BA102: 3 | BB102: 12 | BC102: 57 | BD102: 62 | BE102: 68 | BF102: 5
B103: 99 | C103: 2016 | D103: 9 | E103: 14 | Y103: 98 | Z103: 0 | AA103: 0 | AB103: 1 | AC103: 5 | AD103: 5 | AE103: 7 | AF103: 6 | AG103: 0 | AH103: 6 | AI103: 8 | AJ103: 1 | AK103: 5 | AM103: 0 | AN103: 15 | AO103: 57 | AP103: 60 | AQ103: 68 | AR103: 15 | AU103: 79 | AW103: 73 | AZ103: 98 | BA103: 6 | BB103: 12 | BC103: 27 | BD103: 60 | BE103: 68 | BF103: 16
B104: 100 | C104: 2016 | D104: 9 | E104: 17 | Y104: 99 | Z104: 0 | AA104: 7 | AB104: 1 | AC104: 9 | AD104: 5 | AE104: 7 | AF104: 6 | AG104: 0 | AH104: 6 | AI104: 8 | AJ104: 1 | AK104: 0 | AM104: 7 | AN104: 19 | AO104: 57 | AP104: 60 | AQ104: 68 | AR104: 10 | AS104: X | AT104: XX | AU104: 80 | AV104: 80 | AW104: 74 | AX104: 74 | AZ104: 99 | BA104: 4 | BB104: 15 | BC104: 27 | BD104: 62 | BE104: 68 | BF104: 15
B105: 101 | C105: 2016 | D105: 9 | E105: 21 | Y105: 100 | Z105: 0 | AA105: 4 | AB105: 1 | AC105: 9 | AD105: 5 | AE105: 7 | AF105: 6 | AG105: 2 | AH105: 6 | AI105: 8 | AJ105: 0 | AK105: 5 | AM105: 4 | AN105: 19 | AO105: 57 | AP105: 62 | AQ105: 68 | AR105: 5 | AS105: X | AT105: XX | AU105: 81 | AV105: 81 | AW105: 75 | AX105: 75 | AZ105: 100 | BA105: 5 | BB105: 15 | BC105: 17 | BD105: 62 | BE105: 68 | BF105: 3
B106: 102 | C106: 2016 | D106: 9 | E106: 24 | Y106: 101 | Z106: 0 | AA106: 8 | AB106: 1 | AC106: 8 | AD106: 2 | AE106: 7 | AF106: 6 | AG106: 2 | AH106: 6 | AI106: 8 | AJ106: 0 | AK106: 6 | AM106: 8 | AN106: 18 | AO106: 27 | AP106: 62 | AQ106: 68 | AR106: 6 | AS106: X | AT106: XX | AU106: 82 | AV106: 82 | AW106: 76 | AX106: 76 | AZ106: 101 | BA106: 8 | BB106: 14 | BC106: 27 | BD106: 60 | BE106: 68 | BF106: 7
B107: 103 | C107: 2016 | D107: 9 | E107: 28 | Y107: 102 | Z107: 0 | AA107: 1 | AB107: 1 | AC107: 5 | AD107: 5 | AE107: 7 | AF107: 6 | AG107: 2 | AH107: 6 | AI107: 8 | AJ107: 0 | AK107: 9 | AM107: 1 | AN107: 15 | AO107: 57 | AP107: 62 | AQ107: 68 | AR107: 9 | AS107: X | AT107: XX | AU107: 83 | AV107: 83 | AW107: 77 | AX107: 77 | AZ107: 102 | BA107: 8 | BB107: 16 | BC107: 57 | BD107: 62 | BE107: 68 | BF107: 12
B108: 104 | C108: 2016 | D108: 10 | E108: 1 | Y108: 103 | Z108: 0 | AA108: 4 | AB108: 1 | AC108: 9 | AD108: 1 | AE108: 7 | AF108: 6 | AG108: 0 | AH108: 6 | AI108: 8 | AJ108: 1 | AK108: 4 | AM108: 4 | AN108: 19 | AO108: 17 | AP108: 60 | AQ108: 68 | AR108: 14 | AS108: X | AU108: 84 | AV108: 84 | AW108: 77 | AZ108: 103 | BA108: 1 | BB108: 19 | BC108: 57 | BD108: 62 | BE108: 68 | BF108: 10
B109: 105 | C109: 2016 | D109: 10 | E109: 5 | Y109: 104 | Z109: 0 | AA109: 8 | AB109: 1 | AC109: 2 | AD109: 1 | AE109: 7 | AF109: 6 | AG109: 0 | AH109: 6 | AI109: 8 | AJ109: 0 | AK109: 6 | AM109: 8 | AN109: 12 | AO109: 17 | AP109: 60 | AQ109: 68 | AR109: 6 | AS109: X | AT109: XX | AU109: 85 | AV109: 85 | AW109: 78 | AX109: 78 | AZ109: 104 | BA109: 4 | BB109: 13 | BC109: 57 | BD109: 62 | BE109: 68 | BF109: 14
B110: 106 | C110: 2016 | D110: 10 | E110: 8 | Y110: 105 | Z110: 0 | AA110: 7 | AB110: 1 | AC110: 8 | AD110: 5 | AE110: 7 | AF110: 6 | AG110: 0 | AH110: 6 | AI110: 8 | AJ110: 1 | AK110: 8 | AM110: 7 | AN110: 18 | AO110: 57 | AP110: 60 | AQ110: 68 | AR110: 18 | AS110: X | AT110: XX | AU110: 86 | AV110: 86 | AW110: 79 | AX110: 79 | AZ110: 105 | BA110: 9 | BB110: 14 | BC110: 17 | BD110: 60 | BE110: 68 | BF110: 3
B111: 107 | C111: 2016 | D111: 10 | E111: 12 | Y111: 106 | Z111: 0 | AA111: 0 | AB111: 1 | AC111: 6 | AD111: 2 | AE111: 7 | AF111: 6 | AG111: 0 | AH111: 6 | AI111: 8 | AJ111: 0 | AK111: 9 | AM111: 0 | AN111: 16 | AO111: 27 | AP111: 60 | AQ111: 68 | AR111: 9 | AU111: 86 | AW111: 79 | AZ111: 106 | BA111: 2 | BB111: 12 | BC111: 27 | BD111: 62 | BE111: 68 | BF111: 13
B112: 108 | C112: 2016 | D112: 10 | E112: 15 | Y112: 107 | Z112: 0 | AA112: 4 | AB112: 1 | AC112: 8 | AD112: 1 | AE112: 7 | AF112: 6 | AG112: 2 | AH112: 6 | AI112: 8 | AJ112: 1 | AK112: 4 | AM112: 4 | AN112: 18 | AO112: 17 | AP112: 62 | AQ112: 68 | AR112: 14 | AS112: X | AU112: 87 | AV112: 87 | AW112: 79 | AZ112: 107 | BA112: 4 | BB112: 15 | BC112: 57 | BD112: 60 | BE112: 68 | BF112: 13
B113: 109 | C113: 2016 | D113: 10 | E113: 19 | Y113: 108 | Z113: 0 | AA113: 2 | AB113: 1 | AC113: 5 | AD113: 5 | AE113: 7 | AF113: 6 | AG113: 0 | AH113: 6 | AI113: 8 | AJ113: 0 | AK113: 6 | AM113: 2 | AN113: 15 | AO113: 57 | AP113: 60 | AQ113: 68 | AR113: 6 | AS113: X | AT113: XX | AU113: 88 | AV113: 88 | AW113: 80 | AX113: 80 | AZ113: 108 | BA113: 9 | BB113: 15 | BC113: 27 | BD113: 62 | BE113: 68 | BF113: 8
B114: 110 | C114: 2016 | D114: 10 | E114: 22 | Y114: 109 | Z114: 0 | AA114: 9 | AB114: 1 | AC114: 4 | AD114: 5 | AE114: 7 | AF114: 6 | AG114: 0 | AH114: 6 | AI114: 8 | AJ114: 0 | AK114: 5 | AM114: 9 | AN114: 14 | AO114: 57 | AP114: 60 | AQ114: 68 | AR114: 5 | AS114: X | AT114: XX | AU114: 89 | AV114: 89 | AW114: 81 | AX114: 81 | AZ114: 109 | BA114: 5 | BB114: 11 | BC114: 27 | BD114: 62 | BE114: 68 | BF114: 13
B115: 111 | C115: 2016 | D115: 10 | E115: 26 | Y115: 110 | Z115: 0 | AA115: 0 | AB115: 1 | AC115: 2 | AD115: 2 | AE115: 7 | AF115: 6 | AG115: 0 | AH115: 6 | AI115: 8 | AJ115: 0 | AK115: 8 | AM115: 0 | AN115: 12 | AO115: 27 | AP115: 60 | AQ115: 68 | AR115: 8 | AU115: 89 | AW115: 81 | AZ115: 110 | BA115: 7 | BB115: 14 | BC115: 57 | BD115: 60 | BE115: 68 | BF115: 12
B116: 112 | C116: 2016 | D116: 10 | E116: 29 | Y116: 111 | Z116: 0 | AA116: 4 | AB116: 1 | AC116: 5 | AD116: 2 | AE116: 7 | AF116: 6 | AG116: 2 | AH116: 6 | AI116: 8 | AJ116: 1 | AK116: 2 | AM116: 4 | AN116: 15 | AO116: 27 | AP116: 62 | AQ116: 68 | AR116: 12 | AS116: X | AT116: XX | AU116: 90 | AV116: 90 | AW116: 82 | AX116: 82 | AZ116: 111 | BA116: 4 | BB116: 12 | BC116: 17 | BD116: 62 | BE116: 68 | BF116: 9
B117: 113 | C117: 2016 | D117: 11 | E117: 2 | Y117: 112 | Z117: 0 | AA117: 4 | AB117: 1 | AC117: 8 | AD117: 5 | AE117: 7 | AF117: 6 | AG117: 2 | AH117: 6 | AI117: 8 | AJ117: 1 | AK117: 0 | AM117: 4 | AN117: 18 | AO117: 57 | AP117: 62 | AQ117: 68 | AR117: 10 | AS117: X | AT117: XX | AU117: 91 | AV117: 91 | AW117: 83 | AX117: 83 | AZ117: 112 | BA117: 4 | BB117: 15 | BC117: 57 | BD117: 60 | BE117: 68 | BF117: 19
B118: 114 | C118: 2016 | D118: 11 | E118: 5 | Y118: 113 | Z118: 0 | AA118: 8 | AB118: 1 | AC118: 5 | AD118: 2 | AE118: 7 | AF118: 6 | AG118: 2 | AH118: 6 | AI118: 8 | AJ118: 0 | AK118: 5 | AM118: 8 | AN118: 15 | AO118: 27 | AP118: 62 | AQ118: 68 | AR118: 5 | AS118: X | AT118: XX | AU118: 92 | AV118: 92 | AW118: 84 | AX118: 84 | AZ118: 113 | BA118: 5 | BB118: 10 | BC118: 17 | BD118: 60 | BE118: 68 | BF118: 11
B119: 115 | C119: 2016 | D119: 11 | E119: 9 | Y119: 114 | Z119: 0 | AA119: 5 | AB119: 1 | AC119: 7 | AD119: 1 | AE119: 7 | AF119: 6 | AG119: 2 | AH119: 6 | AI119: 8 | AJ119: 0 | AK119: 2 | AM119: 5 | AN119: 17 | AO119: 17 | AP119: 62 | AQ119: 68 | AR119: 2 | AS119: X | AU119: 93 | AV119: 93 | AW119: 84 | AZ119: 114 | BA119: 2 | BB119: 16 | BC119: 27 | BD119: 60 | BE119: 68 | BF119: 18
B120: 116 | C120: 2016 | D120: 11 | E120: 12 | Y120: 115 | Z120: 0 | AA120: 3 | AB120: 1 | AC120: 2 | AD120: 2 | AE120: 7 | AF120: 6 | AG120: 0 | AH120: 6 | AI120: 8 | AJ120: 0 | AK120: 9 | AM120: 3 | AN120: 12 | AO120: 27 | AP120: 60 | AQ120: 68 | AR120: 9 | AS120: X | AT120: XX | AU120: 94 | AV120: 94 | AW120: 85 | AX120: 85 | AZ120: 115 | BA120: 9 | BB120: 11 | BC120: 57 | BD120: 62 | BE120: 68 | BF120: 19
B121: 117 | C121: 2016 | D121: 11 | E121: 16 | Y121: 116 | Z121: 0 | AA121: 7 | AB121: 1 | AC121: 0 | AD121: 1 | AE121: 7 | AF121: 6 | AG121: 0 | AH121: 6 | AI121: 8 | AJ121: 0 | AK121: 8 | AM121: 7 | AN121: 10 | AO121: 17 | AP121: 60 | AQ121: 68 | AR121: 8 | AS121: X | AT121: XX | AU121: 95 | AV121: 95 | AW121: 86 | AX121: 86 | AZ121: 116 | BA121: 8 | BB121: 14 | BC121: 27 | BD121: 60 | BE121: 68 | BF121: 17
B122: 118 | C122: 2016 | D122: 11 | E122: 19 | Y122: 117 | Z122: 0 | AA122: 8 | AB122: 1 | AC122: 4 | AD122: 1 | AE122: 7 | AF122: 6 | AG122: 2 | AH122: 6 | AI122: 8 | AJ122: 0 | AK122: 9 | AM122: 8 | AN122: 14 | AO122: 17 | AP122: 62 | AQ122: 68 | AR122: 9 | AS122: X | AT122: XX | AU122: 96 | AV122: 96 | AW122: 87 | AX122: 87 | AZ122: 117 | BA122: 8 | BB122: 12 | BC122: 17 | BD122: 62 | BE122: 68 | BF122: 9
B123: 119 | C123: 2016 | D123: 11 | E123: 23 | Y123: 118 | Z123: 0 | AA123: 3 | AB123: 1 | AC123: 4 | AD123: 5 | AE123: 7 | AF123: 6 | AG123: 2 | AH123: 6 | AI123: 8 | AJ123: 1 | AK123: 5 | AM123: 3 | AN123: 14 | AO123: 57 | AP123: 62 | AQ123: 68 | AR123: 15 | AS123: X | AT123: XX | AU123: 97 | AV123: 97 | AW123: 88 | AX123: 88 | AZ123: 118 | BA123: 6 | BB123: 19 | BC123: 57 | BD123: 60 | BE123: 68 | BF123: 17
B124: 120 | C124: 2016 | D124: 11 | E124: 26 | Y124: 119 | Z124: 0 | AA124: 1 | AB124: 1 | AC124: 4 | AD124: 1 | AE124: 7 | AF124: 6 | AG124: 2 | AH124: 6 | AI124: 8 | AJ124: 1 | AK124: 1 | AM124: 1 | AN124: 14 | AO124: 17 | AP124: 62 | AQ124: 68 | AR124: 11 | AS124: X | AT124: XX | AU124: 98 | AV124: 98 | AW124: 89 | AX124: 89 | AZ124: 119 | BA124: 1 | BB124: 15 | BC124: 27 | BD124: 60 | BE124: 68 | BF124: 2
B125: 121 | C125: 2016 | D125: 11 | E125: 30 | Y125: 120 | Z125: 0 | AA125: 7 | AB125: 1 | AC125: 6 | AD125: 2 | AE125: 7 | AF125: 6 | AG125: 0 | AH125: 6 | AI125: 8 | AJ125: 0 | AK125: 7 | AM125: 7 | AN125: 16 | AO125: 27 | AP125: 60 | AQ125: 68 | AR125: 7 | AS125: X | AT125: XX | AU125: 99 | AV125: 99 | AW125: 90 | AX125: 90 | AZ125: 120 | BA125: 7 | BB125: 15 | BC125: 57 | BD125: 62 | BE125: 68 | BF125: 8
B126: 122 | C126: 2016 | D126: 12 | E126: 3 | Y126: 121 | Z126: 0 | AA126: 4 | AB126: 1 | AC126: 1 | AD126: 1 | AE126: 7 | AF126: 6 | AG126: 2 | AH126: 6 | AI126: 8 | AJ126: 1 | AK126: 3 | AM126: 4 | AN126: 11 | AO126: 17 | AP126: 62 | AQ126: 68 | AR126: 13 | AS126: X | AT126: XX | AU126: 100 | AV126: 100 | AW126: 91 | AX126: 91 | AZ126: 121 | BA126: 6 | BB126: 10 | BC126: 27 | BD126: 62 | BE126: 68 | BF126: 12
B127: 123 | C127: 2016 | D127: 12 | E127: 7 | Y127: 122 | Z127: 0 | AA127: 6 | AB127: 1 | AC127: 8 | AD127: 2 | AE127: 7 | AF127: 6 | AG127: 2 | AH127: 6 | AI127: 8 | AJ127: 0 | AK127: 3 | AM127: 6 | AN127: 18 | AO127: 27 | AP127: 62 | AQ127: 68 | AR127: 3 | AS127: X | AT127: XX | AU127: 101 | AV127: 101 | AW127: 92 | AX127: 92 | AZ127: 122 | BA127: 8 | BB127: 19 | BC127: 57 | BD127: 60 | BE127: 68 | BF127: 1
B128: 124 | C128: 2016 | D128: 12 | E128: 10 | Y128: 123 | Z128: 0 | AA128: 5 | AB128: 1 | AC128: 9 | AD128: 1 | AE128: 7 | AF128: 6 | AG128: 2 | AH128: 6 | AI128: 8 | AJ128: 1 | AK128: 1 | AM128: 5 | AN128: 19 | AO128: 17 | AP128: 62 | AQ128: 68 | AR128: 11 | AS128: X | AU128: 102 | AV128: 102 | AW128: 92 | AZ128: 123 | BA128: 4 | BB128: 10 | BC128: 17 | BD128: 60 | BE128: 68 | BF128: 8
B129: 125 | C129: 2016 | D129: 12 | E129: 14 | Y129: 124 | Z129: 0 | AA129: 4 | AB129: 1 | AC129: 5 | AD129: 5 | AE129: 7 | AF129: 6 | AG129: 0 | AH129: 6 | AI129: 8 | AJ129: 1 | AK129: 3 | AM129: 4 | AN129: 15 | AO129: 57 | AP129: 60 | AQ129: 68 | AR129: 13 | AS129: X | AT129: XX | AU129: 103 | AV129: 103 | AW129: 93 | AX129: 93 | AZ129: 124 | BA129: =IF($AZ129<=$AT$5,LOOKUP($AZ129,$AX$6:$AX$1005,AM$6:AM$1005),"") -> 8 | BB129: 10 | BC129: 57 | BD129: 62 | BE129: 68 | BF129: 1
B130: 126 | C130: 2016 | D130: 12 | E130: 17 | Y130: 125 | Z130: 0 | AA130: 7 | AB130: 1 | AC130: 2 | AD130: 5 | AE130: 7 | AF130: 6 | AG130: 0 | AH130: 6 | AI130: 8 | AJ130: 0 | AK130: 5 | AM130: 7 | AN130: 12 | AO130: 57 | AP130: 60 | AQ130: 68 | AR130: 5 | AS130: X | AT130: XX | AU130: 104 | AV130: 104 | AW130: 94 | AX130: 94 | AZ130: 125 | BA130: 8 | BB130: 16 | BC130: 27 | BD130: 62 | BE130: 68 | BF130: 7
B131: 127 | C131: 2016 | D131: 12 | E131: 21 | Y131: 126 | Z131: 0 | AA131: 2 | AB131: 1 | AC131: 3 | AD131: 1 | AE131: 7 | AF131: 6 | AG131: 0 | AH131: 6 | AI131: 8 | AJ131: 1 | AK131: 3 | AM131: 2 | AN131: 13 | AO131: 17 | AP131: 60 | AQ131: 68 | AR131: 13 | AS131: X | AT131: XX | AU131: 105 | AV131: 105 | AW131: 95 | AX131: 95 | AZ131: 126 | BA131: 4 | BB131: 11 | BC131: 57 | BD131: 60 | BE131: 68 | BF131: 17
B132: 128 | C132: 2016 | D132: 12 | E132: 24 | Y132: 127 | Z132: 0 | AA132: 5 | AB132: 1 | AC132: 7 | AD132: 2 | AE132: 7 | AF132: 6 | AG132: 0 | AH132: 6 | AI132: 8 | AJ132: 1 | AK132: 1 | AM132: 5 | AN132: 17 | AO132: 27 | AP132: 60 | AQ132: 68 | AR132: 11 | AS132: X | AT132: XX | AU132: 106 | AV132: 106 | AW132: 96 | AX132: 96 | AZ132: 127 | BA132: 1 | BB132: 10 | BC132: 27 | BD132: 62 | BE132: 68 | BF132: 10
B133: 129 | C133: 2016 | D133: 12 | E133: 28 | Y133: 128 | Z133: 0 | AA133: 3 | AB133: 1 | AC133: 2 | AD133: 5 | AE133: 7 | AF133: 6 | AG133: 2 | AH133: 6 | AI133: 8 | AJ133: 0 | AK133: 5 | AM133: 3 | AN133: 12 | AO133: 57 | AP133: 62 | AQ133: 68 | AR133: 5 | AS133: X | AT133: XX | AU133: 107 | AV133: 107 | AW133: 97 | AX133: 97 | AZ133: 128 | BA133: 8 | BB133: 10 | BC133: 27 | BD133: 60 | BE133: 68 | BF133: 9
B134: 130 | C134: 2016 | D134: 12 | E134: 31 | L134: =IF(ISNUMBER(F134),INT(F134/10),"") ->  | M134: =IF(ISNUMBER(F134),F134-10*L134,"") ->  | N134: =IF(ISNUMBER(G134),INT(G134/10),"") ->  | O134: =IF(ISNUMBER(G134),G134-10*N134,"") ->  | P134: =IF(ISNUMBER(H134),INT(H134/10),"") ->  | Q134: =IF(ISNUMBER(H134),H134-10*P134,"") ->  | R134: =IF(ISNUMBER(I134),INT(I134/10),"") ->  | S134: =IF(ISNUMBER(I134),I134-10*R134,"") ->  | T134: =IF(ISNUMBER(J134),INT(J134/10),"") ->  | U134: =IF(ISNUMBER(J134),J134-10*T134,"") ->  | V134: =IF(ISNUMBER(K134),INT(K134/10),"") ->  | W134: =IF(ISNUMBER(K134),K134-10*V134,"") ->  | Y134: 129 | Z134: =IF($Z$5=$BL$5,Disimulate($BK$6:$BK$15,$BL$6:$BL$15),IF($Z$5=$BM$5,Disimulate($BK$6:$BK$15,$BM$6:$BM$15),IF($Z$5=$BN$5,Disimulate($BK$6:$BK$15,$BN$6:$BN$15),IF($Z$5=$BO$5,Disimulate($BK$6:$BK$15,$BO$6:$BO$15),IF($Z$5=$BP$5,Disimulate($BK$6:$BK$15,$BP$6:$BP$15),IF($Z$5=$BQ$5,Disimulate($BK$6:$BK$15,$BQ$6:$BQ$15),IF($Z$5=$BR$5,Disimulate($BK$6:$BK$15,$BR$6:$BR$15),IF($Z$5=$BS$5,Disimulate($BK$6:$BK$15,$BS$6:$BS$15),IF($Z$5=$BT$5,Disimulate($BK$6:$BK$15,$BT$6:$BT$15),IF($Z$5=$BU$5,Disimulate($BK$6:$BK$15,$BU$6:$BU$15),"")))))))))) -> 0 | AA134: =IF($AA$5=$BL$17,Disimulate($BK$18:$BK$27,$BL$18:$BL$27),IF($AA$5=$BM$17,Disimulate($BK$18:$BK$27,$BM$18:$BM$27),IF($AA$5=$BN$17,Disimulate($BK$18:$BK$27,$BN$18:$BN$27),IF($AA$5=$BO$17,Disimulate($BK$18:$BK$27,$BO$18:$BO$27),IF($AA$5=$BP$17,Disimulate($BK$18:$BK$27,$BP$18:$BP$27),IF($AA$5=$BQ$17,Disimulate($BK$18:$BK$27,$BQ$18:$BQ$27),IF($AA$5=$BR$17,Disimulate($BK$18:$BK$27,$BR$18:$BR$27),IF($AA$5=$BS$17,Disimulate($BK$18:$BK$27,$BS$18:$BS$27),IF($AA$5=$BT$17,Disimulate($BK$18:$BK$27,$BT$18:$BT$27),IF($AA$5=$BU$17,Disimulate($BK$18:$BK$27,$BU$18:$BU$27),"")))))))))) -> 6 | AB134: =IF($AB$5=$BX$5,Disimulate($BW$6:$BW$15,$BX$6:$BX$15),IF($AB$5=$BY$5,Disimulate($BW$6:$BW$15,$BY$6:$BY$15),IF($AB$5=$BZ$5,Disimulate($BW$6:$BW$15,$BZ$6:$BZ$15),IF($AB$5=$CA$5,Disimulate($BW$6:$BW$15,$CA$6:$CA$15),IF($AB$5=$CB$5,Disimulate($BW$6:$BW$15,$CB$6:$CB$15),IF($AB$5=$CC$5,Disimulate($BW$6:$BW$15,$CC$6:$CC$15),IF($AB$5=$CD$5,Disimulate($BW$6:$BW$15,$CD$6:$CD$15),IF($AB$5=$CE$5,Disimulate($BW$6:$BW$15,$CE$6:$CE$15),IF($AB$5=$CF$5,Disimulate($BW$6:$BW$15,$CF$6:$CF$15),IF($AB$5=$CG$5,Disimulate($BW$6:$BW$15,$CG$6:$CG$15),"")))))))))) -> 1 | AC134: =IF($AC$5=$BX$17,Disimulate($BW$18:$BW$27,$BX$18:$BX$27),IF($AC$5=$BY$17,Disimulate($BW$18:$BW$27,$BY$18:$BY$27),IF($AC$5=$BZ$17,Disimulate($BW$18:$BW$27,$BZ$18:$BZ$27),IF($AC$5=$CA$17,Disimulate($BW$18:$BW$27,$CA$18:$CA$27),IF($AC$5=$CB$17,Disimulate($BW$18:$BW$27,$CB$18:$CB$27),IF($AC$5=$CC$17,Disimulate($BW$18:$BW$27,$CC$18:$CC$27),IF($AC$5=$CD$17,Disimulate($BW$18:$BW$27,$CD$18:$CD$27),IF($AC$5=$CE$17,Disimulate($BW$18:$BW$27,$CE$18:$CE$27),IF($AC$5=$CF$17,Disimulate($BW$18:$BW$27,$CF$18:$CF$27),IF($AC$5=$CG$17,Disimulate($BW$18:$BW$27,$CG$18:$CG$27),"")))))))))) -> 2 | AD134: =IF($AD$5=$CJ$5,Disimulate($CI$6:$CI$15,$CJ$6:$CJ$15),IF($AD$5=$CK$5,Disimulate($CI$6:$CI$15,$CK$6:$CK$15),IF($AD$5=$CL$5,Disimulate($CI$6:$CI$15,$CL$6:$CL$15),IF($AD$5=$CM$5,Disimulate($CI$6:$CI$15,$CM$6:$CM$15),IF($AD$5=$CN$5,Disimulate($CI$6:$CI$15,$CN$6:$CN$15),IF($AD$5=$CO$5,Disimulate($CI$6:$CI$15,$CO$6:$CO$15),IF($AD$5=$CP$5,Disimulate($CI$6:$CI$15,$CP$6:$CP$15),IF($AD$5=$CQ$5,Disimulate($CI$6:$CI$15,$CQ$6:$CQ$15),IF($AD$5=$CR$5,Disimulate($CI$6:$CI$15,$CR$6:$CR$15),IF($AD$5=$CS$5,Disimulate($CI$6:$CI$15,$CS$6:$CS$15),"")))))))))) -> 2 | AE134: =IF($AE$5=$CJ$17,Disimulate($CI$18:$CI$27,$CJ$18:$CJ$27),IF($AE$5=$CK$17,Disimulate($CI$18:$CI$27,$CK$18:$CK$27),IF($AE$5=$CL$17,Disimulate($CI$18:$CI$27,$CL$18:$CL$27),IF($AE$5=$CM$17,Disimulate($CI$18:$CI$27,$CM$18:$CM$27),IF($AE$5=$CN$17,Disimulate($CI$18:$CI$27,$CN$18:$CN$27),IF($AE$5=$CO$17,Disimulate($CI$18:$CI$27,$CO$18:$CO$27),IF($AE$5=$CP$17,Disimulate($CI$18:$CI$27,$CP$18:$CP$27),IF($AE$5=$CQ$17,Disimulate($CI$18:$CI$27,$CQ$18:$CQ$27),IF($AE$5=$CR$17,Disimulate($CI$18:$CI$27,$CR$18:$CR$27),IF($AE$5=$CS$17,Disimulate($CI$18:$CI$27,$CS$18:$CS$27),"")))))))))) -> 7 | AF134: =IF($AF$5=$CV$5,Disimulate($CU$6:$CU$15,$CV$6:$CV$15),IF($AF$5=$CW$5,Disimulate($CU$6:$CU$15,$CW$6:$CW$15),IF($AF$5=$CX$5,Disimulate($CU$6:$CU$15,$CX$6:$CX$15),IF($AF$5=$CY$5,Disimulate($CU$6:$CU$15,$CY$6:$CY$15),IF($AF$5=$CZ$5,Disimulate($CU$6:$CU$15,$CZ$6:$CZ$15),IF($AF$5=$DA$5,Disimulate($CU$6:$CU$15,$DA$6:$DA$15),IF($AF$5=$DB$5,Disimulate($CU$6:$CU$15,$DB$6:$DB$15),IF($AF$5=$DC$5,Disimulate($CU$6:$CU$15,$DC$6:$DC$15),IF($AF$5=$DD$5,Disimulate($CU$6:$CU$15,$DD$6:$DD$15),IF($AF$5=$DE$5,Disimulate($CU$6:$CU$15,$DE$6:$DE$15),"")))))))))) -> 6 | AG134: =IF($AG$5=$CV$17,Disimulate($CU$18:$CU$27,$CV$18:$CV$27),IF($AG$5=$CW$17,Disimulate($CU$18:$CU$27,$CW$18:$CW$27),IF($AG$5=$CX$17,Disimulate($CU$18:$CU$27,$CX$18:$CX$27),IF($AG$5=$CY$17,Disimulate($CU$18:$CU$27,$CY$18:$CY$27),IF($AG$5=$CZ$17,Disimulate($CU$18:$CU$27,$CZ$18:$CZ$27),IF($AG$5=$DA$17,Disimulate($CU$18:$CU$27,$DA$18:$DA$27),IF($AG$5=$DB$17,Disimulate($CU$18:$CU$27,$DB$18:$DB$27),IF($AG$5=$DC$17,Disimulate($CU$18:$CU$27,$DC$18:$DC$27),IF($AG$5=$DD$17,Disimulate($CU$18:$CU$27,$DD$18:$DD$27),IF($AG$5=$DE$17,Disimulate($CU$18:$CU$27,$DE$18:$DE$27),"")))))))))) -> 0 | AH134: =IF($AH$5=$DH$5,Disimulate($DG$6:$DG$15,$DH$6:$DH$15),IF($AH$5=$DI$5,Disimulate($DG$6:$DG$15,$DI$6:$DI$15),IF($AH$5=$DJ$5,Disimulate($DG$6:$DG$15,$DJ$6:$DJ$15),IF($AH$5=$DK$5,Disimulate($DG$6:$DG$15,$DK$6:$DK$15),IF($AH$5=$DL$5,Disimulate($DG$6:$DG$15,$DL$6:$DL$15),IF($AH$5=$DM$5,Disimulate($DG$6:$DG$15,$DM$6:$DM$15),IF($AH$5=$DN$5,Disimulate($DG$6:$DG$15,$DN$6:$DN$15),IF($AH$5=$DO$5,Disimulate($DG$6:$DG$15,$DO$6:$DO$15),IF($AH$5=$DP$5,Disimulate($DG$6:$DG$15,$DP$6:$DP$15),IF($AH$5=$DQ$5,Disimulate($DG$6:$DG$15,$DQ$6:$DQ$15),"")))))))))) -> 6 | AI134: =IF($AI$5=$DH$17,Disimulate($DG$18:$DG$27,$DH$18:$DH$27),IF($AI$5=$DI$17,Disimulate($DG$18:$DG$27,$DI$18:$DI$27),IF($AI$5=$DJ$17,Disimulate($DG$18:$DG$27,$DJ$18:$DJ$27),IF($AI$5=$DK$17,Disimulate($DG$18:$DG$27,$DK$18:$DK$27),IF($AI$5=$DL$17,Disimulate($DG$18:$DG$27,$DL$18:$DL$27),IF($AI$5=$DM$17,Disimulate($DG$18:$DG$27,$DM$18:$DM$27),IF($AI$5=$DN$17,Disimulate($DG$18:$DG$27,$DN$18:$DN$27),IF($AI$5=$DO$17,Disimulate($DG$18:$DG$27,$DO$18:$DO$27),IF($AI$5=$DP$17,Disimulate($DG$18:$DG$27,$DP$18:$DP$27),IF($AI$5=$DQ$17,Disimulate($DG$18:$DG$27,$DQ$18:$DQ$27),"")))))))))) -> 8 | AJ134: =IF($AJ$5=$DT$5,Disimulate($DS$6:$DS$15,$DT$6:$DT$15),IF($AJ$5=$DU$5,Disimulate($DS$6:$DS$15,$DU$6:$DU$15),IF($AJ$5=$DV$5,Disimulate($DS$6:$DS$15,$DV$6:$DV$15),IF($AJ$5=$DW$5,Disimulate($DS$6:$DS$15,$DW$6:$DW$15),IF($AJ$5=$DX$5,Disimulate($DS$6:$DS$15,$DX$6:$DX$15),IF($AJ$5=$DY$5,Disimulate($DS$6:$DS$15,$DY$6:$DY$15),IF($AJ$5=$DZ$5,Disimulate($DS$6:$DS$15,$DZ$6:$DZ$15),IF($AJ$5=$EA$5,Disimulate($DS$6:$DS$15,$EA$6:$EA$15),IF($AJ$5=$EB$5,Disimulate($DS$6:$DS$15,$EB$6:$EB$15),IF($AJ$5=$EC$5,Disimulate($DS$6:$DS$15,$EC$6:$EC$15),"")))))))))) -> 1 | AK134: =IF($AK$5=$DT$17,Disimulate($DS$18:$DS$27,$DT$18:$DT$27),IF($AK$5=$DU$17,Disimulate($DS$18:$DS$27,$DU$18:$DU$27),IF($AK$5=$DV$17,Disimulate($DS$18:$DS$27,$DV$18:$DV$27),IF($AK$5=$DW$17,Disimulate($DS$18:$DS$27,$DW$18:$DW$27),IF($AK$5=$DX$17,Disimulate($DS$18:$DS$27,$DX$18:$DX$27),IF($AK$5=$DY$17,Disimulate($DS$18:$DS$27,$DY$18:$DY$27),IF($AK$5=$DZ$17,Disimulate($DS$18:$DS$27,$DZ$18:$DZ$27),IF($AK$5=$EA$17,Disimulate($DS$18:$DS$27,$EA$18:$EA$27),IF($AK$5=$EB$17,Disimulate($DS$18:$DS$27,$EB$18:$EB$27),IF($AK$5=$EC$17,Disimulate($DS$18:$DS$27,$EC$18:$EC$27),"")))))))))) -> 6 | AM134: =10*Z134+1*MOD(AA134+AM$4,10) -> 6 | AN134: =10*AB134+1*MOD(AC134+AN$4,10) -> 12 | AO134: =10*AD134+1*MOD(AE134+AO$4,10) -> 27 | AP134: =10*AF134+1*MOD(AG134+AP$4,10) -> 60 | AQ134: =10*AH134+1*MOD(AI134+AQ$4,10) -> 68 | AR134: =10*AJ134+1*MOD(AK134+AR$4,10) -> 16 | AS134: X | AT134: =IF(AND(AS134="X",AM134<AN134,AN134<AO134,AO134<AP134,AP134<AQ134),"XX","") -> XX | AU134: 108 | AV134: 108 | AW134: 98 | AX134: 98 | AZ134: 129 | BA134: 6 | BB134: 16 | BC134: 57 | BD134: 62 | BE134: 68 | BF134: 7
B135: 131 | C135: 2017 | D135: 1 | E135: 4 | Y135: 130 | Z135: 0 | AA135: 4 | AB135: 1 | AC135: 5 | AD135: 2 | AE135: 7 | AF135: 6 | AG135: 2 | AH135: 6 | AI135: 8 | AJ135: 1 | AK135: 5 | AM135: 4 | AN135: 15 | AO135: 27 | AP135: 62 | AQ135: 68 | AR135: 15 | AS135: =IF(AND(MIN(AM135:AR135)>0,MAX(AM135:AQ135)<70,AR135<27),"X","") -> X | AT135: XX | AU135: =IF(AS135="X",AU134+1,AU134) -> 109 | AV135: 109 | AW135: 99 | AX135: 99 | AZ135: 130 | BA135: 8 | BB135: 14 | BC135: 17 | BD135: 60 | BE135: 68 | BF135: 4
B136: 132 | C136: 2017 | D136: 1 | E136: 7 | Y136: 131 | Z136: 0 | AA136: 5 | AB136: 1 | AC136: 5 | AD136: 1 | AE136: 7 | AF136: 6 | AG136: 2 | AH136: 6 | AI136: 8 | AJ136: 0 | AK136: 3 | AM136: 5 | AN136: 15 | AO136: 17 | AP136: 62 | AQ136: 68 | AR136: 3 | AS136: X | AT136: XX | AU136: 110 | AV136: 110 | AW136: =IF(AT136="XX",AW135+1,AW135) -> 100 | AX136: 100 | AZ136: 131 | BA136: 5 | BB136: 13 | BC136: 17 | BD136: 62 | BE136: 68 | BF136: 12
B137: 133 | C137: 2017 | D137: 1 | E137: 11 | Y137: 132 | Z137: 0 | AA137: 8 | AB137: 1 | AC137: 4 | AD137: 2 | AE137: 7 | AF137: 6 | AG137: 0 | AH137: 6 | AI137: 8 | AJ137: 0 | AK137: 7 | AM137: 8 | AN137: 14 | AO137: 27 | AP137: 60 | AQ137: 68 | AR137: 7 | AS137: X | AT137: XX | AU137: 111 | AV137: 111 | AW137: 101 | AX137: 101 | AZ137: 132 | BA137: 3 | BB137: 13 | BC137: 57 | BD137: 62 | BE137: 68 | BF137: 5
B138: 134 | C138: 2017 | D138: 1 | E138: 14 | Y138: 133 | Z138: 0 | AA138: 8 | AB138: 1 | AC138: 6 | AD138: 5 | AE138: 7 | AF138: 6 | AG138: 2 | AH138: 6 | AI138: 8 | AJ138: 1 | AK138: 2 | AM138: 8 | AN138: 16 | AO138: 57 | AP138: 62 | AQ138: 68 | AR138: 12 | AS138: X | AT138: XX | AU138: 112 | AV138: 112 | AW138: 102 | AX138: 102 | AZ138: 133 | BA138: 2 | BB138: 12 | BC138: 17 | BD138: 60 | BE138: 68 | BF138: 1
B139: 135 | C139: 2017 | D139: 1 | E139: 18 | Y139: 134 | Z139: 0 | AA139: 1 | AB139: 1 | AC139: 9 | AD139: 5 | AE139: 7 | AF139: 6 | AG139: 2 | AH139: 6 | AI139: 8 | AJ139: 1 | AK139: 0 | AM139: 1 | AN139: 19 | AO139: 57 | AP139: 62 | AQ139: 68 | AR139: 10 | AS139: X | AT139: XX | AU139: 113 | AV139: 113 | AW139: 103 | AX139: 103 | AZ139: 134 | BA139: 9 | BB139: 12 | BC139: 17 | BD139: 60 | BE139: 68 | BF139: 1
B140: 136 | C140: 2017 | D140: 1 | E140: 21 | Y140: 135 | Z140: 0 | AA140: 4 | AB140: 1 | AC140: 3 | AD140: 5 | AE140: 7 | AF140: 6 | AG140: 2 | AH140: 6 | AI140: 8 | AJ140: 1 | AK140: 4 | AM140: 4 | AN140: 13 | AO140: 57 | AP140: 62 | AQ140: 68 | AR140: 14 | AS140: X | AT140: XX | AU140: 114 | AV140: 114 | AW140: 104 | AX140: 104 | AZ140: 135 | BA140: 2 | BB140: 19 | BC140: 27 | BD140: 60 | BE140: 68 | BF140: 7
B141: 137 | C141: 2017 | D141: 1 | E141: 25 | Y141: 136 | Z141: 0 | AA141: 9 | AB141: 1 | AC141: 4 | AD141: 1 | AE141: 7 | AF141: 6 | AG141: 0 | AH141: 6 | AI141: 8 | AJ141: 0 | AK141: 3 | AM141: 9 | AN141: 14 | AO141: 17 | AP141: 60 | AQ141: 68 | AR141: 3 | AS141: X | AT141: XX | AU141: 115 | AV141: 115 | AW141: 105 | AX141: 105 | AZ141: 136 | BA141: 2 | BB141: 15 | BC141: 27 | BD141: 60 | BE141: 68 | BF141: 13
B142: 138 | C142: 2017 | D142: 1 | E142: 28 | Y142: 137 | Z142: 0 | AA142: 2 | AB142: 1 | AC142: 2 | AD142: 2 | AE142: 7 | AF142: 6 | AG142: 2 | AH142: 6 | AI142: 8 | AJ142: 1 | AK142: 3 | AM142: 2 | AN142: 12 | AO142: 27 | AP142: 62 | AQ142: 68 | AR142: 13 | AS142: X | AT142: XX | AU142: 116 | AV142: 116 | AW142: 106 | AX142: 106 | AZ142: 137 | BA142: 3 | BB142: 11 | BC142: 57 | BD142: 62 | BE142: 68 | BF142: 14
B143: 139 | C143: 2017 | D143: 2 | E143: 1 | Y143: 138 | Z143: 0 | AA143: 5 | AB143: 1 | AC143: 8 | AD143: 1 | AE143: 7 | AF143: 6 | AG143: 2 | AH143: 6 | AI143: 8 | AJ143: 1 | AK143: 9 | AM143: 5 | AN143: 18 | AO143: 17 | AP143: 62 | AQ143: 68 | AR143: 19 | AS143: X | AU143: 117 | AV143: 117 | AW143: 106 | AZ143: 138 | BA143: 4 | BB143: 12 | BC143: 57 | BD143: 62 | BE143: 68 | BF143: 13
B144: 140 | C144: 2017 | D144: 2 | E144: 4 | Y144: 139 | Z144: 0 | AA144: 4 | AB144: 1 | AC144: 5 | AD144: 5 | AE144: 7 | AF144: 6 | AG144: 0 | AH144: 6 | AI144: 8 | AJ144: 1 | AK144: 3 | AM144: 4 | AN144: 15 | AO144: 57 | AP144: 60 | AQ144: 68 | AR144: 13 | AS144: X | AT144: XX | AU144: 118 | AV144: 118 | AW144: 107 | AX144: 107 | AZ144: 139 | BA144: 7 | BB144: 17 | BC144: 57 | BD144: 62 | BE144: 68 | BF144: 13
B145: 141 | C145: 2017 | D145: 2 | E145: 8 | Y145: 140 | Z145: 0 | AA145: 6 | AB145: 1 | AC145: 7 | AD145: 1 | AE145: 7 | AF145: 6 | AG145: 2 | AH145: 6 | AI145: 8 | AJ145: 0 | AK145: 9 | AM145: 6 | AN145: 17 | AO145: 17 | AP145: 62 | AQ145: 68 | AR145: 9 | AS145: X | AU145: 119 | AV145: 119 | AW145: 107 | AZ145: 140 | BA145: 8 | BB145: 18 | BC145: 27 | BD145: 60 | BE145: 68 | BF145: 14
B146: 142 | C146: 2017 | D146: 2 | E146: 11 | Y146: 141 | Z146: 0 | AA146: 9 | AB146: 1 | AC146: 5 | AD146: 2 | AE146: 7 | AF146: 6 | AG146: 2 | AH146: 6 | AI146: 8 | AJ146: 0 | AK146: 8 | AM146: 9 | AN146: 15 | AO146: 27 | AP146: 62 | AQ146: 68 | AR146: 8 | AS146: X | AT146: XX | AU146: 120 | AV146: 120 | AW146: 108 | AX146: 108 | AZ146: 141 | BA146: 9 | BB146: 19 | BC146: 57 | BD146: 60 | BE146: 68 | BF146: 5
B147: 143 | C147: 2017 | D147: 2 | E147: 15 | Y147: 142 | Z147: 0 | AA147: 5 | AB147: 1 | AC147: 1 | AD147: 2 | AE147: 7 | AF147: 6 | AG147: 2 | AH147: 6 | AI147: 8 | AJ147: 1 | AK147: 3 | AM147: 5 | AN147: 11 | AO147: 27 | AP147: 62 | AQ147: 68 | AR147: 13 | AS147: X | AT147: XX | AU147: 121 | AV147: 121 | AW147: 109 | AX147: 109 | AZ147: 142 | BA147: 7 | BB147: 17 | BC147: 57 | BD147: 62 | BE147: 68 | BF147: 14
B148: 144 | C148: 2017 | D148: 2 | E148: 18 | Y148: 143 | Z148: 0 | AA148: 7 | AB148: 1 | AC148: 4 | AD148: 5 | AE148: 7 | AF148: 6 | AG148: 0 | AH148: 6 | AI148: 8 | AJ148: 1 | AK148: 2 | AM148: 7 | AN148: 14 | AO148: 57 | AP148: 60 | AQ148: 68 | AR148: 12 | AS148: X | AT148: XX | AU148: 122 | AV148: 122 | AW148: 110 | AX148: 110 | AZ148: 143 | BA148: 4 | BB148: 18 | BC148: 27 | BD148: 62 | BE148: 68 | BF148: 6
B149: 145 | C149: 2017 | D149: 2 | E149: 22 | Y149: 144 | Z149: 0 | AA149: 4 | AB149: 1 | AC149: 2 | AD149: 1 | AE149: 7 | AF149: 6 | AG149: 2 | AH149: 6 | AI149: 8 | AJ149: 0 | AK149: 9 | AM149: 4 | AN149: 12 | AO149: 17 | AP149: 62 | AQ149: 68 | AR149: 9 | AS149: X | AT149: XX | AU149: 123 | AV149: 123 | AW149: 111 | AX149: 111 | AZ149: 144 | BA149: 8 | BB149: 12 | BC149: 17 | BD149: 62 | BE149: 68 | BF149: 15
B150: 146 | C150: 2017 | D150: 2 | E150: 25 | Y150: 145 | Z150: 0 | AA150: 4 | AB150: 1 | AC150: 5 | AD150: 5 | AE150: 7 | AF150: 6 | AG150: 0 | AH150: 6 | AI150: 8 | AJ150: 1 | AK150: 9 | AM150: 4 | AN150: 15 | AO150: 57 | AP150: 60 | AQ150: 68 | AR150: 19 | AS150: X | AT150: XX | AU150: 124 | AV150: 124 | AW150: 112 | AX150: 112 | AZ150: 145 | BA150: 3 | BB150: 10 | BC150: 27 | BD150: 62 | BE150: 68 | BF150: 15
B151: 147 | C151: 2017 | D151: 3 | E151: 1 | Y151: 146 | Z151: 0 | AA151: 5 | AB151: 1 | AC151: 0 | AD151: 1 | AE151: 7 | AF151: 6 | AG151: 0 | AH151: 6 | AI151: 8 | AJ151: 1 | AK151: 1 | AM151: 5 | AN151: 10 | AO151: 17 | AP151: 60 | AQ151: 68 | AR151: 11 | AS151: X | AT151: XX | AU151: 125 | AV151: =IF(AU151<>AU150,AU151,"") -> 125 | AW151: 113 | AX151: =IF(AW151<>AW150,AW151,"") -> 113 | AZ151: 146 | BA151: 5 | BB151: 14 | BC151: 17 | BD151: 62 | BE151: 68 | BF151: 19
B152: 148 | C152: 2017 | D152: 3 | E152: 4 | Y152: 147 | Z152: 0 | AA152: 5 | AB152: 1 | AC152: 7 | AD152: 1 | AE152: 7 | AF152: 6 | AG152: 0 | AH152: 6 | AI152: 8 | AJ152: 0 | AK152: 7 | AM152: 5 | AN152: 17 | AO152: 17 | AP152: 60 | AQ152: 68 | AR152: 7 | AS152: X | AU152: 126 | AV152: 126 | AW152: 113 | AZ152: 147 | BA152: 4 | BB152: 11 | BC152: 27 | BD152: 60 | BE152: 68 | BF152: 12
B153: 149 | C153: 2017 | D153: 3 | E153: 8 | Y153: 148 | Z153: 0 | AA153: 2 | AB153: 1 | AC153: 6 | AD153: 2 | AE153: 7 | AF153: 6 | AG153: 0 | AH153: 6 | AI153: 8 | AJ153: 1 | AK153: 8 | AM153: 2 | AN153: 16 | AO153: 27 | AP153: 60 | AQ153: 68 | AR153: 18 | AS153: X | AT153: XX | AU153: 127 | AV153: 127 | AW153: 114 | AX153: 114 | AZ153: 148 | BA153: 2 | BB153: 14 | BC153: 27 | BD153: 60 | BE153: 68 | BF153: 8
B154: 150 | C154: 2017 | D154: 3 | E154: 11 | Y154: 149 | Z154: 0 | AA154: 3 | AB154: 1 | AC154: 9 | AD154: 1 | AE154: 7 | AF154: 6 | AG154: 0 | AH154: 6 | AI154: 8 | AJ154: 0 | AK154: 7 | AM154: 3 | AN154: 19 | AO154: 17 | AP154: 60 | AQ154: 68 | AR154: 7 | AS154: X | AU154: 128 | AV154: 128 | AW154: 114 | AZ154: 149 | BA154: 4 | BB154: 10 | BC154: 27 | BD154: 60 | BE154: 68 | BF154: 8
B155: 151 | C155: 2017 | D155: 3 | E155: 15 | Y155: 150 | Z155: 0 | AA155: 9 | AB155: 1 | AC155: 1 | AD155: 5 | AE155: 7 | AF155: 6 | AG155: 2 | AH155: 6 | AI155: 8 | AJ155: 1 | AK155: 9 | AM155: 9 | AN155: 11 | AO155: 57 | AP155: 62 | AQ155: 68 | AR155: 19 | AS155: X | AT155: XX | AU155: 129 | AV155: 129 | AW155: 115 | AX155: 115 | AZ155: 150 | BA155: 1 | BB155: 14 | BC155: 57 | BD155: 60 | BE155: 68 | BF155: 19
B156: 152 | C156: 2017 | D156: 3 | E156: 18 | Y156: 151 | Z156: 0 | AA156: 8 | AB156: 1 | AC156: 4 | AD156: 2 | AE156: 7 | AF156: 6 | AG156: 0 | AH156: 6 | AI156: 8 | AJ156: 1 | AK156: 7 | AM156: 8 | AN156: 14 | AO156: 27 | AP156: 60 | AQ156: 68 | AR156: 17 | AS156: X | AT156: XX | AU156: 130 | AV156: 130 | AW156: 116 | AX156: 116 | AZ156: 151 | BA156: 7 | BB156: 12 | BC156: 17 | BD156: 60 | BE156: 68 | BF156: 4
B157: 153 | C157: 2017 | D157: 3 | E157: 22 | Y157: 152 | Z157: 0 | AA157: 8 | AB157: 1 | AC157: 2 | AD157: 1 | AE157: 7 | AF157: 6 | AG157: 2 | AH157: 6 | AI157: 8 | AJ157: 0 | AK157: 9 | AM157: 8 | AN157: 12 | AO157: 17 | AP157: 62 | AQ157: 68 | AR157: 9 | AS157: X | AT157: XX | AU157: 131 | AV157: 131 | AW157: 117 | AX157: 117 | AZ157: 152 | BA157: 8 | BB157: 10 | BC157: 57 | BD157: 62 | BE157: 68 | BF157: 19
B158: 154 | C158: 2017 | D158: 3 | E158: 25 | Y158: 153 | Z158: 0 | AA158: 6 | AB158: 1 | AC158: 9 | AD158: 5 | AE158: 7 | AF158: 6 | AG158: 0 | AH158: 6 | AI158: 8 | AJ158: 1 | AK158: 7 | AM158: 6 | AN158: 19 | AO158: 57 | AP158: 60 | AQ158: 68 | AR158: 17 | AS158: X | AT158: XX | AU158: 132 | AV158: 132 | AW158: 118 | AX158: 118 | AZ158: 153 | BA158: 9 | BB158: 13 | BC158: 27 | BD158: 60 | BE158: 68 | BF158: 4
B159: 155 | C159: 2017 | D159: 3 | E159: 29 | Y159: 154 | Z159: 0 | AA159: 1 | AB159: 1 | AC159: 5 | AD159: 2 | AE159: 7 | AF159: 6 | AG159: 0 | AH159: 6 | AI159: 8 | AJ159: 0 | AK159: 2 | AM159: 1 | AN159: 15 | AO159: 27 | AP159: 60 | AQ159: 68 | AR159: 2 | AS159: X | AT159: XX | AU159: 133 | AV159: 133 | AW159: 119 | AX159: 119 | AZ159: 154 | BA159: 9 | BB159: 16 | BC159: 27 | BD159: 62 | BE159: 68 | BF159: 5
B160: 156 | C160: 2017 | D160: 4 | E160: 1 | Y160: 155 | Z160: 0 | AA160: 7 | AB160: 1 | AC160: 5 | AD160: 5 | AE160: 7 | AF160: 6 | AG160: 2 | AH160: 6 | AI160: 8 | AJ160: 0 | AK160: 8 | AM160: 7 | AN160: 15 | AO160: 57 | AP160: 62 | AQ160: 68 | AR160: 8 | AS160: X | AT160: XX | AU160: 134 | AV160: 134 | AW160: 120 | AX160: 120 | AZ160: 155 | BA160: 2 | BB160: 16 | BC160: 27 | BD160: 60 | BE160: 68 | BF160: 15
B161: 157 | C161: 2017 | D161: 4 | E161: 5 | Y161: 156 | Z161: 0 | AA161: 8 | AB161: 1 | AC161: 0 | AD161: 2 | AE161: 7 | AF161: 6 | AG161: 0 | AH161: 6 | AI161: 8 | AJ161: 0 | AK161: 0 | AM161: 8 | AN161: 10 | AO161: 27 | AP161: 60 | AQ161: 68 | AR161: 0 | AU161: 134 | AW161: 120 | AZ161: 156 | BA161: 2 | BB161: 11 | BC161: 57 | BD161: 60 | BE161: 68 | BF161: 18
B162: 158 | C162: 2017 | D162: 4 | E162: 8 | Y162: 157 | Z162: 0 | AA162: 6 | AB162: 1 | AC162: 0 | AD162: 2 | AE162: 7 | AF162: 6 | AG162: 2 | AH162: 6 | AI162: 8 | AJ162: 1 | AK162: 2 | AM162: 6 | AN162: 10 | AO162: 27 | AP162: 62 | AQ162: 68 | AR162: 12 | AS162: X | AT162: XX | AU162: 135 | AV162: 135 | AW162: 121 | AX162: 121 | AZ162: 157 | BA162: 3 | BB162: 10 | BC162: 57 | BD162: 62 | BE162: 68 | BF162: 4
B163: 159 | C163: 2017 | D163: 4 | E163: 12 | Y163: 158 | Z163: 0 | AA163: 3 | AB163: 1 | AC163: 9 | AD163: 1 | AE163: 7 | AF163: 6 | AG163: 0 | AH163: 6 | AI163: 8 | AJ163: 1 | AK163: 3 | AM163: 3 | AN163: 19 | AO163: 17 | AP163: 60 | AQ163: 68 | AR163: 13 | AS163: X | AU163: 136 | AV163: 136 | AW163: 121 | AZ163: 158 | BA163: 8 | BB163: 12 | BC163: 57 | BD163: 62 | BE163: 68 | BF163: 2
B164: 160 | C164: 2017 | D164: 4 | E164: 15 | Y164: 159 | Z164: 0 | AA164: 8 | AB164: 1 | AC164: 9 | AD164: 5 | AE164: 7 | AF164: 6 | AG164: 0 | AH164: 6 | AI164: 8 | AJ164: 0 | AK164: 1 | AM164: 8 | AN164: 19 | AO164: 57 | AP164: 60 | AQ164: 68 | AR164: 1 | AS164: X | AT164: XX | AU164: 137 | AV164: 137 | AW164: 122 | AX164: 122 | AZ164: 159 | BA164: 7 | BB164: 12 | BC164: 27 | BD164: 60 | BE164: 68 | BF164: 17
B165: 161 | C165: 2017 | D165: 4 | E165: 19 | Y165: 160 | Z165: 0 | AA165: 2 | AB165: 1 | AC165: 7 | AD165: 1 | AE165: 7 | AF165: 6 | AG165: 0 | AH165: 6 | AI165: 8 | AJ165: 1 | AK165: 7 | AM165: 2 | AN165: 17 | AO165: 17 | AP165: 60 | AQ165: 68 | AR165: 17 | AS165: X | AU165: 138 | AV165: 138 | AW165: 122 | AZ165: 160 | BA165: 3 | BB165: 18 | BC165: 57 | BD165: 62 | BE165: 68 | BF165: 19
B166: 162 | C166: 2017 | D166: 4 | E166: 22 | Y166: 161 | Z166: 0 | AA166: 4 | AB166: 1 | AC166: 0 | AD166: 1 | AE166: 7 | AF166: 6 | AG166: 0 | AH166: 6 | AI166: 8 | AJ166: 0 | AK166: 8 | AM166: 4 | AN166: 10 | AO166: 17 | AP166: 60 | AQ166: 68 | AR166: 8 | AS166: X | AT166: XX | AU166: 139 | AV166: 139 | AW166: 123 | AX166: 123 | AZ166: 161 | BA166: 5 | BB166: 10 | BC166: 17 | BD166: 62 | BE166: 68 | BF166: 4
B167: 163 | C167: 2017 | D167: 4 | E167: 26 | Y167: 162 | Z167: 0 | AA167: 8 | AB167: 1 | AC167: 0 | AD167: 5 | AE167: 7 | AF167: 6 | AG167: 2 | AH167: 6 | AI167: 8 | AJ167: 0 | AK167: 1 | AM167: 8 | AN167: 10 | AO167: 57 | AP167: 62 | AQ167: 68 | AR167: 1 | AS167: X | AT167: XX | AU167: 140 | AV167: 140 | AW167: 124 | AX167: 124 | AZ167: 162 | BA167: 5 | BB167: 11 | BC167: 57 | BD167: 60 | BE167: 68 | BF167: 18
B168: 164 | C168: 2017 | D168: 4 | E168: 29 | Y168: 163 | Z168: 0 | AA168: 8 | AB168: 1 | AC168: 6 | AD168: 2 | AE168: 7 | AF168: 6 | AG168: 2 | AH168: 6 | AI168: 8 | AJ168: 0 | AK168: 7 | AM168: 8 | AN168: 16 | AO168: 27 | AP168: 62 | AQ168: 68 | AR168: 7 | AS168: X | AT168: XX | AU168: 141 | AV168: 141 | AW168: 125 | AX168: 125 | AZ168: 163 | BA168: 6 | BB168: 11 | BC168: 17 | BD168: 62 | BE168: 68 | BF168: 16
B169: 165 | C169: 2017 | D169: 5 | E169: 3 | Y169: 164 | Z169: 0 | AA169: 1 | AB169: 1 | AC169: 9 | AD169: 1 | AE169: 7 | AF169: 6 | AG169: 0 | AH169: 6 | AI169: 8 | AJ169: 0 | AK169: 1 | AM169: 1 | AN169: 19 | AO169: 17 | AP169: 60 | AQ169: 68 | AR169: 1 | AS169: X | AU169: 142 | AV169: 142 | AW169: 125 | AZ169: 164 | BA169: 3 | BB169: 16 | BC169: 57 | BD169: 60 | BE169: 68 | BF169: 4
B170: 166 | C170: 2017 | D170: 5 | E170: 6 | Y170: 165 | Z170: 0 | AA170: 1 | AB170: 1 | AC170: 8 | AD170: 1 | AE170: 7 | AF170: 6 | AG170: 0 | AH170: 6 | AI170: 8 | AJ170: 0 | AK170: 2 | AM170: 1 | AN170: 18 | AO170: 17 | AP170: 60 | AQ170: 68 | AR170: 2 | AS170: X | AU170: 143 | AV170: 143 | AW170: 125 | AZ170: 165 | BA170: 5 | BB170: 10 | BC170: 57 | BD170: 62 | BE170: 68 | BF170: 8
B171: 167 | C171: 2017 | D171: 5 | E171: 10 | Y171: 166 | Z171: 0 | AA171: 4 | AB171: 1 | AC171: 1 | AD171: 5 | AE171: 7 | AF171: 6 | AG171: 0 | AH171: 6 | AI171: 8 | AJ171: 1 | AK171: 7 | AM171: 4 | AN171: 11 | AO171: 57 | AP171: 60 | AQ171: 68 | AR171: 17 | AS171: X | AT171: XX | AU171: 144 | AV171: 144 | AW171: 126 | AX171: 126 | AZ171: 166 | BA171: 7 | BB171: 11 | BC171: 27 | BD171: =IF($AZ171<=$AT$5,LOOKUP($AZ171,$AX$6:$AX$1005,AP$6:AP$1005),"") -> 62 | BE171: 68 | BF171: 19
B172: 168 | C172: 2017 | D172: 5 | E172: 13 | Y172: 167 | Z172: 0 | AA172: 0 | AB172: 1 | AC172: 0 | AD172: 1 | AE172: 7 | AF172: 6 | AG172: 0 | AH172: 6 | AI172: 8 | AJ172: 1 | AK172: 7 | AM172: 0 | AN172: 10 | AO172: 17 | AP172: 60 | AQ172: 68 | AR172: 17 | AU172: 144 | AW172: 126 | AZ172: 167 | BA172: =IF($AZ172<=$AT$5,LOOKUP($AZ172,$AX$6:$AX$1005,AM$6:AM$1005),"") -> 9 | BB172: 17 | BC172: 27 | BD172: 62 | BE172: 68 | BF172: 1
B173: 169 | C173: 2017 | D173: 5 | E173: 17 | Y173: 168 | Z173: 0 | AA173: 1 | AB173: 1 | AC173: 0 | AD173: 2 | AE173: 7 | AF173: 6 | AG173: 2 | AH173: 6 | AI173: 8 | AJ173: 1 | AK173: 0 | AM173: 1 | AN173: 10 | AO173: 27 | AP173: 62 | AQ173: 68 | AR173: 10 | AS173: X | AT173: XX | AU173: 145 | AV173: 145 | AW173: 127 | AX173: 127 | AZ173: 168 | BA173: 4 | BB173: 19 | BC173: 27 | BD173: 62 | BE173: 68 | BF173: 13
B174: 170 | C174: 2017 | D174: 5 | E174: 20 | Y174: 169 | Z174: 0 | AA174: 8 | AB174: 1 | AC174: 0 | AD174: 2 | AE174: 7 | AF174: 6 | AG174: 0 | AH174: 6 | AI174: 8 | AJ174: 0 | AK174: 9 | AM174: 8 | AN174: 10 | AO174: 27 | AP174: 60 | AQ174: 68 | AR174: 9 | AS174: X | AT174: XX | AU174: 146 | AV174: 146 | AW174: 128 | AX174: 128 | AZ174: 169 | BA174: 1 | BB174: 12 | BC174: 17 | BD174: 62 | BE174: 68 | BF174: 6
B175: 171 | C175: 2017 | D175: 5 | E175: 24 | Y175: 170 | Z175: 0 | AA175: 6 | AB175: 1 | AC175: 6 | AD175: 5 | AE175: 7 | AF175: 6 | AG175: 2 | AH175: 6 | AI175: 8 | AJ175: 0 | AK175: 7 | AM175: 6 | AN175: 16 | AO175: 57 | AP175: 62 | AQ175: 68 | AR175: 7 | AS175: X | AT175: XX | AU175: 147 | AV175: 147 | AW175: 129 | AX175: 129 | AZ175: 170 | BA175: 9 | BB175: 11 | BC175: 17 | BD175: 62 | BE175: 68 | BF175: 12
B176: 172 | C176: 2017 | D176: 5 | E176: 27 | Y176: 171 | Z176: 0 | AA176: 8 | AB176: 1 | AC176: 4 | AD176: 1 | AE176: 7 | AF176: 6 | AG176: 0 | AH176: 6 | AI176: 8 | AJ176: 0 | AK176: 4 | AM176: 8 | AN176: 14 | AO176: 17 | AP176: 60 | AQ176: 68 | AR176: 4 | AS176: X | AT176: XX | AU176: 148 | AV176: 148 | AW176: 130 | AX176: 130 | AZ176: 171 | BA176: 8 | BB176: 19 | BC176: 27 | BD176: 60 | BE176: 68 | BF176: 1
B177: 173 | C177: 2017 | D177: 5 | E177: 31 | Y177: 172 | Z177: 0 | AA177: 9 | AB177: 1 | AC177: 1 | AD177: 5 | AE177: 7 | AF177: 6 | AG177: 0 | AH177: 6 | AI177: 8 | AJ177: 0 | AK177: 0 | AM177: 9 | AN177: 11 | AO177: 57 | AP177: 60 | AQ177: 68 | AR177: 0 | AU177: 148 | AW177: 130 | AZ177: 172 | BA177: 4 | BB177: 17 | BC177: 27 | BD177: 62 | BE177: 68 | BF177: 5
B178: 174 | C178: 2017 | D178: 6 | E178: 3 | Y178: 173 | Z178: 0 | AA178: 5 | AB178: 1 | AC178: 3 | AD178: 1 | AE178: 7 | AF178: 6 | AG178: 2 | AH178: 6 | AI178: 8 | AJ178: 1 | AK178: 2 | AM178: 5 | AN178: 13 | AO178: 17 | AP178: 62 | AQ178: 68 | AR178: 12 | AS178: X | AT178: XX | AU178: 149 | AV178: 149 | AW178: 131 | AX178: 131 | AZ178: 173 | BA178: 2 | BB178: 10 | BC178: 27 | BD178: 62 | BE178: 68 | BF178: 4
B179: 175 | C179: 2017 | D179: 6 | E179: 7 | Y179: 174 | Z179: 0 | AA179: 3 | AB179: 1 | AC179: 3 | AD179: 5 | AE179: 7 | AF179: 6 | AG179: 2 | AH179: 6 | AI179: 8 | AJ179: 0 | AK179: 5 | AM179: 3 | AN179: 13 | AO179: 57 | AP179: 62 | AQ179: 68 | AR179: 5 | AS179: X | AT179: XX | AU179: 150 | AV179: 150 | AW179: 132 | AX179: 132 | AZ179: 174 | BA179: 1 | BB179: 19 | BC179: 27 | BD179: 62 | BE179: 68 | BF179: 9
B180: 176 | C180: 2017 | D180: 6 | E180: 10 | Y180: 175 | Z180: 0 | AA180: 2 | AB180: 1 | AC180: 2 | AD180: 1 | AE180: 7 | AF180: 6 | AG180: 0 | AH180: 6 | AI180: 8 | AJ180: 0 | AK180: 1 | AM180: 2 | AN180: 12 | AO180: 17 | AP180: 60 | AQ180: 68 | AR180: 1 | AS180: X | AT180: XX | AU180: 151 | AV180: 151 | AW180: 133 | AX180: 133 | AZ180: 175 | BA180: 5 | BB180: 15 | BC180: 57 | BD180: 60 | BE180: 68 | BF180: 16
B181: 177 | C181: 2017 | D181: 6 | E181: 14 | Y181: 176 | Z181: 0 | AA181: 0 | AB181: 1 | AC181: 6 | AD181: 2 | AE181: 7 | AF181: 6 | AG181: 0 | AH181: 6 | AI181: 8 | AJ181: 1 | AK181: 0 | AM181: 0 | AN181: 16 | AO181: 27 | AP181: 60 | AQ181: 68 | AR181: 10 | AU181: 151 | AW181: 133 | AZ181: 176 | BA181: 9 | BB181: 14 | BC181: 27 | BD181: 60 | BE181: 68 | BF181: 10
B182: 178 | C182: 2017 | D182: 6 | E182: 17 | Y182: 177 | Z182: 0 | AA182: 9 | AB182: 1 | AC182: 2 | AD182: 1 | AE182: 7 | AF182: 6 | AG182: 0 | AH182: 6 | AI182: 8 | AJ182: 0 | AK182: 1 | AM182: 9 | AN182: 12 | AO182: 17 | AP182: 60 | AQ182: 68 | AR182: 1 | AS182: X | AT182: XX | AU182: 152 | AV182: 152 | AW182: 134 | AX182: 134 | AZ182: 177 | BA182: 9 | BB182: 18 | BC182: 27 | BD182: 60 | BE182: 68 | BF182: 11
B183: 179 | C183: 2017 | D183: 6 | E183: 21 | Y183: 178 | Z183: 0 | AA183: 0 | AB183: 1 | AC183: 1 | AD183: 2 | AE183: 7 | AF183: 6 | AG183: 2 | AH183: 6 | AI183: 8 | AJ183: 1 | AK183: 4 | AM183: 0 | AN183: 11 | AO183: 27 | AP183: 62 | AQ183: 68 | AR183: 14 | AU183: 152 | AW183: 134 | AZ183: 178 | BA183: 8 | BB183: 18 | BC183: 27 | BD183: 62 | BE183: 68 | BF183: 12
B184: 180 | C184: 2017 | D184: 6 | E184: 24 | Y184: 179 | Z184: 0 | AA184: 2 | AB184: 1 | AC184: 9 | AD184: 2 | AE184: 7 | AF184: 6 | AG184: 0 | AH184: 6 | AI184: 8 | AJ184: 0 | AK184: 7 | AM184: 2 | AN184: 19 | AO184: 27 | AP184: 60 | AQ184: 68 | AR184: 7 | AS184: X | AT184: XX | AU184: 153 | AV184: 153 | AW184: 135 | AX184: 135 | AZ184: 179 | BA184: 7 | BB184: 13 | BC184: 57 | BD184: 62 | BE184: 68 | BF184: 9
B185: 181 | C185: 2017 | D185: 6 | E185: 28 | Y185: 180 | Z185: 0 | AA185: 2 | AB185: 1 | AC185: 5 | AD185: 2 | AE185: 7 | AF185: 6 | AG185: 0 | AH185: 6 | AI185: 8 | AJ185: 1 | AK185: 3 | AM185: 2 | AN185: 15 | AO185: 27 | AP185: 60 | AQ185: 68 | AR185: 13 | AS185: X | AT185: XX | AU185: 154 | AV185: 154 | AW185: 136 | AX185: 136 | AZ185: 180 | BA185: 3 | BB185: 11 | BC185: 17 | BD185: 60 | BE185: 68 | BF185: 7
B186: 182 | C186: 2017 | D186: 7 | E186: 1 | Y186: 181 | Z186: 0 | AA186: 3 | AB186: 1 | AC186: 1 | AD186: 5 | AE186: 7 | AF186: 6 | AG186: 2 | AH186: 6 | AI186: 8 | AJ186: 1 | AK186: 4 | AM186: 3 | AN186: 11 | AO186: 57 | AP186: 62 | AQ186: 68 | AR186: 14 | AS186: X | AT186: XX | AU186: 155 | AV186: 155 | AW186: 137 | AX186: 137 | AZ186: 181 | BA186: 2 | BB186: 18 | BC186: 57 | BD186: 62 | BE186: 68 | BF186: 3
B187: 183 | C187: 2017 | D187: 7 | E187: 5 | Y187: 182 | Z187: 0 | AA187: 0 | AB187: 1 | AC187: 1 | AD187: 5 | AE187: 7 | AF187: 6 | AG187: 2 | AH187: 6 | AI187: 8 | AJ187: 0 | AK187: 7 | AM187: 0 | AN187: 11 | AO187: 57 | AP187: 62 | AQ187: 68 | AR187: 7 | AU187: 155 | AW187: 137 | AZ187: 182 | BA187: 5 | BB187: 10 | BC187: 17 | BD187: 60 | BE187: 68 | BF187: 7
B188: 184 | C188: 2017 | D188: 7 | E188: 8 | Y188: 183 | Z188: 0 | AA188: 4 | AB188: 1 | AC188: 2 | AD188: 5 | AE188: 7 | AF188: 6 | AG188: 2 | AH188: 6 | AI188: 8 | AJ188: 1 | AK188: 3 | AM188: 4 | AN188: 12 | AO188: 57 | AP188: 62 | AQ188: 68 | AR188: 13 | AS188: X | AT188: XX | AU188: 156 | AV188: 156 | AW188: 138 | AX188: 138 | AZ188: 183 | BA188: 6 | BB188: 13 | BC188: 27 | BD188: 62 | BE188: 68 | BF188: 1
B189: 185 | C189: 2017 | D189: 7 | E189: 12 | Y189: 184 | Z189: 0 | AA189: 7 | AB189: 1 | AC189: 7 | AD189: 5 | AE189: 7 | AF189: 6 | AG189: 2 | AH189: 6 | AI189: 8 | AJ189: 1 | AK189: 3 | AM189: 7 | AN189: 17 | AO189: 57 | AP189: 62 | AQ189: 68 | AR189: 13 | AS189: X | AT189: XX | AU189: 157 | AV189: 157 | AW189: 139 | AX189: 139 | AZ189: 184 | BA189: 4 | BB189: 12 | BC189: 57 | BD189: 62 | BE189: 68 | BF189: 7
B190: 186 | C190: 2017 | D190: 7 | E190: 15 | Y190: 185 | Z190: 0 | AA190: 0 | AB190: 1 | AC190: 7 | AD190: 5 | AE190: 7 | AF190: 6 | AG190: 2 | AH190: 6 | AI190: 8 | AJ190: 1 | AK190: 0 | AM190: 0 | AN190: 17 | AO190: 57 | AP190: 62 | AQ190: 68 | AR190: 10 | AU190: 157 | AW190: 139 | AZ190: 185 | BA190: 7 | BB190: 12 | BC190: 57 | BD190: 62 | BE190: 68 | BF190: 13
B191: 187 | C191: 2017 | D191: 7 | E191: 19 | Y191: 186 | Z191: 0 | AA191: 8 | AB191: 1 | AC191: 8 | AD191: 1 | AE191: 7 | AF191: 6 | AG191: 2 | AH191: 6 | AI191: 8 | AJ191: 0 | AK191: 9 | AM191: 8 | AN191: 18 | AO191: 17 | AP191: 62 | AQ191: 68 | AR191: 9 | AS191: X | AU191: 158 | AV191: 158 | AW191: 139 | AZ191: 186 | BA191: 6 | BB191: 16 | BC191: 57 | BD191: 62 | BE191: 68 | BF191: 12
B192: 188 | C192: 2017 | D192: 7 | E192: 22 | Y192: 187 | Z192: 0 | AA192: 8 | AB192: 1 | AC192: 8 | AD192: 2 | AE192: 7 | AF192: 6 | AG192: 0 | AH192: 6 | AI192: 8 | AJ192: 1 | AK192: 4 | AM192: 8 | AN192: 18 | AO192: 27 | AP192: 60 | AQ192: 68 | AR192: 14 | AS192: X | AT192: XX | AU192: 159 | AV192: 159 | AW192: 140 | AX192: 140 | AZ192: 187 | BA192: 8 | BB192: 17 | BC192: 57 | BD192: 60 | BE192: 68 | BF192: 1
B193: 189 | C193: 2017 | D193: 7 | E193: 26 | Y193: 188 | Z193: 0 | AA193: 9 | AB193: 1 | AC193: 9 | AD193: 5 | AE193: 7 | AF193: 6 | AG193: 0 | AH193: 6 | AI193: 8 | AJ193: 0 | AK193: 5 | AM193: 9 | AN193: 19 | AO193: 57 | AP193: 60 | AQ193: 68 | AR193: 5 | AS193: X | AT193: XX | AU193: 160 | AV193: 160 | AW193: 141 | AX193: 141 | AZ193: 188 | BA193: 7 | BB193: 12 | BC193: 57 | BD193: 62 | BE193: 68 | BF193: 2
B194: 190 | C194: 2017 | D194: 7 | E194: 29 | Y194: 189 | Z194: 0 | AA194: 7 | AB194: 1 | AC194: 7 | AD194: 5 | AE194: 7 | AF194: 6 | AG194: 2 | AH194: 6 | AI194: 8 | AJ194: 1 | AK194: 4 | AM194: 7 | AN194: 17 | AO194: 57 | AP194: 62 | AQ194: 68 | AR194: 14 | AS194: X | AT194: XX | AU194: 161 | AV194: 161 | AW194: 142 | AX194: 142 | AZ194: 189 | BA194: 9 | BB194: 19 | BC194: 27 | BD194: 60 | BE194: 68 | BF194: 5
B195: 191 | C195: 2017 | D195: 8 | E195: 2 | Y195: 190 | Z195: 0 | AA195: 2 | AB195: 1 | AC195: 7 | AD195: 2 | AE195: 7 | AF195: 6 | AG195: 2 | AH195: 6 | AI195: 8 | AJ195: 0 | AK195: 0 | AM195: 2 | AN195: 17 | AO195: 27 | AP195: 62 | AQ195: 68 | AR195: 0 | AU195: 161 | AW195: 142 | AZ195: 190 | BA195: 6 | BB195: 17 | BC195: 27 | BD195: 60 | BE195: 68 | BF195: 5
B196: 192 | C196: 2017 | D196: 8 | E196: 5 | Y196: 191 | Z196: 0 | AA196: 4 | AB196: 1 | AC196: 8 | AD196: 2 | AE196: 7 | AF196: 6 | AG196: 2 | AH196: 6 | AI196: 8 | AJ196: 0 | AK196: 6 | AM196: 4 | AN196: 18 | AO196: 27 | AP196: 62 | AQ196: 68 | AR196: 6 | AS196: X | AT196: XX | AU196: 162 | AV196: 162 | AW196: 143 | AX196: 143 | AZ196: 191 | BA196: 5 | BB196: 13 | BC196: 17 | BD196: 60 | BE196: 68 | BF196: 16
B197: 193 | C197: 2017 | D197: 8 | E197: 9 | Y197: 192 | Z197: 0 | AA197: 8 | AB197: 1 | AC197: 2 | AD197: 1 | AE197: 7 | AF197: 6 | AG197: 2 | AH197: 6 | AI197: 8 | AJ197: 1 | AK197: 5 | AM197: 8 | AN197: 12 | AO197: 17 | AP197: 62 | AQ197: 68 | AR197: 15 | AS197: X | AT197: XX | AU197: 163 | AV197: 163 | AW197: 144 | AX197: 144 | AZ197: 192 | BA197: 5 | BB197: 16 | BC197: 17 | BD197: 60 | BE197: 68 | BF197: 6
B198: 194 | C198: 2017 | D198: 8 | E198: 12 | L198: =IF(ISNUMBER(F198),INT(F198/10),"") ->  | M198: =IF(ISNUMBER(F198),F198-10*L198,"") ->  | N198: =IF(ISNUMBER(G198),INT(G198/10),"") ->  | O198: =IF(ISNUMBER(G198),G198-10*N198,"") ->  | P198: =IF(ISNUMBER(H198),INT(H198/10),"") ->  | Q198: =IF(ISNUMBER(H198),H198-10*P198,"") ->  | R198: =IF(ISNUMBER(I198),INT(I198/10),"") ->  | S198: =IF(ISNUMBER(I198),I198-10*R198,"") ->  | T198: =IF(ISNUMBER(J198),INT(J198/10),"") ->  | U198: =IF(ISNUMBER(J198),J198-10*T198,"") ->  | V198: =IF(ISNUMBER(K198),INT(K198/10),"") ->  | W198: =IF(ISNUMBER(K198),K198-10*V198,"") ->  | Y198: 193 | Z198: =IF($Z$5=$BL$5,Disimulate($BK$6:$BK$15,$BL$6:$BL$15),IF($Z$5=$BM$5,Disimulate($BK$6:$BK$15,$BM$6:$BM$15),IF($Z$5=$BN$5,Disimulate($BK$6:$BK$15,$BN$6:$BN$15),IF($Z$5=$BO$5,Disimulate($BK$6:$BK$15,$BO$6:$BO$15),IF($Z$5=$BP$5,Disimulate($BK$6:$BK$15,$BP$6:$BP$15),IF($Z$5=$BQ$5,Disimulate($BK$6:$BK$15,$BQ$6:$BQ$15),IF($Z$5=$BR$5,Disimulate($BK$6:$BK$15,$BR$6:$BR$15),IF($Z$5=$BS$5,Disimulate($BK$6:$BK$15,$BS$6:$BS$15),IF($Z$5=$BT$5,Disimulate($BK$6:$BK$15,$BT$6:$BT$15),IF($Z$5=$BU$5,Disimulate($BK$6:$BK$15,$BU$6:$BU$15),"")))))))))) -> 0 | AA198: =IF($AA$5=$BL$17,Disimulate($BK$18:$BK$27,$BL$18:$BL$27),IF($AA$5=$BM$17,Disimulate($BK$18:$BK$27,$BM$18:$BM$27),IF($AA$5=$BN$17,Disimulate($BK$18:$BK$27,$BN$18:$BN$27),IF($AA$5=$BO$17,Disimulate($BK$18:$BK$27,$BO$18:$BO$27),IF($AA$5=$BP$17,Disimulate($BK$18:$BK$27,$BP$18:$BP$27),IF($AA$5=$BQ$17,Disimulate($BK$18:$BK$27,$BQ$18:$BQ$27),IF($AA$5=$BR$17,Disimulate($BK$18:$BK$27,$BR$18:$BR$27),IF($AA$5=$BS$17,Disimulate($BK$18:$BK$27,$BS$18:$BS$27),IF($AA$5=$BT$17,Disimulate($BK$18:$BK$27,$BT$18:$BT$27),IF($AA$5=$BU$17,Disimulate($BK$18:$BK$27,$BU$18:$BU$27),"")))))))))) -> 3 | AB198: =IF($AB$5=$BX$5,Disimulate($BW$6:$BW$15,$BX$6:$BX$15),IF($AB$5=$BY$5,Disimulate($BW$6:$BW$15,$BY$6:$BY$15),IF($AB$5=$BZ$5,Disimulate($BW$6:$BW$15,$BZ$6:$BZ$15),IF($AB$5=$CA$5,Disimulate($BW$6:$BW$15,$CA$6:$CA$15),IF($AB$5=$CB$5,Disimulate($BW$6:$BW$15,$CB$6:$CB$15),IF($AB$5=$CC$5,Disimulate($BW$6:$BW$15,$CC$6:$CC$15),IF($AB$5=$CD$5,Disimulate($BW$6:$BW$15,$CD$6:$CD$15),IF($AB$5=$CE$5,Disimulate($BW$6:$BW$15,$CE$6:$CE$15),IF($AB$5=$CF$5,Disimulate($BW$6:$BW$15,$CF$6:$CF$15),IF($AB$5=$CG$5,Disimulate($BW$6:$BW$15,$CG$6:$CG$15),"")))))))))) -> 1 | AC198: =IF($AC$5=$BX$17,Disimulate($BW$18:$BW$27,$BX$18:$BX$27),IF($AC$5=$BY$17,Disimulate($BW$18:$BW$27,$BY$18:$BY$27),IF($AC$5=$BZ$17,Disimulate($BW$18:$BW$27,$BZ$18:$BZ$27),IF($AC$5=$CA$17,Disimulate($BW$18:$BW$27,$CA$18:$CA$27),IF($AC$5=$CB$17,Disimulate($BW$18:$BW$27,$CB$18:$CB$27),IF($AC$5=$CC$17,Disimulate($BW$18:$BW$27,$CC$18:$CC$27),IF($AC$5=$CD$17,Disimulate($BW$18:$BW$27,$CD$18:$CD$27),IF($AC$5=$CE$17,Disimulate($BW$18:$BW$27,$CE$18:$CE$27),IF($AC$5=$CF$17,Disimulate($BW$18:$BW$27,$CF$18:$CF$27),IF($AC$5=$CG$17,Disimulate($BW$18:$BW$27,$CG$18:$CG$27),"")))))))))) -> 0 | AD198: =IF($AD$5=$CJ$5,Disimulate($CI$6:$CI$15,$CJ$6:$CJ$15),IF($AD$5=$CK$5,Disimulate($CI$6:$CI$15,$CK$6:$CK$15),IF($AD$5=$CL$5,Disimulate($CI$6:$CI$15,$CL$6:$CL$15),IF($AD$5=$CM$5,Disimulate($CI$6:$CI$15,$CM$6:$CM$15),IF($AD$5=$CN$5,Disimulate($CI$6:$CI$15,$CN$6:$CN$15),IF($AD$5=$CO$5,Disimulate($CI$6:$CI$15,$CO$6:$CO$15),IF($AD$5=$CP$5,Disimulate($CI$6:$CI$15,$CP$6:$CP$15),IF($AD$5=$CQ$5,Disimulate($CI$6:$CI$15,$CQ$6:$CQ$15),IF($AD$5=$CR$5,Disimulate($CI$6:$CI$15,$CR$6:$CR$15),IF($AD$5=$CS$5,Disimulate($CI$6:$CI$15,$CS$6:$CS$15),"")))))))))) -> 2 | AE198: =IF($AE$5=$CJ$17,Disimulate($CI$18:$CI$27,$CJ$18:$CJ$27),IF($AE$5=$CK$17,Disimulate($CI$18:$CI$27,$CK$18:$CK$27),IF($AE$5=$CL$17,Disimulate($CI$18:$CI$27,$CL$18:$CL$27),IF($AE$5=$CM$17,Disimulate($CI$18:$CI$27,$CM$18:$CM$27),IF($AE$5=$CN$17,Disimulate($CI$18:$CI$27,$CN$18:$CN$27),IF($AE$5=$CO$17,Disimulate($CI$18:$CI$27,$CO$18:$CO$27),IF($AE$5=$CP$17,Disimulate($CI$18:$CI$27,$CP$18:$CP$27),IF($AE$5=$CQ$17,Disimulate($CI$18:$CI$27,$CQ$18:$CQ$27),IF($AE$5=$CR$17,Disimulate($CI$18:$CI$27,$CR$18:$CR$27),IF($AE$5=$CS$17,Disimulate($CI$18:$CI$27,$CS$18:$CS$27),"")))))))))) -> 7 | AF198: =IF($AF$5=$CV$5,Disimulate($CU$6:$CU$15,$CV$6:$CV$15),IF($AF$5=$CW$5,Disimulate($CU$6:$CU$15,$CW$6:$CW$15),IF($AF$5=$CX$5,Disimulate($CU$6:$CU$15,$CX$6:$CX$15),IF($AF$5=$CY$5,Disimulate($CU$6:$CU$15,$CY$6:$CY$15),IF($AF$5=$CZ$5,Disimulate($CU$6:$CU$15,$CZ$6:$CZ$15),IF($AF$5=$DA$5,Disimulate($CU$6:$CU$15,$DA$6:$DA$15),IF($AF$5=$DB$5,Disimulate($CU$6:$CU$15,$DB$6:$DB$15),IF($AF$5=$DC$5,Disimulate($CU$6:$CU$15,$DC$6:$DC$15),IF($AF$5=$DD$5,Disimulate($CU$6:$CU$15,$DD$6:$DD$15),IF($AF$5=$DE$5,Disimulate($CU$6:$CU$15,$DE$6:$DE$15),"")))))))))) -> 6 | AG198: =IF($AG$5=$CV$17,Disimulate($CU$18:$CU$27,$CV$18:$CV$27),IF($AG$5=$CW$17,Disimulate($CU$18:$CU$27,$CW$18:$CW$27),IF($AG$5=$CX$17,Disimulate($CU$18:$CU$27,$CX$18:$CX$27),IF($AG$5=$CY$17,Disimulate($CU$18:$CU$27,$CY$18:$CY$27),IF($AG$5=$CZ$17,Disimulate($CU$18:$CU$27,$CZ$18:$CZ$27),IF($AG$5=$DA$17,Disimulate($CU$18:$CU$27,$DA$18:$DA$27),IF($AG$5=$DB$17,Disimulate($CU$18:$CU$27,$DB$18:$DB$27),IF($AG$5=$DC$17,Disimulate($CU$18:$CU$27,$DC$18:$DC$27),IF($AG$5=$DD$17,Disimulate($CU$18:$CU$27,$DD$18:$DD$27),IF($AG$5=$DE$17,Disimulate($CU$18:$CU$27,$DE$18:$DE$27),"")))))))))) -> 2 | AH198: =IF($AH$5=$DH$5,Disimulate($DG$6:$DG$15,$DH$6:$DH$15),IF($AH$5=$DI$5,Disimulate($DG$6:$DG$15,$DI$6:$DI$15),IF($AH$5=$DJ$5,Disimulate($DG$6:$DG$15,$DJ$6:$DJ$15),IF($AH$5=$DK$5,Disimulate($DG$6:$DG$15,$DK$6:$DK$15),IF($AH$5=$DL$5,Disimulate($DG$6:$DG$15,$DL$6:$DL$15),IF($AH$5=$DM$5,Disimulate($DG$6:$DG$15,$DM$6:$DM$15),IF($AH$5=$DN$5,Disimulate($DG$6:$DG$15,$DN$6:$DN$15),IF($AH$5=$DO$5,Disimulate($DG$6:$DG$15,$DO$6:$DO$15),IF($AH$5=$DP$5,Disimulate($DG$6:$DG$15,$DP$6:$DP$15),IF($AH$5=$DQ$5,Disimulate($DG$6:$DG$15,$DQ$6:$DQ$15),"")))))))))) -> 6 | AI198: =IF($AI$5=$DH$17,Disimulate($DG$18:$DG$27,$DH$18:$DH$27),IF($AI$5=$DI$17,Disimulate($DG$18:$DG$27,$DI$18:$DI$27),IF($AI$5=$DJ$17,Disimulate($DG$18:$DG$27,$DJ$18:$DJ$27),IF($AI$5=$DK$17,Disimulate($DG$18:$DG$27,$DK$18:$DK$27),IF($AI$5=$DL$17,Disimulate($DG$18:$DG$27,$DL$18:$DL$27),IF($AI$5=$DM$17,Disimulate($DG$18:$DG$27,$DM$18:$DM$27),IF($AI$5=$DN$17,Disimulate($DG$18:$DG$27,$DN$18:$DN$27),IF($AI$5=$DO$17,Disimulate($DG$18:$DG$27,$DO$18:$DO$27),IF($AI$5=$DP$17,Disimulate($DG$18:$DG$27,$DP$18:$DP$27),IF($AI$5=$DQ$17,Disimulate($DG$18:$DG$27,$DQ$18:$DQ$27),"")))))))))) -> 8 | AJ198: =IF($AJ$5=$DT$5,Disimulate($DS$6:$DS$15,$DT$6:$DT$15),IF($AJ$5=$DU$5,Disimulate($DS$6:$DS$15,$DU$6:$DU$15),IF($AJ$5=$DV$5,Disimulate($DS$6:$DS$15,$DV$6:$DV$15),IF($AJ$5=$DW$5,Disimulate($DS$6:$DS$15,$DW$6:$DW$15),IF($AJ$5=$DX$5,Disimulate($DS$6:$DS$15,$DX$6:$DX$15),IF($AJ$5=$DY$5,Disimulate($DS$6:$DS$15,$DY$6:$DY$15),IF($AJ$5=$DZ$5,Disimulate($DS$6:$DS$15,$DZ$6:$DZ$15),IF($AJ$5=$EA$5,Disimulate($DS$6:$DS$15,$EA$6:$EA$15),IF($AJ$5=$EB$5,Disimulate($DS$6:$DS$15,$EB$6:$EB$15),IF($AJ$5=$EC$5,Disimulate($DS$6:$DS$15,$EC$6:$EC$15),"")))))))))) -> 1 | AK198: =IF($AK$5=$DT$17,Disimulate($DS$18:$DS$27,$DT$18:$DT$27),IF($AK$5=$DU$17,Disimulate($DS$18:$DS$27,$DU$18:$DU$27),IF($AK$5=$DV$17,Disimulate($DS$18:$DS$27,$DV$18:$DV$27),IF($AK$5=$DW$17,Disimulate($DS$18:$DS$27,$DW$18:$DW$27),IF($AK$5=$DX$17,Disimulate($DS$18:$DS$27,$DX$18:$DX$27),IF($AK$5=$DY$17,Disimulate($DS$18:$DS$27,$DY$18:$DY$27),IF($AK$5=$DZ$17,Disimulate($DS$18:$DS$27,$DZ$18:$DZ$27),IF($AK$5=$EA$17,Disimulate($DS$18:$DS$27,$EA$18:$EA$27),IF($AK$5=$EB$17,Disimulate($DS$18:$DS$27,$EB$18:$EB$27),IF($AK$5=$EC$17,Disimulate($DS$18:$DS$27,$EC$18:$EC$27),"")))))))))) -> 5 | AM198: =10*Z198+1*MOD(AA198+AM$4,10) -> 3 | AN198: =10*AB198+1*MOD(AC198+AN$4,10) -> 10 | AO198: =10*AD198+1*MOD(AE198+AO$4,10) -> 27 | AP198: =10*AF198+1*MOD(AG198+AP$4,10) -> 62 | AQ198: =10*AH198+1*MOD(AI198+AQ$4,10) -> 68 | AR198: =10*AJ198+1*MOD(AK198+AR$4,10) -> 15 | AS198: X | AT198: =IF(AND(AS198="X",AM198<AN198,AN198<AO198,AO198<AP198,AP198<AQ198),"XX","") -> XX | AU198: 164 | AV198: 164 | AW198: 145 | AX198: 145 | AZ198: 193 | BA198: 7 | BB198: 11 | BC198: 17 | BD198: 62 | BE198: 68 | BF198: 3
B199: 195 | C199: 2017 | D199: 8 | E199: 16 | Y199: 194 | Z199: 0 | AA199: 5 | AB199: 1 | AC199: 4 | AD199: 1 | AE199: 7 | AF199: 6 | AG199: 2 | AH199: 6 | AI199: 8 | AJ199: 1 | AK199: 9 | AM199: 5 | AN199: 14 | AO199: 17 | AP199: 62 | AQ199: 68 | AR199: 19 | AS199: =IF(AND(MIN(AM199:AR199)>0,MAX(AM199:AQ199)<70,AR199<27),"X","") -> X | AT199: XX | AU199: =IF(AS199="X",AU198+1,AU198) -> 165 | AV199: 165 | AW199: 146 | AX199: 146 | AZ199: 194 | BA199: 8 | BB199: 19 | BC199: 27 | BD199: 60 | BE199: 68 | BF199: 5
B200: 196 | C200: 2017 | D200: 8 | E200: 19 | Y200: 195 | Z200: 0 | AA200: 4 | AB200: 1 | AC200: 1 | AD200: 2 | AE200: 7 | AF200: 6 | AG200: 0 | AH200: 6 | AI200: 8 | AJ200: 1 | AK200: 2 | AM200: 4 | AN200: 11 | AO200: 27 | AP200: 60 | AQ200: 68 | AR200: 12 | AS200: X | AT200: XX | AU200: 166 | AV200: 166 | AW200: =IF(AT200="XX",AW199+1,AW199) -> 147 | AX200: 147 | AZ200: 195 | BA200: 7 | BB200: 18 | BC200: 57 | BD200: 60 | BE200: 68 | BF200: 6
B201: 197 | C201: 2017 | D201: 8 | E201: 23 | Y201: 196 | Z201: 0 | AA201: 2 | AB201: 1 | AC201: 4 | AD201: 2 | AE201: 7 | AF201: 6 | AG201: 0 | AH201: 6 | AI201: 8 | AJ201: 0 | AK201: 8 | AM201: 2 | AN201: 14 | AO201: 27 | AP201: 60 | AQ201: 68 | AR201: 8 | AS201: X | AT201: XX | AU201: 167 | AV201: 167 | AW201: 148 | AX201: 148 | AZ201: 196 | BA201: 4 | BB201: 10 | BC201: 27 | BD201: 62 | BE201: 68 | BF201: 16
... 1303 more rows

Sheet Lucky for Life
B2: Index | C2: Year | D2: Month | E2: Day | F2: Lucky for Life Draws | L2: Separated Digits
F3: A | G3: B | H3: C | I3: D | J3: E | K3: LB | L3: A | N3: B | P3: C | R3: D | T3: E | V3: LB | Z3: A | AB3: B | AD3: C | AF3: D | AH3: E | AJ3: LB | AM3: Offset 1's Digit ±5 | BI3: · | BJ3: → | BL3: A | BX3: B | CJ3: C | CV3: D | DH3: E | DT3: LB
L4: 10's | M4: 1's | N4: 10's | O4: 1's | P4: 10's | Q4: 1's | R4: 10's | S4: 1's | T4: 10's | U4: 1's | V4: 10's | W4: 1's | Z4: 10's | AA4: 1's | AB4: 10's | AC4: 1's | AD4: 10's | AE4: 1's | AF4: 10's | AG4: 1's | AH4: 10's | AI4: 1's | AJ4: 10's | AK4: 1's | AM4: 0 | AN4: 0 | AO4: 0 | AP4: 0 | AQ4: 0 | AR4: 0 | BA4: Disimulate | BI4: ↓ | BJ4: ↙ | BL4: From | BV4: ↙ | BX4: From | CH4: ↙ | CJ4: From | CT4: ↙ | CV4: From | DF4: ↙ | DH4: From | DR4: ↙ | DT4: From
B5: 1 | C5: 2015 | D5: 1 | E5: 29 | F5: 8 | G5: 24 | H5: 37 | I5: 42 | J5: 44 | K5: 13 | L5: =IF(ISNUMBER(F5),INT(F5/10),"") -> 0 | M5: =IF(ISNUMBER(F5),F5-10*L5,"") -> 8 | N5: =IF(ISNUMBER(G5),INT(G5/10),"") -> 2 | O5: =IF(ISNUMBER(G5),G5-10*N5,"") -> 4 | P5: =IF(ISNUMBER(H5),INT(H5/10),"") -> 3 | Q5: =IF(ISNUMBER(H5),H5-10*P5,"") -> 7 | R5: =IF(ISNUMBER(I5),INT(I5/10),"") -> 4 | S5: =IF(ISNUMBER(I5),I5-10*R5,"") -> 2 | T5: =IF(ISNUMBER(J5),INT(J5/10),"") -> 4 | U5: =IF(ISNUMBER(J5),J5-10*T5,"") -> 4 | V5: =IF(ISNUMBER(K5),INT(K5/10),"") -> 1 | W5: =IF(ISNUMBER(K5),K5-10*V5,"") -> 3 | Y5: Last Draw | Z5: =LastNPosition(L5:L1504,1) -> 0 | AA5: 3 | AB5: 1 | AC5: 9 | AD5: 3 | AE5: 0 | AF5: 4 | AG5: 1 | AH5: 4 | AI5: 4 | AJ5: 1 | AK5: 5 | AS5: =COUNTIF(AS6:AS1005,"X") -> 941 | AT5: =COUNTIF(AT6:AT1005,"XX") -> 97 | AU5: 0 | AW5: 0 | AZ5: Index | BA5: A | BB5: B | BC5: C | BD5: D | BE5: E | BF5: LB | BL5: 0 | BM5: 1 | BN5: 2 | BO5: 3 | BP5: 4 | BQ5: 5 | BR5: 6 | BS5: 7 | BT5: 8 | BU5: 9 | BX5: 0 | BY5: 1 | BZ5: 2 | CA5: 3 | CB5: 4 | CC5: 5 | CD5: 6 | CE5: 7 | CF5: 8 | CG5: 9 | CJ5: 0 | CK5: 1 | CL5: 2 | CM5: 3 | CN5: 4 | CO5: 5 | CP5: 6 | CQ5: 7 | CR5: 8 | CS5: 9 | CV5: 0 | CW5: 1 | CX5: 2 | CY5: 3 | CZ5: 4 | DA5: 5 | DB5: 6 | DC5: 7 | DD5: 8 | DE5: 9 | DH5: 0 | DI5: 1 | DJ5: 2 | DK5: 3 | DL5: 4 | DM5: 5 | DN5: 6 | DO5: 7 | DP5: 8 | DQ5: 9 | DT5: 0 | DU5: 1 | DV5: 2 | DW5: 3 | DX5: 4 | DY5: 5 | DZ5: 6 | EA5: 7 | EB5: 8 | EC5: 9
B6: 2 | C6: 2015 | D6: 2 | E6: 2 | F6: 7 | G6: 11 | H6: 18 | I6: 19 | J6: 28 | K6: 16 | L6: =IF(ISNUMBER(F6),INT(F6/10),"") -> 0 | M6: =IF(ISNUMBER(F6),F6-10*L6,"") -> 7 | N6: =IF(ISNUMBER(G6),INT(G6/10),"") -> 1 | O6: =IF(ISNUMBER(G6),G6-10*N6,"") -> 1 | P6: =IF(ISNUMBER(H6),INT(H6/10),"") -> 1 | Q6: =IF(ISNUMBER(H6),H6-10*P6,"") -> 8 | R6: =IF(ISNUMBER(I6),INT(I6/10),"") -> 1 | S6: =IF(ISNUMBER(I6),I6-10*R6,"") -> 9 | T6: =IF(ISNUMBER(J6),INT(J6/10),"") -> 2 | U6: =IF(ISNUMBER(J6),J6-10*T6,"") -> 8 | V6: =IF(ISNUMBER(K6),INT(K6/10),"") -> 1 | W6: =IF(ISNUMBER(K6),K6-10*V6,"") -> 6 | Y6: 1 | Z6: =IF($Z$5=$BL$5,Disimulate($BK$6:$BK$15,$BL$6:$BL$15),IF($Z$5=$BM$5,Disimulate($BK$6:$BK$15,$BM$6:$BM$15),IF($Z$5=$BN$5,Disimulate($BK$6:$BK$15,$BN$6:$BN$15),IF($Z$5=$BO$5,Disimulate($BK$6:$BK$15,$BO$6:$BO$15),IF($Z$5=$BP$5,Disimulate($BK$6:$BK$15,$BP$6:$BP$15),IF($Z$5=$BQ$5,Disimulate($BK$6:$BK$15,$BQ$6:$BQ$15),IF($Z$5=$BR$5,Disimulate($BK$6:$BK$15,$BR$6:$BR$15),IF($Z$5=$BS$5,Disimulate($BK$6:$BK$15,$BS$6:$BS$15),IF($Z$5=$BT$5,Disimulate($BK$6:$BK$15,$BT$6:$BT$15),IF($Z$5=$BU$5,Disimulate($BK$6:$BK$15,$BU$6:$BU$15),"")))))))))) -> 1 | AA6: =IF($AA$5=$BL$17,Disimulate($BK$18:$BK$27,$BL$18:$BL$27),IF($AA$5=$BM$17,Disimulate($BK$18:$BK$27,$BM$18:$BM$27),IF($AA$5=$BN$17,Disimulate($BK$18:$BK$27,$BN$18:$BN$27),IF($AA$5=$BO$17,Disimulate($BK$18:$BK$27,$BO$18:$BO$27),IF($AA$5=$BP$17,Disimulate($BK$18:$BK$27,$BP$18:$BP$27),IF($AA$5=$BQ$17,Disimulate($BK$18:$BK$27,$BQ$18:$BQ$27),IF($AA$5=$BR$17,Disimulate($BK$18:$BK$27,$BR$18:$BR$27),IF($AA$5=$BS$17,Disimulate($BK$18:$BK$27,$BS$18:$BS$27),IF($AA$5=$BT$17,Disimulate($BK$18:$BK$27,$BT$18:$BT$27),IF($AA$5=$BU$17,Disimulate($BK$18:$BK$27,$BU$18:$BU$27),"")))))))))) -> 9 | AB6: =IF($AB$5=$BX$5,Disimulate($BW$6:$BW$15,$BX$6:$BX$15),IF($AB$5=$BY$5,Disimulate($BW$6:$BW$15,$BY$6:$BY$15),IF($AB$5=$BZ$5,Disimulate($BW$6:$BW$15,$BZ$6:$BZ$15),IF($AB$5=$CA$5,Disimulate($BW$6:$BW$15,$CA$6:$CA$15),IF($AB$5=$CB$5,Disimulate($BW$6:$BW$15,$CB$6:$CB$15),IF($AB$5=$CC$5,Disimulate($BW$6:$BW$15,$CC$6:$CC$15),IF($AB$5=$CD$5,Disimulate($BW$6:$BW$15,$CD$6:$CD$15),IF($AB$5=$CE$5,Disimulate($BW$6:$BW$15,$CE$6:$CE$15),IF($AB$5=$CF$5,Disimulate($BW$6:$BW$15,$CF$6:$CF$15),IF($AB$5=$CG$5,Disimulate($BW$6:$BW$15,$CG$6:$CG$15),"")))))))))) -> 3 | AC6: =IF($AC$5=$BX$17,Disimulate($BW$18:$BW$27,$BX$18:$BX$27),IF($AC$5=$BY$17,Disimulate($BW$18:$BW$27,$BY$18:$BY$27),IF($AC$5=$BZ$17,Disimulate($BW$18:$BW$27,$BZ$18:$BZ$27),IF($AC$5=$CA$17,Disimulate($BW$18:$BW$27,$CA$18:$CA$27),IF($AC$5=$CB$17,Disimulate($BW$18:$BW$27,$CB$18:$CB$27),IF($AC$5=$CC$17,Disimulate($BW$18:$BW$27,$CC$18:$CC$27),IF($AC$5=$CD$17,Disimulate($BW$18:$BW$27,$CD$18:$CD$27),IF($AC$5=$CE$17,Disimulate($BW$18:$BW$27,$CE$18:$CE$27),IF($AC$5=$CF$17,Disimulate($BW$18:$BW$27,$CF$18:$CF$27),IF($AC$5=$CG$17,Disimulate($BW$18:$BW$27,$CG$18:$CG$27),"")))))))))) -> 2 | AD6: =IF($AD$5=$CJ$5,Disimulate($CI$6:$CI$15,$CJ$6:$CJ$15),IF($AD$5=$CK$5,Disimulate($CI$6:$CI$15,$CK$6:$CK$15),IF($AD$5=$CL$5,Disimulate($CI$6:$CI$15,$CL$6:$CL$15),IF($AD$5=$CM$5,Disimulate($CI$6:$CI$15,$CM$6:$CM$15),IF($AD$5=$CN$5,Disimulate($CI$6:$CI$15,$CN$6:$CN$15),IF($AD$5=$CO$5,Disimulate($CI$6:$CI$15,$CO$6:$CO$15),IF($AD$5=$CP$5,Disimulate($CI$6:$CI$15,$CP$6:$CP$15),IF($AD$5=$CQ$5,Disimulate($CI$6:$CI$15,$CQ$6:$CQ$15),IF($AD$5=$CR$5,Disimulate($CI$6:$CI$15,$CR$6:$CR$15),IF($AD$5=$CS$5,Disimulate($CI$6:$CI$15,$CS$6:$CS$15),"")))))))))) -> 1 | AE6: =IF($AE$5=$CJ$17,Disimulate($CI$18:$CI$27,$CJ$18:$CJ$27),IF($AE$5=$CK$17,Disimulate($CI$18:$CI$27,$CK$18:$CK$27),IF($AE$5=$CL$17,Disimulate($CI$18:$CI$27,$CL$18:$CL$27),IF($AE$5=$CM$17,Disimulate($CI$18:$CI$27,$CM$18:$CM$27),IF($AE$5=$CN$17,Disimulate($CI$18:$CI$27,$CN$18:$CN$27),IF($AE$5=$CO$17,Disimulate($CI$18:$CI$27,$CO$18:$CO$27),IF($AE$5=$CP$17,Disimulate($CI$18:$CI$27,$CP$18:$CP$27),IF($AE$5=$CQ$17,Disimulate($CI$18:$CI$27,$CQ$18:$CQ$27),IF($AE$5=$CR$17,Disimulate($CI$18:$CI$27,$CR$18:$CR$27),IF($AE$5=$CS$17,Disimulate($CI$18:$CI$27,$CS$18:$CS$27),"")))))))))) -> 0 | AF6: =IF($AF$5=$CV$5,Disimulate($CU$6:$CU$15,$CV$6:$CV$15),IF($AF$5=$CW$5,Disimulate($CU$6:$CU$15,$CW$6:$CW$15),IF($AF$5=$CX$5,Disimulate($CU$6:$CU$15,$CX$6:$CX$15),IF($AF$5=$CY$5,Disimulate($CU$6:$CU$15,$CY$6:$CY$15),IF($AF$5=$CZ$5,Disimulate($CU$6:$CU$15,$CZ$6:$CZ$15),IF($AF$5=$DA$5,Disimulate($CU$6:$CU$15,$DA$6:$DA$15),IF($AF$5=$DB$5,Disimulate($CU$6:$CU$15,$DB$6:$DB$15),IF($AF$5=$DC$5,Disimulate($CU$6:$CU$15,$DC$6:$DC$15),IF($AF$5=$DD$5,Disimulate($CU$6:$CU$15,$DD$6:$DD$15),IF($AF$5=$DE$5,Disimulate($CU$6:$CU$15,$DE$6:$DE$15),"")))))))))) -> 3 | AG6: =IF($AG$5=$CV$17,Disimulate($CU$18:$CU$27,$CV$18:$CV$27),IF($AG$5=$CW$17,Disimulate($CU$18:$CU$27,$CW$18:$CW$27),IF($AG$5=$CX$17,Disimulate($CU$18:$CU$27,$CX$18:$CX$27),IF($AG$5=$CY$17,Disimulate($CU$18:$CU$27,$CY$18:$CY$27),IF($AG$5=$CZ$17,Disimulate($CU$18:$CU$27,$CZ$18:$CZ$27),IF($AG$5=$DA$17,Disimulate($CU$18:$CU$27,$DA$18:$DA$27),IF($AG$5=$DB$17,Disimulate($CU$18:$CU$27,$DB$18:$DB$27),IF($AG$5=$DC$17,Disimulate($CU$18:$CU$27,$DC$18:$DC$27),IF($AG$5=$DD$17,Disimulate($CU$18:$CU$27,$DD$18:$DD$27),IF($AG$5=$DE$17,Disimulate($CU$18:$CU$27,$DE$18:$DE$27),"")))))))))) -> 6 | AH6: =IF($AH$5=$DH$5,Disimulate($DG$6:$DG$15,$DH$6:$DH$15),IF($AH$5=$DI$5,Disimulate($DG$6:$DG$15,$DI$6:$DI$15),IF($AH$5=$DJ$5,Disimulate($DG$6:$DG$15,$DJ$6:$DJ$15),IF($AH$5=$DK$5,Disimulate($DG$6:$DG$15,$DK$6:$DK$15),IF($AH$5=$DL$5,Disimulate($DG$6:$DG$15,$DL$6:$DL$15),IF($AH$5=$DM$5,Disimulate($DG$6:$DG$15,$DM$6:$DM$15),IF($AH$5=$DN$5,Disimulate($DG$6:$DG$15,$DN$6:$DN$15),IF($AH$5=$DO$5,Disimulate($DG$6:$DG$15,$DO$6:$DO$15),IF($AH$5=$DP$5,Disimulate($DG$6:$DG$15,$DP$6:$DP$15),IF($AH$5=$DQ$5,Disimulate($DG$6:$DG$15,$DQ$6:$DQ$15),"")))))))))) -> 4 | AI6: =IF($AI$5=$DH$17,Disimulate($DG$18:$DG$27,$DH$18:$DH$27),IF($AI$5=$DI$17,Disimulate($DG$18:$DG$27,$DI$18:$DI$27),IF($AI$5=$DJ$17,Disimulate($DG$18:$DG$27,$DJ$18:$DJ$27),IF($AI$5=$DK$17,Disimulate($DG$18:$DG$27,$DK$18:$DK$27),IF($AI$5=$DL$17,Disimulate($DG$18:$DG$27,$DL$18:$DL$27),IF($AI$5=$DM$17,Disimulate($DG$18:$DG$27,$DM$18:$DM$27),IF($AI$5=$DN$17,Disimulate($DG$18:$DG$27,$DN$18:$DN$27),IF($AI$5=$DO$17,Disimulate($DG$18:$DG$27,$DO$18:$DO$27),IF($AI$5=$DP$17,Disimulate($DG$18:$DG$27,$DP$18:$DP$27),IF($AI$5=$DQ$17,Disimulate($DG$18:$DG$27,$DQ$18:$DQ$27),"")))))))))) -> 8 | AJ6: =IF($AJ$5=$DT$5,Disimulate($DS$6:$DS$15,$DT$6:$DT$15),IF($AJ$5=$DU$5,Disimulate($DS$6:$DS$15,$DU$6:$DU$15),IF($AJ$5=$DV$5,Disimulate($DS$6:$DS$15,$DV$6:$DV$15),IF($AJ$5=$DW$5,Disimulate($DS$6:$DS$15,$DW$6:$DW$15),IF($AJ$5=$DX$5,Disimulate($DS$6:$DS$15,$DX$6:$DX$15),IF($AJ$5=$DY$5,Disimulate($DS$6:$DS$15,$DY$6:$DY$15),IF($AJ$5=$DZ$5,Disimulate($DS$6:$DS$15,$DZ$6:$DZ$15),IF($AJ$5=$EA$5,Disimulate($DS$6:$DS$15,$EA$6:$EA$15),IF($AJ$5=$EB$5,Disimulate($DS$6:$DS$15,$EB$6:$EB$15),IF($AJ$5=$EC$5,Disimulate($DS$6:$DS$15,$EC$6:$EC$15),"")))))))))) -> 1 | AK6: =IF($AK$5=$DT$17,Disimulate($DS$18:$DS$27,$DT$18:$DT$27),IF($AK$5=$DU$17,Disimulate($DS$18:$DS$27,$DU$18:$DU$27),IF($AK$5=$DV$17,Disimulate($DS$18:$DS$27,$DV$18:$DV$27),IF($AK$5=$DW$17,Disimulate($DS$18:$DS$27,$DW$18:$DW$27),IF($AK$5=$DX$17,Disimulate($DS$18:$DS$27,$DX$18:$DX$27),IF($AK$5=$DY$17,Disimulate($DS$18:$DS$27,$DY$18:$DY$27),IF($AK$5=$DZ$17,Disimulate($DS$18:$DS$27,$DZ$18:$DZ$27),IF($AK$5=$EA$17,Disimulate($DS$18:$DS$27,$EA$18:$EA$27),IF($AK$5=$EB$17,Disimulate($DS$18:$DS$27,$EB$18:$EB$27),IF($AK$5=$EC$17,Disimulate($DS$18:$DS$27,$EC$18:$EC$27),"")))))))))) -> 9 | AM6: =10*Z6+1*MOD(AA6+AM$4,10) -> 19 | AN6: =10*AB6+1*MOD(AC6+AN$4,10) -> 32 | AO6: =10*AD6+1*MOD(AE6+AO$4,10) -> 10 | AP6: =10*AF6+1*MOD(AG6+AP$4,10) -> 36 | AQ6: =10*AH6+1*MOD(AI6+AQ$4,10) -> 48 | AR6: =10*AJ6+1*MOD(AK6+AR$4,10) -> 19 | AS6: =IF(AND(MIN(AM6:AR6)>0,MAX(AM6:AQ6)<49,AR6<19),"X","") ->  | AT6: =IF(AND(AS6="X",AM6<AN6,AN6<AO6,AO6<AP6,AP6<AQ6),"XX","") ->  | AU6: =IF(AS6="X",AU5+1,AU5) -> 0 | AV6: =IF(AU6<>AU5,AU6,"") ->  | AW6: =IF(AT6="XX",AW5+1,AW5) -> 0 | AX6: =IF(AW6<>AW5,AW6,"") ->  | AZ6: 1 | BA6: =IF($AZ6<=$AT$5,LOOKUP($AZ6,$AX$6:$AX$1005,AM$6:AM$1005),"") -> 4 | BB6: 27 | BC6: 32 | BD6: 36 | BE6: 47 | BF6: 6 | BI6: 10's | BJ6: To | BK6: 0 | BL6: =COUNTIFS($L$5:$L$1503,BL$5,$L$6:$L$1504,$BK6) -> 28 | BM6: 16 | BN6: 4 | BO6: 1 | BP6: 0 | BQ6: 0 | BR6: 0 | BS6: 0 | BT6: 0 | BU6: 0 | BV6: To | BW6: 0 | BX6: =COUNTIFS($N$5:$N$1503,BX$5,$N$6:$N$1504,$BW6) -> 3 | BY6: 4 | BZ6: 8 | CA6: 1 | CB6: 0 | CC6: 0 | CD6: 0 | CE6: 0 | CF6: 0 | CG6: 0 | CH6: To | CI6: 0 | CJ6: =COUNTIFS($P$5:$P$1503,CJ$5,$P$6:$P$1504,$CI6) -> 0 | CK6: 0 | CL6: 0 | CM6: 3 | CN6: 0 | CO6: 0 | CP6: 0 | CQ6: 0 | CR6: 0 | CS6: 0 | CT6: To | CU6: 0 | CV6: =COUNTIFS($R$5:$R$1503,CV$5,$R$6:$R$1504,$CU6) -> 0 | CW6: 0 | CX6: 0 | CY6: 2 | CZ6: 0 | DA6: 0 | DB6: 0 | DC6: 0 | DD6: 0 | DE6: 0 | DF6: To | DG6: 0 | DH6: =COUNTIFS($T$5:$T$1503,DH$5,$T$6:$T$1504,$DG6) -> 0 | DI6: 0 | DJ6: 0 | DK6: 0 | DL6: 0 | DM6: 0 | DN6: 0 | DO6: 0 | DP6: 0 | DQ6: 0 | DR6: To | DS6: 0 | DT6: =COUNTIFS($V$5:$V$1503,DT$5,$V$6:$V$1504,$DS6) -> 20 | DU6: 16 | DV6: 0 | DW6: 0 | DX6: 0 | DY6: 0 | DZ6: 0 | EA6: 0 | EB6: 0 | EC6: 0
B7: 3 | C7: 2015 | D7: 2 | E7: 5 | F7: 1 | G7: 15 | H7: 25 | I7: 43 | J7: 47 | K7: 18 | L7: 0 | M7: 1 | N7: 1 | O7: 5 | P7: 2 | Q7: 5 | R7: 4 | S7: 3 | T7: 4 | U7: 7 | V7: 1 | W7: 8 | Y7: 2 | Z7: 3 | AA7: 6 | AB7: 2 | AC7: 8 | AD7: 3 | AE7: 7 | AF7: 4 | AG7: 6 | AH7: 4 | AI7: 8 | AJ7: 1 | AK7: 1 | AM7: 36 | AN7: 28 | AO7: 37 | AP7: 46 | AQ7: 48 | AR7: 11 | AS7: =IF(AND(MIN(AM7:AR7)>0,MAX(AM7:AQ7)<49,AR7<19),"X","") -> X | AU7: =IF(AS7="X",AU6+1,AU6) -> 1 | AV7: =IF(AU7<>AU6,AU7,"") -> 1 | AW7: =IF(AT7="XX",AW6+1,AW6) -> 0 | AZ7: 2 | BA7: 16 | BB7: 23 | BC7: 32 | BD7: 42 | BE7: 43 | BF7: 11 | BK7: 1 | BL7: 16 | BM7: 5 | BN7: 2 | BO7: 0 | BP7: 0 | BQ7: 0 | BR7: 0 | BS7: 0 | BT7: 0 | BU7: 0 | BW7: 1 | BX7: 7 | BY7: 15 | BZ7: 9 | CA7: 3 | CB7: 0 | CC7: 0 | CD7: 0 | CE7: 0 | CF7: 0 | CG7: 0 | CI7: 1 | CJ7: 0 | CK7: 2 | CL7: 4 | CM7: 11 | CN7: 0 | CO7: 0 | CP7: 0 | CQ7: 0 | CR7: 0 | CS7: 0 | CU7: 1 | CV7: 0 | CW7: 0 | CX7: 1 | CY7: 2 | CZ7: 3 | DA7: 0 | DB7: 0 | DC7: 0 | DD7: 0 | DE7: 0 | DG7: 1 | DH7: 0 | DI7: 0 | DJ7: 0 | DK7: 0 | DL7: 1 | DM7: 0 | DN7: 0 | DO7: 0 | DP7: 0 | DQ7: 0 | DS7: 1 | DT7: 16 | DU7: 28 | DV7: 0 | DW7: 0 | DX7: 0 | DY7: 0 | DZ7: 0 | EA7: 0 | EB7: 0 | EC7: 0
